Workbook

Sheet Read Me
A1: GCCA (Global Cement and Concret Association) Cement CO2 and Energy Protocol, Version 3.1, CO2 Emissions and Energy Inventory Developed by the WBCSD Cement Sustainability Initiative (CSI) and European Cement Research Academy (ECRA). | G1: Colour Codes, Notes & FAQ
A2: This protocol and related activities shall be compliant with all applicable legal requirements, including competition laws and regulations, whether related to information exchange or to other competition law requirements, guidelines, or practices.
A4: Date of latest update | B4: 2013-12-09
A7: Enable macros
A9: The Protocol Spreadsheet is a Microsoft® Excel® file with Visual Basic macros.
A10: It is therefore very important to enable macros in your Excel application via (Options>Macro>Security)
A11: or by pressing "enable" if asked to do so on start-up of the Protocol Spreadsheet.
A27: Plant sheet functionality
A29: The Plant sheet will expand or contract certain sections of lines according to the selection for the Inventory Boundaries in Column E (line 7a to line 7j).
A30: Thus, some input lines only become accessible, when needed for the reporting for this plant.
A32: Additional Plant sheets are required, when you report data for several plants of one company in the same Protocol Spreadsheet.
A33: In the line 1 you will find a button with which you can create a “New Plant Sheet”.
A34: It is recommended to name all Plant sheets "Plant_xyz", with xyz being replaced e.g. by the name of the plant. This will help you to keep an overview of complex company structures.
A37: Color codes
A39: Subject | B39: Numbers / Values
A40: Basic information on plant and company | B40: Input cell; value to be entered by Cement Company as appropriate
A41: Calculation of CO2 emissions | B41: Calculated value
A42: Calculation of Performance indicators, Total absolute and specific emissions | B42: Self-calculating value copied from another part of the sheet
A43: Voluntary data or indicators | B43: Default value, to be corrected by Cement Company if more precise data are available
A46: Notes to the user
A48: - Pant sheet: All empty white cells must be completed. If an input value is zero (0), do not leave the cell blank but enter zero.
A49: - Company sheet: If you are reporting for several plants of one company, the data is consolidated in the Company sheet. Consolidated totals must be entered manually in all white "SUM" cells.
A50: If a value is zero (0), do not leave the cell blank but enter zero.
A51: - Non-input cells are write-protected to prevent inadvertent changes.
A52: - Please note that the undo-function only works before you have pressed the ENTER-button.
A53: - A detailed user manual for the application and explanation of the Protocol Spreadsheet and the Protocol Guidance Document are available via internet: www.cement-co2-protocol.org
A54: - Further information on the Cement CO2 and Energy Protocol can be found at the GCCA home page: https://gccassociation.org/sustainability-innovation/gnr-gcca-in-numbers/
A56: In the Protocol Spreadsheet it is most important for correct functioning and calculations to enter values in each of the white cells.
A67: Some white cells are filled with a default value of “0” (zero) in order to assure correct functioning of some calculation cells.
A72: Please change the value of “0” (zero) to your plant (or company) specific data, as appropriate.
A75: Jump marks in plant sheet
A76: Jump marks are programmed in each Plant Sheet for easy navigation to the following sections:
A77: - General Plant Information (_PlantInformation)
A78: - Inventory Boundaries (_InventoryBoundaries)
A79: - Clinker and Cement Production (_ClinkerCement)
A80: - Power Balance (_PowerBalance)
A81: - CO2 Emissions (_CO2Balance)
A82: - Performance Indicators (_KPI)
A83: - Kiln Fuels (_KilnFuels)
A84: - CO2 Emission Factors (_EmissionFactors)
A85: - Non-Kiln Fuels (_NonKilnFuels)
A113: When clicking on one of the mentioned jump marks (cell name) the curser jumps from any position in the plant sheet to the very first cell (column A) in the first line of the corresponding section in the sheet.
A115: Frequently Ask Questions (FAQs)
A117: Answers to further questions are provided in the section Frequently Asked Questions (FAQs) of the Internet Manual (http://www.cement-co2-protocol.org).

Sheet Comments
A1: GCCA (Global Cement and Concret Association) Cement CO2 and Energy Protocol, Version 3.1, CO2 Emissions and Energy Inventory. Developed by the WBCSD Cement Sustainability Initiative (CSI) and European Cement Research Academy (ECRA). | E1: Plant Level - Comments
A3: . | B3: . | E3: ='Read Me'!B4 -> 2013-12-09
A5: INFORMATION
B7: General Plant Information | G7: 1990 | H7: =G7+1 -> 1991 | I7: 1992 | J7: 1993 | K7: 1994 | L7: 1995 | M7: 1996 | N7: 1997 | O7: 1998 | P7: 1999 | Q7: 2000 | R7: 2001 | S7: 2002 | T7: 2003 | U7: 2004 | V7: 2005
B8: 1 | C8: Plant
B9: 2 | C9: Company
B10: 3 | C10: Country | G10: Selection needed
B11: 4 | C11: Continent | G11: Selection needed
B12: 5 | C12: "Kyoto" Region (Annex 1 or non-Annex 1)
B13: 6 | C13: Kiln types | G13: Selection needed
B14: 6a | C14: Nominal clinker capacity | E14: [t/d] | G14: Selection needed
B15: 6b | C15: Plant type | G15: Selection needed
B16: 7 | C16: Shares owned by Company | E16: [%]
B17: 7aa | C17: Third party verification | G17: Selection needed
B18: 7ab | C18: Used Cement CO2 and Energy Protocol version | G18: Fixed value for all calculations and data processed with this spreadsheet
B19: 7ac | C19: Short notes or user comment (max. 250 characters)
B21: Inventory Boundaries: Coverage of Main Process Steps | E21: [yes, no or n.a.] | G21: =G$7 -> 1990 | H21: 1991 | I21: 1992 | J21: 1993 | K21: 1994 | L21: 1995 | M21: 1996 | N21: 1997 | O21: 1998 | P21: 1999 | Q21: 2000 | R21: 2001 | S21: 2002 | T21: 2003 | U21: 2004 | V21: 2005
B22: 7a | C22: Raw material supply (quarrying, mining, crushing) | E22: Selection needed | G22: "Yes" means that energy consumption and emissions data for the project step are reported
B23: 7b | C23: Preparation of raw materials, fuels and additives | E23: Selection needed | G23: "No" means that emissions are generated as a result of the process step, but the data are not reported -- Needs
B24: 7c | C24: Kiln operation (pyro-processing) | E24: Selection needed | G24: explanation in a note in the cell for why "No" was used.
B25: 7d | C25: Cement grinding, blending | E25: Selection needed | G25: "n.a." (not applicable) means that emissions are never generated from this source, or the source does not exist at this plant.
B26: 7e | C26: On-site (internal) transport | E26: Selection needed | G26: See Protocol Guideance Document, Appendix 3, for details on the different process steps.
B27: 7f | C27: Off-site transport with company-owned fleets | E27: Selection needed
B28: 7g | C28: On-site power generation | E28: Selection needed
B29: 7h | C29: Room heating and cooling | E29: Selection needed
B30: 7i | C30: (add other processes as appropriate) | E30: Selection needed
B31: 7j | C31: use of internal cement transfer for blending | E31: Selection needed
B32: 7k | C32: Select year to copy and apply inventory boundaries (7a - 7j) | E32: Selection needed | G32: Use macro in line7k, column E, to copy and apply inventory boundaries to specific reporting years.
B34: 7n | C34: 1.) Select calcination CO2 method (A1; A2; B1; B2) B1=Standard (no seperate calcination sheet needed). | G34: Select method for reporting CO2 emissions from raw material calcination. Use macro in column E to create coresponding calcination sheet, if missing.
C35: 2.) For A1; A2; B2 check if appropriate calcination sheet (CalcA1; CalcA2 or CalcB2) is already availabe next to plant sheet.
C36: 3.) If not, press the 'create' button one time in order to create one new calcination sheet.
B38: Clinker and Cement Production | G38: =G$7 -> 1990 | H38: 1991 | I38: 1992 | J38: 1993 | K38: 1994 | L38: 1995 | M38: 1996 | N38: 1997 | O38: 1998 | P38: 1999 | Q38: 2000 | R38: 2001 | S38: 2002 | T38: 2003 | U38: 2004 | V38: 2005
C39: Clinker:
B40: =B16+1 -> 8 | C40: Clinker production | E40: [t/yr] | G40: Actual clinker production of active kilns
B41: =B40+1 -> 9 | C41: Clinker bought from other companies and from cross-border transfer | E41: [t/yr] | G41: Amount of clinker purchased from other companies. See Section 7.4 of guidance document for details on company-internal transfers.
B42: =B41+1 -> 10 | C42: Clinker sold to other companies and from cross-border transfer | E42: [t/yr] | G42: Amount of clinker sold to other companies. See Section 7.4 of guidance document for details on company-internal transfers.
B43: 10a | C43: Change in clinker stocks (+ = increase; - = reduction) | E43: [t/yr] | G43: Amount of clinker added to stocks (positive sign) or taken from stocks (negative sign), (=stock at end minus stock at start of the year).
B44: 10b | C44: Internal clinker transfer (+ = clinker received; - = clinker sent) | E44: [t/yr] | G44: Amount of clinker transfers with other plants belonging to the same company
B45: 10c | C45: Clinker from internal transfer of processed cement (+ = cement received; - = cement sent) | E45: [t/yr] | G45: Amount of clinker transfers with cement transferes with other plants belonging to the same company
B46: =B42+1 -> 11 | C46: Total clinker consumed | E46: [t/yr] | G46: ; =line8 + line9 - line10 - line10a + line10b + line10c
C48: Mineral components (MIC) used to produce Portland and blended cements:
B49: =B46+1 -> 12 | C49: Gypsum | E49: [t/yr, dry weight] | G49: Only mineral components used for portland cement and blended cement, excl. MIC used for slag cement production
B50: =B49+1 -> 13 | C50: Limestone | E50: [t/yr, dry weight] | G50: idem
B51: =B50+1 -> 14 | C51: Slag | E51: [t/yr, dry weight] | G51: idem
B52: =B51+1 -> 15 | C52: Fly ash (for blending) | E52: [t/yr, dry weight] | G52: idem
B53: =B52+1 -> 16 | C53: Puzzolana | E53: [t/yr, dry weight] | G53: idem
B54: =B53+1 -> 17 | C54: Others (e.g., CKD added to cement mill) | E54: [t/yr, dry weight] | G54: idem
B55: 17a | C55: MIC from internal transfer of processed cement (+ = cement received; - = cement sent) | E55: [t/yr, dry weight] | G55: Amount of MICs transfers between plants belonging to the same company
B56: =B54+1 -> 18 | C56: Total MIC consumed for Portland and blended cements (dry weight) | E56: [t/yr, dry weight] | G56: ; =SUM(line12:line17a)
C58: Processed mineral components (MIC) sold externally or transferred internally (dry weight):
B59: 19a | C59: Processed slag sold externally | E59: [t/yr, dry weight] | G59: This is pure slag, dried and/or ground on-site and sold externally (no company-internal transfer)
B60: 19b | C60: Processed fly ash and other puzzolana sold externally | E60: [t/yr, dry weight] | G60: This is fly ash and other puzzolana, dried and/or ground on-site and sold externally (no company-internal transfer)
B61: 19c | C61: Total internal processed MIC transfer (+ = received; - = sent) | E61: [t/yr, dry weight] | G61: Total amount of MICs processed on-site and transfered between plants of the same company (not sold to or purchaesd from other companies)
B62: 19 | C62: Total processed MIC's used as clinker or cement substitute sold externally | E62: [t/yr, dry weight] | G62: ; =SUM(line19a:line19c) | R62: =IF(COUNTBLANK(R59:R60)=2,"",SUM(R59:R60)) ->  | S62: =IF(COUNTBLANK(S59:S60)=2,"",SUM(S59:S60)) ->  | T62: =IF(COUNTBLANK(T59:T60)=2,"",SUM(T59:T60)) ->  | U62: =IF(COUNTBLANK(U59:U60)=2,"",SUM(U59:U60)) ->  | V62: =IF(COUNTBLANK(V59:V60)=2,"",SUM(V59:V60)) -> 
C64: Production totals:
B65: =B62+1 -> 20 | C65: Total Portland and Blended cements | E65: [t/yr] | G65: Total cement produced (all types together except pure slag cement and direct fly ash sales) ; =line11 + line18
B66: =B65+1 -> 21 | C66: Total cements + substitutes: Portland, Blended, Slag, etc. | E66: [t/yr] | G66: Total cements produced, excluding clinker sold, including clinker bought. Portland + Blended + Slag cements incl. direct fly ash sales ; =line11 + line18 + line19 | R66: =IF(OR(R46="",R56="",R62=""),"",R46+R56+R62) ->  | S66: =IF(OR(S46="",S56="",S62=""),"",S46+S56+S62) ->  | T66: =IF(OR(T46="",T56="",T62=""),"",T46+T56+T62) ->  | U66: =IF(OR(U46="",U56="",U62=""),"",U46+U56+U62) ->  | V66: =IF(OR(V46="",V56="",V62=""),"",V46+V56+V62) -> 
B67: 21a | C67: Total cementitious products | E67: [t/yr] | G67: Total clinker produced plus MIC consumed for blending and production of cement substitutes, including clinker sold, excluding clinker bought ; =line8 + line18 + line19 | R67: =IF(OR(R40="",R56="",R62=""),"",R40+R56+R62) ->  | S67: =IF(OR(S40="",S56="",S62=""),"",S40+S56+S62) ->  | T67: =IF(OR(T40="",T56="",T62=""),"",T40+T56+T62) ->  | U67: =IF(OR(U40="",U56="",U62=""),"",U40+U56+U62) ->  | V67: =IF(OR(V40="",V56="",V62=""),"",V40+V56+V62) -> 
B68: 21b | C68: Total cement equivalent | E68: [t/yr] | G68: Calculated based on Clinker production and Clinker/cement (eq.) ratio ; =line 8 / line 92a
B70: Dust Production (dry weight) | G70: =G$7 -> 1990 | H70: 1991 | I70: 1992 | J70: 1993 | K70: 1994 | L70: 1995 | M70: 1996 | N70: 1997 | O70: 1998 | P70: 1999 | Q70: 2000 | R70: 2001 | S70: 2002 | T70: 2003 | U70: 2004 | V70: 2005
B71: 22 | C71: Bypass dust leaving kiln system | E71: [t/yr, dry weight] | G71: Only bypass dust which leaves the kiln system, e.g. for landfilling. | R71: 0 | S71: 0 | T71: 0 | U71: 0 | V71: 0
B72: =B71+1 -> 23 | C72: CKD leaving the kiln system | E72: [t/yr, dry weight] | G72: All CKD which leaves the kiln system, e.g. for additions to cement mill, direct sale, landfilling, etc. CKD volumes added to cement mill should also be entered in line 17. CKD sold directly as a product may be entered in line 19b. | R72: 0 | S72: 0 | T72: 0 | U72: 0 | V72: 0
B73: =B72+1 -> 24 | C73: CKD calcination rate d (Plant specific value or default 0%= dry kilns, 100%= for other kiln types) | E73: [%] | G73: Default 0% = dry kilns, 100% = for other kiln types. To be replaced with more precise data by Company if available. See Protocol Guideance Document, Appendix 4 for instructions.
B75: Kiln Fuel Consumption incl. raw material and fuel drying | G75: =G$7 -> 1990 | H75: 1991 | I75: 1992 | J75: 1993 | K75: 1994 | L75: 1995 | M75: 1996 | N75: 1997 | O75: 1998 | P75: 1999 | Q75: 2000 | R75: 2001 | S75: 2002 | T75: 2003 | U75: 2004 | V75: 2005
B76: 25 | C76: Total heat consumption of kilns | E76: [TJ/yr] | G76: Sum of conventional fossil fuels, alternative fossil fuels, and biomass fuels; including fuels for drying of raw amterials and fuels ; =SUM(line26:28)
B77: 25a | C77: Total heat consumption of kilns excluding drying of fuels and raw materials | E77: [TJ/yr] | G77: Sum of conventional fossil fuels, alternative fossil fuels, and biomass fuels; excluding fuels for drying of raw amterials and fuels ; =line25 - line184 - line184g - line184i
B78: =B76+1 -> 26 | C78: Conventional fossil fuels | E78: [TJ/yr] | G78: Calculated based on consumption of individual fuels and their lower heating values ; =line161 + line184
B79: =B78+1 -> 27 | C79: Alternative fuels, fossil content; excluding biomass fraction of mixed fuels | E79: [TJ/yr] | G79: Calculated based on consumption of individual fuels and their lower heating values ; =line168 + line184g | R79: =IF(OR(R316="",R342=""),"",R316+R342) ->  | S79: =IF(OR(S316="",S342=""),"",S316+S342) ->  | T79: =IF(OR(T316="",T342=""),"",T316+T342) ->  | U79: =IF(OR(U316="",U342=""),"",U316+U342) ->  | V79: =IF(OR(V316="",V342=""),"",V316+V342) -> 
B80: =B79+1 -> 28 | C80: Biomass fuels, incl. biomass content of alternative fuels | E80: [TJ/yr] | G80: Calculated based on consumption of individual fuels and their lower heating values ; =line175 + line184i | R80: =IF(OR(R324="",R344=""),"",R324+R344) ->  | S80: =IF(OR(S324="",S344=""),"",S324+S344) ->  | T80: =IF(OR(T324="",T344=""),"",T324+T344) ->  | U80: =IF(OR(U324="",U344=""),"",U324+U344) ->  | V80: =IF(OR(V324="",V344=""),"",V324+V344) -> 
B82: Non-Kiln Fuel Consumption | G82: =G$7 -> 1990 | H82: 1991 | I82: 1992 | J82: 1993 | K82: 1994 | L82: 1995 | M82: 1996 | N82: 1997 | O82: 1998 | P82: 1999 | Q82: 2000 | R82: 2001 | S82: 2002 | T82: 2003 | U82: 2004 | V82: 2005
B83: 30 | C83: Equipment and on-site vehicles | E83: [TJ/yr] | G83: Fuel used for quarry equipment and vehicles for internal transport ; =line321+ line321c | R83: =R502 -> 0 | S83: =S502 -> 0 | T83: =T502 -> 0 | U83: =U502 -> 0 | V83: =V502 -> 0
B84: 31a | C84: Room heating and cooling | E84: [TJ/yr] | G84: Fuel used for office heating ; =line322 | R84: =R508 -> 0 | S84: =S508 -> 0 | T84: =T508 -> 0 | U84: =U508 -> 0 | V84: =V508 -> 0
B85: 31b | C85: Drying of mineral components | E85: [TJ/yr] | G85: Fuel used for drying of mineral components ; =line 323k + line 323g + line 323i | R85: =IF(OR(R513="",R520="",R522=""),"",R513+R520+R522) ->  | S85: =IF(OR(S513="",S520="",S522=""),"",S513+S520+S522) ->  | T85: =IF(OR(T513="",T520="",T522=""),"",T513+T520+T522) ->  | U85: =IF(OR(U513="",U520="",U522=""),"",U513+U520+U522) ->  | V85: =IF(OR(V513="",V520="",V522=""),"",V513+V520+V522) -> 
B86: 31c | C86: On-site power generation | E86: [TJ/yr] | G86: Fuel used for power generation on-site (autoproduction) ; =line324aa + line 324f + line 324h | R86: =IF(OR(R524="",R532="",R534=""),"",R524+R532+R534) ->  | S86: =IF(OR(S524="",S532="",S534=""),"",S524+S532+S534) ->  | T86: =IF(OR(T524="",T532="",T534=""),"",T524+T532+T534) ->  | U86: =IF(OR(U524="",U532="",U534=""),"",U524+U532+U534) ->  | V86: =IF(OR(V524="",V532="",V534=""),"",V524+V532+V534) -> 
B87: 32 | C87: Total non-kiln fuel consumption | E87: [TJ/yr] | G87: ; =SUM(line30:line31c)
B89: Power Balance | G89: =G$7 -> 1990 | H89: 1991 | I89: 1992 | J89: 1993 | K89: 1994 | L89: 1995 | M89: 1996 | N89: 1997 | O89: 1998 | P89: 1999 | Q89: 2000 | R89: 2001 | S89: 2002 | T89: 2003 | U89: 2004 | V89: 2005
B90: 33a | C90: Total power production from separate on-site power generation | E90: [MWh/yr] | G90: Power production from separate on-site power generation in Mega Watt hours per year
B91: 33aa | C91: Power delivered to cement plant | E91: [MWh/yr] | G91: Power production from separate on-site power generation delivered to the cement plant in Mega Watt hours per year
B92: 33ab | C92: Power delivered externally | E92: [MWh/yr] | G92: Power production from separate on-site power generation delivered externally in Mega Watt hours per year
B93: 33ac | C93: Power consumed by on-site power generation equipment | E93: [MWh/yr] | G93: Power consumed in the power plant from separate on-site power generation in Mega Watt hours per year ; =line33a - line33aa - line33ab
B94: 33ad | C94: CO2 per power unit produced by separate on-site power generation | E94: [kg CO2/MWh] | G94: CO2 emission factor of power produced by on-site power generation ; =line45c / line33a *1000
B95: 33b | C95: Total power production from waste heat recovery | E95: [MWh/yr] | G95: Power production from waste heat recovery in Mega Watt hours per year
B96: 33ba | C96: Power delivered to cement plant | E96: [MWh/yr] | G96: Power production from waste heat recovery delivered to the cement plant in Mega Watt hours per year
B97: 33bb | C97: Power delivered externally | E97: [MWh/yr] | G97: Power production from waste heat recovery delivered externally in Mega Watt hours per year
B98: 33bc | C98: Power consumed by waste heat recovery equipment | E98: [MWh/yr] | G98: Power consumed in the power plant from waste heat recovery in Mega Watt hours per year ; =line33b - line33ba - line33bb
B99: 33c | C99: Total external power consumption for cement manufacturing | E99: [MWh/yr] | G99: Power consumption for cement manufacturing including power plant (own consumption) obtained from the external grid or supplier ; =SUM(line33ca:line33cc)
B100: 33ca | C100: External power delivered to cement plant | E100: [MWh/yr] | G100: Power used for cement production obtained from the external grid or supplier = purchased power minus power sold back in case of own power production.
B101: 33cb | C101: Cement-related external power delivered to on-site power generation plant | E101: [MWh/yr] | G101: Power used for own consumption of on-site power plant obtained from the external grid or supplier
B102: 33cc | C102: Cement-related external power delivered to waste heat recovery plant | E102: [MWh/yr] | G102: Power used for own consumption of waste heat recovery plant obtained from the external grid or supplier
B103: 33d | C103: CO2 per power unit produced externally | E103: [kg CO2/MWh] | G103: Specific CO2 emission per unit grid power, to be obtained from power supplier or national authorities
B104: 33e | C104: Power consumption up to and including clinker production | E104: [MWh/yr] | G104: Power used for clinker production (e.g. from the quarry to the clinker storage)
B105: 33 | C105: Total cement plant power consumption | E105: [MWh/yr] | G105: ; =(line33aa + line33ba + line33ca)
B107: Waste Heat Use | G107: =G$7 -> 1990 | H107: 1991 | I107: 1992 | J107: 1993 | K107: 1994 | L107: 1995 | M107: 1996 | N107: 1997 | O107: 1998 | P107: 1999 | Q107: 2000 | R107: 2001 | S107: 2002 | T107: 2003 | U107: 2004 | V107: 2005
B108: 34 | C108: Waste heat supplied to external consumers | E108: [GJ/yr] | G108: Waste heat exported to third parties
B109: 34a | C109: Waste heat used internally (incl. power generation) | E109: [GJ/yr] | G109: Waste heat used internally (e.g. for drying of fuels or raw materials)
A111: CO2 EMISSIONS
B113: Calculation method in calcination sheet | G113: =G$7 -> 1990 | H113: 1991 | I113: 1992 | J113: 1993 | K113: 1994 | L113: 1995 | M113: 1996 | N113: 1997 | O113: 1998 | P113: 1999 | Q113: 2000 | R113: 2001 | S113: 2002 | T113: 2003 | U113: 2004 | V113: 2005
B114: 34d | C114: Calculation method in calcination sheet | E114: A1; A2; B1; B2 | G114: Selected method for reporting CO2 emissions from raw material calcination
B116: Data for Simple Input Method (A1) | G116: =G$7 -> 1990 | H116: 1991 | I116: 1992 | J116: 1993 | K116: 1994 | L116: 1995 | M116: 1996 | N116: 1997 | O116: 1998 | P116: 1999 | Q116: 2000 | R116: 2001 | S116: 2002 | T116: 2003 | U116: 2004 | V116: 2005
B117: 34e | C117: Input CalcA1: Raw meal consumption (Line 525) | E117: [t/yr, dry weight] | G117: parameters for simple input method (A1)
B118: 34f | C118: Input CalcA1: Total CO2 from raw materials (Line 526) | E118: [t CO2/yr] | G118: parameters for simple input method (A1)
B120: Data for Detailed Input Method (A2) | G120: =G$7 -> 1990 | H120: 1991 | I120: 1992 | J120: 1993 | K120: 1994 | L120: 1995 | M120: 1996 | N120: 1997 | O120: 1998 | P120: 1999 | Q120: 2000 | R120: 2001 | S120: 2002 | T120: 2003 | U120: 2004 | V120: 2005
B121: 34i | C121: Input CalcA2: Raw meal consumption (Line 681) | E121: [t/yr, dry weight] | G121: parameters for detailed input method (A2)
B122: 34j | C122: Input CalcA2: Total CO2 from raw materials (Line 682) | E122: [t CO2/yr] | G122: parameters for detailed input method (A2)
B124: Data for Simple Output Method (B1) | G124: =G$7 -> 1990 | H124: 1991 | I124: 1992 | J124: 1993 | K124: 1994 | L124: 1995 | M124: 1996 | N124: 1997 | O124: 1998 | P124: 1999 | Q124: 2000 | R124: 2001 | S124: 2002 | T124: 2003 | U124: 2004 | V124: 2005
B125: 34m | C125: Standard calcination emission factor [default 525 kg CO2/t clinker] | E125: [kg CO2/t cli] | G125: 525 = Standard parameter for simple output method (B1)
B126: 34n | C126: Organic carbon content of raw meal (average), default value 0.2%, or set plant specific value | E126: [%, dry weight] | G126: 0,2% = Standard parameter for simple output method (B1)
B127: 34o | C127: Raw meal : clinker ratio, default value 1.55, or set plant specific value | E127: [--, dry weight] | G127: 1,55 = Standard parameter for simple output method (B1)
B129: Data for Detailed Output Method (B2) | G129: =G$7 -> 1990 | H129: 1991 | I129: 1992 | J129: 1993 | K129: 1994 | L129: 1995 | M129: 1996 | N129: 1997 | O129: 1998 | P129: 1999 | Q129: 2000 | R129: 2001 | S129: 2002 | T129: 2003 | U129: 2004 | V129: 2005
B130: 34q | C130: Input CalcB2: Calcination emission factor corrected for CaO,MgO, Ca-Si, Mg-Si imports (Line 820) | E130: [kg CO2/t cli] | G130: parameter for detailed output method (B2)
B131: 34r | C131: Organic carbon content of raw meal (average), default value 0.2%, or set plant specific value | E131: [%, dry weight] | G131: 0,2% = Standard parameter for detailed output method (B2)
B132: 34s | C132: Raw meal : clinker ratio, default value 1.55, or set plant specific value | E132: [--, dry weight] | G132: 1,55 = Standard parameter for detailed output method (B2)
A134: Direct CO2 Emissions
B135: CO2 from Raw Materials | G135: =G$7 -> 1990 | H135: 1991 | I135: 1992 | J135: 1993 | K135: 1994 | L135: 1995 | M135: 1996 | N135: 1997 | O135: 1998 | P135: 1999 | Q135: 2000 | R135: 2001 | S135: 2002 | T135: 2003 | U135: 2004 | V135: 2005
B136: 35a | C136: Calcination emission factor, corrected for CaO- and MgO imports | E136: [kg CO2/t cli] | G136: B1: Default set equal to 525 kg CO2/ t clinker. B2: To be replaced with more precise data by Company if available (see auxiliary sheet "CalcB2")
B137: 35b | C137: Organic carbon content of raw meal (average) | E137: [%, dry weight] | G137: B1, B2: Default set equal to 0.2%. To be replaced with company-specific data if raw materials with substantially higher or lower content of organic carbon are used. See Guidance document for details. | R137: 0.002 | S137: 0.002 | T137: 0.002 | U137: 0.002 | V137: 0.002
B138: 35c | C138: Raw meal : clinker ratio | E138: [--, dry weight] | G138: B1, B2: Default set equal to 1.55. To be replaced with company-specific data (excluding fuel ash content) if organic carbon in raw materials is of relevance. Any dust leaving the kiln system should be reflected in this ratio. Ash content of fuels should be excluded. | R138: 1.55 | S138: 1.55 | T138: 1.55 | U138: 1.55 | V138: 1.55
B139: 35d | C139: Raw meal consumption | E139: [t/yr, dry weight] | G139: A1, A2: Input from auxilary sheet "CalcA1", "CalcA2". B1, B2: Calculated from the raw meal : clinker ratio and the amount of clinker produced ; =line35c * line8. Raw meal converted to CKD is included in the raw meal to clinker ratio.
B140: 36 | C140: CO2 from calcination of raw materials consumed for clinker production | E140: [t CO2/yr] | G140: B1, B2: Calculated from the calcination emission factor and the clinker production ; =line35a / 1000 * line8. (A1, A2: Accounted in auxiliary sheet "CalcA1", "CalcA2"). | R140: =IF(R40="","",R$136/1000*R40) ->  | S140: =IF(S40="","",S$136/1000*S40) ->  | T140: =IF(T40="","",T$136/1000*T40) ->  | U140: =IF(U40="","",U$136/1000*U40) ->  | V140: =IF(V40="","",V$136/1000*V40) -> 
B141: =B140+1 -> 37 | C141: CO2 from calcination of bypass dust leaving the kiln system | E141: [t CO2/yr] | G141: B1, B2: Calculated from the calcination emission factor and the amount of bypass dust leaving the kiln system (e.g. for landfilling) ; =line35a / 1000 * line22. (A1, A2: Accounted in auxiliary sheet "CalcA1", "CalcA2"). | R141: =IF(R71="","",R$136/1000*R71) -> 0 | S141: =IF(S71="","",S$136/1000*S71) -> 0 | T141: =IF(T71="","",T$136/1000*T71) -> 0 | U141: =IF(U71="","",U$136/1000*U71) -> 0 | V141: =IF(V71="","",V$136/1000*V71) -> 0
B142: 38a | C142: CO2 from calcination of CKD leaving the kiln system | E142: [t CO2/yr] | G142: B1, B2: Calculated from the calcination emission factor, the amount of CKD leaving the kiln system (e.g. for landfilling or sale), and the calcination rate of CKD ; =line23 * non-linear function of lines 35a and 24. see Guidance document for details on formula. (A1, A2: Accounted in auxiliary sheet "CalcA1", "CalcA2"). | R142: =IF(R72="","",R72*R136/1000/(1+R136/1000)*R73/(1-R136/1000/(1+R136/1000)*R73)) -> 0 | S142: =IF(S72="","",S72*S136/1000/(1+S136/1000)*S73/(1-S136/1000/(1+S136/1000)*S73)) -> 0 | T142: =IF(T72="","",T72*T136/1000/(1+T136/1000)*T73/(1-T136/1000/(1+T136/1000)*T73)) -> 0 | U142: =IF(U72="","",U72*U136/1000/(1+U136/1000)*U73/(1-U136/1000/(1+U136/1000)*U73)) -> 0 | V142: =IF(V72="","",V72*V136/1000/(1+V136/1000)*V73/(1-V136/1000/(1+V136/1000)*V73)) -> 0
B143: 38b | C143: CO2 from organic carbon content of raw meal | E143: [t CO2/yr] | G143: B1, B2: Calculated from the organic carbon content of raw meal, the raw meal consumption, and the CO2 to C molar weight ratio =line35b * line35d * 3.664. (A1, A2: Accounted in auxiliary sheet "CalcA1", "CalcA2"). | R143: =IF(R139="","",R137*R139*3.664) ->  | S143: =IF(S139="","",S137*S139*3.664) ->  | T143: =IF(T139="","",T137*T139*3.664) ->  | U143: =IF(U139="","",U137*U139*3.664) ->  | V143: =IF(V139="","",V137*V139*3.664) -> 
B144: 39 | C144: Total CO2 from raw materials | E144: [t CO2/yr] | G144: A1, A2: Input from auxilary sheet "CalcA1", "CalcA2". B1, B2 ; =SUM(line36:line38b) | R144: =IF(COUNTBLANK(R140:R143)=4,"",SUM(R140:R143)) -> 0 | S144: =IF(COUNTBLANK(S140:S143)=4,"",SUM(S140:S143)) -> 0 | T144: =IF(COUNTBLANK(T140:T143)=4,"",SUM(T140:T143)) -> 0 | U144: =IF(COUNTBLANK(U140:U143)=4,"",SUM(U140:U143)) -> 0 | V144: =IF(COUNTBLANK(V140:V143)=4,"",SUM(V140:V143)) -> 0
B146: CO2 from Kiln Fuels (incl. drying of fuels and raw materials) | G146: =G$7 -> 1990 | H146: 1991 | I146: 1992 | J146: 1993 | K146: 1994 | L146: 1995 | M146: 1996 | N146: 1997 | O146: 1998 | P146: 1999 | Q146: 2000 | R146: 2001 | S146: 2002 | T146: 2003 | U146: 2004 | V146: 2005
B147: =B144+1 -> 40 | C147: CO2 from conventional fossil fuels | E147: [t CO2/yr] | G147: Sum of CO2 emissions from conventional fossil fuels, including drying of fuels and raw materials ; =line211 + line234
B148: =B147+1 -> 41 | C148: CO2 from alternative fossil fuels | E148: [t CO2/yr] | G148: Sum of CO2 emissions from alternative fossil fuels, including drying of fuels and raw materials ; =line218 + line235
B149: 43 | C149: Total CO2 from fossil-based kiln fuels | E149: [t CO2/yr] | G149: ; =SUM(line40:line41)
B151: CO2 from Non-Kiln Fuels | G151: =G$7 -> 1990 | H151: 1991 | I151: 1992 | J151: 1993 | K151: 1994 | L151: 1995 | M151: 1996 | N151: 1997 | O151: 1998 | P151: 1999 | Q151: 2000 | R151: 2001 | S151: 2002 | T151: 2003 | U151: 2004 | V151: 2005
B152: 44 | C152: CO2 from equipment and on-site vehicles (fossil fuels) | E152: [t CO2/yr] | G152: Sum of CO2 emissions from equipment and on-site vehicles ; =line331
B153: 45a | C153: CO2 from room heating and cooling (fossil fuels) | E153: [t CO2/yr] | G153: Sum of CO2 emissions from room heating and cooling ; =line332
B154: 45b | C154: CO2 from drying of mineral components (fossil fuels) | E154: [t CO2/yr] | G154: Sum of CO2 emissions from drying of mineral components ; =line333k + line333g
B155: 45c | C155: CO2 from seperate on-site power generation (fossil fuels) | E155: [t CO2/yr] | G155: Sum of CO2 emissions from on-site power generation (excl. biomass CO2) ; =line334aa + line334f
B156: 46 | C156: Total CO2 from non-kiln fossil fuels | E156: [t CO2/yr] | G156: ; =SUM(line44:line45c)
B158: Total Direct CO2 Emissions | G158: =G$7 -> 1990 | H158: 1991 | I158: 1992 | J158: 1993 | K158: 1994 | L158: 1995 | M158: 1996 | N158: 1997 | O158: 1998 | P158: 1999 | Q158: 2000 | R158: 2001 | S158: 2002 | T158: 2003 | U158: 2004 | V158: 2005
B159: 48 | C159: Total direct CO2: all fossil CO2 sources | E159: [t CO2/yr] | G159: ; =line39 + line43 + line46
A161: Indirect CO2 Emissions (Main Sources) | G161: =G$7 -> 1990 | H161: 1991 | I161: 1992 | J161: 1993 | K161: 1994 | L161: 1995 | M161: 1996 | N161: 1997 | O161: 1998 | P161: 1999 | Q161: 2000 | R161: 2001 | S161: 2002 | T161: 2003 | U161: 2004 | V161: 2005
B162: 49a | C162: CO2 from external power generation | E162: [t CO2/yr] | G162: ; =line33c * line33d / 1000
B163: 49b | C163: Emission factor for inbound clinker | E163: [kg CO2/t cli] | G163: Default is 865 kg CO2/t clinker. This represents an average of several cement companies represented in CSI. Using this default consistently across different plants ensures that company-internal clinker transfers cancel out when consolidating emissions. The value of 865 kg CO2/t clinker in the Protocol version 3.0 is taken from the CSI GNR data base. It is the global weighted average for the years 2006/2007.
B164: 49c | C164: CO2 from net inbound (+) / outbound (-) clinker | E164: [t CO2/yr] | G164: Calculated by multiplying net clinker imports (= clinker bought minus clinker sold, including clinker transfers) by the default emission factor for bought clinker and subtracting CO2 emissions from sold clinker. Value will be negative if plant is net exporter of clinker. ; =(((line9 + line10b + line10c) * line49b) - (line10 * line60)) / 1000.
B165: 49d | C165: Total indirect CO2 (main sources) | E165: [t CO2/yr] | G165: ; =line49a + line49c
A167: Direct CO2 from Biomass (Memo Item) | G167: =G$7 -> 1990 | H167: 1991 | I167: 1992 | J167: 1993 | K167: 1994 | L167: 1995 | M167: 1996 | N167: 1997 | O167: 1998 | P167: 1999 | Q167: 2000 | R167: 2001 | S167: 2002 | T167: 2003 | U167: 2004 | V167: 2005
B168: 50 | C168: CO2 from combustion of biomass (kiln and non-kiln fuels, incl. biomass content of mixed fuels) | E168: [t CO2/yr] | G168: Direct CO2 emissions from combustion of kiln and non-kiln biomass fuels and biomass content of mixed fuels ; =line225 + line236 + line331c + 333i + line334h
A170: PERFORMANCE INDICATORS
B172: Absolute Direct CO2 Emissions | G172: =G$7 -> 1990 | H172: 1991 | I172: 1992 | J172: 1993 | K172: 1994 | L172: 1995 | M172: 1996 | N172: 1997 | O172: 1998 | P172: 1999 | Q172: 2000 | R172: 2001 | S172: 2002 | T172: 2003 | U172: 2004 | V172: 2005
B173: 59 | C173: Absolute gross CO2 including CO2 from on-site power generation | E173: [t CO2/yr] | G173: Total direct emissions from raw materials, kiln fuels and non-kiln fuels ; =line39 + line43 + line46
B174: Gross CO2 Emissions (=direct fossil CO2 excluding CO2 from on-site power generation) | G174: 1990 | H174: 1991 | I174: 1992 | J174: 1993 | K174: 1994 | L174: 1995 | M174: 1996 | N174: 1997 | O174: 1998 | P174: 1999 | Q174: 2000 | R174: 2001 | S174: 2002 | T174: 2003 | U174: 2004 | V174: 2005
B175: 59c | C175: Absolute gross CO2 | E175: [t CO2/yr] | G175: Total direct emissions from raw materials, kiln fuels and non-kiln fuels; excluding CO2 from on-site power generation ; =line59 - line45c
B176: 59a | D176: calcination component | E176: [t CO2/yr] | G176: Direct emissions from raw materials; ; =line39
B177: 59b | D177: fuel component | E177: [t CO2/yr] | G177: Direct emissions from kiln fuels and non-kiln fuels, excluding CO2 from on-site power generation ; =line43 + line44 + line45a + line45b | R177: =IF(OR(R149="",R152="",R153="",R154=""),"",R149+R152+R153+R154) ->  | S177: =IF(OR(S149="",S152="",S153="",S154=""),"",S149+S152+S153+S154) ->  | T177: =IF(OR(T149="",T152="",T153="",T154=""),"",T149+T152+T153+T154) ->  | U177: =IF(OR(U149="",U152="",U153="",U154=""),"",U149+U152+U153+U154) ->  | V177: =IF(OR(V149="",V152="",V153="",V154=""),"",V149+V152+V153+V154) -> 
B178: Net CO2 Emissions (= gross CO2 minus alternative fossil fuels CO2; excluding CO2 from on-site power generation) | G178: =G$7 -> 1990 | H178: 1991 | I178: 1992 | J178: 1993 | K178: 1994 | L178: 1995 | M178: 1996 | N178: 1997 | O178: 1998 | P178: 1999 | Q178: 2000 | R178: 2001 | S178: 2002 | T178: 2003 | U178: 2004 | V178: 2005
B179: 71 | C179: Absolute net CO2 | E179: [t CO2/yr] | G179: Total direct emissions from raw materials, kiln fuels and non-kiln fuels, excluding CO2 from on-site power generation, minus alternative fossil fuels ; =line59c - line41
B180: Biomass CO2 Emissions (Memo Item) | G180: 1990 | H180: 1991 | I180: 1992 | J180: 1993 | K180: 1994 | L180: 1995 | M180: 1996 | N180: 1997 | O180: 1998 | P180: 1999 | Q180: 2000 | R180: 2001 | S180: 2002 | T180: 2003 | U180: 2004 | V180: 2005
B181: 83a | C181: Absolute CO2 from biomass sources (including biomass content of mixed fuels) | E181: [t CO2/yr] | G181: ; =line50 | H181: =IF(H$67="","",IF(H$67=0,"n. appl.",H168/H$67*1000)) -> 
B183: Specific Gross and Net CO2 Emissions per Clinker Produced | G183: =G$7 -> 1990 | H183: 1991 | I183: 1992 | J183: 1993 | K183: 1994 | L183: 1995 | M183: 1996 | N183: 1997 | O183: 1998 | P183: 1999 | Q183: 2000 | R183: 2001 | S183: 2002 | T183: 2003 | U183: 2004 | V183: 2005
B184: 60 | C184: Specific gross CO2 | D184: per tonne of clinker produced | E184: [kg CO2/t cli] | G184: Total direct emissions, excluding CO2 from on-site power generation, divided by own clinker production ; =line59c / line8 *1000 | R184: =IF(R$40="","",IF(R$40=0,"n. appl.",R173/R$40*1000)) ->  | S184: =IF(S$40="","",IF(S$40=0,"n. appl.",S173/S$40*1000)) ->  | T184: =IF(T$40="","",IF(T$40=0,"n. appl.",T173/T$40*1000)) ->  | U184: =IF(U$40="","",IF(U$40=0,"n. appl.",U173/U$40*1000)) ->  | V184: =IF(V$40="","",IF(V$40=0,"n. appl.",V173/V$40*1000)) -> 
B185: 60a | D185: calcination component | E185: [kg CO2/t cli] | G185: Direct emissions from raw materials, divided by own clinker production ; =line59a / line8 * 1000
B186: 60b | D186: fuel component | E186: [kg CO2/t cli] | G186: Direct emissions from kiln fuels and non-kiln fuels, excluding CO2 from on-site power generation, divided by own clinker production ; =line59b / line8 * 1000
B187: 73 | C187: Specific net CO2 | D187: per tonne of clinker produced | E187: [kg CO2/t cli] | G187: Net emissions from raw materials, kiln fuels and non-kiln fuels, excluding CO2 from on-site power generation, divided by own clinker production ; =line71 / line8 * 1000
B189: Specific Gross and Net CO2 Emissions per Cement (equivalent) | G189: =G$7 -> 1990 | H189: 1991 | I189: 1992 | J189: 1993 | K189: 1994 | L189: 1995 | M189: 1996 | N189: 1997 | O189: 1998 | P189: 1999 | Q189: 2000 | R189: 2001 | S189: 2002 | T189: 2003 | U189: 2004 | V189: 2005
B190: 63 | C190: Specific gross CO2 | D190: per tonne of cement (eq.) | E190: [kg CO2/t cem eq.] | G190: Total direct emissions, excluding CO2 from on-site power generation, divided by total cement (equivalent) ; =line59c / line21b *1000 | R190: =IF(OR(R175="",R68=""),"",R175/R68*1000) ->  | S190: =IF(OR(S175="",S68=""),"",S175/S68*1000) ->  | T190: =IF(OR(T175="",T68=""),"",T175/T68*1000) ->  | U190: =IF(OR(U175="",U68=""),"",U175/U68*1000) ->  | V190: =IF(OR(V175="",V68=""),"",V175/V68*1000) -> 
B191: 63a | D191: calcination component | E191: [kg CO2/t cem eq.] | G191: Direct emissions from raw materials, divided by total cement (equivalent) ; =line59a / line21b * 1000
B192: 63b | D192: fuel component | E192: [kg CO2/t cem eq.] | G192: Direct emissions from kiln fuels and non-kiln fuels, excluding CO2 from on-site power generation, divided by total cement (equivalent) ; =line59b / line21b * 1000
B193: =B199+1 -> 75 | C193: Specific net CO2 | D193: per tonne of cement (eq.) | E193: [kg CO2/t cem eq.] | G193: Net emissions from raw materials, kiln fuels and non-kiln fuels, excluding CO2 from on-site power generation, divided by own production of cement (equivalent) ; =line71 / line21b * 1000
B195: Specific Gross and Net CO2 Emissions per Cementitious Produced | G195: =G$7 -> 1990 | H195: 1991 | I195: 1992 | J195: 1993 | K195: 1994 | L195: 1995 | M195: 1996 | N195: 1997 | O195: 1998 | P195: 1999 | Q195: 2000 | R195: 2001 | S195: 2002 | T195: 2003 | U195: 2004 | V195: 2005
B196: 62 | C196: Specific gross CO2 | D196: per tonne of cementitious product | E196: [kg CO2/t cem prod] | G196: Total direct emissions, excluding CO2 from on-site power generation, divided by own production of cementitious products (excluding bought clinker in cement) ; =line59c / line21a *1000 | R196: =IF(R$67="","",IF(R$67=0,"n. appl.",R173/R$67*1000)) ->  | S196: =IF(S$67="","",IF(S$67=0,"n. appl.",S173/S$67*1000)) ->  | T196: =IF(T$67="","",IF(T$67=0,"n. appl.",T173/T$67*1000)) ->  | U196: =IF(U$67="","",IF(U$67=0,"n. appl.",U173/U$67*1000)) ->  | V196: =IF(V$67="","",IF(V$67=0,"n. appl.",V173/V$67*1000)) -> 
B197: 62a | D197: calcination component | E197: [kg CO2/t cem prod] | G197: Direct emissions from raw material calcination, divided by own production of cementitious products ; =line59a / line21a * 1000 | R197: =IF(R$67="","",IF(R$67=0,"n. appl.",R176/R$67*1000)) -> 
B198: 62b | D198: fuel component | E198: [kg CO2/t cem prod] | G198: Direct emissions from kiln fuels and non-kiln fuels, excluding CO2 from on-site power generation, divided by own production of cementitious products ; =line59b / line21a * 1000
B199: =B187+1 -> 74 | C199: Specific net CO2 | D199: per tonne of cementitious product | E199: [kg CO2/t cem prod] | G199: Net emissions from raw materials, kiln fuels and non-kiln fuels, excluding CO2 from on-site power generation, divided by own production of cementitious products ; =line71 / line21a * 1000
B200: 77 | C200: Improvement rate - net CO2 per tonne of cementitious product | E200: [% relative to base yr] | G200: Reduction of specific emissions relative to base year (default 1990) ; =(line74 yr n - line74 yr 1990) / line74 yr 1990
B202: Specific Indirect CO2 Emission | G202: =G$7 -> 1990 | H202: 1991 | I202: 1992 | J202: 1993 | K202: 1994 | L202: 1995 | M202: 1996 | N202: 1997 | O202: 1998 | P202: 1999 | Q202: 2000 | R202: 2001 | S202: 2002 | T202: 2003 | U202: 2004 | V202: 2005
B203: 82c | C203: Specific indirect CO2 from external power generation per tonne of cement (eq.) | E203: [kg CO2/t cem eq.] | G203: ; =line49a / line21b * 1000
B204: 82a | C204: Specific indirect CO2 from external power generation per tonne of cementitious product | E204: [kg CO2/t cem prod] | G204: ; =line49a / line21a * 1000
B205: 82b | C205: Specific indirect CO2 from net clinker imports (+) / exports (-) per tonne of cementitious product | E205: [kg CO2/t cem prod] | G205: ; =line49c / line21a * 1000 | H205: =IF(H$67="","",IF(H$67=0,"n. appl.",H164/H$67*1000)) -> 
B207: General Performance Indicators | G207: =G$7 -> 1990 | H207: 1991 | I207: 1992 | J207: 1993 | K207: 1994 | L207: 1995 | M207: 1996 | N207: 1997 | O207: 1998 | P207: 1999 | Q207: 2000 | R207: 2001 | S207: 2002 | T207: 2003 | U207: 2004 | V207: 2005
B208: 91 | C208: Net outbound clinker per net clinker consumption | E208: [%] | G208: percentage of direct clinker sales versus clinker consumed to produce cement ; =(line10 - line9 - 10b - 10c) / line11
B209: 92a | C209: Clinker/cement (eq.) factor* | E209: [%] | G209: Calculated based on total clinker consumed and total Portland + Blended cements =line11 / line20 | H209: =IF(OR(H46="",H65=""),"",100*H46/H65) -> 
B210: =B208+1 -> 92 | C210: Clinker/cementitious factor* | E210: [%] | G210: Clinker/cementitious factor (excluding clinker sold, including clinker bought) = Total clinker consumed divided by the total of cements produced ; =line11 / line21
B212: =B210+1 -> 93 | C212: Specific heat consumption of clinker production | E212: [MJ/t cli] | G212: Total heat consumption of kilns divided by the clinker production ; =line25 * 10^6 / line8
B213: =B212+1 -> 94 | C213: Conventional fossil fuel rate (kiln fuels) | E213: [%] | G213: Consumption of conventional fossil fuels divided by the total heat consumption of kilns ; =line26 / line25
B214: =B213+1 -> 95 | C214: Alternative fossil fuel rate (kiln fuels) | E214: [%] | G214: Consumption of alternative fossil fuels divided by the total heat consumption of kilns ; =line27 / line25 | R214: =IF(R$76="","",IF(R$76=0,"n. appl.",R79/R$76)) -> 
B215: =B214+1 -> 96 | C215: Biomass fuel rate (kiln fuels) | E215: [%] | G215: Consumption of biomass fuels divided by the total heat consumption of kilns ; =line28 / line25
B216: 96a | C216: CO2 emission factor for kiln fuel mix | E216: [kg CO2/GJ] | G216: Total CO2 from fossil-based kiln fuels divided by total heat consumption of kilns ; =line43 / line25
B217: 96b | C217: Total conventional fossil fuel rate at plant level | E217: [%] | G217: Total conventional fossil fuel energy used in the whole plant divided by total fuel energy use in % ; =(line26 + line321 + (line321c * (1 - line200g)) + line322 + line323k + line324aa) / (line25 + line321 + line321c + line322 + line323k + line323g + line323i + line324aa + line324f + line324h)
B218: 96c | C218: Total alternative fossil fuel rate at plant level | E218: [%] | G218: Total alternative fossil fuel energy used in the whole plant divided by total fuel energy use in % ; =(line27 + line323g + line324f) / (line25 + line321 + line321c + line322 + line323k + line323g + line323i + line324aa + line324f + line324h)
B219: 96d | C219: Total biomass fuel rate at plant level | E219: [%] | G219: Total biomass fuel energy used in the whole plant divided by total fuel energy use in % ; =(line28 + (line321c * line200g) + line323i + line324h) / (line25 + line321 + line321c + line322 + line323k + line323g + line323i + line324aa + line324f + line324h))
B221: =B215+1 -> 97 | C221: Specific total power consumption* | E221: [kWh/t cem prod] | G221: Total plant power consumption divided by total cements and substitutes produced ; =line33 / line21 * 1000
B222: 98 | C222: Specific power consumption of clinker production | E222: [kWh/t cli] | G222: Power consumption up to and including clinker production divided by clinker production ; =line33e / line8 * 1000
B223: 98c | C223: Specific power consumption of cement production* | E223: [kWh/t cem prod] | G223: Power consumption of cement production incl. power consumption of production of clinker consumed divided by cement and substitute production ; =(line98 * line92) + (line33 - line33e)*1000 / line21
B224: 98a | C224: National energy conversion factor | E224: [MJ/KWh] | G224: Optional parameter
B225: 98b | C225: Total energy intensity of clinker production (fuel and power) | E225: [MJ/t cli] | G225: Optional result ; =line98 * line98a + line93
A227: KILN FUELS - DETAILED INFORMATION
B229: Kiln Fuel Consumption in tonnes per year | G229: =G$7 -> 1990 | H229: 1991 | I229: 1992 | J229: 1993 | K229: 1994 | L229: 1995 | M229: 1996 | N229: 1997 | O229: 1998 | P229: 1999 | Q229: 2000 | R229: 2001 | S229: 2002 | T229: 2003 | U229: 2004 | V229: 2005
B230: 101 | C230: Conventional fossil fuels (excl. drying of raw materials and fuels)
B231: =B230+1 -> 102 | D231: coal + anthracite | E231: [t/yr] | G231: This table lists the consumption of conventional fossil fuels in tonnes per year, excluding fuels for drying of raw materials and fuels. Some fuel types are clustered for reasons of simplicity, but may be unclustered as appropriate.
B232: 103 | D232: petrol coke | E232: [t/yr]
B233: 104 | D233: (ultra) heavy fuel | E233: [t/yr]
B234: 105 | D234: diesel oil | E234: [t/yr]
B235: 106 | D235: natural gas | E235: [1'000 Nm3/yr]
B236: 107 | D236: shale | E236: [t/yr]
B237: 107a | D237: lignite | E237: [t/yr]
... 325 more rows

Sheet Plant
A1: GCCA (Global Cement and Concret Association) Cement CO2 and Energy Protocol, Version 3.1, CO2 Emissions and Energy Inventory. Developed by the WBCSD Cement Sustainability Initiative (CSI) and European Cement Research Academy (ECRA). | E1: Plant Level
B3: Date of latest update | E3: ='Read Me'!B4 -> 2013-12-09
A5: INFORMATION
B7: General Plant Information | G7: 1990 | H7: 1991 | I7: 1992 | J7: 1993 | K7: 1994 | L7: 1995 | M7: 1996 | N7: 1997 | O7: 1998 | P7: 1999 | Q7: 2000 | R7: 2001 | S7: 2002 | T7: 2003 | U7: 2004 | V7: 2005 | W7: 2006 | X7: 2007 | Y7: 2008 | Z7: 2009 | AA7: 2010 | AB7: 2011 | AC7: 2012 | AD7: 2013 | AE7: 2014 | AF7: 2015 | AG7: 2016 | AH7: 2017 | AI7: 2018 | AJ7: 2019 | AK7: 2020 | AL7: 2021 | AM7: 2022 | AN7: 2023 | AO7: 2024 | AP7: 2025 | AQ7: 2026 | AR7: 2027 | AS7: 2028 | AT7: 2029 | AU7: 2030 | AV7: 2031 | AW7: 2032 | AX7: 2033 | AY7: 2034 | AZ7: 2035 | BA7: 2036 | BB7: 2037 | BC7: 2038 | BD7: 2039 | BE7: 2040 | BF7: 2041 | BG7: 2042 | BH7: 2043 | BI7: 2044 | BJ7: 2045 | BK7: 2046 | BL7: 2047 | BM7: 2048 | BN7: 2049 | BO7: 2050
B8: 1 | C8: Plant
B9: 2 | C9: Company
B10: 3 | C10: Country
B11: 4 | C11: Continent
B12: 5 | C12: "Kyoto" Region (Annex 1 or non-Annex 1)
B13: 6 | C13: Kiln types
B14: 6a | C14: Nominal clinker capacity | E14: [t/d]
B15: 6b | C15: Plant type
B16: 7 | C16: Shares owned by Company | E16: [%]
B17: 7aa | C17: Third party verification
B18: 7ab | C18: Used Cement CO2 and Energy Protocol version | G18: V3.1 | H18: V3.1 | I18: V3.1 | J18: V3.1 | K18: V3.1 | L18: V3.1 | M18: V3.1 | N18: V3.1 | O18: V3.1 | P18: V3.1 | Q18: V3.1 | R18: V3.1 | S18: V3.1 | T18: V3.1 | U18: V3.1 | V18: V3.1 | W18: V3.1 | X18: V3.1 | Y18: V3.1 | Z18: V3.1 | AA18: V3.1 | AB18: V3.1 | AC18: V3.1 | AD18: V3.1 | AE18: V3.1 | AF18: V3.1 | AG18: V3.1 | AH18: V3.1 | AI18: V3.1 | AJ18: V3.1 | AK18: V3.1 | AL18: V3.1 | AM18: V3.1 | AN18: V3.1 | AO18: V3.1 | AP18: V3.1 | AQ18: V3.1 | AR18: V3.1 | AS18: V3.1 | AT18: V3.1 | AU18: V3.1 | AV18: V3.1 | AW18: V3.1 | AX18: V3.1 | AY18: V3.1 | AZ18: V3.1 | BA18: V3.1 | BB18: V3.1 | BC18: V3.1 | BD18: V3.1 | BE18: V3.1 | BF18: V3.1 | BG18: V3.1 | BH18: V3.1 | BI18: V3.1 | BJ18: V3.1 | BK18: V3.1 | BL18: V3.1 | BM18: V3.1 | BN18: V3.1 | BO18: V3.1
B19: 7ac | C19: Short notes or user comment (max. 250 characters) | G19: Recalculation with protocol V3 (GNR data until 2010 according to V2) | H19: Recalculation with protocol V3 (GNR data until 2010 according to V2) | Q19: Recalculation with protocol V3 (GNR data until 2010 according to V2) | V19: Recalculation with protocol V3 (GNR data until 2010 according to V2) | W19: Recalculation with protocol V3 (GNR data until 2010 according to V2) | X19: Recalculation with protocol V3 (GNR data until 2010 according to V2) | Y19: Recalculation with protocol V3 (GNR data until 2010 according to V2) | Z19: Recalculation with protocol V3 (GNR data until 2010 according to V2) | AA19: Recalculation with protocol V3 (GNR data until 2010 according to V2)
G20: .
B21: Inventory Boundaries: Coverage of Main Process Steps | E21: [yes, no or n.a.] | G21: =G$7 -> 1990 | H21: 1991 | I21: 1992 | J21: 1993 | K21: 1994 | L21: 1995 | M21: 1996 | N21: 1997 | O21: 1998 | P21: 1999 | Q21: 2000 | R21: 2001 | S21: 2002 | T21: 2003 | U21: 2004 | V21: 2005 | W21: 2006 | X21: 2007 | Y21: 2008 | Z21: 2009 | AA21: 2010 | AB21: 2011 | AC21: 2012 | AD21: 2013 | AE21: 2014 | AF21: 2015 | AG21: 2016 | AH21: 2017 | AI21: 2018 | AJ21: 2019 | AK21: 2020 | AL21: 2021 | AM21: 2022 | AN21: 2023 | AO21: 2024 | AP21: 2025 | AQ21: 2026 | AR21: 2027 | AS21: 2028 | AT21: 2029 | AU21: 2030 | AV21: 2031 | AW21: 2032 | AX21: 2033 | AY21: 2034 | AZ21: 2035 | BA21: 2036 | BB21: 2037 | BC21: 2038 | BD21: 2039 | BE21: 2040 | BF21: 2041 | BG21: 2042 | BH21: 2043 | BI21: 2044 | BJ21: 2045 | BK21: 2046 | BL21: 2047 | BM21: 2048 | BN21: 2049 | BO21: 2050
B22: 7a | C22: Raw material supply (quarrying, mining, crushing) | E22: no
B23: 7b | C23: Preparation of raw materials, fuels and additives | E23: no
B24: 7c | C24: Kiln operation (pyro-processing) | E24: no
B25: 7d | C25: Cement grinding, blending | E25: no
B26: 7e | C26: On-site (internal) transport | E26: no
B27: 7f | C27: Off-site transport with company-owned fleets | E27: no
B28: 7g | C28: On-site power generation | E28: no
B29: 7h | C29: Room heating and cooling | E29: no
B30: 7i | C30: (add other processes as appropriate) | E30: no
B31: 7j | C31: use of internal cement transfer for blending | E31: no
B32: 7k | C32: Select year to copy and apply inventory boundaries (7a - 7j)
B34: 7n | C34: 1.) Select calcination CO2 method (A1; A2; B1; B2) B1=Standard (no seperate calcination sheet needed). | G34: B1 | H34: B1 | I34: B1 | J34: B1 | K34: B1 | L34: B1 | M34: B1 | N34: B1 | O34: B1 | P34: B1 | Q34: B1 | R34: B1 | S34: B1 | T34: B1 | U34: B1 | V34: B1 | W34: B1 | X34: B1 | Y34: B1 | Z34: B1 | AA34: B1 | AB34: B1 | AC34: B1 | AD34: B1 | AE34: B1 | AF34: B1 | AG34: B1 | AH34: B1 | AI34: B1 | AJ34: B1 | AK34: B1 | AL34: B1 | AM34: B1 | AN34: B1 | AO34: B1 | AP34: B1 | AQ34: B1 | AR34: B1 | AS34: B1 | AT34: B1 | AU34: B1 | AV34: B1 | AW34: B1 | AX34: B1 | AY34: B1 | AZ34: B1 | BA34: B1 | BB34: B1 | BC34: B1 | BD34: B1 | BE34: B1 | BF34: B1 | BG34: B1 | BH34: B1 | BI34: B1 | BJ34: B1 | BK34: B1 | BL34: B1 | BM34: B1 | BN34: B1 | BO34: B1
C35: 2.) For A1; A2; B2 check if appropriate calcination sheet (CalcA1; CalcA2 or CalcB2) is already availabe next to plant sheet.
C36: 3.) If not, press the 'create' button one time in order to create one new calcination sheet.
B38: Clinker and Cement Production | G38: =G$7 -> 1990 | H38: 1991 | I38: 1992 | J38: 1993 | K38: 1994 | L38: 1995 | M38: 1996 | N38: 1997 | O38: 1998 | P38: 1999 | Q38: 2000 | R38: 2001 | S38: 2002 | T38: 2003 | U38: 2004 | V38: 2005 | W38: 2006 | X38: 2007 | Y38: 2008 | Z38: 2009 | AA38: 2010 | AB38: 2011 | AC38: 2012 | AD38: 2013 | AE38: 2014 | AF38: 2015 | AG38: 2016 | AH38: 2017 | AI38: 2018 | AJ38: 2019 | AK38: 2020 | AL38: 2021 | AM38: 2022 | AN38: 2023 | AO38: 2024 | AP38: 2025 | AQ38: 2026 | AR38: 2027 | AS38: 2028 | AT38: 2029 | AU38: 2030 | AV38: 2031 | AW38: 2032 | AX38: 2033 | AY38: 2034 | AZ38: 2035 | BA38: 2036 | BB38: 2037 | BC38: 2038 | BD38: 2039 | BE38: 2040 | BF38: 2041 | BG38: 2042 | BH38: 2043 | BI38: 2044 | BJ38: 2045 | BK38: 2046 | BL38: 2047 | BM38: 2048 | BN38: 2049 | BO38: 2050
C39: Clinker:
B40: =B16+1 -> 8 | C40: Clinker production | E40: [t/yr]
B41: =B40+1 -> 9 | C41: Clinker bought from other companies and from cross-border transfer | E41: [t/yr]
B42: =B41+1 -> 10 | C42: Clinker sold to other companies and from cross-border transfer | E42: [t/yr]
B43: 10a | C43: Change in clinker stocks (+ = increase; - = reduction) | E43: [t/yr]
B44: 10b | C44: Internal clinker transfer (+ = clinker received; - = clinker sent) | E44: [t/yr]
B45: 10c | C45: Clinker from internal transfer of processed cement (+ = cement received; - = cement sent) | E45: [t/yr]
B46: =B42+1 -> 11 | C46: Total clinker consumed | E46: [t/yr] | G46: =IF(COUNTBLANK(G40:G45)=6,"",G40+G41-G42-G43+G44+G45) ->  | H46: =IF(COUNTBLANK(H40:H45)=6,"",H40+H41-H42-H43+H44+H45) ->  | AL46: =IF(COUNTBLANK(AL40:AL45)=6,"",AL40+AL41-AL42-AL43+AL44+AL45) ->  | AM46: =IF(COUNTBLANK(AM40:AM45)=6,"",AM40+AM41-AM42-AM43+AM44+AM45) ->  | AN46: =IF(COUNTBLANK(AN40:AN45)=6,"",AN40+AN41-AN42-AN43+AN44+AN45) ->  | AO46: =IF(COUNTBLANK(AO40:AO45)=6,"",AO40+AO41-AO42-AO43+AO44+AO45) ->  | AP46: =IF(COUNTBLANK(AP40:AP45)=6,"",AP40+AP41-AP42-AP43+AP44+AP45) ->  | AQ46: =IF(COUNTBLANK(AQ40:AQ45)=6,"",AQ40+AQ41-AQ42-AQ43+AQ44+AQ45) -> 
C48: Mineral components (MIC) used to produce Portland and blended cements:
B49: =B46+1 -> 12 | C49: Gypsum | E49: [t/yr, dry weight]
B50: =B49+1 -> 13 | C50: Limestone | E50: [t/yr, dry weight]
B51: =B50+1 -> 14 | C51: Slag | E51: [t/yr, dry weight]
B52: =B51+1 -> 15 | C52: Fly ash (for blending) | E52: [t/yr, dry weight]
B53: =B52+1 -> 16 | C53: Puzzolana | E53: [t/yr, dry weight]
B54: =B53+1 -> 17 | C54: Others (e.g., CKD added to cement mill) | E54: [t/yr, dry weight]
B55: 17a | C55: MIC from internal transfer of processed cement (+ = cement received; - = cement sent) | E55: [t/yr, dry weight]
B56: =B54+1 -> 18 | C56: Total MIC consumed for Portland and blended cements (dry weight) | E56: [t/yr, dry weight] | G56: =IF(COUNTBLANK(G49:G55)=7,"",SUM(G49:G55)) ->  | H56: =IF(COUNTBLANK(H49:H55)=7,"",SUM(H49:H55)) ->  | AL56: =IF(COUNTBLANK(AL49:AL55)=7,"",SUM(AL49:AL55)) ->  | AM56: =IF(COUNTBLANK(AM49:AM55)=7,"",SUM(AM49:AM55)) ->  | AN56: =IF(COUNTBLANK(AN49:AN55)=7,"",SUM(AN49:AN55)) ->  | AO56: =IF(COUNTBLANK(AO49:AO55)=7,"",SUM(AO49:AO55)) ->  | AP56: =IF(COUNTBLANK(AP49:AP55)=7,"",SUM(AP49:AP55)) ->  | AQ56: =IF(COUNTBLANK(AQ49:AQ55)=7,"",SUM(AQ49:AQ55)) -> 
C58: Processed mineral components (MIC) sold externally or transferred internally (dry weight):
B59: 19a | C59: Processed slag sold externally | E59: [t/yr, dry weight]
B60: 19b | C60: Processed fly ash and other puzzolana sold externally | E60: [t/yr, dry weight]
B61: 19c | C61: Total internal processed MIC transfer (+ = received; - = sent) | E61: [t/yr, dry weight]
B62: 19 | C62: Total processed MIC's used as clinker or cement substitute sold externally | E62: [t/yr, dry weight] | G62: =IF(COUNTBLANK(G59:G61)=3,"",SUM(G59:G61)) ->  | H62: =IF(COUNTBLANK(H59:H61)=3,"",SUM(H59:H61)) ->  | AL62: =IF(COUNTBLANK(AL59:AL61)=3,"",SUM(AL59:AL61)) ->  | AM62: =IF(COUNTBLANK(AM59:AM61)=3,"",SUM(AM59:AM61)) ->  | AN62: =IF(COUNTBLANK(AN59:AN61)=3,"",SUM(AN59:AN61)) ->  | AO62: =IF(COUNTBLANK(AO59:AO61)=3,"",SUM(AO59:AO61)) ->  | AP62: =IF(COUNTBLANK(AP59:AP61)=3,"",SUM(AP59:AP61)) ->  | AQ62: =IF(COUNTBLANK(AQ59:AQ61)=3,"",SUM(AQ59:AQ61)) -> 
C64: Production totals:
B65: =B62+1 -> 20 | C65: Total Portland and Blended cements | E65: [t/yr] | G65: =IF(OR(G46="",G56=""),"",G46+G56) ->  | H65: =IF(OR(H46="",H56=""),"",H46+H56) ->  | AL65: =IF(OR(AL46="",AL56=""),"",AL46+AL56) ->  | AM65: =IF(OR(AM46="",AM56=""),"",AM46+AM56) ->  | AN65: =IF(OR(AN46="",AN56=""),"",AN46+AN56) ->  | AO65: =IF(OR(AO46="",AO56=""),"",AO46+AO56) ->  | AP65: =IF(OR(AP46="",AP56=""),"",AP46+AP56) ->  | AQ65: =IF(OR(AQ46="",AQ56=""),"",AQ46+AQ56) -> 
B66: =B65+1 -> 21 | C66: Total cements + substitutes: Portland, Blended, Slag, etc. | E66: [t/yr] | G66: =IF(OR(G46="",G56="",G62=""),"",G46+G56+G62) ->  | AL66: =IF(OR(AL46="",AL56="",AL62=""),"",AL46+AL56+AL62) ->  | AM66: =IF(OR(AM46="",AM56="",AM62=""),"",AM46+AM56+AM62) ->  | AN66: =IF(OR(AN46="",AN56="",AN62=""),"",AN46+AN56+AN62) ->  | AO66: =IF(OR(AO46="",AO56="",AO62=""),"",AO46+AO56+AO62) ->  | AP66: =IF(OR(AP46="",AP56="",AP62=""),"",AP46+AP56+AP62) ->  | AQ66: =IF(OR(AQ46="",AQ56="",AQ62=""),"",AQ46+AQ56+AQ62) -> 
B67: 21a | C67: Total cementitious products | E67: [t/yr] | G67: =IF(OR(G40="",G56="",G62=""),"",G40+G56+G62) ->  | AL67: =IF(OR(AL40="",AL56="",AL62=""),"",AL40+AL56+AL62) ->  | AM67: =IF(OR(AM40="",AM56="",AM62=""),"",AM40+AM56+AM62) ->  | AN67: =IF(OR(AN40="",AN56="",AN62=""),"",AN40+AN56+AN62) ->  | AO67: =IF(OR(AO40="",AO56="",AO62=""),"",AO40+AO56+AO62) ->  | AP67: =IF(OR(AP40="",AP56="",AP62=""),"",AP40+AP56+AP62) ->  | AQ67: =IF(OR(AQ40="",AQ56="",AQ62=""),"",AQ40+AQ56+AQ62) -> 
B68: 21b | C68: Total cement equivalent | E68: [t/yr] | G68: =IF(OR(G40="",G40=0,G209="n. appl."),"n. appl.",G40/G209) -> n. appl. | H68: =IF(OR(H40="",H40=0,H209="n. appl."),"n. appl.",H40/H209) -> n. appl. | I68: n. appl. | J68: n. appl. | K68: n. appl. | L68: n. appl. | M68: n. appl. | N68: n. appl. | O68: n. appl. | P68: n. appl. | Q68: n. appl. | R68: n. appl. | S68: n. appl. | T68: n. appl. | U68: n. appl. | V68: n. appl. | W68: n. appl. | X68: n. appl. | Y68: n. appl. | Z68: n. appl. | AA68: n. appl. | AB68: n. appl. | AC68: n. appl. | AD68: n. appl. | AE68: n. appl. | AF68: n. appl. | AG68: n. appl. | AH68: n. appl. | AI68: n. appl. | AJ68: n. appl. | AK68: n. appl. | AL68: n. appl. | AM68: n. appl. | AN68: n. appl. | AO68: n. appl. | AP68: n. appl. | AQ68: =IF(OR(AQ40="",AQ40=0,AQ209="n. appl."),"n. appl.",AQ40/AQ209) -> n. appl. | AR68: n. appl. | AS68: n. appl. | AT68: n. appl. | AU68: n. appl. | AV68: n. appl. | AW68: n. appl. | AX68: n. appl. | AY68: n. appl. | AZ68: n. appl. | BA68: n. appl. | BB68: n. appl. | BC68: n. appl. | BD68: n. appl. | BE68: n. appl. | BF68: n. appl. | BG68: n. appl. | BH68: n. appl. | BI68: n. appl. | BJ68: n. appl. | BK68: n. appl. | BL68: n. appl. | BM68: n. appl. | BN68: n. appl. | BO68: n. appl.
B70: Dust Production (dry weight) | G70: =G$7 -> 1990 | H70: 1991 | I70: 1992 | J70: 1993 | K70: 1994 | L70: 1995 | M70: 1996 | N70: 1997 | O70: 1998 | P70: 1999 | Q70: 2000 | R70: 2001 | S70: 2002 | T70: 2003 | U70: 2004 | V70: 2005 | W70: 2006 | X70: 2007 | Y70: 2008 | Z70: 2009 | AA70: 2010 | AB70: 2011 | AC70: 2012 | AD70: 2013 | AE70: 2014 | AF70: 2015 | AG70: 2016 | AH70: 2017 | AI70: 2018 | AJ70: 2019 | AK70: 2020 | AL70: 2021 | AM70: 2022 | AN70: 2023 | AO70: 2024 | AP70: 2025 | AQ70: 2026 | AR70: 2027 | AS70: 2028 | AT70: 2029 | AU70: 2030 | AV70: 2031 | AW70: 2032 | AX70: 2033 | AY70: 2034 | AZ70: 2035 | BA70: 2036 | BB70: 2037 | BC70: 2038 | BD70: 2039 | BE70: 2040 | BF70: 2041 | BG70: 2042 | BH70: 2043 | BI70: 2044 | BJ70: 2045 | BK70: 2046 | BL70: 2047 | BM70: 2048 | BN70: 2049 | BO70: 2050
B71: 22 | C71: Bypass dust leaving kiln system | E71: [t/yr, dry weight] | G71: 0 | H71: 0 | I71: 0 | J71: 0 | K71: 0 | L71: 0 | M71: 0 | N71: 0 | O71: 0 | P71: 0 | Q71: 0 | R71: 0 | S71: 0 | T71: 0 | U71: 0 | V71: 0 | W71: 0 | X71: 0 | Y71: 0 | Z71: 0 | AA71: 0 | AB71: 0 | AC71: 0 | AD71: 0 | AE71: 0 | AF71: 0 | AG71: 0 | AH71: 0 | AI71: 0 | AJ71: 0 | AK71: 0 | AL71: 0 | AM71: 0 | AN71: 0 | AO71: 0 | AP71: 0 | AQ71: 0 | AR71: 0 | AS71: 0 | AT71: 0 | AU71: 0 | AV71: 0 | AW71: 0 | AX71: 0 | AY71: 0 | AZ71: 0 | BA71: 0 | BB71: 0 | BC71: 0 | BD71: 0 | BE71: 0 | BF71: 0 | BG71: 0 | BH71: 0 | BI71: 0 | BJ71: 0 | BK71: 0 | BL71: 0 | BM71: 0 | BN71: 0 | BO71: 0
B72: =B71+1 -> 23 | C72: CKD leaving the kiln system | E72: [t/yr, dry weight] | G72: 0 | H72: 0 | I72: 0 | J72: 0 | K72: 0 | L72: 0 | M72: 0 | N72: 0 | O72: 0 | P72: 0 | Q72: 0 | R72: 0 | S72: 0 | T72: 0 | U72: 0 | V72: 0 | W72: 0 | X72: 0 | Y72: 0 | Z72: 0 | AA72: 0 | AB72: 0 | AC72: 0 | AD72: 0 | AE72: 0 | AF72: 0 | AG72: 0 | AH72: 0 | AI72: 0 | AJ72: 0 | AK72: 0 | AL72: 0 | AM72: 0 | AN72: 0 | AO72: 0 | AP72: 0 | AQ72: 0 | AR72: 0 | AS72: 0 | AT72: 0 | AU72: 0 | AV72: 0 | AW72: 0 | AX72: 0 | AY72: 0 | AZ72: 0 | BA72: 0 | BB72: 0 | BC72: 0 | BD72: 0 | BE72: 0 | BF72: 0 | BG72: 0 | BH72: 0 | BI72: 0 | BJ72: 0 | BK72: 0 | BL72: 0 | BM72: 0 | BN72: 0 | BO72: 0
B73: =B72+1 -> 24 | C73: CKD calcination rate d (Plant specific value or default 0%= dry kilns, 100%= for other kiln types) | E73: [%] | G73: 0 | H73: 0 | I73: 0 | J73: 0 | K73: 0 | L73: 0 | M73: 0 | N73: 0 | O73: 0 | P73: 0 | Q73: 0 | R73: 0 | S73: 0 | T73: 0 | U73: 0 | V73: 0 | W73: 0 | X73: 0 | Y73: 0 | Z73: 0 | AA73: 0 | AB73: 0 | AC73: 0 | AD73: 0 | AE73: 0 | AF73: 0 | AG73: 0 | AH73: 0 | AI73: 0 | AJ73: 0 | AK73: 0 | AL73: 0 | AM73: 0 | AN73: 0 | AO73: 0 | AP73: 0 | AQ73: 0 | AR73: 0 | AS73: 0 | AT73: 0 | AU73: 0 | AV73: 0 | AW73: 0 | AX73: 0 | AY73: 0 | AZ73: 0 | BA73: 0 | BB73: 0 | BC73: 0 | BD73: 0 | BE73: 0 | BF73: 0 | BG73: 0 | BH73: 0 | BI73: 0 | BJ73: 0 | BK73: 0 | BL73: 0 | BM73: 0 | BN73: 0 | BO73: 0
B75: Kiln Fuel Consumption incl. raw material and fuel drying | G75: =G$7 -> 1990 | H75: 1991 | I75: 1992 | J75: 1993 | K75: 1994 | L75: 1995 | M75: 1996 | N75: 1997 | O75: 1998 | P75: 1999 | Q75: 2000 | R75: 2001 | S75: 2002 | T75: 2003 | U75: 2004 | V75: 2005 | W75: 2006 | X75: 2007 | Y75: 2008 | Z75: 2009 | AA75: 2010 | AB75: 2011 | AC75: 2012 | AD75: 2013 | AE75: 2014 | AF75: 2015 | AG75: 2016 | AH75: 2017 | AI75: 2018 | AJ75: 2019 | AK75: 2020 | AL75: 2021 | AM75: 2022 | AN75: 2023 | AO75: 2024 | AP75: 2025 | AQ75: 2026 | AR75: 2027 | AS75: 2028 | AT75: 2029 | AU75: 2030 | AV75: 2031 | AW75: 2032 | AX75: 2033 | AY75: 2034 | AZ75: 2035 | BA75: 2036 | BB75: 2037 | BC75: 2038 | BD75: 2039 | BE75: 2040 | BF75: 2041 | BG75: 2042 | BH75: 2043 | BI75: 2044 | BJ75: 2045 | BK75: 2046 | BL75: 2047 | BM75: 2048 | BN75: 2049 | BO75: 2050
B76: 25 | C76: Total heat consumption of kilns | E76: [TJ/yr] | G76: =IF(COUNTBLANK(G78:G80)=3,"",SUM(G78:G80)) -> 0 | H76: =IF(COUNTBLANK(H78:H80)=3,"",SUM(H78:H80)) -> 0 | I76: 0 | J76: 0 | K76: 0 | L76: 0 | M76: 0 | N76: 0 | O76: 0 | P76: 0 | Q76: 0 | R76: 0 | S76: 0 | T76: 0 | U76: 0 | V76: 0 | W76: 0 | X76: 0 | Y76: 0 | Z76: 0 | AA76: 0 | AB76: 0 | AC76: 0 | AD76: 0 | AE76: 0 | AF76: 0 | AG76: 0 | AH76: 0 | AI76: 0 | AJ76: 0 | AK76: 0 | AL76: =IF(COUNTBLANK(AL78:AL80)=3,"",SUM(AL78:AL80)) -> 0 | AM76: =IF(COUNTBLANK(AM78:AM80)=3,"",SUM(AM78:AM80)) -> 0 | AN76: =IF(COUNTBLANK(AN78:AN80)=3,"",SUM(AN78:AN80)) -> 0 | AO76: =IF(COUNTBLANK(AO78:AO80)=3,"",SUM(AO78:AO80)) -> 0 | AP76: =IF(COUNTBLANK(AP78:AP80)=3,"",SUM(AP78:AP80)) -> 0 | AQ76: =IF(COUNTBLANK(AQ78:AQ80)=3,"",SUM(AQ78:AQ80)) -> 0 | AR76: 0 | AS76: 0 | AT76: 0 | AU76: 0 | AV76: 0 | AW76: 0 | AX76: 0 | AY76: 0 | AZ76: 0 | BA76: 0 | BB76: 0 | BC76: 0 | BD76: 0 | BE76: 0 | BF76: 0 | BG76: 0 | BH76: 0 | BI76: 0 | BJ76: 0 | BK76: 0 | BL76: 0 | BM76: 0 | BN76: 0 | BO76: 0
B77: 25a | C77: Total heat consumption of kilns excluding drying of fuels and raw materials | E77: [TJ/yr] | G77: =IF(OR(G76="",G335="",G342="",G344=""),"",G76-G335-G342-G344) -> 0 | H77: =IF(OR(H76="",H335="",H342="",H344=""),"",H76-H335-H342-H344) -> 0 | I77: 0 | J77: 0 | K77: 0 | L77: 0 | M77: 0 | N77: 0 | O77: 0 | P77: 0 | Q77: 0 | R77: 0 | S77: 0 | T77: 0 | U77: 0 | V77: 0 | W77: 0 | X77: 0 | Y77: 0 | Z77: 0 | AA77: 0 | AB77: 0 | AC77: 0 | AD77: 0 | AE77: 0 | AF77: 0 | AG77: 0 | AH77: 0 | AI77: 0 | AJ77: 0 | AK77: 0 | AL77: =IF(OR(AL76="",AL335="",AL342="",AL344=""),"",AL76-AL335-AL342-AL344) -> 0 | AM77: =IF(OR(AM76="",AM335="",AM342="",AM344=""),"",AM76-AM335-AM342-AM344) -> 0 | AN77: =IF(OR(AN76="",AN335="",AN342="",AN344=""),"",AN76-AN335-AN342-AN344) -> 0 | AO77: =IF(OR(AO76="",AO335="",AO342="",AO344=""),"",AO76-AO335-AO342-AO344) -> 0 | AP77: =IF(OR(AP76="",AP335="",AP342="",AP344=""),"",AP76-AP335-AP342-AP344) -> 0 | AQ77: =IF(OR(AQ76="",AQ335="",AQ342="",AQ344=""),"",AQ76-AQ335-AQ342-AQ344) -> 0 | AR77: 0 | AS77: 0 | AT77: 0 | AU77: 0 | AV77: 0 | AW77: 0 | AX77: 0 | AY77: 0 | AZ77: 0 | BA77: 0 | BB77: 0 | BC77: 0 | BD77: 0 | BE77: 0 | BF77: 0 | BG77: 0 | BH77: 0 | BI77: 0 | BJ77: 0 | BK77: 0 | BL77: 0 | BM77: 0 | BN77: 0 | BO77: 0
B78: =B76+1 -> 26 | C78: Conventional fossil fuels | E78: [TJ/yr] | G78: =IF(OR(G308="",G335=""),"",G308+G335) -> 0 | H78: =IF(OR(H308="",H335=""),"",H308+H335) -> 0 | I78: 0 | J78: 0 | K78: 0 | L78: 0 | M78: 0 | N78: 0 | O78: 0 | P78: 0 | Q78: 0 | R78: 0 | S78: 0 | T78: 0 | U78: 0 | V78: 0 | W78: 0 | X78: 0 | Y78: 0 | Z78: 0 | AA78: 0 | AB78: 0 | AC78: 0 | AD78: 0 | AE78: 0 | AF78: 0 | AG78: 0 | AH78: 0 | AI78: 0 | AJ78: 0 | AK78: 0 | AL78: =IF(OR(AL308="",AL335=""),"",AL308+AL335) -> 0 | AM78: =IF(OR(AM308="",AM335=""),"",AM308+AM335) -> 0 | AN78: =IF(OR(AN308="",AN335=""),"",AN308+AN335) -> 0 | AO78: =IF(OR(AO308="",AO335=""),"",AO308+AO335) -> 0 | AP78: =IF(OR(AP308="",AP335=""),"",AP308+AP335) -> 0 | AQ78: =IF(OR(AQ308="",AQ335=""),"",AQ308+AQ335) -> 0 | AR78: 0 | AS78: 0 | AT78: 0 | AU78: 0 | AV78: 0 | AW78: 0 | AX78: 0 | AY78: 0 | AZ78: 0 | BA78: 0 | BB78: 0 | BC78: 0 | BD78: 0 | BE78: 0 | BF78: 0 | BG78: 0 | BH78: 0 | BI78: 0 | BJ78: 0 | BK78: 0 | BL78: 0 | BM78: 0 | BN78: 0 | BO78: 0
B79: =B78+1 -> 27 | C79: Alternative fuels, fossil content; excluding biomass fraction of mixed fuels | E79: [TJ/yr] | G79: =IF(OR(G316="",G342=""),"",G316+G342) -> 0 | H79: =IF(OR(H316="",H342=""),"",H316+H342) -> 0 | I79: 0 | J79: 0 | K79: 0 | L79: 0 | M79: 0 | N79: 0 | O79: 0 | P79: 0 | Q79: 0 | R79: 0 | S79: 0 | T79: 0 | U79: 0 | V79: 0 | W79: 0 | X79: 0 | Y79: 0 | Z79: 0 | AA79: 0 | AB79: 0 | AC79: 0 | AD79: 0 | AE79: 0 | AF79: 0 | AG79: 0 | AH79: 0 | AI79: 0 | AJ79: 0 | AK79: 0 | AL79: =IF(OR(AL316="",AL342=""),"",AL316+AL342) -> 0 | AM79: =IF(OR(AM316="",AM342=""),"",AM316+AM342) -> 0 | AN79: =IF(OR(AN316="",AN342=""),"",AN316+AN342) -> 0 | AO79: =IF(OR(AO316="",AO342=""),"",AO316+AO342) -> 0 | AP79: =IF(OR(AP316="",AP342=""),"",AP316+AP342) -> 0 | AQ79: =IF(OR(AQ316="",AQ342=""),"",AQ316+AQ342) -> 0 | AR79: 0 | AS79: 0 | AT79: 0 | AU79: 0 | AV79: 0 | AW79: 0 | AX79: 0 | AY79: 0 | AZ79: 0 | BA79: 0 | BB79: 0 | BC79: 0 | BD79: 0 | BE79: 0 | BF79: 0 | BG79: 0 | BH79: 0 | BI79: 0 | BJ79: 0 | BK79: 0 | BL79: 0 | BM79: 0 | BN79: 0 | BO79: 0
B80: =B79+1 -> 28 | C80: Biomass fuels, incl. biomass content of alternative fuels | E80: [TJ/yr] | G80: =IF(OR(G324="",G344=""),"",G324+G344) -> 0 | H80: =IF(OR(H324="",H344=""),"",H324+H344) -> 0 | I80: 0 | J80: 0 | K80: 0 | L80: 0 | M80: 0 | N80: 0 | O80: 0 | P80: 0 | Q80: 0 | R80: 0 | S80: 0 | T80: 0 | U80: 0 | V80: 0 | W80: 0 | X80: 0 | Y80: 0 | Z80: 0 | AA80: 0 | AB80: 0 | AC80: 0 | AD80: 0 | AE80: 0 | AF80: 0 | AG80: 0 | AH80: 0 | AI80: 0 | AJ80: 0 | AK80: 0 | AL80: =IF(OR(AL324="",AL344=""),"",AL324+AL344) -> 0 | AM80: =IF(OR(AM324="",AM344=""),"",AM324+AM344) -> 0 | AN80: =IF(OR(AN324="",AN344=""),"",AN324+AN344) -> 0 | AO80: =IF(OR(AO324="",AO344=""),"",AO324+AO344) -> 0 | AP80: =IF(OR(AP324="",AP344=""),"",AP324+AP344) -> 0 | AQ80: =IF(OR(AQ324="",AQ344=""),"",AQ324+AQ344) -> 0 | AR80: 0 | AS80: 0 | AT80: 0 | AU80: 0 | AV80: 0 | AW80: 0 | AX80: 0 | AY80: 0 | AZ80: 0 | BA80: 0 | BB80: 0 | BC80: 0 | BD80: 0 | BE80: 0 | BF80: 0 | BG80: 0 | BH80: 0 | BI80: 0 | BJ80: 0 | BK80: 0 | BL80: 0 | BM80: 0 | BN80: 0 | BO80: 0
B82: Non-Kiln Fuel Consumption | G82: =G$7 -> 1990 | H82: 1991 | I82: 1992 | J82: 1993 | K82: 1994 | L82: 1995 | M82: 1996 | N82: 1997 | O82: 1998 | P82: 1999 | Q82: 2000 | R82: 2001 | S82: 2002 | T82: 2003 | U82: 2004 | V82: 2005 | W82: 2006 | X82: 2007 | Y82: 2008 | Z82: 2009 | AA82: 2010 | AB82: 2011 | AC82: 2012 | AD82: 2013 | AE82: 2014 | AF82: 2015 | AG82: 2016 | AH82: 2017 | AI82: 2018 | AJ82: 2019 | AK82: 2020 | AL82: 2021 | AM82: 2022 | AN82: 2023 | AO82: 2024 | AP82: 2025 | AQ82: 2026 | AR82: 2027 | AS82: 2028 | AT82: 2029 | AU82: 2030 | AV82: 2031 | AW82: 2032 | AX82: 2033 | AY82: 2034 | AZ82: 2035 | BA82: 2036 | BB82: 2037 | BC82: 2038 | BD82: 2039 | BE82: 2040 | BF82: 2041 | BG82: 2042 | BH82: 2043 | BI82: 2044 | BJ82: 2045 | BK82: 2046 | BL82: 2047 | BM82: 2048 | BN82: 2049 | BO82: 2050
B83: 30 | C83: Equipment and on-site vehicles | E83: [TJ/yr] | G83: =G502+G506 -> 0 | H83: =H502+H506 -> 0 | I83: 0 | J83: 0 | K83: 0 | L83: 0 | M83: 0 | N83: 0 | O83: 0 | P83: 0 | Q83: 0 | R83: 0 | S83: 0 | T83: 0 | U83: 0 | V83: 0 | W83: 0 | X83: 0 | Y83: 0 | Z83: 0 | AA83: 0 | AB83: 0 | AC83: 0 | AD83: 0 | AE83: 0 | AF83: 0 | AG83: 0 | AH83: 0 | AI83: 0 | AJ83: 0 | AK83: 0 | AL83: =AL502+AL506 -> 0 | AM83: =AM502+AM506 -> 0 | AN83: =AN502+AN506 -> 0 | AO83: =AO502+AO506 -> 0 | AP83: =AP502+AP506 -> 0 | AQ83: =AQ502+AQ506 -> 0 | AR83: 0 | AS83: 0 | AT83: 0 | AU83: 0 | AV83: 0 | AW83: 0 | AX83: 0 | AY83: 0 | AZ83: 0 | BA83: 0 | BB83: 0 | BC83: 0 | BD83: 0 | BE83: 0 | BF83: 0 | BG83: 0 | BH83: 0 | BI83: 0 | BJ83: 0 | BK83: 0 | BL83: 0 | BM83: 0 | BN83: 0 | BO83: 0
B84: 31a | C84: Room heating and cooling | E84: [TJ/yr] | G84: =G508 -> 0 | H84: =H508 -> 0 | I84: 0 | J84: 0 | K84: 0 | L84: 0 | M84: 0 | N84: 0 | O84: 0 | P84: 0 | Q84: 0 | R84: 0 | S84: 0 | T84: 0 | U84: 0 | V84: 0 | W84: 0 | X84: 0 | Y84: 0 | Z84: 0 | AA84: 0 | AB84: 0 | AC84: 0 | AD84: 0 | AE84: 0 | AF84: 0 | AG84: 0 | AH84: 0 | AI84: 0 | AJ84: 0 | AK84: 0 | AL84: =AL508 -> 0 | AM84: =AM508 -> 0 | AN84: =AN508 -> 0 | AO84: =AO508 -> 0 | AP84: =AP508 -> 0 | AQ84: =AQ508 -> 0 | AR84: 0 | AS84: 0 | AT84: 0 | AU84: 0 | AV84: 0 | AW84: 0 | AX84: 0 | AY84: 0 | AZ84: 0 | BA84: 0 | BB84: 0 | BC84: 0 | BD84: 0 | BE84: 0 | BF84: 0 | BG84: 0 | BH84: 0 | BI84: 0 | BJ84: 0 | BK84: 0 | BL84: 0 | BM84: 0 | BN84: 0 | BO84: 0
B85: 31b | C85: Drying of mineral components | E85: [TJ/yr] | G85: =IF(OR(G513="",G520="",G522=""),"",G513+G520+G522) -> 0 | H85: =IF(OR(H513="",H520="",H522=""),"",H513+H520+H522) -> 0 | I85: 0 | J85: 0 | K85: 0 | L85: 0 | M85: 0 | N85: 0 | O85: 0 | P85: 0 | Q85: 0 | R85: 0 | S85: 0 | T85: 0 | U85: 0 | V85: 0 | W85: 0 | X85: 0 | Y85: 0 | Z85: 0 | AA85: 0 | AB85: 0 | AC85: 0 | AD85: 0 | AE85: 0 | AF85: 0 | AG85: 0 | AH85: 0 | AI85: 0 | AJ85: 0 | AK85: 0 | AL85: =IF(OR(AL513="",AL520="",AL522=""),"",AL513+AL520+AL522) -> 0 | AM85: =IF(OR(AM513="",AM520="",AM522=""),"",AM513+AM520+AM522) -> 0 | AN85: =IF(OR(AN513="",AN520="",AN522=""),"",AN513+AN520+AN522) -> 0 | AO85: =IF(OR(AO513="",AO520="",AO522=""),"",AO513+AO520+AO522) -> 0 | AP85: =IF(OR(AP513="",AP520="",AP522=""),"",AP513+AP520+AP522) -> 0 | AQ85: =IF(OR(AQ513="",AQ520="",AQ522=""),"",AQ513+AQ520+AQ522) -> 0 | AR85: 0 | AS85: 0 | AT85: 0 | AU85: 0 | AV85: 0 | AW85: 0 | AX85: 0 | AY85: 0 | AZ85: 0 | BA85: 0 | BB85: 0 | BC85: 0 | BD85: 0 | BE85: 0 | BF85: 0 | BG85: 0 | BH85: 0 | BI85: 0 | BJ85: 0 | BK85: 0 | BL85: 0 | BM85: 0 | BN85: 0 | BO85: 0
B86: 31c | C86: On-site power generation | E86: [TJ/yr] | G86: =IF(OR(G525="",G532="",G534=""),"",G525+G532+G534) -> 0 | H86: =IF(OR(H525="",H532="",H534=""),"",H525+H532+H534) -> 0 | I86: 0 | J86: 0 | K86: 0 | L86: 0 | M86: 0 | N86: 0 | O86: 0 | P86: 0 | Q86: 0 | R86: 0 | S86: 0 | T86: 0 | U86: 0 | V86: 0 | W86: 0 | X86: 0 | Y86: 0 | Z86: 0 | AA86: 0 | AB86: 0 | AC86: 0 | AD86: 0 | AE86: 0 | AF86: 0 | AG86: 0 | AH86: 0 | AI86: 0 | AJ86: 0 | AK86: 0 | AL86: =IF(OR(AL525="",AL532="",AL534=""),"",AL525+AL532+AL534) -> 0 | AM86: =IF(OR(AM525="",AM532="",AM534=""),"",AM525+AM532+AM534) -> 0 | AN86: =IF(OR(AN525="",AN532="",AN534=""),"",AN525+AN532+AN534) -> 0 | AO86: =IF(OR(AO525="",AO532="",AO534=""),"",AO525+AO532+AO534) -> 0 | AP86: =IF(OR(AP525="",AP532="",AP534=""),"",AP525+AP532+AP534) -> 0 | AQ86: =IF(OR(AQ525="",AQ532="",AQ534=""),"",AQ525+AQ532+AQ534) -> 0 | AR86: 0 | AS86: 0 | AT86: 0 | AU86: 0 | AV86: 0 | AW86: 0 | AX86: 0 | AY86: 0 | AZ86: 0 | BA86: 0 | BB86: 0 | BC86: 0 | BD86: 0 | BE86: 0 | BF86: 0 | BG86: 0 | BH86: 0 | BI86: 0 | BJ86: 0 | BK86: 0 | BL86: 0 | BM86: 0 | BN86: 0 | BO86: 0
B87: 32 | C87: Total non-kiln fuel consumption | E87: [TJ/yr] | G87: =IF(COUNTBLANK(G83:G86)=4,"",SUM(G83:G86)) -> 0 | H87: 0 | I87: 0 | J87: 0 | K87: 0 | L87: 0 | M87: 0 | N87: 0 | O87: 0 | P87: 0 | Q87: 0 | R87: 0 | S87: 0 | T87: 0 | U87: 0 | V87: 0 | W87: 0 | X87: 0 | Y87: 0 | Z87: 0 | AA87: 0 | AB87: 0 | AC87: 0 | AD87: 0 | AE87: 0 | AF87: 0 | AG87: 0 | AH87: 0 | AI87: 0 | AJ87: 0 | AK87: 0 | AL87: =IF(COUNTBLANK(AL83:AL86)=4,"",SUM(AL83:AL86)) -> 0 | AM87: =IF(COUNTBLANK(AM83:AM86)=4,"",SUM(AM83:AM86)) -> 0 | AN87: =IF(COUNTBLANK(AN83:AN86)=4,"",SUM(AN83:AN86)) -> 0 | AO87: =IF(COUNTBLANK(AO83:AO86)=4,"",SUM(AO83:AO86)) -> 0 | AP87: =IF(COUNTBLANK(AP83:AP86)=4,"",SUM(AP83:AP86)) -> 0 | AQ87: =IF(COUNTBLANK(AQ83:AQ86)=4,"",SUM(AQ83:AQ86)) -> 0 | AR87: 0 | AS87: 0 | AT87: 0 | AU87: 0 | AV87: 0 | AW87: 0 | AX87: 0 | AY87: 0 | AZ87: 0 | BA87: 0 | BB87: 0 | BC87: 0 | BD87: 0 | BE87: 0 | BF87: 0 | BG87: 0 | BH87: 0 | BI87: 0 | BJ87: 0 | BK87: 0 | BL87: 0 | BM87: 0 | BN87: 0 | BO87: 0
B89: Power Balance | G89: =G$7 -> 1990 | H89: 1991 | I89: 1992 | J89: 1993 | K89: 1994 | L89: 1995 | M89: 1996 | N89: 1997 | O89: 1998 | P89: 1999 | Q89: 2000 | R89: 2001 | S89: 2002 | T89: 2003 | U89: 2004 | V89: 2005 | W89: 2006 | X89: 2007 | Y89: 2008 | Z89: 2009 | AA89: 2010 | AB89: 2011 | AC89: 2012 | AD89: 2013 | AE89: 2014 | AF89: 2015 | AG89: 2016 | AH89: 2017 | AI89: 2018 | AJ89: 2019 | AK89: 2020 | AL89: 2021 | AM89: 2022 | AN89: 2023 | AO89: 2024 | AP89: 2025 | AQ89: 2026 | AR89: 2027 | AS89: 2028 | AT89: 2029 | AU89: 2030 | AV89: 2031 | AW89: 2032 | AX89: 2033 | AY89: 2034 | AZ89: 2035 | BA89: 2036 | BB89: 2037 | BC89: 2038 | BD89: 2039 | BE89: 2040 | BF89: 2041 | BG89: 2042 | BH89: 2043 | BI89: 2044 | BJ89: 2045 | BK89: 2046 | BL89: 2047 | BM89: 2048 | BN89: 2049 | BO89: 2050
B90: 33a | C90: Total power production from separate on-site power generation | E90: [MWh/yr] | G90: 0 | H90: 0 | I90: 0 | J90: 0 | K90: 0 | L90: 0 | M90: 0 | N90: 0 | O90: 0 | P90: 0 | Q90: 0 | R90: 0 | S90: 0 | T90: 0 | U90: 0 | V90: 0 | W90: 0 | X90: 0 | Y90: 0 | Z90: 0 | AA90: 0 | AB90: 0 | AC90: 0 | AD90: 0 | AE90: 0 | AF90: 0 | AG90: 0 | AH90: 0 | AI90: 0 | AJ90: 0 | AK90: 0 | AL90: 0 | AM90: 0 | AN90: 0 | AO90: 0 | AP90: 0 | AQ90: 0 | AR90: 0 | AS90: 0 | AT90: 0 | AU90: 0 | AV90: 0 | AW90: 0 | AX90: 0 | AY90: 0 | AZ90: 0 | BA90: 0 | BB90: 0 | BC90: 0 | BD90: 0 | BE90: 0 | BF90: 0 | BG90: 0 | BH90: 0 | BI90: 0 | BJ90: 0 | BK90: 0 | BL90: 0 | BM90: 0 | BN90: 0 | BO90: 0
B91: 33aa | C91: Power delivered to cement plant | E91: [MWh/yr] | G91: 0 | H91: 0 | I91: 0 | J91: 0 | K91: 0 | L91: 0 | M91: 0 | N91: 0 | O91: 0 | P91: 0 | Q91: 0 | R91: 0 | S91: 0 | T91: 0 | U91: 0 | V91: 0 | W91: 0 | X91: 0 | Y91: 0 | Z91: 0 | AA91: 0 | AB91: 0 | AC91: 0 | AD91: 0 | AE91: 0 | AF91: 0 | AG91: 0 | AH91: 0 | AI91: 0 | AJ91: 0 | AK91: 0 | AL91: 0 | AM91: 0 | AN91: 0 | AO91: 0 | AP91: 0 | AQ91: 0 | AR91: 0 | AS91: 0 | AT91: 0 | AU91: 0 | AV91: 0 | AW91: 0 | AX91: 0 | AY91: 0 | AZ91: 0 | BA91: 0 | BB91: 0 | BC91: 0 | BD91: 0 | BE91: 0 | BF91: 0 | BG91: 0 | BH91: 0 | BI91: 0 | BJ91: 0 | BK91: 0 | BL91: 0 | BM91: 0 | BN91: 0 | BO91: 0
B92: 33ab | C92: Power delivered externally | E92: [MWh/yr] | G92: 0 | H92: 0 | I92: 0 | J92: 0 | K92: 0 | L92: 0 | M92: 0 | N92: 0 | O92: 0 | P92: 0 | Q92: 0 | R92: 0 | S92: 0 | T92: 0 | U92: 0 | V92: 0 | W92: 0 | X92: 0 | Y92: 0 | Z92: 0 | AA92: 0 | AB92: 0 | AC92: 0 | AD92: 0 | AE92: 0 | AF92: 0 | AG92: 0 | AH92: 0 | AI92: 0 | AJ92: 0 | AK92: 0 | AL92: 0 | AM92: 0 | AN92: 0 | AO92: 0 | AP92: 0 | AQ92: 0 | AR92: 0 | AS92: 0 | AT92: 0 | AU92: 0 | AV92: 0 | AW92: 0 | AX92: 0 | AY92: 0 | AZ92: 0 | BA92: 0 | BB92: 0 | BC92: 0 | BD92: 0 | BE92: 0 | BF92: 0 | BG92: 0 | BH92: 0 | BI92: 0 | BJ92: 0 | BK92: 0 | BL92: 0 | BM92: 0 | BN92: 0 | BO92: 0
B93: 33ac | C93: Power consumed by on-site power generation equipment | E93: [MWh/yr] | G93: =IF(OR(G90="",G91="",G92=""),"",G90-G91-G92) -> 0 | H93: 0 | I93: 0 | J93: 0 | K93: 0 | L93: 0 | M93: 0 | N93: 0 | O93: 0 | P93: 0 | Q93: 0 | R93: 0 | S93: 0 | T93: 0 | U93: 0 | V93: 0 | W93: 0 | X93: 0 | Y93: 0 | Z93: 0 | AA93: 0 | AB93: 0 | AC93: 0 | AD93: 0 | AE93: 0 | AF93: 0 | AG93: 0 | AH93: 0 | AI93: 0 | AJ93: 0 | AK93: 0 | AL93: =IF(OR(AL90="",AL91="",AL92=""),"",AL90-AL91-AL92) -> 0 | AM93: =IF(OR(AM90="",AM91="",AM92=""),"",AM90-AM91-AM92) -> 0 | AN93: =IF(OR(AN90="",AN91="",AN92=""),"",AN90-AN91-AN92) -> 0 | AO93: =IF(OR(AO90="",AO91="",AO92=""),"",AO90-AO91-AO92) -> 0 | AP93: =IF(OR(AP90="",AP91="",AP92=""),"",AP90-AP91-AP92) -> 0 | AQ93: =IF(OR(AQ90="",AQ91="",AQ92=""),"",AQ90-AQ91-AQ92) -> 0 | AR93: 0 | AS93: 0 | AT93: 0 | AU93: 0 | AV93: 0 | AW93: 0 | AX93: 0 | AY93: 0 | AZ93: 0 | BA93: 0 | BB93: 0 | BC93: 0 | BD93: 0 | BE93: 0 | BF93: 0 | BG93: 0 | BH93: 0 | BI93: 0 | BJ93: 0 | BK93: 0 | BL93: 0 | BM93: 0 | BN93: 0 | BO93: 0
B94: 33ad | C94: CO2 per power unit produced by separate on-site power generation | E94: [kg CO2/MWh] | G94: =IF(G90=0,"",G155/G90*1000) ->  | H94: =IF(H90=0,"",H155/H90*1000) ->  | AL94: =IF(AL90=0,"",AL155/AL90*1000) ->  | AM94: =IF(AM90=0,"",AM155/AM90*1000) ->  | AN94: =IF(AN90=0,"",AN155/AN90*1000) ->  | AO94: =IF(AO90=0,"",AO155/AO90*1000) ->  | AP94: =IF(AP90=0,"",AP155/AP90*1000) ->  | AQ94: =IF(AQ90=0,"",AQ155/AQ90*1000) -> 
B95: 33b | C95: Total power production from waste heat recovery | E95: [MWh/yr] | G95: 0 | H95: 0 | I95: 0 | J95: 0 | K95: 0 | L95: 0 | M95: 0 | N95: 0 | O95: 0 | P95: 0 | Q95: 0 | R95: 0 | S95: 0 | T95: 0 | U95: 0 | V95: 0 | W95: 0 | X95: 0 | Y95: 0 | Z95: 0 | AA95: 0 | AB95: 0 | AC95: 0 | AD95: 0 | AE95: 0 | AF95: 0 | AG95: 0 | AH95: 0 | AI95: 0 | AJ95: 0 | AK95: 0 | AL95: 0 | AM95: 0 | AN95: 0 | AO95: 0 | AP95: 0 | AQ95: 0 | AR95: 0 | AS95: 0 | AT95: 0 | AU95: 0 | AV95: 0 | AW95: 0 | AX95: 0 | AY95: 0 | AZ95: 0 | BA95: 0 | BB95: 0 | BC95: 0 | BD95: 0 | BE95: 0 | BF95: 0 | BG95: 0 | BH95: 0 | BI95: 0 | BJ95: 0 | BK95: 0 | BL95: 0 | BM95: 0 | BN95: 0 | BO95: 0
B96: 33ba | C96: Power delivered to cement plant | E96: [MWh/yr] | G96: 0 | H96: 0 | I96: 0 | J96: 0 | K96: 0 | L96: 0 | M96: 0 | N96: 0 | O96: 0 | P96: 0 | Q96: 0 | R96: 0 | S96: 0 | T96: 0 | U96: 0 | V96: 0 | W96: 0 | X96: 0 | Y96: 0 | Z96: 0 | AA96: 0 | AB96: 0 | AC96: 0 | AD96: 0 | AE96: 0 | AF96: 0 | AG96: 0 | AH96: 0 | AI96: 0 | AJ96: 0 | AK96: 0 | AL96: 0 | AM96: 0 | AN96: 0 | AO96: 0 | AP96: 0 | AQ96: 0 | AR96: 0 | AS96: 0 | AT96: 0 | AU96: 0 | AV96: 0 | AW96: 0 | AX96: 0 | AY96: 0 | AZ96: 0 | BA96: 0 | BB96: 0 | BC96: 0 | BD96: 0 | BE96: 0 | BF96: 0 | BG96: 0 | BH96: 0 | BI96: 0 | BJ96: 0 | BK96: 0 | BL96: 0 | BM96: 0 | BN96: 0 | BO96: 0
B97: 33bb | C97: Power delivered externally | E97: [MWh/yr] | G97: 0 | H97: 0 | I97: 0 | J97: 0 | K97: 0 | L97: 0 | M97: 0 | N97: 0 | O97: 0 | P97: 0 | Q97: 0 | R97: 0 | S97: 0 | T97: 0 | U97: 0 | V97: 0 | W97: 0 | X97: 0 | Y97: 0 | Z97: 0 | AA97: 0 | AB97: 0 | AC97: 0 | AD97: 0 | AE97: 0 | AF97: 0 | AG97: 0 | AH97: 0 | AI97: 0 | AJ97: 0 | AK97: 0 | AL97: 0 | AM97: 0 | AN97: 0 | AO97: 0 | AP97: 0 | AQ97: 0 | AR97: 0 | AS97: 0 | AT97: 0 | AU97: 0 | AV97: 0 | AW97: 0 | AX97: 0 | AY97: 0 | AZ97: 0 | BA97: 0 | BB97: 0 | BC97: 0 | BD97: 0 | BE97: 0 | BF97: 0 | BG97: 0 | BH97: 0 | BI97: 0 | BJ97: 0 | BK97: 0 | BL97: 0 | BM97: 0 | BN97: 0 | BO97: 0
B98: 33bc | C98: Power consumed by waste heat recovery equipment | E98: [MWh/yr] | G98: =IF(OR(G95="",G96="",G97=""),"",G95-G96-G97) -> 0 | H98: 0 | I98: 0 | J98: 0 | K98: 0 | L98: 0 | M98: 0 | N98: 0 | O98: 0 | P98: 0 | Q98: 0 | R98: 0 | S98: 0 | T98: 0 | U98: 0 | V98: 0 | W98: 0 | X98: 0 | Y98: 0 | Z98: 0 | AA98: 0 | AB98: 0 | AC98: 0 | AD98: 0 | AE98: 0 | AF98: 0 | AG98: 0 | AH98: 0 | AI98: 0 | AJ98: 0 | AK98: 0 | AL98: =IF(OR(AL95="",AL96="",AL97=""),"",AL95-AL96-AL97) -> 0 | AM98: =IF(OR(AM95="",AM96="",AM97=""),"",AM95-AM96-AM97) -> 0 | AN98: =IF(OR(AN95="",AN96="",AN97=""),"",AN95-AN96-AN97) -> 0 | AO98: =IF(OR(AO95="",AO96="",AO97=""),"",AO95-AO96-AO97) -> 0 | AP98: =IF(OR(AP95="",AP96="",AP97=""),"",AP95-AP96-AP97) -> 0 | AQ98: =IF(OR(AQ95="",AQ96="",AQ97=""),"",AQ95-AQ96-AQ97) -> 0 | AR98: 0 | AS98: 0 | AT98: 0 | AU98: 0 | AV98: 0 | AW98: 0 | AX98: 0 | AY98: 0 | AZ98: 0 | BA98: 0 | BB98: 0 | BC98: 0 | BD98: 0 | BE98: 0 | BF98: 0 | BG98: 0 | BH98: 0 | BI98: 0 | BJ98: 0 | BK98: 0 | BL98: 0 | BM98: 0 | BN98: 0 | BO98: 0
B99: 33c | C99: Total external power consumption for cement manufacturing | E99: [MWh/yr] | G99: =IF(COUNTBLANK(G100:G102)=3,"",SUM(G100:G102)) -> 0 | H99: =IF(COUNTBLANK(H100:H102)=3,"",SUM(H100:H102)) -> 0 | I99: 0 | J99: 0 | K99: 0 | L99: 0 | M99: 0 | N99: 0 | O99: 0 | P99: 0 | Q99: 0 | R99: 0 | S99: 0 | T99: 0 | U99: 0 | V99: 0 | W99: 0 | X99: 0 | Y99: 0 | Z99: 0 | AA99: 0 | AB99: 0 | AC99: 0 | AD99: 0 | AE99: 0 | AF99: 0 | AG99: 0 | AH99: 0 | AI99: 0 | AJ99: 0 | AK99: 0 | AL99: =IF(COUNTBLANK(AL100:AL102)=3,"",SUM(AL100:AL102)) -> 0 | AM99: =IF(COUNTBLANK(AM100:AM102)=3,"",SUM(AM100:AM102)) -> 0 | AN99: =IF(COUNTBLANK(AN100:AN102)=3,"",SUM(AN100:AN102)) -> 0 | AO99: =IF(COUNTBLANK(AO100:AO102)=3,"",SUM(AO100:AO102)) -> 0 | AP99: =IF(COUNTBLANK(AP100:AP102)=3,"",SUM(AP100:AP102)) -> 0 | AQ99: =IF(COUNTBLANK(AQ100:AQ102)=3,"",SUM(AQ100:AQ102)) -> 0 | AR99: 0 | AS99: 0 | AT99: 0 | AU99: 0 | AV99: 0 | AW99: 0 | AX99: 0 | AY99: 0 | AZ99: 0 | BA99: 0 | BB99: 0 | BC99: 0 | BD99: 0 | BE99: 0 | BF99: 0 | BG99: 0 | BH99: 0 | BI99: 0 | BJ99: 0 | BK99: 0 | BL99: 0 | BM99: 0 | BN99: 0 | BO99: 0
B100: 33ca | C100: External power delivered to cement plant | E100: [MWh/yr]
B101: 33cb | C101: Cement-related external power delivered to on-site power generation plant | E101: [MWh/yr] | G101: 0 | H101: 0 | I101: 0 | J101: 0 | K101: 0 | L101: 0 | M101: 0 | N101: 0 | O101: 0 | P101: 0 | Q101: 0 | R101: 0 | S101: 0 | T101: 0 | U101: 0 | V101: 0 | W101: 0 | X101: 0 | Y101: 0 | Z101: 0 | AA101: 0 | AB101: 0 | AC101: 0 | AD101: 0 | AE101: 0 | AF101: 0 | AG101: 0 | AH101: 0 | AI101: 0 | AJ101: 0 | AK101: 0 | AL101: 0 | AM101: 0 | AN101: 0 | AO101: 0 | AP101: 0 | AQ101: 0 | AR101: 0 | AS101: 0 | AT101: 0 | AU101: 0 | AV101: 0 | AW101: 0 | AX101: 0 | AY101: 0 | AZ101: 0 | BA101: 0 | BB101: 0 | BC101: 0 | BD101: 0 | BE101: 0 | BF101: 0 | BG101: 0 | BH101: 0 | BI101: 0 | BJ101: 0 | BK101: 0 | BL101: 0 | BM101: 0 | BN101: 0 | BO101: 0
B102: 33cc | C102: Cement-related external power delivered to waste heat recovery plant | E102: [MWh/yr] | G102: 0 | H102: 0 | I102: 0 | J102: 0 | K102: 0 | L102: 0 | M102: 0 | N102: 0 | O102: 0 | P102: 0 | Q102: 0 | R102: 0 | S102: 0 | T102: 0 | U102: 0 | V102: 0 | W102: 0 | X102: 0 | Y102: 0 | Z102: 0 | AA102: 0 | AB102: 0 | AC102: 0 | AD102: 0 | AE102: 0 | AF102: 0 | AG102: 0 | AH102: 0 | AI102: 0 | AJ102: 0 | AK102: 0 | AL102: 0 | AM102: 0 | AN102: 0 | AO102: 0 | AP102: 0 | AQ102: 0 | AR102: 0 | AS102: 0 | AT102: 0 | AU102: 0 | AV102: 0 | AW102: 0 | AX102: 0 | AY102: 0 | AZ102: 0 | BA102: 0 | BB102: 0 | BC102: 0 | BD102: 0 | BE102: 0 | BF102: 0 | BG102: 0 | BH102: 0 | BI102: 0 | BJ102: 0 | BK102: 0 | BL102: 0 | BM102: 0 | BN102: 0 | BO102: 0
B103: 33d | C103: CO2 per power unit produced externally | E103: [kg CO2/MWh]
B104: 33e | C104: Power consumption up to and including clinker production | E104: [MWh/yr]
B105: 33 | C105: Total cement plant power consumption | E105: [MWh/yr] | G105: =IF(AND(G91=0,G96=0,G100=""),"",G91+G96+G100) ->  | H105: =IF(AND(H91=0,H96=0,H100=""),"",H91+H96+H100) ->  | AQ105: =IF(AND(AQ91=0,AQ96=0,AQ100=""),"",AQ91+AQ96+AQ100) -> 
B107: Waste Heat Use | G107: =G$7 -> 1990 | H107: 1991 | I107: 1992 | J107: 1993 | K107: 1994 | L107: 1995 | M107: 1996 | N107: 1997 | O107: 1998 | P107: 1999 | Q107: 2000 | R107: 2001 | S107: 2002 | T107: 2003 | U107: 2004 | V107: 2005 | W107: 2006 | X107: 2007 | Y107: 2008 | Z107: 2009 | AA107: 2010 | AB107: 2011 | AC107: 2012 | AD107: 2013 | AE107: 2014 | AF107: 2015 | AG107: 2016 | AH107: 2017 | AI107: 2018 | AJ107: 2019 | AK107: 2020 | AL107: 2021 | AM107: 2022 | AN107: 2023 | AO107: 2024 | AP107: 2025 | AQ107: 2026 | AR107: 2027 | AS107: 2028 | AT107: 2029 | AU107: 2030 | AV107: 2031 | AW107: 2032 | AX107: 2033 | AY107: 2034 | AZ107: 2035 | BA107: 2036 | BB107: 2037 | BC107: 2038 | BD107: 2039 | BE107: 2040 | BF107: 2041 | BG107: 2042 | BH107: 2043 | BI107: 2044 | BJ107: 2045 | BK107: 2046 | BL107: 2047 | BM107: 2048 | BN107: 2049 | BO107: 2050
B108: 34 | C108: Waste heat supplied to external consumers | E108: [GJ/yr] | G108: 0 | H108: 0 | I108: 0 | J108: 0 | K108: 0 | L108: 0 | M108: 0 | N108: 0 | O108: 0 | P108: 0 | Q108: 0 | R108: 0 | S108: 0 | T108: 0 | U108: 0 | V108: 0 | W108: 0 | X108: 0 | Y108: 0 | Z108: 0 | AA108: 0 | AB108: 0 | AC108: 0 | AD108: 0 | AE108: 0 | AF108: 0 | AG108: 0 | AH108: 0 | AI108: 0 | AJ108: 0 | AK108: 0 | AL108: 0 | AM108: 0 | AN108: 0 | AO108: 0 | AP108: 0 | AQ108: 0 | AR108: 0 | AS108: 0 | AT108: 0 | AU108: 0 | AV108: 0 | AW108: 0 | AX108: 0 | AY108: 0 | AZ108: 0 | BA108: 0 | BB108: 0 | BC108: 0 | BD108: 0 | BE108: 0 | BF108: 0 | BG108: 0 | BH108: 0 | BI108: 0 | BJ108: 0 | BK108: 0 | BL108: 0 | BM108: 0 | BN108: 0 | BO108: 0
B109: 34a | C109: Waste heat used internally (incl. power generation) | E109: [GJ/yr]
A111: CO2 EMISSIONS
B113: Calculation method in calcination sheet | G113: =G$7 -> 1990 | H113: 1991 | I113: 1992 | J113: 1993 | K113: 1994 | L113: 1995 | M113: 1996 | N113: 1997 | O113: 1998 | P113: 1999 | Q113: 2000 | R113: 2001 | S113: 2002 | T113: 2003 | U113: 2004 | V113: 2005 | W113: 2006 | X113: 2007 | Y113: 2008 | Z113: 2009 | AA113: 2010 | AB113: 2011 | AC113: 2012 | AD113: 2013 | AE113: 2014 | AF113: 2015 | AG113: 2016 | AH113: 2017 | AI113: 2018 | AJ113: 2019 | AK113: 2020 | AL113: 2021 | AM113: 2022 | AN113: 2023 | AO113: 2024 | AP113: 2025 | AQ113: 2026 | AR113: 2027 | AS113: 2028 | AT113: 2029 | AU113: 2030 | AV113: 2031 | AW113: 2032 | AX113: 2033 | AY113: 2034 | AZ113: 2035 | BA113: 2036 | BB113: 2037 | BC113: 2038 | BD113: 2039 | BE113: 2040 | BF113: 2041 | BG113: 2042 | BH113: 2043 | BI113: 2044 | BJ113: 2045 | BK113: 2046 | BL113: 2047 | BM113: 2048 | BN113: 2049 | BO113: 2050
B114: 34d | C114: Calculation method in calcination sheet | E114: A1; A2; B1; B2 | G114: =IF(G34="","",G34) -> B1 | H114: B1 | I114: B1 | J114: B1 | K114: B1 | L114: B1 | M114: B1 | N114: B1 | O114: B1 | P114: B1 | Q114: B1 | R114: B1 | S114: B1 | T114: B1 | U114: B1 | V114: B1 | W114: B1 | X114: B1 | Y114: B1 | Z114: B1 | AA114: B1 | AB114: B1 | AC114: B1 | AD114: B1 | AE114: B1 | AF114: B1 | AG114: =IF(AG34="","",AG34) -> B1 | AH114: B1 | AI114: B1 | AJ114: B1 | AK114: B1 | AL114: B1 | AM114: B1 | AN114: B1 | AO114: B1 | AP114: B1 | AQ114: =IF(AQ34="","",AQ34) -> B1 | AR114: B1 | AS114: B1 | AT114: B1 | AU114: B1 | AV114: B1 | AW114: B1 | AX114: B1 | AY114: B1 | AZ114: B1 | BA114: B1 | BB114: B1 | BC114: B1 | BD114: B1 | BE114: B1 | BF114: B1 | BG114: B1 | BH114: B1 | BI114: B1 | BJ114: B1 | BK114: B1 | BL114: B1 | BM114: B1 | BN114: B1 | BO114: B1
B116: Data for Simple Input Method (A1) | G116: =G$7 -> 1990 | H116: 1991 | I116: 1992 | J116: 1993 | K116: 1994 | L116: 1995 | M116: 1996 | N116: 1997 | O116: 1998 | P116: 1999 | Q116: 2000 | R116: 2001 | S116: 2002 | T116: 2003 | U116: 2004 | V116: 2005 | W116: 2006 | X116: 2007 | Y116: 2008 | Z116: 2009 | AA116: 2010 | AB116: 2011 | AC116: 2012 | AD116: 2013 | AE116: 2014 | AF116: 2015 | AG116: 2016 | AH116: 2017 | AI116: 2018 | AJ116: 2019 | AK116: 2020 | AL116: 2021 | AM116: 2022 | AN116: 2023 | AO116: 2024 | AP116: 2025 | AQ116: 2026 | AR116: 2027 | AS116: 2028 | AT116: 2029 | AU116: 2030 | AV116: 2031 | AW116: 2032 | AX116: 2033 | AY116: 2034 | AZ116: 2035 | BA116: 2036 | BB116: 2037 | BC116: 2038 | BD116: 2039 | BE116: 2040 | BF116: 2041 | BG116: 2042 | BH116: 2043 | BI116: 2044 | BJ116: 2045 | BK116: 2046 | BL116: 2047 | BM116: 2048 | BN116: 2049 | BO116: 2050
B117: 34e | C117: Input CalcA1: Raw meal consumption (Line 525) | E117: [t/yr, dry weight]
B118: 34f | C118: Input CalcA1: Total CO2 from raw materials (Line 526) | E118: [t CO2/yr]
B120: Data for Detailed Input Method (A2) | G120: =G$7 -> 1990 | H120: 1991 | I120: 1992 | J120: 1993 | K120: 1994 | L120: 1995 | M120: 1996 | N120: 1997 | O120: 1998 | P120: 1999 | Q120: 2000 | R120: 2001 | S120: 2002 | T120: 2003 | U120: 2004 | V120: 2005 | W120: 2006 | X120: 2007 | Y120: 2008 | Z120: 2009 | AA120: 2010 | AB120: 2011 | AC120: 2012 | AD120: 2013 | AE120: 2014 | AF120: 2015 | AG120: 2016 | AH120: 2017 | AI120: 2018 | AJ120: 2019 | AK120: 2020 | AL120: 2021 | AM120: 2022 | AN120: 2023 | AO120: 2024 | AP120: 2025 | AQ120: 2026 | AR120: 2027 | AS120: 2028 | AT120: 2029 | AU120: 2030 | AV120: 2031 | AW120: 2032 | AX120: 2033 | AY120: 2034 | AZ120: 2035 | BA120: 2036 | BB120: 2037 | BC120: 2038 | BD120: 2039 | BE120: 2040 | BF120: 2041 | BG120: 2042 | BH120: 2043 | BI120: 2044 | BJ120: 2045 | BK120: 2046 | BL120: 2047 | BM120: 2048 | BN120: 2049 | BO120: 2050
B121: 34i | C121: Input CalcA2: Raw meal consumption (Line 681) | E121: [t/yr, dry weight]
B122: 34j | C122: Input CalcA2: Total CO2 from raw materials (Line 682) | E122: [t CO2/yr]
B124: Data for Simple Output Method (B1) | G124: =G$7 -> 1990 | H124: 1991 | I124: 1992 | J124: 1993 | K124: 1994 | L124: 1995 | M124: 1996 | N124: 1997 | O124: 1998 | P124: 1999 | Q124: 2000 | R124: 2001 | S124: 2002 | T124: 2003 | U124: 2004 | V124: 2005 | W124: 2006 | X124: 2007 | Y124: 2008 | Z124: 2009 | AA124: 2010 | AB124: 2011 | AC124: 2012 | AD124: 2013 | AE124: 2014 | AF124: 2015 | AG124: 2016 | AH124: 2017 | AI124: 2018 | AJ124: 2019 | AK124: 2020 | AL124: 2021 | AM124: 2022 | AN124: 2023 | AO124: 2024 | AP124: 2025 | AQ124: 2026 | AR124: 2027 | AS124: 2028 | AT124: 2029 | AU124: 2030 | AV124: 2031 | AW124: 2032 | AX124: 2033 | AY124: 2034 | AZ124: 2035 | BA124: 2036 | BB124: 2037 | BC124: 2038 | BD124: 2039 | BE124: 2040 | BF124: 2041 | BG124: 2042 | BH124: 2043 | BI124: 2044 | BJ124: 2045 | BK124: 2046 | BL124: 2047 | BM124: 2048 | BN124: 2049 | BO124: 2050
B125: 34m | C125: Standard calcination emission factor [default 525 kg CO2/t clinker] | E125: [kg CO2/t cli] | G125: 525 | H125: 525 | I125: 525 | J125: 525 | K125: 525 | L125: 525 | M125: 525 | N125: 525 | O125: 525 | P125: 525 | Q125: 525 | R125: 525 | S125: 525 | T125: 525 | U125: 525 | V125: 525 | W125: 525 | X125: 525 | Y125: 525 | Z125: 525 | AA125: 525 | AB125: 525 | AC125: 525 | AD125: 525 | AE125: 525 | AF125: 525 | AG125: 525 | AH125: 525 | AI125: 525 | AJ125: 525 | AK125: 525 | AL125: 525 | AM125: 525 | AN125: 525 | AO125: 525 | AP125: 525 | AQ125: 525 | AR125: 525 | AS125: 525 | AT125: 525 | AU125: 525 | AV125: 525 | AW125: 525 | AX125: 525 | AY125: 525 | AZ125: 525 | BA125: 525 | BB125: 525 | BC125: 525 | BD125: 525 | BE125: 525 | BF125: 525 | BG125: 525 | BH125: 525 | BI125: 525 | BJ125: 525 | BK125: 525 | BL125: 525 | BM125: 525 | BN125: 525 | BO125: 525
B126: 34n | C126: Organic carbon content of raw meal (average), default value 0.2%, or set plant specific value | E126: [%, dry weight] | G126: 0.002 | H126: 0.002 | I126: 0.002 | J126: 0.002 | K126: 0.002 | L126: 0.002 | M126: 0.002 | N126: 0.002 | O126: 0.002 | P126: 0.002 | Q126: 0.002 | R126: 0.002 | S126: 0.002 | T126: 0.002 | U126: 0.002 | V126: 0.002 | W126: 0.002 | X126: 0.002 | Y126: 0.002 | Z126: 0.002 | AA126: 0.002 | AB126: 0.002 | AC126: 0.002 | AD126: 0.002 | AE126: 0.002 | AF126: 0.002 | AG126: 0.002 | AH126: 0.002 | AI126: 0.002 | AJ126: 0.002 | AK126: 0.002 | AL126: 0.002 | AM126: 0.002 | AN126: 0.002 | AO126: 0.002 | AP126: 0.002 | AQ126: 0.002 | AR126: 0.002 | AS126: 0.002 | AT126: 0.002 | AU126: 0.002 | AV126: 0.002 | AW126: 0.002 | AX126: 0.002 | AY126: 0.002 | AZ126: 0.002 | BA126: 0.002 | BB126: 0.002 | BC126: 0.002 | BD126: 0.002 | BE126: 0.002 | BF126: 0.002 | BG126: 0.002 | BH126: 0.002 | BI126: 0.002 | BJ126: 0.002 | BK126: 0.002 | BL126: 0.002 | BM126: 0.002 | BN126: 0.002 | BO126: 0.002
B127: 34o | C127: Raw meal : clinker ratio, default value 1.55, or set plant specific value | E127: [--, dry weight] | G127: 1.55 | H127: 1.55 | I127: 1.55 | J127: 1.55 | K127: 1.55 | L127: 1.55 | M127: 1.55 | N127: 1.55 | O127: 1.55 | P127: 1.55 | Q127: 1.55 | R127: 1.55 | S127: 1.55 | T127: 1.55 | U127: 1.55 | V127: 1.55 | W127: 1.55 | X127: 1.55 | Y127: 1.55 | Z127: 1.55 | AA127: 1.55 | AB127: 1.55 | AC127: 1.55 | AD127: 1.55 | AE127: 1.55 | AF127: 1.55 | AG127: 1.55 | AH127: 1.55 | AI127: 1.55 | AJ127: 1.55 | AK127: 1.55 | AL127: 1.55 | AM127: 1.55 | AN127: 1.55 | AO127: 1.55 | AP127: 1.55 | AQ127: 1.55 | AR127: 1.55 | AS127: 1.55 | AT127: 1.55 | AU127: 1.55 | AV127: 1.55 | AW127: 1.55 | AX127: 1.55 | AY127: 1.55 | AZ127: 1.55 | BA127: 1.55 | BB127: 1.55 | BC127: 1.55 | BD127: 1.55 | BE127: 1.55 | BF127: 1.55 | BG127: 1.55 | BH127: 1.55 | BI127: 1.55 | BJ127: 1.55 | BK127: 1.55 | BL127: 1.55 | BM127: 1.55 | BN127: 1.55 | BO127: 1.55
B129: Data for Detailed Output Method (B2) | G129: =G$7 -> 1990 | H129: 1991 | I129: 1992 | J129: 1993 | K129: 1994 | L129: 1995 | M129: 1996 | N129: 1997 | O129: 1998 | P129: 1999 | Q129: 2000 | R129: 2001 | S129: 2002 | T129: 2003 | U129: 2004 | V129: 2005 | W129: 2006 | X129: 2007 | Y129: 2008 | Z129: 2009 | AA129: 2010 | AB129: 2011 | AC129: 2012 | AD129: 2013 | AE129: 2014 | AF129: 2015 | AG129: 2016 | AH129: 2017 | AI129: 2018 | AJ129: 2019 | AK129: 2020 | AL129: 2021 | AM129: 2022 | AN129: 2023 | AO129: 2024 | AP129: 2025 | AQ129: 2026 | AR129: 2027 | AS129: 2028 | AT129: 2029 | AU129: 2030 | AV129: 2031 | AW129: 2032 | AX129: 2033 | AY129: 2034 | AZ129: 2035 | BA129: 2036 | BB129: 2037 | BC129: 2038 | BD129: 2039 | BE129: 2040 | BF129: 2041 | BG129: 2042 | BH129: 2043 | BI129: 2044 | BJ129: 2045 | BK129: 2046 | BL129: 2047 | BM129: 2048 | BN129: 2049 | BO129: 2050
B130: 34q | C130: Input CalcB2: Calcination emission factor corrected for CaO,MgO, Ca-Si, Mg-Si imports (Line 820) | E130: [kg CO2/t cli]
B131: 34r | C131: Organic carbon content of raw meal (average), default value 0.2%, or set plant specific value | E131: [%, dry weight] | G131: 0.002 | H131: 0.002 | I131: 0.002 | J131: 0.002 | K131: 0.002 | L131: 0.002 | M131: 0.002 | N131: 0.002 | O131: 0.002 | P131: 0.002 | Q131: 0.002 | R131: 0.002 | S131: 0.002 | T131: 0.002 | U131: 0.002 | V131: 0.002 | W131: 0.002 | X131: 0.002 | Y131: 0.002 | Z131: 0.002 | AA131: 0.002 | AB131: 0.002 | AC131: 0.002 | AD131: 0.002 | AE131: 0.002 | AF131: 0.002 | AG131: 0.002 | AH131: 0.002 | AI131: 0.002 | AJ131: 0.002 | AK131: 0.002 | AL131: 0.002 | AM131: 0.002 | AN131: 0.002 | AO131: 0.002 | AP131: 0.002 | AQ131: 0.002 | AR131: 0.002 | AS131: 0.002 | AT131: 0.002 | AU131: 0.002 | AV131: 0.002 | AW131: 0.002 | AX131: 0.002 | AY131: 0.002 | AZ131: 0.002 | BA131: 0.002 | BB131: 0.002 | BC131: 0.002 | BD131: 0.002 | BE131: 0.002 | BF131: 0.002 | BG131: 0.002 | BH131: 0.002 | BI131: 0.002 | BJ131: 0.002 | BK131: 0.002 | BL131: 0.002 | BM131: 0.002 | BN131: 0.002 | BO131: 0.002
B132: 34s | C132: Raw meal : clinker ratio, default value 1.55, or set plant specific value | E132: [--, dry weight] | G132: 1.55 | H132: 1.55 | I132: 1.55 | J132: 1.55 | K132: 1.55 | L132: 1.55 | M132: 1.55 | N132: 1.55 | O132: 1.55 | P132: 1.55 | Q132: 1.55 | R132: 1.55 | S132: 1.55 | T132: 1.55 | U132: 1.55 | V132: 1.55 | W132: 1.55 | X132: 1.55 | Y132: 1.55 | Z132: 1.55 | AA132: 1.55 | AB132: 1.55 | AC132: 1.55 | AD132: 1.55 | AE132: 1.55 | AF132: 1.55 | AG132: 1.55 | AH132: 1.55 | AI132: 1.55 | AJ132: 1.55 | AK132: 1.55 | AL132: 1.55 | AM132: 1.55 | AN132: 1.55 | AO132: 1.55 | AP132: 1.55 | AQ132: 1.55 | AR132: 1.55 | AS132: 1.55 | AT132: 1.55 | AU132: 1.55 | AV132: 1.55 | AW132: 1.55 | AX132: 1.55 | AY132: 1.55 | AZ132: 1.55 | BA132: 1.55 | BB132: 1.55 | BC132: 1.55 | BD132: 1.55 | BE132: 1.55 | BF132: 1.55 | BG132: 1.55 | BH132: 1.55 | BI132: 1.55 | BJ132: 1.55 | BK132: 1.55 | BL132: 1.55 | BM132: 1.55 | BN132: 1.55 | BO132: 1.55
A134: Direct CO2 Emissions
B135: CO2 from Raw Materials | G135: =G$7 -> 1990 | H135: 1991 | I135: 1992 | J135: 1993 | K135: 1994 | L135: 1995 | M135: 1996 | N135: 1997 | O135: 1998 | P135: 1999 | Q135: 2000 | R135: 2001 | S135: 2002 | T135: 2003 | U135: 2004 | V135: 2005 | W135: 2006 | X135: 2007 | Y135: 2008 | Z135: 2009 | AA135: 2010 | AB135: 2011 | AC135: 2012 | AD135: 2013 | AE135: 2014 | AF135: 2015 | AG135: 2016 | AH135: 2017 | AI135: 2018 | AJ135: 2019 | AK135: 2020 | AL135: 2021 | AM135: 2022 | AN135: 2023 | AO135: 2024 | AP135: 2025 | AQ135: 2026 | AR135: 2027 | AS135: 2028 | AT135: 2029 | AU135: 2030 | AV135: 2031 | AW135: 2032 | AX135: 2033 | AY135: 2034 | AZ135: 2035 | BA135: 2036 | BB135: 2037 | BC135: 2038 | BD135: 2039 | BE135: 2040 | BF135: 2041 | BG135: 2042 | BH135: 2043 | BI135: 2044 | BJ135: 2045 | BK135: 2046 | BL135: 2047 | BM135: 2048 | BN135: 2049 | BO135: 2050
B136: 35a | C136: Calcination emission factor, corrected for CaO- and MgO imports | E136: [kg CO2/t cli] | G136: =IF(G114="B2",G130,IF(G114="B1",G125,"n. appl.")) -> 525 | H136: =IF(H114="B2",H130,IF(H114="B1",H125,"n. appl.")) -> 525 | I136: 525 | J136: 525 | K136: 525 | L136: 525 | M136: 525 | N136: 525 | O136: 525 | P136: 525 | Q136: 525 | R136: 525 | S136: 525 | T136: 525 | U136: 525 | V136: 525 | W136: 525 | X136: 525 | Y136: 525 | Z136: 525 | AA136: 525 | AB136: 525 | AC136: 525 | AD136: 525 | AE136: 525 | AF136: 525 | AG136: =IF(AG114="B2",AG130,IF(AG114="B1",AG125,"n. appl.")) -> 525 | AH136: 525 | AI136: 525 | AJ136: 525 | AK136: 525 | AL136: 525 | AM136: 525 | AN136: 525 | AO136: 525 | AP136: 525 | AQ136: =IF(AQ114="B2",AQ130,IF(AQ114="B1",AQ125,"n. appl.")) -> 525 | AR136: 525 | AS136: 525 | AT136: 525 | AU136: 525 | AV136: 525 | AW136: 525 | AX136: 525 | AY136: 525 | AZ136: 525 | BA136: 525 | BB136: 525 | BC136: 525 | BD136: 525 | BE136: 525 | BF136: 525 | BG136: 525 | BH136: 525 | BI136: 525 | BJ136: 525 | BK136: 525 | BL136: 525 | BM136: 525 | BN136: 525 | BO136: 525
B137: 35b | C137: Organic carbon content of raw meal (average) | E137: [%, dry weight] | G137: =IF(G114="B1",G126,IF(G114="B2",G131,"n. appl.")) -> 0.002 | H137: =IF(H114="B1",H126,IF(H114="B2",H131,"n. appl.")) -> 0.002 | I137: 0.002 | J137: 0.002 | K137: 0.002 | L137: 0.002 | M137: 0.002 | N137: 0.002 | O137: 0.002 | P137: 0.002 | Q137: 0.002 | R137: 0.002 | S137: 0.002 | T137: 0.002 | U137: 0.002 | V137: 0.002 | W137: 0.002 | X137: 0.002 | Y137: 0.002 | Z137: 0.002 | AA137: 0.002 | AB137: 0.002 | AC137: 0.002 | AD137: 0.002 | AE137: 0.002 | AF137: 0.002 | AG137: =IF(AG114="B1",AG126,IF(AG114="B2",AG131,"n. appl.")) -> 0.002 | AH137: 0.002 | AI137: 0.002 | AJ137: 0.002 | AK137: 0.002 | AL137: 0.002 | AM137: 0.002 | AN137: 0.002 | AO137: 0.002 | AP137: 0.002 | AQ137: =IF(AQ114="B1",AQ126,IF(AQ114="B2",AQ131,"n. appl.")) -> 0.002 | AR137: 0.002 | AS137: 0.002 | AT137: 0.002 | AU137: 0.002 | AV137: 0.002 | AW137: 0.002 | AX137: 0.002 | AY137: 0.002 | AZ137: 0.002 | BA137: 0.002 | BB137: 0.002 | BC137: 0.002 | BD137: 0.002 | BE137: 0.002 | BF137: 0.002 | BG137: 0.002 | BH137: 0.002 | BI137: 0.002 | BJ137: 0.002 | BK137: 0.002 | BL137: 0.002 | BM137: 0.002 | BN137: 0.002 | BO137: 0.002
B138: 35c | C138: Raw meal : clinker ratio | E138: [--, dry weight] | G138: =IF(G114="B1",G127,IF(G114="B2",G132,"n. appl.")) -> 1.55 | H138: =IF(H114="B1",H127,IF(H114="B2",H132,"n. appl.")) -> 1.55 | I138: 1.55 | J138: 1.55 | K138: 1.55 | L138: 1.55 | M138: 1.55 | N138: 1.55 | O138: 1.55 | P138: 1.55 | Q138: 1.55 | R138: 1.55 | S138: 1.55 | T138: 1.55 | U138: 1.55 | V138: 1.55 | W138: 1.55 | X138: 1.55 | Y138: 1.55 | Z138: 1.55 | AA138: 1.55 | AB138: 1.55 | AC138: 1.55 | AD138: 1.55 | AE138: 1.55 | AF138: 1.55 | AG138: =IF(AG114="B1",AG127,IF(AG114="B2",AG132,"n. appl.")) -> 1.55 | AH138: 1.55 | AI138: 1.55 | AJ138: 1.55 | AK138: 1.55 | AL138: 1.55 | AM138: 1.55 | AN138: 1.55 | AO138: 1.55 | AP138: 1.55 | AQ138: =IF(AQ114="B1",AQ127,IF(AQ114="B2",AQ132,"n. appl.")) -> 1.55 | AR138: 1.55 | AS138: 1.55 | AT138: 1.55 | AU138: 1.55 | AV138: 1.55 | AW138: 1.55 | AX138: 1.55 | AY138: 1.55 | AZ138: 1.55 | BA138: 1.55 | BB138: 1.55 | BC138: 1.55 | BD138: 1.55 | BE138: 1.55 | BF138: 1.55 | BG138: 1.55 | BH138: 1.55 | BI138: 1.55 | BJ138: 1.55 | BK138: 1.55 | BL138: 1.55 | BM138: 1.55 | BN138: 1.55 | BO138: 1.55
B139: 35d | C139: Raw meal consumption | E139: [t/yr, dry weight] | G139: =IF(G114="A1",G117,IF(G114="A2",G121,IF(G40="","",G40*G138))) ->  | AL139: =IF(AL114="A1",AL117,IF(AL114="A2",AL121,IF(AL40="","",AL40*AL138))) ->  | AM139: =IF(AM114="A1",AM117,IF(AM114="A2",AM121,IF(AM40="","",AM40*AM138))) ->  | AN139: =IF(AN114="A1",AN117,IF(AN114="A2",AN121,IF(AN40="","",AN40*AN138))) ->  | AO139: =IF(AO114="A1",AO117,IF(AO114="A2",AO121,IF(AO40="","",AO40*AO138))) ->  | AP139: =IF(AP114="A1",AP117,IF(AP114="A2",AP121,IF(AP40="","",AP40*AP138))) ->  | AQ139: =IF(AQ114="A1",AQ117,IF(AQ114="A2",AQ121,IF(AQ40="","",AQ40*AQ138))) -> 
B140: 36 | C140: CO2 from calcination of raw materials consumed for clinker production | E140: [t CO2/yr] | G140: =IF(OR(G114="A1",G114="A2"),"n. appl.",IF(G40="","",G$136/1000*G40)) ->  | AL140: =IF(OR(AL114="A1",AL114="A2"),"n. appl.",IF(AL40="","",AL$136/1000*AL40)) ->  | AM140: =IF(OR(AM114="A1",AM114="A2"),"n. appl.",IF(AM40="","",AM$136/1000*AM40)) ->  | AN140: =IF(OR(AN114="A1",AN114="A2"),"n. appl.",IF(AN40="","",AN$136/1000*AN40)) ->  | AO140: =IF(OR(AO114="A1",AO114="A2"),"n. appl.",IF(AO40="","",AO$136/1000*AO40)) ->  | AP140: =IF(OR(AP114="A1",AP114="A2"),"n. appl.",IF(AP40="","",AP$136/1000*AP40)) ->  | AQ140: =IF(OR(AQ114="A1",AQ114="A2"),"n. appl.",IF(AQ40="","",AQ$136/1000*AQ40)) -> 
B141: =B140+1 -> 37 | C141: CO2 from calcination of bypass dust leaving the kiln system | E141: [t CO2/yr] | G141: =IF(OR(G114="A1",G114="A2"),"n. appl.",IF(G71="","",G$136/1000*G71)) -> 0 | H141: =IF(OR(H114="A1",H114="A2"),"n. appl.",IF(H71="","",H$136/1000*H71)) -> 0 | I141: 0 | J141: 0 | K141: 0 | L141: 0 | M141: 0 | N141: 0 | O141: 0 | P141: 0 | Q141: 0 | R141: 0 | S141: 0 | T141: 0 | U141: 0 | V141: 0 | W141: 0 | X141: 0 | Y141: 0 | Z141: 0 | AA141: 0 | AB141: 0 | AC141: 0 | AD141: 0 | AE141: 0 | AF141: 0 | AG141: =IF(OR(AG114="A1",AG114="A2"),"n. appl.",IF(AG71="","",AG$136/1000*AG71)) -> 0 | AH141: 0 | AI141: 0 | AJ141: 0 | AK141: 0 | AL141: 0 | AM141: 0 | AN141: 0 | AO141: 0 | AP141: 0 | AQ141: =IF(OR(AQ114="A1",AQ114="A2"),"n. appl.",IF(AQ71="","",AQ$136/1000*AQ71)) -> 0 | AR141: 0 | AS141: 0 | AT141: 0 | AU141: 0 | AV141: 0 | AW141: 0 | AX141: 0 | AY141: 0 | AZ141: 0 | BA141: 0 | BB141: 0 | BC141: 0 | BD141: 0 | BE141: 0 | BF141: 0 | BG141: 0 | BH141: 0 | BI141: 0 | BJ141: 0 | BK141: 0 | BL141: 0 | BM141: 0 | BN141: 0 | BO141: 0
B142: 38a | C142: CO2 from calcination of CKD leaving the kiln system | E142: [t CO2/yr] | G142: =IF(OR(G114="A1",G114="A2"),"n. appl.",IF(G72="","",G72*G136/1000/(1+G136/1000)*G73/(1-G136/1000/(1+G136/1000)*G73))) -> 0 | H142: =IF(OR(H114="A1",H114="A2"),"n. appl.",IF(H72="","",H72*H136/1000/(1+H136/1000)*H73/(1-H136/1000/(1+H136/1000)*H73))) -> 0 | I142: 0 | J142: 0 | K142: 0 | L142: 0 | M142: 0 | N142: 0 | O142: 0 | P142: 0 | Q142: 0 | R142: 0 | S142: 0 | T142: 0 | U142: 0 | V142: 0 | W142: 0 | X142: 0 | Y142: 0 | Z142: 0 | AA142: 0 | AB142: 0 | AC142: 0 | AD142: 0 | AE142: 0 | AF142: 0 | AG142: =IF(OR(AG114="A1",AG114="A2"),"n. appl.",IF(AG72="","",AG72*AG136/1000/(1+AG136/1000)*AG73/(1-AG136/1000/(1+AG136/1000)*AG73))) -> 0 | AH142: 0 | AI142: 0 | AJ142: 0 | AK142: 0 | AL142: 0 | AM142: 0 | AN142: 0 | AO142: 0 | AP142: 0 | AQ142: =IF(OR(AQ114="A1",AQ114="A2"),"n. appl.",IF(AQ72="","",AQ72*AQ136/1000/(1+AQ136/1000)*AQ73/(1-AQ136/1000/(1+AQ136/1000)*AQ73))) -> 0 | AR142: 0 | AS142: 0 | AT142: 0 | AU142: 0 | AV142: 0 | AW142: 0 | AX142: 0 | AY142: 0 | AZ142: 0 | BA142: 0 | BB142: 0 | BC142: 0 | BD142: 0 | BE142: 0 | BF142: 0 | BG142: 0 | BH142: 0 | BI142: 0 | BJ142: 0 | BK142: 0 | BL142: 0 | BM142: 0 | BN142: 0 | BO142: 0
B143: 38b | C143: CO2 from organic carbon content of raw meal | E143: [t CO2/yr] | G143: =IF(OR(G114="A1",G114="A2"),"n. appl.",IF(G139="","",G137*G139*3.664)) ->  | H143: =IF(OR(H114="A1",H114="A2"),"n. appl.",IF(H139="","",H137*H139*3.664)) ->  | AG143: =IF(OR(AG114="A1",AG114="A2"),"n. appl.",IF(AG139="","",AG137*AG139*3.664)) ->  | AQ143: =IF(OR(AQ114="A1",AQ114="A2"),"n. appl.",IF(AQ139="","",AQ137*AQ139*3.664)) -> 
B144: 39 | C144: Total CO2 from raw materials | E144: [t CO2/yr] | G144: =IF(G114="A1",G118,IF(G114="A2",G122,SUM(G140:G143))) -> 0 | H144: =IF(H114="A1",H118,IF(H114="A2",H122,SUM(H140:H143))) -> 0 | I144: 0 | J144: 0 | K144: 0 | L144: 0 | M144: 0 | N144: 0 | O144: 0 | P144: 0 | Q144: 0 | R144: 0 | S144: 0 | T144: 0 | U144: 0 | V144: 0 | W144: 0 | X144: 0 | Y144: 0 | Z144: 0 | AA144: 0 | AB144: 0 | AC144: 0 | AD144: 0 | AE144: 0 | AF144: 0 | AG144: 0 | AH144: 0 | AI144: 0 | AJ144: 0 | AK144: 0 | AL144: =IF(AL114="A1",AL118,IF(AL114="A2",AL122,SUM(AL140:AL143))) -> 0 | AM144: =IF(AM114="A1",AM118,IF(AM114="A2",AM122,SUM(AM140:AM143))) -> 0 | AN144: =IF(AN114="A1",AN118,IF(AN114="A2",AN122,SUM(AN140:AN143))) -> 0 | AO144: =IF(AO114="A1",AO118,IF(AO114="A2",AO122,SUM(AO140:AO143))) -> 0 | AP144: =IF(AP114="A1",AP118,IF(AP114="A2",AP122,SUM(AP140:AP143))) -> 0 | AQ144: =IF(AQ114="A1",AQ118,IF(AQ114="A2",AQ122,SUM(AQ140:AQ143))) -> 0 | AR144: 0 | AS144: 0 | AT144: 0 | AU144: 0 | AV144: 0 | AW144: 0 | AX144: 0 | AY144: 0 | AZ144: 0 | BA144: 0 | BB144: 0 | BC144: 0 | BD144: 0 | BE144: 0 | BF144: 0 | BG144: 0 | BH144: 0 | BI144: 0 | BJ144: 0 | BK144: 0 | BL144: 0 | BM144: 0 | BN144: 0 | BO144: 0
B146: CO2 from Kiln Fuels (incl. drying of fuels and raw materials) | G146: =G$7 -> 1990 | H146: 1991 | I146: 1992 | J146: 1993 | K146: 1994 | L146: 1995 | M146: 1996 | N146: 1997 | O146: 1998 | P146: 1999 | Q146: 2000 | R146: 2001 | S146: 2002 | T146: 2003 | U146: 2004 | V146: 2005 | W146: 2006 | X146: 2007 | Y146: 2008 | Z146: 2009 | AA146: 2010 | AB146: 2011 | AC146: 2012 | AD146: 2013 | AE146: 2014 | AF146: 2015 | AG146: 2016 | AH146: 2017 | AI146: 2018 | AJ146: 2019 | AK146: 2020 | AL146: 2021 | AM146: 2022 | AN146: 2023 | AO146: 2024 | AP146: 2025 | AQ146: 2026 | AR146: 2027 | AS146: 2028 | AT146: 2029 | AU146: 2030 | AV146: 2031 | AW146: 2032 | AX146: 2033 | AY146: 2034 | AZ146: 2035 | BA146: 2036 | BB146: 2037 | BC146: 2038 | BD146: 2039 | BE146: 2040 | BF146: 2041 | BG146: 2042 | BH146: 2043 | BI146: 2044 | BJ146: 2045 | BK146: 2046 | BL146: 2047 | BM146: 2048 | BN146: 2049 | BO146: 2050
B147: =B144+1 -> 40 | C147: CO2 from conventional fossil fuels | E147: [t CO2/yr] | G147: =IF(OR(G388="",G415=""),"",G388+G415) -> 0 | H147: =IF(OR(H388="",H415=""),"",H388+H415) -> 0 | I147: 0 | J147: 0 | K147: 0 | L147: 0 | M147: 0 | N147: 0 | O147: 0 | P147: 0 | Q147: 0 | R147: 0 | S147: 0 | T147: 0 | U147: 0 | V147: 0 | W147: 0 | X147: 0 | Y147: 0 | Z147: 0 | AA147: 0 | AB147: 0 | AC147: 0 | AD147: 0 | AE147: 0 | AF147: 0 | AG147: =IF(OR(AG388="",AG415=""),"",AG388+AG415) -> 0 | AH147: 0 | AI147: 0 | AJ147: 0 | AK147: 0 | AL147: 0 | AM147: 0 | AN147: 0 | AO147: 0 | AP147: 0 | AQ147: =IF(OR(AQ388="",AQ415=""),"",AQ388+AQ415) -> 0 | AR147: 0 | AS147: 0 | AT147: 0 | AU147: 0 | AV147: 0 | AW147: 0 | AX147: 0 | AY147: 0 | AZ147: 0 | BA147: 0 | BB147: 0 | BC147: 0 | BD147: 0 | BE147: 0 | BF147: 0 | BG147: 0 | BH147: 0 | BI147: 0 | BJ147: 0 | BK147: 0 | BL147: 0 | BM147: 0 | BN147: 0 | BO147: 0
B148: =B147+1 -> 41 | C148: CO2 from alternative fossil fuels | E148: [t CO2/yr] | G148: =IF(OR(G396="",G422=""),"",G396+G422) -> 0 | H148: =IF(OR(H396="",H422=""),"",H396+H422) -> 0 | I148: 0 | J148: 0 | K148: 0 | L148: 0 | M148: 0 | N148: 0 | O148: 0 | P148: 0 | Q148: 0 | R148: 0 | S148: 0 | T148: 0 | U148: 0 | V148: 0 | W148: 0 | X148: 0 | Y148: 0 | Z148: 0 | AA148: 0 | AB148: 0 | AC148: 0 | AD148: 0 | AE148: 0 | AF148: 0 | AG148: =IF(OR(AG396="",AG422=""),"",AG396+AG422) -> 0 | AH148: 0 | AI148: 0 | AJ148: 0 | AK148: 0 | AL148: 0 | AM148: 0 | AN148: 0 | AO148: 0 | AP148: 0 | AQ148: =IF(OR(AQ396="",AQ422=""),"",AQ396+AQ422) -> 0 | AR148: 0 | AS148: 0 | AT148: 0 | AU148: 0 | AV148: 0 | AW148: 0 | AX148: 0 | AY148: 0 | AZ148: 0 | BA148: 0 | BB148: 0 | BC148: 0 | BD148: 0 | BE148: 0 | BF148: 0 | BG148: 0 | BH148: 0 | BI148: 0 | BJ148: 0 | BK148: 0 | BL148: 0 | BM148: 0 | BN148: 0 | BO148: 0
B149: 43 | C149: Total CO2 from fossil-based kiln fuels | E149: [t CO2/yr] | G149: =IF(COUNTBLANK(G147:G148)=2,"",SUM(G147:G148)) -> 0 | H149: 0 | I149: 0 | J149: 0 | K149: 0 | L149: 0 | M149: 0 | N149: 0 | O149: 0 | P149: 0 | Q149: 0 | R149: 0 | S149: 0 | T149: 0 | U149: 0 | V149: 0 | W149: 0 | X149: 0 | Y149: 0 | Z149: 0 | AA149: 0 | AB149: 0 | AC149: 0 | AD149: 0 | AE149: 0 | AF149: 0 | AG149: =IF(COUNTBLANK(AG147:AG148)=2,"",SUM(AG147:AG148)) -> 0 | AH149: 0 | AI149: 0 | AJ149: 0 | AK149: 0 | AL149: 0 | AM149: 0 | AN149: 0 | AO149: 0 | AP149: 0 | AQ149: =IF(COUNTBLANK(AQ147:AQ148)=2,"",SUM(AQ147:AQ148)) -> 0 | AR149: 0 | AS149: 0 | AT149: 0 | AU149: 0 | AV149: 0 | AW149: 0 | AX149: 0 | AY149: 0 | AZ149: 0 | BA149: 0 | BB149: 0 | BC149: 0 | BD149: 0 | BE149: 0 | BF149: 0 | BG149: 0 | BH149: 0 | BI149: 0 | BJ149: 0 | BK149: 0 | BL149: 0 | BM149: 0 | BN149: 0 | BO149: 0
B151: CO2 from Non-Kiln Fuels | G151: =G$7 -> 1990 | H151: 1991 | I151: 1992 | J151: 1993 | K151: 1994 | L151: 1995 | M151: 1996 | N151: 1997 | O151: 1998 | P151: 1999 | Q151: 2000 | R151: 2001 | S151: 2002 | T151: 2003 | U151: 2004 | V151: 2005 | W151: 2006 | X151: 2007 | Y151: 2008 | Z151: 2009 | AA151: 2010 | AB151: 2011 | AC151: 2012 | AD151: 2013 | AE151: 2014 | AF151: 2015 | AG151: 2016 | AH151: 2017 | AI151: 2018 | AJ151: 2019 | AK151: 2020 | AL151: 2021 | AM151: 2022 | AN151: 2023 | AO151: 2024 | AP151: 2025 | AQ151: 2026 | AR151: 2027 | AS151: 2028 | AT151: 2029 | AU151: 2030 | AV151: 2031 | AW151: 2032 | AX151: 2033 | AY151: 2034 | AZ151: 2035 | BA151: 2036 | BB151: 2037 | BC151: 2038 | BD151: 2039 | BE151: 2040 | BF151: 2041 | BG151: 2042 | BH151: 2043 | BI151: 2044 | BJ151: 2045 | BK151: 2046 | BL151: 2047 | BM151: 2048 | BN151: 2049 | BO151: 2050
B152: 44 | C152: CO2 from equipment and on-site vehicles (fossil fuels) | E152: [t CO2/yr] | G152: =G538 -> 0 | H152: =H538 -> 0 | I152: 0 | J152: 0 | K152: 0 | L152: 0 | M152: 0 | N152: 0 | O152: 0 | P152: 0 | Q152: 0 | R152: 0 | S152: 0 | T152: 0 | U152: 0 | V152: 0 | W152: 0 | X152: 0 | Y152: 0 | Z152: 0 | AA152: 0 | AB152: 0 | AC152: 0 | AD152: 0 | AE152: 0 | AF152: 0 | AG152: =AG538 -> 0 | AH152: 0 | AI152: 0 | AJ152: 0 | AK152: 0 | AL152: 0 | AM152: 0 | AN152: 0 | AO152: 0 | AP152: 0 | AQ152: =AQ538 -> 0 | AR152: 0 | AS152: 0 | AT152: 0 | AU152: 0 | AV152: 0 | AW152: 0 | AX152: 0 | AY152: 0 | AZ152: 0 | BA152: 0 | BB152: 0 | BC152: 0 | BD152: 0 | BE152: 0 | BF152: 0 | BG152: 0 | BH152: 0 | BI152: 0 | BJ152: 0 | BK152: 0 | BL152: 0 | BM152: 0 | BN152: 0 | BO152: 0
B153: 45a | C153: CO2 from room heating and cooling (fossil fuels) | E153: [t CO2/yr] | G153: =G544 -> 0 | H153: =H544 -> 0 | I153: 0 | J153: 0 | K153: 0 | L153: 0 | M153: 0 | N153: 0 | O153: 0 | P153: 0 | Q153: 0 | R153: 0 | S153: 0 | T153: 0 | U153: 0 | V153: 0 | W153: 0 | X153: 0 | Y153: 0 | Z153: 0 | AA153: 0 | AB153: 0 | AC153: 0 | AD153: 0 | AE153: 0 | AF153: 0 | AG153: =AG544 -> 0 | AH153: 0 | AI153: 0 | AJ153: 0 | AK153: 0 | AL153: 0 | AM153: 0 | AN153: 0 | AO153: 0 | AP153: 0 | AQ153: =AQ544 -> 0 | AR153: 0 | AS153: 0 | AT153: 0 | AU153: 0 | AV153: 0 | AW153: 0 | AX153: 0 | AY153: 0 | AZ153: 0 | BA153: 0 | BB153: 0 | BC153: 0 | BD153: 0 | BE153: 0 | BF153: 0 | BG153: 0 | BH153: 0 | BI153: 0 | BJ153: 0 | BK153: 0 | BL153: 0 | BM153: 0 | BN153: 0 | BO153: 0
B154: 45b | C154: CO2 from drying of mineral components (fossil fuels) | E154: [t CO2/yr] | G154: =IF(OR(G549="",G556=""),"",G549+G556) -> 0 | H154: =IF(OR(H549="",H556=""),"",H549+H556) -> 0 | I154: 0 | J154: 0 | K154: 0 | L154: 0 | M154: 0 | N154: 0 | O154: 0 | P154: 0 | Q154: 0 | R154: 0 | S154: 0 | T154: 0 | U154: 0 | V154: 0 | W154: 0 | X154: 0 | Y154: 0 | Z154: 0 | AA154: 0 | AB154: 0 | AC154: 0 | AD154: 0 | AE154: 0 | AF154: 0 | AG154: =IF(OR(AG549="",AG556=""),"",AG549+AG556) -> 0 | AH154: 0 | AI154: 0 | AJ154: 0 | AK154: 0 | AL154: 0 | AM154: 0 | AN154: 0 | AO154: 0 | AP154: 0 | AQ154: =IF(OR(AQ549="",AQ556=""),"",AQ549+AQ556) -> 0 | AR154: 0 | AS154: 0 | AT154: 0 | AU154: 0 | AV154: 0 | AW154: 0 | AX154: 0 | AY154: 0 | AZ154: 0 | BA154: 0 | BB154: 0 | BC154: 0 | BD154: 0 | BE154: 0 | BF154: 0 | BG154: 0 | BH154: 0 | BI154: 0 | BJ154: 0 | BK154: 0 | BL154: 0 | BM154: 0 | BN154: 0 | BO154: 0
B155: 45c | C155: CO2 from seperate on-site power generation (fossil fuels) | E155: [t CO2/yr] | G155: =IF(OR(G561="",G568=""),"",G561+G568) -> 0 | H155: =IF(OR(H561="",H568=""),"",H561+H568) -> 0 | I155: 0 | J155: 0 | K155: 0 | L155: 0 | M155: 0 | N155: 0 | O155: 0 | P155: 0 | Q155: 0 | R155: 0 | S155: 0 | T155: 0 | U155: 0 | V155: 0 | W155: 0 | X155: 0 | Y155: 0 | Z155: 0 | AA155: 0 | AB155: 0 | AC155: 0 | AD155: 0 | AE155: 0 | AF155: 0 | AG155: =IF(OR(AG561="",AG568=""),"",AG561+AG568) -> 0 | AH155: 0 | AI155: 0 | AJ155: 0 | AK155: 0 | AL155: 0 | AM155: 0 | AN155: 0 | AO155: 0 | AP155: 0 | AQ155: =IF(OR(AQ561="",AQ568=""),"",AQ561+AQ568) -> 0 | AR155: 0 | AS155: 0 | AT155: 0 | AU155: 0 | AV155: 0 | AW155: 0 | AX155: 0 | AY155: 0 | AZ155: 0 | BA155: 0 | BB155: 0 | BC155: 0 | BD155: 0 | BE155: 0 | BF155: 0 | BG155: 0 | BH155: 0 | BI155: 0 | BJ155: 0 | BK155: 0 | BL155: 0 | BM155: 0 | BN155: 0 | BO155: 0
B156: 46 | C156: Total CO2 from non-kiln fossil fuels | E156: [t CO2/yr] | G156: =IF(COUNTBLANK(G152:G155)=4,"",SUM(G152:G155)) -> 0 | H156: 0 | I156: 0 | J156: 0 | K156: 0 | L156: 0 | M156: 0 | N156: 0 | O156: 0 | P156: 0 | Q156: 0 | R156: 0 | S156: 0 | T156: 0 | U156: 0 | V156: 0 | W156: 0 | X156: 0 | Y156: 0 | Z156: 0 | AA156: 0 | AB156: 0 | AC156: 0 | AD156: 0 | AE156: 0 | AF156: 0 | AG156: =IF(COUNTBLANK(AG152:AG155)=4,"",SUM(AG152:AG155)) -> 0 | AH156: 0 | AI156: 0 | AJ156: 0 | AK156: 0 | AL156: 0 | AM156: 0 | AN156: 0 | AO156: 0 | AP156: 0 | AQ156: =IF(COUNTBLANK(AQ152:AQ155)=4,"",SUM(AQ152:AQ155)) -> 0 | AR156: 0 | AS156: 0 | AT156: 0 | AU156: 0 | AV156: 0 | AW156: 0 | AX156: 0 | AY156: 0 | AZ156: 0 | BA156: 0 | BB156: 0 | BC156: 0 | BD156: 0 | BE156: 0 | BF156: 0 | BG156: 0 | BH156: 0 | BI156: 0 | BJ156: 0 | BK156: 0 | BL156: 0 | BM156: 0 | BN156: 0 | BO156: 0
B158: Total Direct CO2 Emissions | G158: =G$7 -> 1990 | H158: 1991 | I158: 1992 | J158: 1993 | K158: 1994 | L158: 1995 | M158: 1996 | N158: 1997 | O158: 1998 | P158: 1999 | Q158: 2000 | R158: 2001 | S158: 2002 | T158: 2003 | U158: 2004 | V158: 2005 | W158: 2006 | X158: 2007 | Y158: 2008 | Z158: 2009 | AA158: 2010 | AB158: 2011 | AC158: 2012 | AD158: 2013 | AE158: 2014 | AF158: 2015 | AG158: 2016 | AH158: 2017 | AI158: 2018 | AJ158: 2019 | AK158: 2020 | AL158: 2021 | AM158: 2022 | AN158: 2023 | AO158: 2024 | AP158: 2025 | AQ158: 2026 | AR158: 2027 | AS158: 2028 | AT158: 2029 | AU158: 2030 | AV158: 2031 | AW158: 2032 | AX158: 2033 | AY158: 2034 | AZ158: 2035 | BA158: 2036 | BB158: 2037 | BC158: 2038 | BD158: 2039 | BE158: 2040 | BF158: 2041 | BG158: 2042 | BH158: 2043 | BI158: 2044 | BJ158: 2045 | BK158: 2046 | BL158: 2047 | BM158: 2048 | BN158: 2049 | BO158: 2050
B159: 48 | C159: Total direct CO2: all fossil CO2 sources | E159: [t CO2/yr] | G159: =IF(OR(G144="",G149="",G156=""),"",G144+G149+G156) -> 0 | H159: 0 | I159: 0 | J159: 0 | K159: 0 | L159: 0 | M159: 0 | N159: 0 | O159: 0 | P159: 0 | Q159: 0 | R159: 0 | S159: 0 | T159: 0 | U159: 0 | V159: 0 | W159: 0 | X159: 0 | Y159: 0 | Z159: 0 | AA159: 0 | AB159: 0 | AC159: 0 | AD159: 0 | AE159: 0 | AF159: 0 | AG159: =IF(OR(AG144="",AG149="",AG156=""),"",AG144+AG149+AG156) -> 0 | AH159: 0 | AI159: 0 | AJ159: 0 | AK159: 0 | AL159: 0 | AM159: 0 | AN159: 0 | AO159: 0 | AP159: 0 | AQ159: =IF(OR(AQ144="",AQ149="",AQ156=""),"",AQ144+AQ149+AQ156) -> 0 | AR159: 0 | AS159: 0 | AT159: 0 | AU159: 0 | AV159: 0 | AW159: 0 | AX159: 0 | AY159: 0 | AZ159: 0 | BA159: 0 | BB159: 0 | BC159: 0 | BD159: 0 | BE159: 0 | BF159: 0 | BG159: 0 | BH159: 0 | BI159: 0 | BJ159: 0 | BK159: 0 | BL159: 0 | BM159: 0 | BN159: 0 | BO159: 0
A161: Indirect CO2 Emissions (Main Sources) | G161: =G$7 -> 1990 | H161: 1991 | I161: 1992 | J161: 1993 | K161: 1994 | L161: 1995 | M161: 1996 | N161: 1997 | O161: 1998 | P161: 1999 | Q161: 2000 | R161: 2001 | S161: 2002 | T161: 2003 | U161: 2004 | V161: 2005 | W161: 2006 | X161: 2007 | Y161: 2008 | Z161: 2009 | AA161: 2010 | AB161: 2011 | AC161: 2012 | AD161: 2013 | AE161: 2014 | AF161: 2015 | AG161: 2016 | AH161: 2017 | AI161: 2018 | AJ161: 2019 | AK161: 2020 | AL161: 2021 | AM161: 2022 | AN161: 2023 | AO161: 2024 | AP161: 2025 | AQ161: 2026 | AR161: 2027 | AS161: 2028 | AT161: 2029 | AU161: 2030 | AV161: 2031 | AW161: 2032 | AX161: 2033 | AY161: 2034 | AZ161: 2035 | BA161: 2036 | BB161: 2037 | BC161: 2038 | BD161: 2039 | BE161: 2040 | BF161: 2041 | BG161: 2042 | BH161: 2043 | BI161: 2044 | BJ161: 2045 | BK161: 2046 | BL161: 2047 | BM161: 2048 | BN161: 2049 | BO161: 2050
B162: 49a | C162: CO2 from external power generation | E162: [t CO2/yr] | G162: =IF(G99=0,"",G99*G103/1000) ->  | H162: =IF(H99=0,"",H99*H103/1000) ->  | AQ162: =IF(AQ99=0,"",AQ99*AQ103/1000) -> 
B163: 49b | C163: Emission factor for inbound clinker | E163: [kg CO2/t cli] | G163: 865 | H163: 865 | I163: 865 | J163: 865 | K163: 865 | L163: 865 | M163: 865 | N163: 865 | O163: 865 | P163: 865 | Q163: 865 | R163: 865 | S163: 865 | T163: 865 | U163: 865 | V163: 865 | W163: 865 | X163: 865 | Y163: 865 | Z163: 865 | AA163: 865 | AB163: 865 | AC163: 865 | AD163: 865 | AE163: 865 | AF163: 865 | AG163: 865 | AH163: 865 | AI163: 865 | AJ163: 865 | AK163: 865 | AL163: 865 | AM163: 865 | AN163: 865 | AO163: 865 | AP163: 865 | AQ163: 865 | AR163: 865 | AS163: 865 | AT163: 865 | AU163: 865 | AV163: 865 | AW163: 865 | AX163: 865 | AY163: 865 | AZ163: 865 | BA163: 865 | BB163: 865 | BC163: 865 | BD163: 865 | BE163: 865 | BF163: 865 | BG163: 865 | BH163: 865 | BI163: 865 | BJ163: 865 | BK163: 865 | BL163: 865 | BM163: 865 | BN163: 865 | BO163: 865
B164: 49c | C164: CO2 from net inbound (+) / outbound (-) clinker | E164: [t CO2/yr] | G164: =IF(OR(G41="",G44="",G45="",G42=""),"",IF(G184<>"n. appl.",(((G41+G44+G45)*G163)-(G42*G184))/1000,(G41+G44+G45)*G163/1000)) ->  | AL164: =IF(OR(AL41="",AL44="",AL45="",AL42=""),"",IF(AL184<>"n. appl.",(((AL41+AL44+AL45)*AL163)-(AL42*AL184))/1000,(AL41+AL44+AL45)*AL163/1000)) ->  | AM164: =IF(OR(AM41="",AM44="",AM45="",AM42=""),"",IF(AM184<>"n. appl.",(((AM41+AM44+AM45)*AM163)-(AM42*AM184))/1000,(AM41+AM44+AM45)*AM163/1000)) ->  | AN164: =IF(OR(AN41="",AN44="",AN45="",AN42=""),"",IF(AN184<>"n. appl.",(((AN41+AN44+AN45)*AN163)-(AN42*AN184))/1000,(AN41+AN44+AN45)*AN163/1000)) ->  | AO164: =IF(OR(AO41="",AO44="",AO45="",AO42=""),"",IF(AO184<>"n. appl.",(((AO41+AO44+AO45)*AO163)-(AO42*AO184))/1000,(AO41+AO44+AO45)*AO163/1000)) ->  | AP164: =IF(OR(AP41="",AP44="",AP45="",AP42=""),"",IF(AP184<>"n. appl.",(((AP41+AP44+AP45)*AP163)-(AP42*AP184))/1000,(AP41+AP44+AP45)*AP163/1000)) ->  | AQ164: =IF(OR(AQ41="",AQ44="",AQ45="",AQ42=""),"",IF(AQ184<>"n. appl.",(((AQ41+AQ44+AQ45)*AQ163)-(AQ42*AQ184))/1000,(AQ41+AQ44+AQ45)*AQ163/1000)) -> 
B165: 49d | C165: Total indirect CO2 (main sources) | E165: [t CO2/yr] | G165: =IF(OR(G162="",G164=""),"",G162+G164) ->  | AG165: =IF(OR(AG162="",AG164=""),"",AG162+AG164) ->  | AQ165: =IF(OR(AQ162="",AQ164=""),"",AQ162+AQ164) -> 
A167: Direct CO2 from Biomass (Memo Item) | G167: =G$7 -> 1990 | H167: 1991 | I167: 1992 | J167: 1993 | K167: 1994 | L167: 1995 | M167: 1996 | N167: 1997 | O167: 1998 | P167: 1999 | Q167: 2000 | R167: 2001 | S167: 2002 | T167: 2003 | U167: 2004 | V167: 2005 | W167: 2006 | X167: 2007 | Y167: 2008 | Z167: 2009 | AA167: 2010 | AB167: 2011 | AC167: 2012 | AD167: 2013 | AE167: 2014 | AF167: 2015 | AG167: 2016 | AH167: 2017 | AI167: 2018 | AJ167: 2019 | AK167: 2020 | AL167: 2021 | AM167: 2022 | AN167: 2023 | AO167: 2024 | AP167: 2025 | AQ167: 2026 | AR167: 2027 | AS167: 2028 | AT167: 2029 | AU167: 2030 | AV167: 2031 | AW167: 2032 | AX167: 2033 | AY167: 2034 | AZ167: 2035 | BA167: 2036 | BB167: 2037 | BC167: 2038 | BD167: 2039 | BE167: 2040 | BF167: 2041 | BG167: 2042 | BH167: 2043 | BI167: 2044 | BJ167: 2045 | BK167: 2046 | BL167: 2047 | BM167: 2048 | BN167: 2049 | BO167: 2050
B168: 50 | C168: CO2 from combustion of biomass (kiln and non-kiln fuels, incl. biomass content of mixed fuels) | E168: [t CO2/yr] | G168: =IF(OR(G404="",G424="",G542="",G558="",G570=""),"",G404+G424+G542+G558+G570) -> 0 | H168: 0 | I168: 0 | J168: 0 | K168: 0 | L168: 0 | M168: 0 | N168: 0 | O168: 0 | P168: 0 | Q168: 0 | R168: 0 | S168: 0 | T168: 0 | U168: 0 | V168: 0 | W168: 0 | X168: 0 | Y168: 0 | Z168: 0 | AA168: 0 | AB168: 0 | AC168: 0 | AD168: 0 | AE168: 0 | AF168: 0 | AG168: 0 | AH168: 0 | AI168: 0 | AJ168: 0 | AK168: 0 | AL168: =IF(OR(AL404="",AL424="",AL542="",AL558="",AL570=""),"",AL404+AL424+AL542+AL558+AL570) -> 0 | AM168: =IF(OR(AM404="",AM424="",AM542="",AM558="",AM570=""),"",AM404+AM424+AM542+AM558+AM570) -> 0 | AN168: =IF(OR(AN404="",AN424="",AN542="",AN558="",AN570=""),"",AN404+AN424+AN542+AN558+AN570) -> 0 | AO168: =IF(OR(AO404="",AO424="",AO542="",AO558="",AO570=""),"",AO404+AO424+AO542+AO558+AO570) -> 0 | AP168: =IF(OR(AP404="",AP424="",AP542="",AP558="",AP570=""),"",AP404+AP424+AP542+AP558+AP570) -> 0 | AQ168: =IF(OR(AQ404="",AQ424="",AQ542="",AQ558="",AQ570=""),"",AQ404+AQ424+AQ542+AQ558+AQ570) -> 0 | AR168: 0 | AS168: 0 | AT168: 0 | AU168: 0 | AV168: 0 | AW168: 0 | AX168: 0 | AY168: 0 | AZ168: 0 | BA168: 0 | BB168: 0 | BC168: 0 | BD168: 0 | BE168: 0 | BF168: 0 | BG168: 0 | BH168: 0 | BI168: 0 | BJ168: 0 | BK168: 0 | BL168: 0 | BM168: 0 | BN168: 0 | BO168: 0
A170: PERFORMANCE INDICATORS
B172: Absolute Direct CO2 Emissions | G172: =G$7 -> 1990 | H172: 1991 | I172: 1992 | J172: 1993 | K172: 1994 | L172: 1995 | M172: 1996 | N172: 1997 | O172: 1998 | P172: 1999 | Q172: 2000 | R172: 2001 | S172: 2002 | T172: 2003 | U172: 2004 | V172: 2005 | W172: 2006 | X172: 2007 | Y172: 2008 | Z172: 2009 | AA172: 2010 | AB172: 2011 | AC172: 2012 | AD172: 2013 | AE172: 2014 | AF172: 2015 | AG172: 2016 | AH172: 2017 | AI172: 2018 | AJ172: 2019 | AK172: 2020 | AL172: 2021 | AM172: =AM$7 -> 2022 | AN172: 2023 | AO172: 2024 | AP172: 2025 | AQ172: 2026 | AR172: 2027 | AS172: 2028 | AT172: 2029 | AU172: 2030 | AV172: 2031 | AW172: 2032 | AX172: 2033 | AY172: 2034 | AZ172: 2035 | BA172: 2036 | BB172: =BB$7 -> 2037 | BC172: 2038 | BD172: 2039 | BE172: 2040 | BF172: 2041 | BG172: 2042 | BH172: 2043 | BI172: 2044 | BJ172: 2045 | BK172: 2046 | BL172: 2047 | BM172: 2048 | BN172: 2049 | BO172: 2050
B173: 59 | C173: Absolute gross CO2 including CO2 from on-site power generation | E173: [t CO2/yr] | G173: =IF(OR(G144="",G149="",G156=""),"",G144+G149+G156) -> 0 | H173: 0 | I173: 0 | J173: 0 | K173: 0 | L173: 0 | M173: 0 | N173: 0 | O173: 0 | P173: 0 | Q173: 0 | R173: 0 | S173: 0 | T173: 0 | U173: 0 | V173: 0 | W173: 0 | X173: 0 | Y173: 0 | Z173: 0 | AA173: 0 | AB173: 0 | AC173: 0 | AD173: 0 | AE173: 0 | AF173: 0 | AG173: 0 | AH173: 0 | AI173: 0 | AJ173: 0 | AK173: 0 | AL173: =IF(OR(AL144="",AL149="",AL156=""),"",AL144+AL149+AL156) -> 0 | AM173: =IF(OR(AM144="",AM149="",AM156=""),"",AM144+AM149+AM156) -> 0 | AN173: =IF(OR(AN144="",AN149="",AN156=""),"",AN144+AN149+AN156) -> 0 | AO173: =IF(OR(AO144="",AO149="",AO156=""),"",AO144+AO149+AO156) -> 0 | AP173: =IF(OR(AP144="",AP149="",AP156=""),"",AP144+AP149+AP156) -> 0 | AQ173: =IF(OR(AQ144="",AQ149="",AQ156=""),"",AQ144+AQ149+AQ156) -> 0 | AR173: 0 | AS173: 0 | AT173: 0 | AU173: 0 | AV173: 0 | AW173: 0 | AX173: 0 | AY173: 0 | AZ173: 0 | BA173: 0 | BB173: 0 | BC173: 0 | BD173: 0 | BE173: 0 | BF173: 0 | BG173: 0 | BH173: 0 | BI173: 0 | BJ173: 0 | BK173: 0 | BL173: 0 | BM173: 0 | BN173: 0 | BO173: 0
B174: Gross CO2 Emissions (=direct fossil CO2 excluding CO2 from on-site power generation) | G174: 1990 | H174: 1991 | I174: 1992 | J174: 1993 | K174: 1994 | L174: 1995 | M174: 1996 | N174: 1997 | O174: 1998 | P174: 1999 | Q174: 2000 | R174: 2001 | S174: 2002 | T174: 2003 | U174: 2004 | V174: 2005 | W174: 2006 | X174: 2007 | Y174: 2008 | Z174: 2009 | AA174: 2010 | AB174: 2011 | AC174: 2012 | AD174: 2013 | AE174: 2014 | AF174: 2015 | AG174: 2016 | AH174: 2017 | AI174: 2018 | AJ174: 2019 | AK174: 2020 | AL174: 2021 | AM174: 2022 | AN174: 2023 | AO174: 2024 | AP174: 2025 | AQ174: 2026 | AR174: 2027 | AS174: 2028 | AT174: 2029 | AU174: 2030 | AV174: 2031 | AW174: 2032 | AX174: 2033 | AY174: 2034 | AZ174: 2035 | BA174: 2036 | BB174: 2037 | BC174: 2038 | BD174: 2039 | BE174: 2040 | BF174: 2041 | BG174: 2042 | BH174: 2043 | BI174: 2044 | BJ174: 2045 | BK174: 2046 | BL174: 2047 | BM174: 2048 | BN174: 2049 | BO174: 2050
B175: 59c | C175: Absolute gross CO2 | E175: [t CO2/yr] | G175: =IF(OR(G173="",G155=""),"",G173-G155) -> 0 | H175: 0 | I175: 0 | J175: 0 | K175: 0 | L175: 0 | M175: 0 | N175: 0 | O175: 0 | P175: 0 | Q175: 0 | R175: 0 | S175: 0 | T175: 0 | U175: 0 | V175: 0 | W175: 0 | X175: 0 | Y175: 0 | Z175: 0 | AA175: 0 | AB175: 0 | AC175: 0 | AD175: 0 | AE175: 0 | AF175: 0 | AG175: 0 | AH175: 0 | AI175: 0 | AJ175: 0 | AK175: 0 | AL175: =IF(OR(AL173="",AL155=""),"",AL173-AL155) -> 0 | AM175: =IF(OR(AM173="",AM155=""),"",AM173-AM155) -> 0 | AN175: =IF(OR(AN173="",AN155=""),"",AN173-AN155) -> 0 | AO175: =IF(OR(AO173="",AO155=""),"",AO173-AO155) -> 0 | AP175: =IF(OR(AP173="",AP155=""),"",AP173-AP155) -> 0 | AQ175: =IF(OR(AQ173="",AQ155=""),"",AQ173-AQ155) -> 0 | AR175: 0 | AS175: 0 | AT175: 0 | AU175: 0 | AV175: 0 | AW175: 0 | AX175: 0 | AY175: 0 | AZ175: 0 | BA175: 0 | BB175: 0 | BC175: 0 | BD175: 0 | BE175: 0 | BF175: 0 | BG175: 0 | BH175: 0 | BI175: 0 | BJ175: 0 | BK175: 0 | BL175: 0 | BM175: 0 | BN175: 0 | BO175: 0
B176: 59a | D176: calcination component | E176: [t CO2/yr] | G176: =G144 -> 0 | H176: =H144 -> 0 | I176: 0 | J176: 0 | K176: 0 | L176: 0 | M176: 0 | N176: 0 | O176: 0 | P176: 0 | Q176: 0 | R176: 0 | S176: 0 | T176: 0 | U176: 0 | V176: 0 | W176: 0 | X176: 0 | Y176: 0 | Z176: 0 | AA176: 0 | AB176: 0 | AC176: 0 | AD176: 0 | AE176: 0 | AF176: 0 | AG176: =AG144 -> 0 | AH176: 0 | AI176: 0 | AJ176: 0 | AK176: 0 | AL176: 0 | AM176: 0 | AN176: 0 | AO176: 0 | AP176: 0 | AQ176: =AQ144 -> 0 | AR176: 0 | AS176: 0 | AT176: 0 | AU176: 0 | AV176: 0 | AW176: 0 | AX176: 0 | AY176: 0 | AZ176: 0 | BA176: 0 | BB176: 0 | BC176: 0 | BD176: 0 | BE176: 0 | BF176: 0 | BG176: 0 | BH176: 0 | BI176: 0 | BJ176: 0 | BK176: 0 | BL176: 0 | BM176: 0 | BN176: 0 | BO176: 0
B177: 59b | D177: fuel component | E177: [t CO2/yr] | G177: =IF(OR(G149="",G152="",G153="",G154=""),"",G149+G152+G153+G154) -> 0 | H177: =IF(OR(H149="",H152="",H153="",H154=""),"",H149+H152+H153+H154) -> 0 | I177: 0 | J177: 0 | K177: 0 | L177: 0 | M177: 0 | N177: 0 | O177: 0 | P177: 0 | Q177: 0 | R177: 0 | S177: 0 | T177: 0 | U177: 0 | V177: 0 | W177: 0 | X177: 0 | Y177: 0 | Z177: 0 | AA177: 0 | AB177: 0 | AC177: 0 | AD177: 0 | AE177: 0 | AF177: 0 | AG177: =IF(OR(AG149="",AG152="",AG153="",AG154=""),"",AG149+AG152+AG153+AG154) -> 0 | AH177: 0 | AI177: 0 | AJ177: 0 | AK177: 0 | AL177: 0 | AM177: 0 | AN177: 0 | AO177: 0 | AP177: 0 | AQ177: =IF(OR(AQ149="",AQ152="",AQ153="",AQ154=""),"",AQ149+AQ152+AQ153+AQ154) -> 0 | AR177: 0 | AS177: 0 | AT177: 0 | AU177: 0 | AV177: 0 | AW177: 0 | AX177: 0 | AY177: 0 | AZ177: 0 | BA177: 0 | BB177: 0 | BC177: 0 | BD177: 0 | BE177: 0 | BF177: 0 | BG177: 0 | BH177: 0 | BI177: 0 | BJ177: 0 | BK177: 0 | BL177: 0 | BM177: 0 | BN177: 0 | BO177: 0
B178: Net CO2 Emissions (= gross CO2 minus alternative fossil fuels CO2; excluding CO2 from on-site power generation) | G178: =G$7 -> 1990 | H178: 1991 | I178: 1992 | J178: 1993 | K178: 1994 | L178: 1995 | M178: 1996 | N178: 1997 | O178: 1998 | P178: 1999 | Q178: 2000 | R178: 2001 | S178: 2002 | T178: 2003 | U178: 2004 | V178: 2005 | W178: 2006 | X178: 2007 | Y178: 2008 | Z178: 2009 | AA178: 2010 | AB178: 2011 | AC178: 2012 | AD178: 2013 | AE178: 2014 | AF178: 2015 | AG178: 2016 | AH178: 2017 | AI178: 2018 | AJ178: 2019 | AK178: 2020 | AL178: 2021 | AM178: 2022 | AN178: 2023 | AO178: 2024 | AP178: 2025 | AQ178: 2026 | AR178: 2027 | AS178: 2028 | AT178: 2029 | AU178: 2030 | AV178: 2031 | AW178: 2032 | AX178: 2033 | AY178: 2034 | AZ178: 2035 | BA178: 2036 | BB178: 2037 | BC178: 2038 | BD178: 2039 | BE178: 2040 | BF178: 2041 | BG178: 2042 | BH178: 2043 | BI178: 2044 | BJ178: 2045 | BK178: 2046 | BL178: 2047 | BM178: 2048 | BN178: 2049 | BO178: 2050
B179: 71 | C179: Absolute net CO2 | E179: [t CO2/yr] | G179: =IF(OR(G175="",G148=""),"",G175-G148) -> 0 | H179: 0 | I179: 0 | J179: 0 | K179: 0 | L179: 0 | M179: 0 | N179: 0 | O179: 0 | P179: 0 | Q179: 0 | R179: 0 | S179: 0 | T179: 0 | U179: 0 | V179: 0 | W179: 0 | X179: 0 | Y179: 0 | Z179: 0 | AA179: 0 | AB179: 0 | AC179: 0 | AD179: 0 | AE179: 0 | AF179: 0 | AG179: 0 | AH179: 0 | AI179: 0 | AJ179: 0 | AK179: 0 | AL179: =IF(OR(AL175="",AL148=""),"",AL175-AL148) -> 0 | AM179: =IF(OR(AM175="",AM148=""),"",AM175-AM148) -> 0 | AN179: =IF(OR(AN175="",AN148=""),"",AN175-AN148) -> 0 | AO179: =IF(OR(AO175="",AO148=""),"",AO175-AO148) -> 0 | AP179: =IF(OR(AP175="",AP148=""),"",AP175-AP148) -> 0 | AQ179: =IF(OR(AQ175="",AQ148=""),"",AQ175-AQ148) -> 0 | AR179: 0 | AS179: 0 | AT179: 0 | AU179: 0 | AV179: 0 | AW179: 0 | AX179: 0 | AY179: 0 | AZ179: 0 | BA179: 0 | BB179: 0 | BC179: 0 | BD179: 0 | BE179: 0 | BF179: 0 | BG179: 0 | BH179: 0 | BI179: 0 | BJ179: 0 | BK179: 0 | BL179: 0 | BM179: 0 | BN179: 0 | BO179: 0
B180: Biomass CO2 Emissions (Memo Item) | G180: =G$7 -> 1990 | H180: 1991 | I180: 1992 | J180: 1993 | K180: 1994 | L180: 1995 | M180: 1996 | N180: 1997 | O180: 1998 | P180: 1999 | Q180: 2000 | R180: 2001 | S180: 2002 | T180: 2003 | U180: 2004 | V180: 2005 | W180: 2006 | X180: 2007 | Y180: 2008 | Z180: 2009 | AA180: 2010 | AB180: 2011 | AC180: 2012 | AD180: 2013 | AE180: 2014 | AF180: 2015 | AG180: 2016 | AH180: 2017 | AI180: 2018 | AJ180: 2019 | AK180: 2020 | AL180: 2021 | AM180: 2022 | AN180: 2023 | AO180: 2024 | AP180: 2025 | AQ180: 2026 | AR180: 2027 | AS180: 2028 | AT180: 2029 | AU180: 2030 | AV180: 2031 | AW180: 2032 | AX180: 2033 | AY180: 2034 | AZ180: 2035 | BA180: 2036 | BB180: 2037 | BC180: 2038 | BD180: 2039 | BE180: 2040 | BF180: 2041 | BG180: 2042 | BH180: 2043 | BI180: 2044 | BJ180: 2045 | BK180: 2046 | BL180: 2047 | BM180: 2048 | BN180: 2049 | BO180: 2050
B181: 83a | C181: Absolute CO2 from biomass sources (including biomass content of mixed fuels) | E181: [t CO2/yr] | G181: =G168 -> 0 | H181: =H168 -> 0 | I181: 0 | J181: 0 | K181: 0 | L181: 0 | M181: 0 | N181: 0 | O181: 0 | P181: 0 | Q181: 0 | R181: 0 | S181: 0 | T181: 0 | U181: 0 | V181: 0 | W181: 0 | X181: 0 | Y181: 0 | Z181: 0 | AA181: 0 | AB181: 0 | AC181: 0 | AD181: 0 | AE181: 0 | AF181: 0 | AG181: 0 | AH181: 0 | AI181: 0 | AJ181: 0 | AK181: 0 | AL181: =AL168 -> 0 | AM181: =AM168 -> 0 | AN181: =AN168 -> 0 | AO181: =AO168 -> 0 | AP181: =AP168 -> 0 | AQ181: =AQ168 -> 0 | AR181: 0 | AS181: 0 | AT181: 0 | AU181: 0 | AV181: 0 | AW181: 0 | AX181: 0 | AY181: 0 | AZ181: 0 | BA181: 0 | BB181: 0 | BC181: 0 | BD181: 0 | BE181: 0 | BF181: 0 | BG181: 0 | BH181: 0 | BI181: 0 | BJ181: 0 | BK181: 0 | BL181: 0 | BM181: 0 | BN181: 0 | BO181: 0
B183: Specific Gross and Net CO2 Emissions per Clinker Produced | G183: =G$7 -> 1990 | H183: 1991 | I183: 1992 | J183: 1993 | K183: 1994 | L183: 1995 | M183: 1996 | N183: 1997 | O183: 1998 | P183: 1999 | Q183: 2000 | R183: 2001 | S183: 2002 | T183: 2003 | U183: 2004 | V183: 2005 | W183: 2006 | X183: 2007 | Y183: 2008 | Z183: 2009 | AA183: 2010 | AB183: 2011 | AC183: 2012 | AD183: 2013 | AE183: 2014 | AF183: 2015 | AG183: 2016 | AH183: 2017 | AI183: 2018 | AJ183: 2019 | AK183: 2020 | AL183: 2021 | AM183: 2022 | AN183: 2023 | AO183: 2024 | AP183: 2025 | AQ183: 2026 | AR183: 2027 | AS183: 2028 | AT183: 2029 | AU183: 2030 | AV183: 2031 | AW183: 2032 | AX183: 2033 | AY183: 2034 | AZ183: 2035 | BA183: 2036 | BB183: 2037 | BC183: 2038 | BD183: 2039 | BE183: 2040 | BF183: 2041 | BG183: 2042 | BH183: 2043 | BI183: 2044 | BJ183: 2045 | BK183: 2046 | BL183: 2047 | BM183: 2048 | BN183: 2049 | BO183: 2050
B184: 60 | C184: Specific gross CO2 | D184: per tonne of clinker produced | E184: [kg CO2/t cli] | G184: =IF(G$40="","",IF(G$40=0,"n. appl.",G175/G$40*1000)) ->  | AL184: =IF(AL$40="","",IF(AL$40=0,"n. appl.",AL175/AL$40*1000)) ->  | AQ184: =IF(AQ$40="","",IF(AQ$40=0,"n. appl.",AQ175/AQ$40*1000)) -> 
B185: 60a | D185: calcination component | E185: [kg CO2/t cli] | G185: =IF(G$40="","",IF(G$40=0,"n. appl.",G176/G$40*1000)) ->  | H185: =IF(H$40="","",IF(H$40=0,"n. appl.",H176/H$40*1000)) ->  | AQ185: =IF(AQ$40="","",IF(AQ$40=0,"n. appl.",AQ176/AQ$40*1000)) -> 
B186: 60b | D186: fuel component | E186: [kg CO2/t cli] | G186: =IF(G$40="","",IF(G$40=0,"n. appl.",G177/G$40*1000)) ->  | H186: =IF(H$40="","",IF(H$40=0,"n. appl.",H177/H$40*1000)) ->  | AQ186: =IF(AQ$40="","",IF(AQ$40=0,"n. appl.",AQ177/AQ$40*1000)) -> 
B187: 73 | C187: Specific net CO2 | D187: per tonne of clinker produced | E187: [kg CO2/t cli] | G187: =IF(G$40="","",IF(G$40=0,"n. appl.",G179/G$40*1000)) ->  | AL187: =IF(AL$40="","",IF(AL$40=0,"n. appl.",AL179/AL$40*1000)) ->  | AM187: =IF(AM$40="","",IF(AM$40=0,"n. appl.",AM179/AM$40*1000)) ->  | AN187: =IF(AN$40="","",IF(AN$40=0,"n. appl.",AN179/AN$40*1000)) ->  | AO187: =IF(AO$40="","",IF(AO$40=0,"n. appl.",AO179/AO$40*1000)) ->  | AP187: =IF(AP$40="","",IF(AP$40=0,"n. appl.",AP179/AP$40*1000)) ->  | AQ187: =IF(AQ$40="","",IF(AQ$40=0,"n. appl.",AQ179/AQ$40*1000)) -> 
B189: Specific Gross and Net CO2 Emissions per Cement (equivalent) | G189: =G$7 -> 1990 | H189: 1991 | I189: 1992 | J189: 1993 | K189: 1994 | L189: 1995 | M189: 1996 | N189: 1997 | O189: 1998 | P189: 1999 | Q189: 2000 | R189: 2001 | S189: 2002 | T189: 2003 | U189: 2004 | V189: 2005 | W189: 2006 | X189: 2007 | Y189: 2008 | Z189: 2009 | AA189: 2010 | AB189: 2011 | AC189: 2012 | AD189: 2013 | AE189: 2014 | AF189: 2015 | AG189: 2016 | AH189: 2017 | AI189: 2018 | AJ189: 2019 | AK189: 2020 | AL189: 2021 | AM189: 2022 | AN189: 2023 | AO189: 2024 | AP189: 2025 | AQ189: 2026 | AR189: 2027 | AS189: 2028 | AT189: 2029 | AU189: 2030 | AV189: 2031 | AW189: 2032 | AX189: 2033 | AY189: 2034 | AZ189: 2035 | BA189: 2036 | BB189: 2037 | BC189: 2038 | BD189: 2039 | BE189: 2040 | BF189: 2041 | BG189: 2042 | BH189: 2043 | BI189: 2044 | BJ189: 2045 | BK189: 2046 | BL189: 2047 | BM189: 2048 | BN189: 2049 | BO189: 2050
B190: 63 | C190: Specific gross CO2 | D190: per tonne of cement (eq.) | E190: [kg CO2/t cem eq.] | G190: =IF(OR(G175="",G68="n. appl."),"n. appl.",G175/G68*1000) -> n. appl. | H190: =IF(OR(H175="",H68="n. appl."),"n. appl.",H175/H68*1000) -> n. appl. | I190: n. appl. | J190: n. appl. | K190: n. appl. | L190: n. appl. | M190: n. appl. | N190: n. appl. | O190: n. appl. | P190: n. appl. | Q190: n. appl. | R190: n. appl. | S190: n. appl. | T190: n. appl. | U190: n. appl. | V190: n. appl. | W190: n. appl. | X190: n. appl. | Y190: n. appl. | Z190: n. appl. | AA190: n. appl. | AB190: n. appl. | AC190: n. appl. | AD190: n. appl. | AE190: n. appl. | AF190: n. appl. | AG190: n. appl. | AH190: n. appl. | AI190: n. appl. | AJ190: n. appl. | AK190: n. appl. | AL190: n. appl. | AM190: n. appl. | AN190: n. appl. | AO190: n. appl. | AP190: n. appl. | AQ190: =IF(OR(AQ175="",AQ68="n. appl."),"n. appl.",AQ175/AQ68*1000) -> n. appl. | AR190: n. appl. | AS190: n. appl. | AT190: n. appl. | AU190: n. appl. | AV190: n. appl. | AW190: n. appl. | AX190: n. appl. | AY190: n. appl. | AZ190: n. appl. | BA190: n. appl. | BB190: n. appl. | BC190: n. appl. | BD190: n. appl. | BE190: n. appl. | BF190: n. appl. | BG190: n. appl. | BH190: n. appl. | BI190: n. appl. | BJ190: n. appl. | BK190: n. appl. | BL190: n. appl. | BM190: n. appl. | BN190: n. appl. | BO190: n. appl.
B191: 63a | D191: calcination component | E191: [kg CO2/t cem eq.] | G191: =IF(G$40="","",IF(OR(G$40=0,G46=0),"n. appl.",G176/G$68*1000)) ->  | H191: =IF(H$40="","",IF(OR(H$40=0,H46=0),"n. appl.",H176/H$68*1000)) ->  | AQ191: =IF(AQ$40="","",IF(OR(AQ$40=0,AQ46=0),"n. appl.",AQ176/AQ$68*1000)) -> 
B192: 63b | D192: fuel component | E192: [kg CO2/t cem eq.] | G192: =IF(G$40="","",IF(OR(G$40=0,G46=0),"n. appl.",G177/G$68*1000)) ->  | H192: =IF(H$40="","",IF(OR(H$40=0,H46=0),"n. appl.",H177/H$68*1000)) ->  | AQ192: =IF(AQ$40="","",IF(OR(AQ$40=0,AQ46=0),"n. appl.",AQ177/AQ$68*1000)) -> 
B193: =B199+1 -> 75 | C193: Specific net CO2 | D193: per tonne of cement (eq.) | E193: [kg CO2/t cem eq.] | G193: =IF(OR(G$68="n. appl.",G$68=0),"n. appl.",G179/G$68*1000) -> n. appl. | H193: =IF(OR(H$68="n. appl.",H$68=0),"n. appl.",H179/H$68*1000) -> n. appl. | I193: n. appl. | J193: n. appl. | K193: n. appl. | L193: n. appl. | M193: n. appl. | N193: n. appl. | O193: n. appl. | P193: n. appl. | Q193: n. appl. | R193: n. appl. | S193: n. appl. | T193: n. appl. | U193: n. appl. | V193: n. appl. | W193: n. appl. | X193: n. appl. | Y193: n. appl. | Z193: n. appl. | AA193: n. appl. | AB193: n. appl. | AC193: n. appl. | AD193: n. appl. | AE193: n. appl. | AF193: n. appl. | AG193: n. appl. | AH193: n. appl. | AI193: n. appl. | AJ193: n. appl. | AK193: n. appl. | AL193: n. appl. | AM193: n. appl. | AN193: n. appl. | AO193: n. appl. | AP193: n. appl. | AQ193: =IF(OR(AQ$68="n. appl.",AQ$68=0),"n. appl.",AQ179/AQ$68*1000) -> n. appl. | AR193: n. appl. | AS193: n. appl. | AT193: n. appl. | AU193: n. appl. | AV193: n. appl. | AW193: n. appl. | AX193: n. appl. | AY193: n. appl. | AZ193: n. appl. | BA193: n. appl. | BB193: n. appl. | BC193: n. appl. | BD193: n. appl. | BE193: n. appl. | BF193: n. appl. | BG193: n. appl. | BH193: n. appl. | BI193: n. appl. | BJ193: n. appl. | BK193: n. appl. | BL193: n. appl. | BM193: n. appl. | BN193: n. appl. | BO193: n. appl.
B195: Specific Gross and Net CO2 Emissions per Cementitious Produced | G195: =G$7 -> 1990 | H195: 1991 | I195: 1992 | J195: 1993 | K195: 1994 | L195: 1995 | M195: 1996 | N195: 1997 | O195: 1998 | P195: 1999 | Q195: 2000 | R195: 2001 | S195: 2002 | T195: 2003 | U195: 2004 | V195: 2005 | W195: 2006 | X195: 2007 | Y195: 2008 | Z195: 2009 | AA195: 2010 | AB195: 2011 | AC195: 2012 | AD195: 2013 | AE195: 2014 | AF195: 2015 | AG195: 2016 | AH195: 2017 | AI195: 2018 | AJ195: 2019 | AK195: 2020 | AL195: 2021 | AM195: 2022 | AN195: 2023 | AO195: 2024 | AP195: 2025 | AQ195: 2026 | AR195: 2027 | AS195: 2028 | AT195: 2029 | AU195: 2030 | AV195: 2031 | AW195: 2032 | AX195: 2033 | AY195: 2034 | AZ195: 2035 | BA195: 2036 | BB195: 2037 | BC195: 2038 | BD195: 2039 | BE195: 2040 | BF195: 2041 | BG195: 2042 | BH195: 2043 | BI195: 2044 | BJ195: 2045 | BK195: 2046 | BL195: 2047 | BM195: 2048 | BN195: 2049 | BO195: 2050
B196: 62 | C196: Specific gross CO2 | D196: per tonne of cementitious product | E196: [kg CO2/t cem prod] | G196: =IF(G$67="","",IF(G$67=0,"n. appl.",G175/G$67*1000)) ->  | H196: =IF(H$67="","",IF(H$67=0,"n. appl.",H175/H$67*1000)) ->  | AG196: =IF(AG$67="","",IF(AG$67=0,"n. appl.",AG175/AG$67*1000)) ->  | AL196: =IF(AL$67="","",IF(AL$67=0,"n. appl.",AL175/AL$67*1000)) ->  | AQ196: =IF(AQ$67="","",IF(AQ$67=0,"n. appl.",AQ175/AQ$67*1000)) -> 
B197: 62a | D197: calcination component | E197: [kg CO2/t cem prod] | G197: =IF(G$67="","",IF(G$67=0,"n. appl.",G176/G$67*1000)) ->  | H197: =IF(H$67="","",IF(H$67=0,"n. appl.",H176/H$67*1000)) ->  | AQ197: =IF(AQ$67="","",IF(AQ$67=0,"n. appl.",AQ176/AQ$67*1000)) -> 
B198: 62b | D198: fuel component | E198: [kg CO2/t cem prod] | G198: =IF(G$67="","",IF(G$67=0,"n. appl.",G177/G$67*1000)) ->  | H198: =IF(H$67="","",IF(H$67=0,"n. appl.",H177/H$67*1000)) ->  | AQ198: =IF(AQ$67="","",IF(AQ$67=0,"n. appl.",AQ177/AQ$67*1000)) -> 
B199: =B187+1 -> 74 | C199: Specific net CO2 | D199: per tonne of cementitious product | E199: [kg CO2/t cem prod] | G199: =IF(G$67="","",IF(G$67=0,"n. appl.",G179/G$67*1000)) ->  | AL199: =IF(AL$67="","",IF(AL$67=0,"n. appl.",AL179/AL$67*1000)) ->  | AM199: =IF(AM$67="","",IF(AM$67=0,"n. appl.",AM179/AM$67*1000)) ->  | AN199: =IF(AN$67="","",IF(AN$67=0,"n. appl.",AN179/AN$67*1000)) ->  | AO199: =IF(AO$67="","",IF(AO$67=0,"n. appl.",AO179/AO$67*1000)) ->  | AP199: =IF(AP$67="","",IF(AP$67=0,"n. appl.",AP179/AP$67*1000)) ->  | AQ199: =IF(AQ$67="","",IF(AQ$67=0,"n. appl.",AQ179/AQ$67*1000)) -> 
B200: 77 | C200: Improvement rate - net CO2 per tonne of cementitious product | E200: [% relative to base yr] | G200: =IF(G199="","",IF(OR($G199="n. appl.",$G199=0),"n. appl.",(G199-$G199)/$G199)) ->  | AG200: =IF(AG199="","",IF(OR($G199="n. appl.",$G199=0),"n. appl.",(AG199-$G199)/$G199)) ->  | AQ200: =IF(AQ199="","",IF(OR($G199="n. appl.",$G199=0),"n. appl.",(AQ199-$G199)/$G199)) -> 
B202: Specific Indirect CO2 Emission | G202: =G$7 -> 1990 | H202: 1991 | I202: 1992 | J202: 1993 | K202: 1994 | L202: 1995 | M202: 1996 | N202: 1997 | O202: 1998 | P202: 1999 | Q202: 2000 | R202: 2001 | S202: 2002 | T202: 2003 | U202: 2004 | V202: 2005 | W202: 2006 | X202: 2007 | Y202: 2008 | Z202: 2009 | AA202: 2010 | AB202: 2011 | AC202: 2012 | AD202: 2013 | AE202: 2014 | AF202: 2015 | AG202: 2016 | AH202: 2017 | AI202: 2018 | AJ202: 2019 | AK202: 2020 | AL202: 2021 | AM202: 2022 | AN202: 2023 | AO202: 2024 | AP202: 2025 | AQ202: 2026 | AR202: 2027 | AS202: 2028 | AT202: 2029 | AU202: 2030 | AV202: 2031 | AW202: 2032 | AX202: 2033 | AY202: 2034 | AZ202: 2035 | BA202: 2036 | BB202: 2037 | BC202: 2038 | BD202: 2039 | BE202: 2040 | BF202: 2041 | BG202: 2042 | BH202: 2043 | BI202: 2044 | BJ202: 2045 | BK202: 2046 | BL202: 2047 | BM202: 2048 | BN202: 2049 | BO202: 2050
B203: 82c | C203: Specific indirect CO2 from external power generation per tonne of cement (eq.) | E203: [kg CO2/t cem eq.] | G203: =IF(OR(G$68="n. appl.",G$68=0),"n. appl.",G162/G$68*1000) -> n. appl. | H203: =IF(OR(H$68="n. appl.",H$68=0),"n. appl.",H162/H$68*1000) -> n. appl. | I203: n. appl. | J203: n. appl. | K203: n. appl. | L203: n. appl. | M203: n. appl. | N203: n. appl. | O203: n. appl. | P203: n. appl. | Q203: n. appl. | R203: n. appl. | S203: n. appl. | T203: n. appl. | U203: n. appl. | V203: n. appl. | W203: n. appl. | X203: n. appl. | Y203: n. appl. | Z203: n. appl. | AA203: n. appl. | AB203: n. appl. | AC203: n. appl. | AD203: n. appl. | AE203: n. appl. | AF203: n. appl. | AG203: n. appl. | AH203: n. appl. | AI203: n. appl. | AJ203: n. appl. | AK203: n. appl. | AL203: n. appl. | AM203: n. appl. | AN203: n. appl. | AO203: n. appl. | AP203: n. appl. | AQ203: =IF(OR(AQ$68="n. appl.",AQ$68=0),"n. appl.",AQ162/AQ$68*1000) -> n. appl. | AR203: n. appl. | AS203: n. appl. | AT203: n. appl. | AU203: n. appl. | AV203: n. appl. | AW203: n. appl. | AX203: n. appl. | AY203: n. appl. | AZ203: n. appl. | BA203: n. appl. | BB203: n. appl. | BC203: n. appl. | BD203: n. appl. | BE203: n. appl. | BF203: n. appl. | BG203: n. appl. | BH203: n. appl. | BI203: n. appl. | BJ203: n. appl. | BK203: n. appl. | BL203: n. appl. | BM203: n. appl. | BN203: n. appl. | BO203: n. appl.
B204: 82a | C204: Specific indirect CO2 from external power generation per tonne of cementitious product | E204: [kg CO2/t cem prod] | G204: =IF(G$67="","",IF(G$67=0,"n. appl.",G162/G$67*1000)) ->  | H204: =IF(H$67="","",IF(H$67=0,"n. appl.",H162/H$67*1000)) ->  | AG204: =IF(AG$67="","",IF(AG$67=0,"n. appl.",AG162/AG$67*1000)) ->  | AQ204: =IF(AQ$67="","",IF(AQ$67=0,"n. appl.",AQ162/AQ$67*1000)) -> 
B205: 82b | C205: Specific indirect CO2 from net clinker imports (+) / exports (-) per tonne of cementitious product | E205: [kg CO2/t cem prod] | G205: =IF(G$67="","",IF(G$67=0,"n. appl.",G164/G$67*1000)) ->  | H205: =IF(H$67="","",IF(H$67=0,"n. appl.",H164/H$67*1000)) ->  | AG205: =IF(AG$67="","",IF(AG$67=0,"n. appl.",AG164/AG$67*1000)) ->  | AQ205: =IF(AQ$67="","",IF(AQ$67=0,"n. appl.",AQ164/AQ$67*1000)) -> 
B207: General Performance Indicators | G207: =G$7 -> 1990 | H207: 1991 | I207: 1992 | J207: 1993 | K207: 1994 | L207: 1995 | M207: 1996 | N207: 1997 | O207: 1998 | P207: 1999 | Q207: 2000 | R207: 2001 | S207: 2002 | T207: 2003 | U207: 2004 | V207: 2005 | W207: 2006 | X207: 2007 | Y207: 2008 | Z207: 2009 | AA207: 2010 | AB207: 2011 | AC207: 2012 | AD207: 2013 | AE207: 2014 | AF207: 2015 | AG207: 2016 | AH207: 2017 | AI207: 2018 | AJ207: 2019 | AK207: 2020 | AL207: 2021 | AM207: 2022 | AN207: 2023 | AO207: 2024 | AP207: 2025 | AQ207: 2026 | AR207: 2027 | AS207: 2028 | AT207: 2029 | AU207: 2030 | AV207: 2031 | AW207: 2032 | AX207: 2033 | AY207: 2034 | AZ207: 2035 | BA207: 2036 | BB207: 2037 | BC207: 2038 | BD207: 2039 | BE207: 2040 | BF207: 2041 | BG207: 2042 | BH207: 2043 | BI207: 2044 | BJ207: 2045 | BK207: 2046 | BL207: 2047 | BM207: 2048 | BN207: 2049 | BO207: 2050
B208: 91 | C208: Net outbound clinker per net clinker consumption | E208: [%] | G208: =IF(G46="","",IF(G46=0,"n. appl.",(G42-G41-G44-G45)/G46)) ->  | H208: =IF(H46="","",IF(H46=0,"n. appl.",(H42-H41-H44-H45)/H46)) ->  | AG208: =IF(AG46="","",IF(AG46=0,"n. appl.",(AG42-AG41-AG44-AG45)/AG46)) ->  | AQ208: =IF(AQ46="","",IF(AQ46=0,"n. appl.",(AQ42-AQ41-AQ44-AQ45)/AQ46)) -> 
B209: 92a | C209: Clinker/cement (eq.) factor* | E209: [%] | G209: =IF(OR(G46="",G65="",G46=0,G65=0),"n. appl.",G46/G65) -> n. appl. | H209: =IF(OR(H46="",H65="",H46=0,H65=0),"n. appl.",H46/H65) -> n. appl. | I209: n. appl. | J209: n. appl. | K209: n. appl. | L209: n. appl. | M209: n. appl. | N209: n. appl. | O209: n. appl. | P209: n. appl. | Q209: n. appl. | R209: n. appl. | S209: n. appl. | T209: n. appl. | U209: n. appl. | V209: n. appl. | W209: n. appl. | X209: n. appl. | Y209: n. appl. | Z209: n. appl. | AA209: n. appl. | AB209: n. appl. | AC209: n. appl. | AD209: n. appl. | AE209: n. appl. | AF209: n. appl. | AG209: n. appl. | AH209: n. appl. | AI209: n. appl. | AJ209: n. appl. | AK209: n. appl. | AL209: n. appl. | AM209: n. appl. | AN209: n. appl. | AO209: n. appl. | AP209: n. appl. | AQ209: =IF(OR(AQ46="",AQ65="",AQ46=0,AQ65=0),"n. appl.",AQ46/AQ65) -> n. appl. | AR209: n. appl. | AS209: n. appl. | AT209: n. appl. | AU209: n. appl. | AV209: n. appl. | AW209: n. appl. | AX209: n. appl. | AY209: n. appl. | AZ209: n. appl. | BA209: n. appl. | BB209: n. appl. | BC209: n. appl. | BD209: n. appl. | BE209: n. appl. | BF209: n. appl. | BG209: n. appl. | BH209: n. appl. | BI209: n. appl. | BJ209: n. appl. | BK209: n. appl. | BL209: n. appl. | BM209: n. appl. | BN209: n. appl. | BO209: n. appl.
B210: =B208+1 -> 92 | C210: Clinker/cementitious factor* | E210: [%] | G210: =IF(G66="","",IF(G66=0,"n. appl.",G46/G66)) ->  | AL210: =IF(AL66="","",IF(AL66=0,"n. appl.",AL46/AL66)) ->  | AM210: =IF(AM66="","",IF(AM66=0,"n. appl.",AM46/AM66)) ->  | AN210: =IF(AN66="","",IF(AN66=0,"n. appl.",AN46/AN66)) ->  | AO210: =IF(AO66="","",IF(AO66=0,"n. appl.",AO46/AO66)) ->  | AP210: =IF(AP66="","",IF(AP66=0,"n. appl.",AP46/AP66)) ->  | AQ210: =IF(AQ66="","",IF(AQ66=0,"n. appl.",AQ46/AQ66)) -> 
B212: =B210+1 -> 93 | C212: Specific heat consumption of clinker production | E212: [MJ/t cli] | G212: =IF(G40="","",IF(G40=0,"n. appl.",G76*10^6/G40)) ->  | AL212: =IF(AL40="","",IF(AL40=0,"n. appl.",AL76*10^6/AL40)) ->  | AM212: =IF(AM40="","",IF(AM40=0,"n. appl.",AM76*10^6/AM40)) ->  | AN212: =IF(AN40="","",IF(AN40=0,"n. appl.",AN76*10^6/AN40)) ->  | AO212: =IF(AO40="","",IF(AO40=0,"n. appl.",AO76*10^6/AO40)) ->  | AP212: =IF(AP40="","",IF(AP40=0,"n. appl.",AP76*10^6/AP40)) ->  | AQ212: =IF(AQ40="","",IF(AQ40=0,"n. appl.",AQ76*10^6/AQ40)) -> 
B213: =B212+1 -> 94 | C213: Conventional fossil fuel rate (kiln fuels) | E213: [%] | G213: =IF(G$76="","",IF(G$76=0,"n. appl.",G78/G$76)) -> n. appl. | H213: =IF(H$76="","",IF(H$76=0,"n. appl.",H78/H$76)) -> n. appl. | I213: n. appl. | J213: n. appl. | K213: n. appl. | L213: n. appl. | M213: n. appl. | N213: n. appl. | O213: n. appl. | P213: n. appl. | Q213: n. appl. | R213: n. appl. | S213: n. appl. | T213: n. appl. | U213: n. appl. | V213: n. appl. | W213: n. appl. | X213: n. appl. | Y213: n. appl. | Z213: n. appl. | AA213: n. appl. | AB213: n. appl. | AC213: n. appl. | AD213: n. appl. | AE213: n. appl. | AF213: n. appl. | AG213: =IF(AG$76="","",IF(AG$76=0,"n. appl.",AG78/AG$76)) -> n. appl. | AH213: n. appl. | AI213: n. appl. | AJ213: n. appl. | AK213: n. appl. | AL213: =IF(AL$76="","",IF(AL$76=0,"n. appl.",AL78/AL$76)) -> n. appl. | AM213: n. appl. | AN213: n. appl. | AO213: n. appl. | AP213: n. appl. | AQ213: =IF(AQ$76="","",IF(AQ$76=0,"n. appl.",AQ78/AQ$76)) -> n. appl. | AR213: n. appl. | AS213: n. appl. | AT213: n. appl. | AU213: n. appl. | AV213: n. appl. | AW213: n. appl. | AX213: n. appl. | AY213: n. appl. | AZ213: n. appl. | BA213: n. appl. | BB213: n. appl. | BC213: n. appl. | BD213: n. appl. | BE213: n. appl. | BF213: n. appl. | BG213: n. appl. | BH213: n. appl. | BI213: n. appl. | BJ213: n. appl. | BK213: n. appl. | BL213: n. appl. | BM213: n. appl. | BN213: n. appl. | BO213: n. appl.
B214: =B213+1 -> 95 | C214: Alternative fossil fuel rate (kiln fuels) | E214: [%] | G214: =IF(G$76="","",IF(G$76=0,"n. appl.",G79/G$76)) -> n. appl. | H214: =IF(H$76="","",IF(H$76=0,"n. appl.",H79/H$76)) -> n. appl. | I214: n. appl. | J214: n. appl. | K214: n. appl. | L214: n. appl. | M214: n. appl. | N214: n. appl. | O214: n. appl. | P214: n. appl. | Q214: n. appl. | R214: n. appl. | S214: n. appl. | T214: n. appl. | U214: n. appl. | V214: n. appl. | W214: n. appl. | X214: n. appl. | Y214: n. appl. | Z214: n. appl. | AA214: n. appl. | AB214: n. appl. | AC214: n. appl. | AD214: n. appl. | AE214: n. appl. | AF214: n. appl. | AG214: n. appl. | AH214: n. appl. | AI214: n. appl. | AJ214: n. appl. | AK214: n. appl. | AL214: n. appl. | AM214: n. appl. | AN214: n. appl. | AO214: n. appl. | AP214: n. appl. | AQ214: =IF(AQ$76="","",IF(AQ$76=0,"n. appl.",AQ79/AQ$76)) -> n. appl. | AR214: n. appl. | AS214: n. appl. | AT214: n. appl. | AU214: n. appl. | AV214: n. appl. | AW214: n. appl. | AX214: n. appl. | AY214: n. appl. | AZ214: n. appl. | BA214: n. appl. | BB214: n. appl. | BC214: n. appl. | BD214: n. appl. | BE214: n. appl. | BF214: n. appl. | BG214: n. appl. | BH214: n. appl. | BI214: n. appl. | BJ214: n. appl. | BK214: n. appl. | BL214: n. appl. | BM214: n. appl. | BN214: n. appl. | BO214: n. appl.
B215: =B214+1 -> 96 | C215: Biomass fuel rate (kiln fuels) | E215: [%] | G215: =IF(G$76="","",IF(G$76=0,"n. appl.",G80/G$76)) -> n. appl. | H215: =IF(H$76="","",IF(H$76=0,"n. appl.",H80/H$76)) -> n. appl. | I215: n. appl. | J215: n. appl. | K215: n. appl. | L215: n. appl. | M215: n. appl. | N215: n. appl. | O215: n. appl. | P215: n. appl. | Q215: n. appl. | R215: n. appl. | S215: n. appl. | T215: n. appl. | U215: n. appl. | V215: n. appl. | W215: n. appl. | X215: n. appl. | Y215: n. appl. | Z215: n. appl. | AA215: n. appl. | AB215: n. appl. | AC215: n. appl. | AD215: n. appl. | AE215: n. appl. | AF215: n. appl. | AG215: n. appl. | AH215: n. appl. | AI215: n. appl. | AJ215: n. appl. | AK215: n. appl. | AL215: n. appl. | AM215: n. appl. | AN215: n. appl. | AO215: n. appl. | AP215: n. appl. | AQ215: =IF(AQ$76="","",IF(AQ$76=0,"n. appl.",AQ80/AQ$76)) -> n. appl. | AR215: n. appl. | AS215: n. appl. | AT215: n. appl. | AU215: n. appl. | AV215: n. appl. | AW215: n. appl. | AX215: n. appl. | AY215: n. appl. | AZ215: n. appl. | BA215: n. appl. | BB215: n. appl. | BC215: n. appl. | BD215: n. appl. | BE215: n. appl. | BF215: n. appl. | BG215: n. appl. | BH215: n. appl. | BI215: n. appl. | BJ215: n. appl. | BK215: n. appl. | BL215: n. appl. | BM215: n. appl. | BN215: n. appl. | BO215: n. appl.
B216: 96a | C216: CO2 emission factor for kiln fuel mix | E216: [kg CO2/GJ] | G216: =IF(G149="","",IF(G149=0,"n. appl.",G149/G76)) -> n. appl. | H216: =IF(H149="","",IF(H149=0,"n. appl.",H149/H76)) -> n. appl. | I216: n. appl. | J216: n. appl. | K216: n. appl. | L216: n. appl. | M216: n. appl. | N216: n. appl. | O216: n. appl. | P216: n. appl. | Q216: n. appl. | R216: n. appl. | S216: n. appl. | T216: n. appl. | U216: n. appl. | V216: n. appl. | W216: n. appl. | X216: n. appl. | Y216: n. appl. | Z216: n. appl. | AA216: n. appl. | AB216: n. appl. | AC216: n. appl. | AD216: n. appl. | AE216: n. appl. | AF216: n. appl. | AG216: =IF(AG149="","",IF(AG149=0,"n. appl.",AG149/AG76)) -> n. appl. | AH216: n. appl. | AI216: n. appl. | AJ216: n. appl. | AK216: n. appl. | AL216: n. appl. | AM216: n. appl. | AN216: n. appl. | AO216: n. appl. | AP216: n. appl. | AQ216: =IF(AQ149="","",IF(AQ149=0,"n. appl.",AQ149/AQ76)) -> n. appl. | AR216: n. appl. | AS216: n. appl. | AT216: n. appl. | AU216: n. appl. | AV216: n. appl. | AW216: n. appl. | AX216: n. appl. | AY216: n. appl. | AZ216: n. appl. | BA216: n. appl. | BB216: n. appl. | BC216: n. appl. | BD216: n. appl. | BE216: n. appl. | BF216: n. appl. | BG216: n. appl. | BH216: n. appl. | BI216: n. appl. | BJ216: n. appl. | BK216: n. appl. | BL216: n. appl. | BM216: n. appl. | BN216: n. appl. | BO216: n. appl.
B217: 96b | C217: Total conventional fossil fuel rate at plant level | E217: [%] | G217: =IF(AND(G$76=0,G$502=0,G$506=0,G$508=0,G$513=0,G$520=0,G$522=0,G$525=0,G$532=0,G$534=0),"n. appl.",(G78+G502+(G506*(1-G375))+G508+G513+G525)/(G$76+G$502+G$506+G$508+G$513+G$520+G$522+G$525+G$532+G$534)) -> n. appl. | H217: n. appl. | I217: n. appl. | J217: n. appl. | K217: n. appl. | L217: n. appl. | M217: n. appl. | N217: n. appl. | O217: n. appl. | P217: n. appl. | Q217: n. appl. | R217: n. appl. | S217: n. appl. | T217: n. appl. | U217: n. appl. | V217: n. appl. | W217: n. appl. | X217: n. appl. | Y217: n. appl. | Z217: n. appl. | AA217: n. appl. | AB217: n. appl. | AC217: n. appl. | AD217: n. appl. | AE217: n. appl. | AF217: n. appl. | AG217: n. appl. | AH217: n. appl. | AI217: n. appl. | AJ217: n. appl. | AK217: n. appl. | AL217: =IF(AND(AL$76=0,AL$502=0,AL$506=0,AL$508=0,AL$513=0,AL$520=0,AL$522=0,AL$525=0,AL$532=0,AL$534=0),"n. appl.",(AL78+AL502+(AL506*(1-AL375))+AL508+AL513+AL525)/(AL$76+AL$502+AL$506+AL$508+AL$513+AL$520+AL$522+AL$525+AL$532+AL$534)) -> n. appl. | AM217: =IF(AND(AM$76=0,AM$502=0,AM$506=0,AM$508=0,AM$513=0,AM$520=0,AM$522=0,AM$525=0,AM$532=0,AM$534=0),"n. appl.",(AM78+AM502+(AM506*(1-AM375))+AM508+AM513+AM525)/(AM$76+AM$502+AM$506+AM$508+AM$513+AM$520+AM$522+AM$525+AM$532+AM$534)) -> n. appl. | AN217: =IF(AND(AN$76=0,AN$502=0,AN$506=0,AN$508=0,AN$513=0,AN$520=0,AN$522=0,AN$525=0,AN$532=0,AN$534=0),"n. appl.",(AN78+AN502+(AN506*(1-AN375))+AN508+AN513+AN525)/(AN$76+AN$502+AN$506+AN$508+AN$513+AN$520+AN$522+AN$525+AN$532+AN$534)) -> n. appl. | AO217: =IF(AND(AO$76=0,AO$502=0,AO$506=0,AO$508=0,AO$513=0,AO$520=0,AO$522=0,AO$525=0,AO$532=0,AO$534=0),"n. appl.",(AO78+AO502+(AO506*(1-AO375))+AO508+AO513+AO525)/(AO$76+AO$502+AO$506+AO$508+AO$513+AO$520+AO$522+AO$525+AO$532+AO$534)) -> n. appl. | AP217: =IF(AND(AP$76=0,AP$502=0,AP$506=0,AP$508=0,AP$513=0,AP$520=0,AP$522=0,AP$525=0,AP$532=0,AP$534=0),"n. appl.",(AP78+AP502+(AP506*(1-AP375))+AP508+AP513+AP525)/(AP$76+AP$502+AP$506+AP$508+AP$513+AP$520+AP$522+AP$525+AP$532+AP$534)) -> n. appl. | AQ217: =IF(AND(AQ$76=0,AQ$502=0,AQ$506=0,AQ$508=0,AQ$513=0,AQ$520=0,AQ$522=0,AQ$525=0,AQ$532=0,AQ$534=0),"n. appl.",(AQ78+AQ502+(AQ506*(1-AQ375))+AQ508+AQ513+AQ525)/(AQ$76+AQ$502+AQ$506+AQ$508+AQ$513+AQ$520+AQ$522+AQ$525+AQ$532+AQ$534)) -> n. appl. | AR217: n. appl. | AS217: n. appl. | AT217: n. appl. | AU217: n. appl. | AV217: n. appl. | AW217: n. appl. | AX217: n. appl. | AY217: n. appl. | AZ217: n. appl. | BA217: n. appl. | BB217: n. appl. | BC217: n. appl. | BD217: n. appl. | BE217: n. appl. | BF217: n. appl. | BG217: n. appl. | BH217: n. appl. | BI217: n. appl. | BJ217: n. appl. | BK217: n. appl. | BL217: n. appl. | BM217: n. appl. | BN217: n. appl. | BO217: n. appl.
B218: 96c | C218: Total alternative fossil fuel rate at plant level | E218: [%] | G218: =IF(AND(G$76=0,G$502=0,G$506=0,G$508=0,G$513=0,G$520=0,G$522=0,G$525=0,G$532=0,G$534=0),"n. appl.",(G79+G520+G532)/(G$76+G$502+G$506+G$508+G$513+G$520+G$522+G$525+G$532+G$534)) -> n. appl. | H218: n. appl. | I218: n. appl. | J218: n. appl. | K218: n. appl. | L218: n. appl. | M218: n. appl. | N218: n. appl. | O218: n. appl. | P218: n. appl. | Q218: n. appl. | R218: n. appl. | S218: n. appl. | T218: n. appl. | U218: n. appl. | V218: n. appl. | W218: n. appl. | X218: n. appl. | Y218: n. appl. | Z218: n. appl. | AA218: n. appl. | AB218: n. appl. | AC218: n. appl. | AD218: n. appl. | AE218: n. appl. | AF218: n. appl. | AG218: n. appl. | AH218: n. appl. | AI218: n. appl. | AJ218: n. appl. | AK218: n. appl. | AL218: =IF(AND(AL$76=0,AL$502=0,AL$506=0,AL$508=0,AL$513=0,AL$520=0,AL$522=0,AL$525=0,AL$532=0,AL$534=0),"n. appl.",(AL79+AL520+AL532)/(AL$76+AL$502+AL$506+AL$508+AL$513+AL$520+AL$522+AL$525+AL$532+AL$534)) -> n. appl. | AM218: =IF(AND(AM$76=0,AM$502=0,AM$506=0,AM$508=0,AM$513=0,AM$520=0,AM$522=0,AM$525=0,AM$532=0,AM$534=0),"n. appl.",(AM79+AM520+AM532)/(AM$76+AM$502+AM$506+AM$508+AM$513+AM$520+AM$522+AM$525+AM$532+AM$534)) -> n. appl. | AN218: =IF(AND(AN$76=0,AN$502=0,AN$506=0,AN$508=0,AN$513=0,AN$520=0,AN$522=0,AN$525=0,AN$532=0,AN$534=0),"n. appl.",(AN79+AN520+AN532)/(AN$76+AN$502+AN$506+AN$508+AN$513+AN$520+AN$522+AN$525+AN$532+AN$534)) -> n. appl. | AO218: =IF(AND(AO$76=0,AO$502=0,AO$506=0,AO$508=0,AO$513=0,AO$520=0,AO$522=0,AO$525=0,AO$532=0,AO$534=0),"n. appl.",(AO79+AO520+AO532)/(AO$76+AO$502+AO$506+AO$508+AO$513+AO$520+AO$522+AO$525+AO$532+AO$534)) -> n. appl. | AP218: =IF(AND(AP$76=0,AP$502=0,AP$506=0,AP$508=0,AP$513=0,AP$520=0,AP$522=0,AP$525=0,AP$532=0,AP$534=0),"n. appl.",(AP79+AP520+AP532)/(AP$76+AP$502+AP$506+AP$508+AP$513+AP$520+AP$522+AP$525+AP$532+AP$534)) -> n. appl. | AQ218: =IF(AND(AQ$76=0,AQ$502=0,AQ$506=0,AQ$508=0,AQ$513=0,AQ$520=0,AQ$522=0,AQ$525=0,AQ$532=0,AQ$534=0),"n. appl.",(AQ79+AQ520+AQ532)/(AQ$76+AQ$502+AQ$506+AQ$508+AQ$513+AQ$520+AQ$522+AQ$525+AQ$532+AQ$534)) -> n. appl. | AR218: n. appl. | AS218: n. appl. | AT218: n. appl. | AU218: n. appl. | AV218: n. appl. | AW218: n. appl. | AX218: n. appl. | AY218: n. appl. | AZ218: n. appl. | BA218: n. appl. | BB218: n. appl. | BC218: n. appl. | BD218: n. appl. | BE218: n. appl. | BF218: n. appl. | BG218: n. appl. | BH218: n. appl. | BI218: n. appl. | BJ218: n. appl. | BK218: n. appl. | BL218: n. appl. | BM218: n. appl. | BN218: n. appl. | BO218: n. appl.
B219: 96d | C219: Total biomass fuel rate at plant level | E219: [%] | G219: =IF(AND(G$76=0,G$502=0,G$506=0,G$508=0,G$513=0,G$520=0,G$522=0,G$525=0,G$532=0,G$534=0),"n. appl.",(G80+(G506*G375)+G522+G534)/(G$76+G$502+G$506+G$508+G$513+G$520+G$522+G$525+G$532+G$534)) -> n. appl. | H219: n. appl. | I219: n. appl. | J219: n. appl. | K219: n. appl. | L219: n. appl. | M219: n. appl. | N219: n. appl. | O219: n. appl. | P219: n. appl. | Q219: n. appl. | R219: n. appl. | S219: n. appl. | T219: n. appl. | U219: n. appl. | V219: n. appl. | W219: n. appl. | X219: n. appl. | Y219: n. appl. | Z219: n. appl. | AA219: n. appl. | AB219: n. appl. | AC219: n. appl. | AD219: n. appl. | AE219: n. appl. | AF219: n. appl. | AG219: n. appl. | AH219: n. appl. | AI219: n. appl. | AJ219: n. appl. | AK219: n. appl. | AL219: =IF(AND(AL$76=0,AL$502=0,AL$506=0,AL$508=0,AL$513=0,AL$520=0,AL$522=0,AL$525=0,AL$532=0,AL$534=0),"n. appl.",(AL80+(AL506*AL375)+AL522+AL534)/(AL$76+AL$502+AL$506+AL$508+AL$513+AL$520+AL$522+AL$525+AL$532+AL$534)) -> n. appl. | AM219: =IF(AND(AM$76=0,AM$502=0,AM$506=0,AM$508=0,AM$513=0,AM$520=0,AM$522=0,AM$525=0,AM$532=0,AM$534=0),"n. appl.",(AM80+(AM506*AM375)+AM522+AM534)/(AM$76+AM$502+AM$506+AM$508+AM$513+AM$520+AM$522+AM$525+AM$532+AM$534)) -> n. appl. | AN219: =IF(AND(AN$76=0,AN$502=0,AN$506=0,AN$508=0,AN$513=0,AN$520=0,AN$522=0,AN$525=0,AN$532=0,AN$534=0),"n. appl.",(AN80+(AN506*AN375)+AN522+AN534)/(AN$76+AN$502+AN$506+AN$508+AN$513+AN$520+AN$522+AN$525+AN$532+AN$534)) -> n. appl. | AO219: =IF(AND(AO$76=0,AO$502=0,AO$506=0,AO$508=0,AO$513=0,AO$520=0,AO$522=0,AO$525=0,AO$532=0,AO$534=0),"n. appl.",(AO80+(AO506*AO375)+AO522+AO534)/(AO$76+AO$502+AO$506+AO$508+AO$513+AO$520+AO$522+AO$525+AO$532+AO$534)) -> n. appl. | AP219: =IF(AND(AP$76=0,AP$502=0,AP$506=0,AP$508=0,AP$513=0,AP$520=0,AP$522=0,AP$525=0,AP$532=0,AP$534=0),"n. appl.",(AP80+(AP506*AP375)+AP522+AP534)/(AP$76+AP$502+AP$506+AP$508+AP$513+AP$520+AP$522+AP$525+AP$532+AP$534)) -> n. appl. | AQ219: =IF(AND(AQ$76=0,AQ$502=0,AQ$506=0,AQ$508=0,AQ$513=0,AQ$520=0,AQ$522=0,AQ$525=0,AQ$532=0,AQ$534=0),"n. appl.",(AQ80+(AQ506*AQ375)+AQ522+AQ534)/(AQ$76+AQ$502+AQ$506+AQ$508+AQ$513+AQ$520+AQ$522+AQ$525+AQ$532+AQ$534)) -> n. appl. | AR219: n. appl. | AS219: n. appl. | AT219: n. appl. | AU219: n. appl. | AV219: n. appl. | AW219: n. appl. | AX219: n. appl. | AY219: n. appl. | AZ219: n. appl. | BA219: n. appl. | BB219: n. appl. | BC219: n. appl. | BD219: n. appl. | BE219: n. appl. | BF219: n. appl. | BG219: n. appl. | BH219: n. appl. | BI219: n. appl. | BJ219: n. appl. | BK219: n. appl. | BL219: n. appl. | BM219: n. appl. | BN219: n. appl. | BO219: n. appl.
B221: =B215+1 -> 97 | C221: Specific total power consumption* | E221: [kWh/t cem prod] | G221: =IF(G66="","",IF(G66=0,"n. appl.",G105/G66*1000)) ->  | H221: =IF(H66="","",IF(H66=0,"n. appl.",H105/H66*1000)) ->  | AG221: =IF(AG66="","",IF(AG66=0,"n. appl.",AG105/AG66*1000)) ->  | AQ221: =IF(AQ66="","",IF(AQ66=0,"n. appl.",AQ105/AQ66*1000)) -> 
B222: 98 | C222: Specific power consumption of clinker production | E222: [kWh/t cli] | G222: =IF(G40="","",IF(G40=0,"n. appl.",G104/G40*1000)) ->  | AL222: =IF(AL40="","",IF(AL40=0,"n. appl.",AL104/AL40*1000)) ->  | AM222: =IF(AM40="","",IF(AM40=0,"n. appl.",AM104/AM40*1000)) ->  | AN222: =IF(AN40="","",IF(AN40=0,"n. appl.",AN104/AN40*1000)) ->  | AO222: =IF(AO40="","",IF(AO40=0,"n. appl.",AO104/AO40*1000)) ->  | AP222: =IF(AP40="","",IF(AP40=0,"n. appl.",AP104/AP40*1000)) ->  | AQ222: =IF(AQ40="","",IF(AQ40=0,"n. appl.",AQ104/AQ40*1000)) -> 
B223: 98c | C223: Specific power consumption of cement production* | E223: [kWh/t cem prod] | G223: =IF(OR(G66="",G66=0),"n. appl.",IF(G222<>"n. appl.",(G222*G210)+(G105-G104)*1000/G66,(G105-G104)*1000/G66)) -> n. appl. | H223: =IF(OR(H66="",H66=0),"n. appl.",IF(H222<>"n. appl.",(H222*H210)+(H105-H104)*1000/H66,(H105-H104)*1000/H66)) -> n. appl. | I223: n. appl. | J223: n. appl. | K223: n. appl. | L223: n. appl. | M223: n. appl. | N223: n. appl. | O223: n. appl. | P223: n. appl. | Q223: n. appl. | R223: n. appl. | S223: n. appl. | T223: n. appl. | U223: n. appl. | V223: n. appl. | W223: n. appl. | X223: n. appl. | Y223: n. appl. | Z223: n. appl. | AA223: n. appl. | AB223: n. appl. | AC223: n. appl. | AD223: n. appl. | AE223: n. appl. | AF223: n. appl. | AG223: n. appl. | AH223: n. appl. | AI223: n. appl. | AJ223: n. appl. | AK223: n. appl. | AL223: n. appl. | AM223: n. appl. | AN223: n. appl. | AO223: n. appl. | AP223: n. appl. | AQ223: =IF(OR(AQ66="",AQ66=0),"n. appl.",IF(AQ222<>"n. appl.",(AQ222*AQ210)+(AQ105-AQ104)*1000/AQ66,(AQ105-AQ104)*1000/AQ66)) -> n. appl. | AR223: n. appl. | AS223: n. appl. | AT223: n. appl. | AU223: n. appl. | AV223: n. appl. | AW223: n. appl. | AX223: n. appl. | AY223: n. appl. | AZ223: n. appl. | BA223: n. appl. | BB223: n. appl. | BC223: n. appl. | BD223: n. appl. | BE223: n. appl. | BF223: n. appl. | BG223: n. appl. | BH223: n. appl. | BI223: n. appl. | BJ223: n. appl. | BK223: n. appl. | BL223: n. appl. | BM223: n. appl. | BN223: n. appl. | BO223: n. appl.
B224: 98a | C224: National energy conversion factor | E224: [MJ/kWh]
B225: 98b | C225: Total energy intensity of clinker production (fuel and power) | E225: [MJ/t cli] | G225: =IF(G224<>"",G222*G224+G212,"") ->  | AG225: =IF(AG224<>"",AG222*AG224+AG212,"") ->  | AQ225: =IF(AQ224<>"",AQ222*AQ224+AQ212,"") -> 
A227: KILN FUELS - DETAILED INFORMATION
B229: Kiln Fuel Consumption in tonnes per year | G229: =G$7 -> 1990 | H229: 1991 | I229: 1992 | J229: 1993 | K229: 1994 | L229: 1995 | M229: 1996 | N229: 1997 | O229: 1998 | P229: 1999 | Q229: 2000 | R229: 2001 | S229: 2002 | T229: 2003 | U229: 2004 | V229: 2005 | W229: 2006 | X229: 2007 | Y229: 2008 | Z229: 2009 | AA229: 2010 | AB229: 2011 | AC229: 2012 | AD229: 2013 | AE229: 2014 | AF229: 2015 | AG229: 2016 | AH229: 2017 | AI229: 2018 | AJ229: 2019 | AK229: 2020 | AL229: 2021 | AM229: 2022 | AN229: 2023 | AO229: 2024 | AP229: 2025 | AQ229: 2026 | AR229: 2027 | AS229: 2028 | AT229: 2029 | AU229: 2030 | AV229: 2031 | AW229: 2032 | AX229: 2033 | AY229: 2034 | AZ229: 2035 | BA229: 2036 | BB229: 2037 | BC229: 2038 | BD229: 2039 | BE229: 2040 | BF229: 2041 | BG229: 2042 | BH229: 2043 | BI229: 2044 | BJ229: 2045 | BK229: 2046 | BL229: 2047 | BM229: 2048 | BN229: 2049 | BO229: 2050
B230: 101 | C230: Conventional fossil fuels (excl. drying of raw materials and fuels)
B231: =B230+1 -> 102 | D231: coal + anthracite | E231: [t/yr] | G231: 0 | H231: 0 | I231: 0 | J231: 0 | K231: 0 | L231: 0 | M231: 0 | N231: 0 | O231: 0 | P231: 0 | Q231: 0 | R231: 0 | S231: 0 | T231: 0 | U231: 0 | V231: 0 | W231: 0 | X231: 0 | Y231: 0 | Z231: 0 | AA231: 0 | AB231: 0 | AC231: 0 | AD231: 0 | AE231: 0 | AF231: 0 | AG231: 0 | AH231: 0 | AI231: 0 | AJ231: 0 | AK231: 0 | AL231: 0 | AM231: 0 | AN231: 0 | AO231: 0 | AP231: 0 | AQ231: 0 | AR231: 0 | AS231: 0 | AT231: 0 | AU231: 0 | AV231: 0 | AW231: 0 | AX231: 0 | AY231: 0 | AZ231: 0 | BA231: 0 | BB231: 0 | BC231: 0 | BD231: 0 | BE231: 0 | BF231: 0 | BG231: 0 | BH231: 0 | BI231: 0 | BJ231: 0 | BK231: 0 | BL231: 0 | BM231: 0 | BN231: 0 | BO231: 0
B232: 103 | D232: petrol coke | E232: [t/yr] | G232: 0 | H232: 0 | I232: 0 | J232: 0 | K232: 0 | L232: 0 | M232: 0 | N232: 0 | O232: 0 | P232: 0 | Q232: 0 | R232: 0 | S232: 0 | T232: 0 | U232: 0 | V232: 0 | W232: 0 | X232: 0 | Y232: 0 | Z232: 0 | AA232: 0 | AB232: 0 | AC232: 0 | AD232: 0 | AE232: 0 | AF232: 0 | AG232: 0 | AH232: 0 | AI232: 0 | AJ232: 0 | AK232: 0 | AL232: 0 | AM232: 0 | AN232: 0 | AO232: 0 | AP232: 0 | AQ232: 0 | AR232: 0 | AS232: 0 | AT232: 0 | AU232: 0 | AV232: 0 | AW232: 0 | AX232: 0 | AY232: 0 | AZ232: 0 | BA232: 0 | BB232: 0 | BC232: 0 | BD232: 0 | BE232: 0 | BF232: 0 | BG232: 0 | BH232: 0 | BI232: 0 | BJ232: 0 | BK232: 0 | BL232: 0 | BM232: 0 | BN232: 0 | BO232: 0
B233: 104 | D233: (ultra) heavy fuel | E233: [t/yr] | G233: 0 | H233: 0 | I233: 0 | J233: 0 | K233: 0 | L233: 0 | M233: 0 | N233: 0 | O233: 0 | P233: 0 | Q233: 0 | R233: 0 | S233: 0 | T233: 0 | U233: 0 | V233: 0 | W233: 0 | X233: 0 | Y233: 0 | Z233: 0 | AA233: 0 | AB233: 0 | AC233: 0 | AD233: 0 | AE233: 0 | AF233: 0 | AG233: 0 | AH233: 0 | AI233: 0 | AJ233: 0 | AK233: 0 | AL233: 0 | AM233: 0 | AN233: 0 | AO233: 0 | AP233: 0 | AQ233: 0 | AR233: 0 | AS233: 0 | AT233: 0 | AU233: 0 | AV233: 0 | AW233: 0 | AX233: 0 | AY233: 0 | AZ233: 0 | BA233: 0 | BB233: 0 | BC233: 0 | BD233: 0 | BE233: 0 | BF233: 0 | BG233: 0 | BH233: 0 | BI233: 0 | BJ233: 0 | BK233: 0 | BL233: 0 | BM233: 0 | BN233: 0 | BO233: 0
B234: 105 | D234: diesel oil | E234: [t/yr] | G234: 0 | H234: 0 | I234: 0 | J234: 0 | K234: 0 | L234: 0 | M234: 0 | N234: 0 | O234: 0 | P234: 0 | Q234: 0 | R234: 0 | S234: 0 | T234: 0 | U234: 0 | V234: 0 | W234: 0 | X234: 0 | Y234: 0 | Z234: 0 | AA234: 0 | AB234: 0 | AC234: 0 | AD234: 0 | AE234: 0 | AF234: 0 | AG234: 0 | AH234: 0 | AI234: 0 | AJ234: 0 | AK234: 0 | AL234: 0 | AM234: 0 | AN234: 0 | AO234: 0 | AP234: 0 | AQ234: 0 | AR234: 0 | AS234: 0 | AT234: 0 | AU234: 0 | AV234: 0 | AW234: 0 | AX234: 0 | AY234: 0 | AZ234: 0 | BA234: 0 | BB234: 0 | BC234: 0 | BD234: 0 | BE234: 0 | BF234: 0 | BG234: 0 | BH234: 0 | BI234: 0 | BJ234: 0 | BK234: 0 | BL234: 0 | BM234: 0 | BN234: 0 | BO234: 0
B235: 106 | D235: natural gas | E235: [1'000 Nm3/yr] | G235: 0 | H235: 0 | I235: 0 | J235: 0 | K235: 0 | L235: 0 | M235: 0 | N235: 0 | O235: 0 | P235: 0 | Q235: 0 | R235: 0 | S235: 0 | T235: 0 | U235: 0 | V235: 0 | W235: 0 | X235: 0 | Y235: 0 | Z235: 0 | AA235: 0 | AB235: 0 | AC235: 0 | AD235: 0 | AE235: 0 | AF235: 0 | AG235: 0 | AH235: 0 | AI235: 0 | AJ235: 0 | AK235: 0 | AL235: 0 | AM235: 0 | AN235: 0 | AO235: 0 | AP235: 0 | AQ235: 0 | AR235: 0 | AS235: 0 | AT235: 0 | AU235: 0 | AV235: 0 | AW235: 0 | AX235: 0 | AY235: 0 | AZ235: 0 | BA235: 0 | BB235: 0 | BC235: 0 | BD235: 0 | BE235: 0 | BF235: 0 | BG235: 0 | BH235: 0 | BI235: 0 | BJ235: 0 | BK235: 0 | BL235: 0 | BM235: 0 | BN235: 0 | BO235: 0
B236: 107 | D236: shale | E236: [t/yr] | G236: 0 | H236: 0 | I236: 0 | J236: 0 | K236: 0 | L236: 0 | M236: 0 | N236: 0 | O236: 0 | P236: 0 | Q236: 0 | R236: 0 | S236: 0 | T236: 0 | U236: 0 | V236: 0 | W236: 0 | X236: 0 | Y236: 0 | Z236: 0 | AA236: 0 | AB236: 0 | AC236: 0 | AD236: 0 | AE236: 0 | AF236: 0 | AG236: 0 | AH236: 0 | AI236: 0 | AJ236: 0 | AK236: 0 | AL236: 0 | AM236: 0 | AN236: 0 | AO236: 0 | AP236: 0 | AQ236: 0 | AR236: 0 | AS236: 0 | AT236: 0 | AU236: 0 | AV236: 0 | AW236: 0 | AX236: 0 | AY236: 0 | AZ236: 0 | BA236: 0 | BB236: 0 | BC236: 0 | BD236: 0 | BE236: 0 | BF236: 0 | BG236: 0 | BH236: 0 | BI236: 0 | BJ236: 0 | BK236: 0 | BL236: 0 | BM236: 0 | BN236: 0 | BO236: 0
... 326 more rows

Sheet Company
A1: GCCA (Global Cement and Concret Association) Cement CO2 and Energy Protocol, Version 3.1, CO2 Emissions and Energy Inventory. Developed by the WBCSD Cement Sustainability Initiative (CSI) and European Cement Research Academy (ECRA).
B3: Date of latest update | E3: ='Read Me'!B4 -> 2013-12-09 | G3: Instruction: Complete all white input cells. "SUM" = Enter consolidated value of all plants. See guidance document section 7.2 for consolidation rules. "ENTER" = Enter single value for whole company.
A5: INFORMATION
B7: General Plant Information | G7: 1990 | H7: =G7+1 -> 1991 | I7: 1992 | J7: 1993 | K7: 1994 | L7: 1995 | M7: 1996 | N7: 1997 | O7: 1998 | P7: 1999 | Q7: 2000 | R7: 2001 | S7: 2002 | T7: 2003 | U7: 2004 | V7: 2005 | W7: 2006 | X7: 2007 | Y7: 2008 | Z7: 2009 | AA7: 2010 | AB7: 2011 | AC7: 2012 | AD7: 2013 | AE7: 2014 | AF7: 2015 | AG7: =AF7+1 -> 2016 | AH7: 2017 | AI7: 2018 | AJ7: 2019 | AK7: 2020 | AL7: 2021 | AM7: 2022 | AN7: 2023 | AO7: 2024 | AP7: 2025 | AQ7: =AP7+1 -> 2026 | AR7: =AQ7+1 -> 2027 | AS7: =AR7+1 -> 2028 | AT7: =AS7+1 -> 2029 | AU7: =AT7+1 -> 2030 | AV7: =AU7+1 -> 2031 | AW7: =AV7+1 -> 2032 | AX7: =AW7+1 -> 2033 | AY7: =AX7+1 -> 2034 | AZ7: =AY7+1 -> 2035 | BA7: =AZ7+1 -> 2036 | BB7: =BA7+1 -> 2037 | BC7: =BB7+1 -> 2038 | BD7: =BC7+1 -> 2039 | BE7: =BD7+1 -> 2040 | BF7: =BE7+1 -> 2041 | BG7: =BF7+1 -> 2042 | BH7: =BG7+1 -> 2043 | BI7: =BH7+1 -> 2044 | BJ7: =BI7+1 -> 2045 | BK7: =BJ7+1 -> 2046 | BL7: =BK7+1 -> 2047 | BM7: =BL7+1 -> 2048 | BN7: =BM7+1 -> 2049 | BO7: =BN7+1 -> 2050
B8: 1 | C8: Plant
B9: 2 | C9: Company
B10: 3 | C10: Country
B11: 4 | C11: Continent
B12: 5 | C12: "Kyoto" Region (Annex 1 or non-Annex 1)
B13: 6 | C13: Kiln types
B14: 6a | C14: Nominal clinker capacity | E14: [t/d]
B15: 6b | C15: Plant type
B16: 7 | C16: Shares owned by Company | E16: [%]
B17: 7aa | C17: Third party verification
B18: 7ab | C18: Used Cement CO2 and Energy Protocol version | G18: V3.1 | H18: V3.1 | I18: V3.1 | J18: V3.1 | K18: V3.1 | L18: V3.1 | M18: V3.1 | N18: V3.1 | O18: V3.1 | P18: V3.1 | Q18: V3.1 | R18: V3.1 | S18: V3.1 | T18: V3.1 | U18: V3.1 | V18: V3.1 | W18: V3.1 | X18: V3.1 | Y18: V3.1 | Z18: V3.1 | AA18: V3.1 | AB18: V3.1 | AC18: V3.1 | AD18: V3.1 | AE18: V3.1 | AF18: V3.1 | AG18: V3.1 | AH18: V3.1 | AI18: V3.1 | AJ18: V3.1 | AK18: V3.1 | AL18: V3.1 | AM18: V3.1 | AN18: V3.1 | AO18: V3.1 | AP18: V3.1 | AQ18: V3.1 | AR18: V3.1 | AS18: V3.1 | AT18: V3.1 | AU18: V3.1 | AV18: V3.1 | AW18: V3.1 | AX18: V3.1 | AY18: V3.1 | AZ18: V3.1 | BA18: V3.1 | BB18: V3.1 | BC18: V3.1 | BD18: V3.1 | BE18: V3.1 | BF18: V3.1 | BG18: V3.1 | BH18: V3.1 | BI18: V3.1 | BJ18: V3.1 | BK18: V3.1 | BL18: V3.1 | BM18: V3.1 | BN18: V3.1 | BO18: V3.1
B19: 7ad | C19: Short notes or user comment (max. 250 characters) | G19: Recalculation with protocol V3 (GNR data until 2010 according to V2) | Q19: Recalculation with protocol V3 (GNR data until 2010 according to V2) | V19: Recalculation with protocol V3 (GNR data until 2010 according to V2) | W19: Recalculation with protocol V3 (GNR data until 2010 according to V2) | X19: Recalculation with protocol V3 (GNR data until 2010 according to V2) | Y19: Recalculation with protocol V3 (GNR data until 2010 according to V2) | Z19: Recalculation with protocol V3 (GNR data until 2010 according to V2) | AA19: Recalculation with protocol V3 (GNR data until 2010 according to V2)
B21: Inventory Boundaries: Coverage of Main Process Steps | G21: =G$7 -> 1990 | H21: 1991 | I21: 1992 | J21: 1993 | K21: 1994 | L21: 1995 | M21: 1996 | N21: 1997 | O21: 1998 | P21: 1999 | Q21: 2000 | R21: 2001 | S21: 2002 | T21: 2003 | U21: 2004 | V21: 2005 | W21: 2006 | X21: 2007 | Y21: 2008 | Z21: 2009 | AA21: 2010 | AB21: 2011 | AC21: 2012 | AD21: 2013 | AE21: 2014 | AF21: 2015 | AG21: 2016 | AH21: 2017 | AI21: 2018 | AJ21: 2019 | AK21: 2020 | AL21: 2021 | AM21: 2022 | AN21: 2023 | AO21: 2024 | AP21: 2025 | AQ21: 2026 | AR21: 2027 | AS21: 2028 | AT21: 2029 | AU21: 2030 | AV21: 2031 | AW21: 2032 | AX21: 2033 | AY21: 2034 | AZ21: 2035 | BA21: 2036 | BB21: 2037 | BC21: 2038 | BD21: 2039 | BE21: 2040 | BF21: 2041 | BG21: 2042 | BH21: 2043 | BI21: 2044 | BJ21: 2045 | BK21: 2046 | BL21: 2047 | BM21: 2048 | BN21: 2049 | BO21: 2050
B22: 7a | C22: Raw material supply (quarrying, mining, crushing) | E22: [yes, no or n.a.]
B23: 7b | C23: Preparation of raw materials, fuels and additives | E23: [yes, no or n.a.]
B24: 7c | C24: Kiln operation (pyro-processing) | E24: [yes, no or n.a.]
B25: 7d | C25: Cement grinding, blending | E25: [yes, no or n.a.]
B26: 7e | C26: On-site (internal) transport | E26: [yes, no or n.a.]
B27: 7f | C27: Off-site transport with company-owned fleets | E27: [yes, no or n.a.]
B28: 7g | C28: On-site power generation | E28: [yes, no or n.a.]
B29: 7h | C29: Room heating and cooling | E29: [yes, no or n.a.]
B30: 7i | C30: (add other processes as appropriate) | E30: [yes, no or n.a.]
B31: 7j | C31: use of internal cement transfer for blending | E31: [yes, no or n.a.]
B32: 7k
B38: Clinker and Cement Production | G38: =G$7 -> 1990 | H38: 1991 | I38: 1992 | J38: 1993 | K38: 1994 | L38: 1995 | M38: 1996 | N38: 1997 | O38: 1998 | P38: 1999 | Q38: 2000 | R38: 2001 | S38: 2002 | T38: 2003 | U38: 2004 | V38: 2005 | W38: 2006 | X38: 2007 | Y38: 2008 | Z38: 2009 | AA38: 2010 | AB38: 2011 | AC38: 2012 | AD38: 2013 | AE38: 2014 | AF38: 2015 | AG38: 2016 | AH38: 2017 | AI38: 2018 | AJ38: 2019 | AK38: 2020 | AL38: 2021 | AM38: 2022 | AN38: 2023 | AO38: 2024 | AP38: 2025 | AQ38: 2026 | AR38: 2027 | AS38: 2028 | AT38: 2029 | AU38: 2030 | AV38: 2031 | AW38: 2032 | AX38: 2033 | AY38: 2034 | AZ38: 2035 | BA38: 2036 | BB38: 2037 | BC38: 2038 | BD38: 2039 | BE38: 2040 | BF38: 2041 | BG38: 2042 | BH38: 2043 | BI38: 2044 | BJ38: 2045 | BK38: 2046 | BL38: 2047 | BM38: 2048 | BN38: 2049 | BO38: 2050
C39: Clinker:
B40: =B16+1 -> 8 | C40: Clinker production | E40: [t/yr] | G40: SUM | H40: SUM | I40: SUM | J40: SUM | K40: SUM | L40: SUM | M40: SUM | N40: SUM | O40: SUM | P40: SUM | Q40: SUM | R40: SUM | S40: SUM | T40: SUM | U40: SUM | V40: SUM | W40: SUM | X40: SUM | Y40: SUM | Z40: SUM | AA40: SUM | AB40: SUM | AC40: SUM | AD40: SUM | AE40: SUM | AF40: SUM | AG40: SUM | AH40: SUM | AI40: SUM | AJ40: SUM | AK40: SUM | AL40: SUM | AM40: SUM | AN40: SUM | AO40: SUM | AP40: SUM | AQ40: SUM | AR40: SUM | AS40: SUM | AT40: SUM | AU40: SUM | AV40: SUM | AW40: SUM | AX40: SUM | AY40: SUM | AZ40: SUM | BA40: SUM | BB40: SUM | BC40: SUM | BD40: SUM | BE40: SUM | BF40: SUM | BG40: SUM | BH40: SUM | BI40: SUM | BJ40: SUM | BK40: SUM | BL40: SUM | BM40: SUM | BN40: SUM | BO40: SUM
B41: =B40+1 -> 9 | C41: Clinker bought from other companies and from cross-border transfer | E41: [t/yr] | G41: SUM | H41: SUM | I41: SUM | J41: SUM | K41: SUM | L41: SUM | M41: SUM | N41: SUM | O41: SUM | P41: SUM | Q41: SUM | R41: SUM | S41: SUM | T41: SUM | U41: SUM | V41: SUM | W41: SUM | X41: SUM | Y41: SUM | Z41: SUM | AA41: SUM | AB41: SUM | AC41: SUM | AD41: SUM | AE41: SUM | AF41: SUM | AG41: SUM | AH41: SUM | AI41: SUM | AJ41: SUM | AK41: SUM | AL41: SUM | AM41: SUM | AN41: SUM | AO41: SUM | AP41: SUM | AQ41: SUM | AR41: SUM | AS41: SUM | AT41: SUM | AU41: SUM | AV41: SUM | AW41: SUM | AX41: SUM | AY41: SUM | AZ41: SUM | BA41: SUM | BB41: SUM | BC41: SUM | BD41: SUM | BE41: SUM | BF41: SUM | BG41: SUM | BH41: SUM | BI41: SUM | BJ41: SUM | BK41: SUM | BL41: SUM | BM41: SUM | BN41: SUM | BO41: SUM
B42: =B41+1 -> 10 | C42: Clinker sold to other companies and from cross-border transfer | E42: [t/yr] | G42: SUM | H42: SUM | I42: SUM | J42: SUM | K42: SUM | L42: SUM | M42: SUM | N42: SUM | O42: SUM | P42: SUM | Q42: SUM | R42: SUM | S42: SUM | T42: SUM | U42: SUM | V42: SUM | W42: SUM | X42: SUM | Y42: SUM | Z42: SUM | AA42: SUM | AB42: SUM | AC42: SUM | AD42: SUM | AE42: SUM | AF42: SUM | AG42: SUM | AH42: SUM | AI42: SUM | AJ42: SUM | AK42: SUM | AL42: SUM | AM42: SUM | AN42: SUM | AO42: SUM | AP42: SUM | AQ42: SUM | AR42: SUM | AS42: SUM | AT42: SUM | AU42: SUM | AV42: SUM | AW42: SUM | AX42: SUM | AY42: SUM | AZ42: SUM | BA42: SUM | BB42: SUM | BC42: SUM | BD42: SUM | BE42: SUM | BF42: SUM | BG42: SUM | BH42: SUM | BI42: SUM | BJ42: SUM | BK42: SUM | BL42: SUM | BM42: SUM | BN42: SUM | BO42: SUM
B43: 10a | C43: Change in clinker stocks (+ = increase; - = reduction) | E43: [t/yr] | G43: SUM | H43: SUM | I43: SUM | J43: SUM | K43: SUM | L43: SUM | M43: SUM | N43: SUM | O43: SUM | P43: SUM | Q43: SUM | R43: SUM | S43: SUM | T43: SUM | U43: SUM | V43: SUM | W43: SUM | X43: SUM | Y43: SUM | Z43: SUM | AA43: SUM | AB43: SUM | AC43: SUM | AD43: SUM | AE43: SUM | AF43: SUM | AG43: SUM | AH43: SUM | AI43: SUM | AJ43: SUM | AK43: SUM | AL43: SUM | AM43: SUM | AN43: SUM | AO43: SUM | AP43: SUM | AQ43: SUM | AR43: SUM | AS43: SUM | AT43: SUM | AU43: SUM | AV43: SUM | AW43: SUM | AX43: SUM | AY43: SUM | AZ43: SUM | BA43: SUM | BB43: SUM | BC43: SUM | BD43: SUM | BE43: SUM | BF43: SUM | BG43: SUM | BH43: SUM | BI43: SUM | BJ43: SUM | BK43: SUM | BL43: SUM | BM43: SUM | BN43: SUM | BO43: SUM
B44: 10b | C44: Internal clinker transfer (+ = clinker received; - = clinker sent) | E44: [t/yr] | G44: SUM | H44: SUM | I44: SUM | J44: SUM | K44: SUM | L44: SUM | M44: SUM | N44: SUM | O44: SUM | P44: SUM | Q44: SUM | R44: SUM | S44: SUM | T44: SUM | U44: SUM | V44: SUM | W44: SUM | X44: SUM | Y44: SUM | Z44: SUM | AA44: SUM | AB44: SUM | AC44: SUM | AD44: SUM | AE44: SUM | AF44: SUM | AG44: SUM | AH44: SUM | AI44: SUM | AJ44: SUM | AK44: SUM | AL44: SUM | AM44: SUM | AN44: SUM | AO44: SUM | AP44: SUM | AQ44: SUM | AR44: SUM | AS44: SUM | AT44: SUM | AU44: SUM | AV44: SUM | AW44: SUM | AX44: SUM | AY44: SUM | AZ44: SUM | BA44: SUM | BB44: SUM | BC44: SUM | BD44: SUM | BE44: SUM | BF44: SUM | BG44: SUM | BH44: SUM | BI44: SUM | BJ44: SUM | BK44: SUM | BL44: SUM | BM44: SUM | BN44: SUM | BO44: SUM
B45: 10c | C45: Clinker from internal transfer of processed cement (+ = cement received; - = cement sent) | E45: [t/yr] | G45: SUM | H45: SUM | I45: SUM | J45: SUM | K45: SUM | L45: SUM | M45: SUM | N45: SUM | O45: SUM | P45: SUM | Q45: SUM | R45: SUM | S45: SUM | T45: SUM | U45: SUM | V45: SUM | W45: SUM | X45: SUM | Y45: SUM | Z45: SUM | AA45: SUM | AB45: SUM | AC45: SUM | AD45: SUM | AE45: SUM | AF45: SUM | AG45: SUM | AH45: SUM | AI45: SUM | AJ45: SUM | AK45: SUM | AL45: SUM | AM45: SUM | AN45: SUM | AO45: SUM | AP45: SUM | AQ45: SUM | AR45: SUM | AS45: SUM | AT45: SUM | AU45: SUM | AV45: SUM | AW45: SUM | AX45: SUM | AY45: SUM | AZ45: SUM | BA45: SUM | BB45: SUM | BC45: SUM | BD45: SUM | BE45: SUM | BF45: SUM | BG45: SUM | BH45: SUM | BI45: SUM | BJ45: SUM | BK45: SUM | BL45: SUM | BM45: SUM | BN45: SUM | BO45: SUM
B46: =B42+1 -> 11 | C46: Total clinker consumed | E46: [t/yr] | G46: =IF(OR(COUNTBLANK(G40:G45)=6,G40="SUM"),"",G40+G41-G42-G43+G44+G45) ->  | H46: =IF(OR(COUNTBLANK(H40:H45)=6,H40="SUM"),"",H40+H41-H42-H43+H44+H45) ->  | AL46: =IF(OR(COUNTBLANK(AL40:AL45)=6,AL40="SUM"),"",AL40+AL41-AL42-AL43+AL44+AL45) ->  | AM46: =IF(OR(COUNTBLANK(AM40:AM45)=6,AM40="SUM"),"",AM40+AM41-AM42-AM43+AM44+AM45) ->  | AN46: =IF(OR(COUNTBLANK(AN40:AN45)=6,AN40="SUM"),"",AN40+AN41-AN42-AN43+AN44+AN45) ->  | AO46: =IF(OR(COUNTBLANK(AO40:AO45)=6,AO40="SUM"),"",AO40+AO41-AO42-AO43+AO44+AO45) ->  | AP46: =IF(OR(COUNTBLANK(AP40:AP45)=6,AP40="SUM"),"",AP40+AP41-AP42-AP43+AP44+AP45) ->  | AQ46: =IF(OR(COUNTBLANK(AQ40:AQ45)=6,AQ40="SUM"),"",AQ40+AQ41-AQ42-AQ43+AQ44+AQ45) -> 
C48: Mineral components (MIC) used to produce Portland and blended cements:
B49: =B46+1 -> 12 | C49: Gypsum | E49: [t/yr, dry weight] | G49: SUM | H49: SUM | I49: SUM | J49: SUM | K49: SUM | L49: SUM | M49: SUM | N49: SUM | O49: SUM | P49: SUM | Q49: SUM | R49: SUM | S49: SUM | T49: SUM | U49: SUM | V49: SUM | W49: SUM | X49: SUM | Y49: SUM | Z49: SUM | AA49: SUM | AB49: SUM | AC49: SUM | AD49: SUM | AE49: SUM | AF49: SUM | AG49: SUM | AH49: SUM | AI49: SUM | AJ49: SUM | AK49: SUM | AL49: SUM | AM49: SUM | AN49: SUM | AO49: SUM | AP49: SUM | AQ49: SUM | AR49: SUM | AS49: SUM | AT49: SUM | AU49: SUM | AV49: SUM | AW49: SUM | AX49: SUM | AY49: SUM | AZ49: SUM | BA49: SUM | BB49: SUM | BC49: SUM | BD49: SUM | BE49: SUM | BF49: SUM | BG49: SUM | BH49: SUM | BI49: SUM | BJ49: SUM | BK49: SUM | BL49: SUM | BM49: SUM | BN49: SUM | BO49: SUM
B50: =B49+1 -> 13 | C50: Limestone | E50: [t/yr, dry weight] | G50: SUM | H50: SUM | I50: SUM | J50: SUM | K50: SUM | L50: SUM | M50: SUM | N50: SUM | O50: SUM | P50: SUM | Q50: SUM | R50: SUM | S50: SUM | T50: SUM | U50: SUM | V50: SUM | W50: SUM | X50: SUM | Y50: SUM | Z50: SUM | AA50: SUM | AB50: SUM | AC50: SUM | AD50: SUM | AE50: SUM | AF50: SUM | AG50: SUM | AH50: SUM | AI50: SUM | AJ50: SUM | AK50: SUM | AL50: SUM | AM50: SUM | AN50: SUM | AO50: SUM | AP50: SUM | AQ50: SUM | AR50: SUM | AS50: SUM | AT50: SUM | AU50: SUM | AV50: SUM | AW50: SUM | AX50: SUM | AY50: SUM | AZ50: SUM | BA50: SUM | BB50: SUM | BC50: SUM | BD50: SUM | BE50: SUM | BF50: SUM | BG50: SUM | BH50: SUM | BI50: SUM | BJ50: SUM | BK50: SUM | BL50: SUM | BM50: SUM | BN50: SUM | BO50: SUM
B51: =B50+1 -> 14 | C51: Slag | E51: [t/yr, dry weight] | G51: SUM | H51: SUM | I51: SUM | J51: SUM | K51: SUM | L51: SUM | M51: SUM | N51: SUM | O51: SUM | P51: SUM | Q51: SUM | R51: SUM | S51: SUM | T51: SUM | U51: SUM | V51: SUM | W51: SUM | X51: SUM | Y51: SUM | Z51: SUM | AA51: SUM | AB51: SUM | AC51: SUM | AD51: SUM | AE51: SUM | AF51: SUM | AG51: SUM | AH51: SUM | AI51: SUM | AJ51: SUM | AK51: SUM | AL51: SUM | AM51: SUM | AN51: SUM | AO51: SUM | AP51: SUM | AQ51: SUM | AR51: SUM | AS51: SUM | AT51: SUM | AU51: SUM | AV51: SUM | AW51: SUM | AX51: SUM | AY51: SUM | AZ51: SUM | BA51: SUM | BB51: SUM | BC51: SUM | BD51: SUM | BE51: SUM | BF51: SUM | BG51: SUM | BH51: SUM | BI51: SUM | BJ51: SUM | BK51: SUM | BL51: SUM | BM51: SUM | BN51: SUM | BO51: SUM
B52: =B51+1 -> 15 | C52: Fly ash (for blending) | E52: [t/yr, dry weight] | G52: SUM | H52: SUM | I52: SUM | J52: SUM | K52: SUM | L52: SUM | M52: SUM | N52: SUM | O52: SUM | P52: SUM | Q52: SUM | R52: SUM | S52: SUM | T52: SUM | U52: SUM | V52: SUM | W52: SUM | X52: SUM | Y52: SUM | Z52: SUM | AA52: SUM | AB52: SUM | AC52: SUM | AD52: SUM | AE52: SUM | AF52: SUM | AG52: SUM | AH52: SUM | AI52: SUM | AJ52: SUM | AK52: SUM | AL52: SUM | AM52: SUM | AN52: SUM | AO52: SUM | AP52: SUM | AQ52: SUM | AR52: SUM | AS52: SUM | AT52: SUM | AU52: SUM | AV52: SUM | AW52: SUM | AX52: SUM | AY52: SUM | AZ52: SUM | BA52: SUM | BB52: SUM | BC52: SUM | BD52: SUM | BE52: SUM | BF52: SUM | BG52: SUM | BH52: SUM | BI52: SUM | BJ52: SUM | BK52: SUM | BL52: SUM | BM52: SUM | BN52: SUM | BO52: SUM
B53: =B52+1 -> 16 | C53: Puzzolana | E53: [t/yr, dry weight] | G53: SUM | H53: SUM | I53: SUM | J53: SUM | K53: SUM | L53: SUM | M53: SUM | N53: SUM | O53: SUM | P53: SUM | Q53: SUM | R53: SUM | S53: SUM | T53: SUM | U53: SUM | V53: SUM | W53: SUM | X53: SUM | Y53: SUM | Z53: SUM | AA53: SUM | AB53: SUM | AC53: SUM | AD53: SUM | AE53: SUM | AF53: SUM | AG53: SUM | AH53: SUM | AI53: SUM | AJ53: SUM | AK53: SUM | AL53: SUM | AM53: SUM | AN53: SUM | AO53: SUM | AP53: SUM | AQ53: SUM | AR53: SUM | AS53: SUM | AT53: SUM | AU53: SUM | AV53: SUM | AW53: SUM | AX53: SUM | AY53: SUM | AZ53: SUM | BA53: SUM | BB53: SUM | BC53: SUM | BD53: SUM | BE53: SUM | BF53: SUM | BG53: SUM | BH53: SUM | BI53: SUM | BJ53: SUM | BK53: SUM | BL53: SUM | BM53: SUM | BN53: SUM | BO53: SUM
B54: =B53+1 -> 17 | C54: Others (e.g., CKD added to cement mill) | E54: [t/yr, dry weight] | G54: SUM | H54: SUM | I54: SUM | J54: SUM | K54: SUM | L54: SUM | M54: SUM | N54: SUM | O54: SUM | P54: SUM | Q54: SUM | R54: SUM | S54: SUM | T54: SUM | U54: SUM | V54: SUM | W54: SUM | X54: SUM | Y54: SUM | Z54: SUM | AA54: SUM | AB54: SUM | AC54: SUM | AD54: SUM | AE54: SUM | AF54: SUM | AG54: SUM | AH54: SUM | AI54: SUM | AJ54: SUM | AK54: SUM | AL54: SUM | AM54: SUM | AN54: SUM | AO54: SUM | AP54: SUM | AQ54: SUM | AR54: SUM | AS54: SUM | AT54: SUM | AU54: SUM | AV54: SUM | AW54: SUM | AX54: SUM | AY54: SUM | AZ54: SUM | BA54: SUM | BB54: SUM | BC54: SUM | BD54: SUM | BE54: SUM | BF54: SUM | BG54: SUM | BH54: SUM | BI54: SUM | BJ54: SUM | BK54: SUM | BL54: SUM | BM54: SUM | BN54: SUM | BO54: SUM
B55: 17a | C55: MIC from internal transfer of processed cement (+ = cement received; - = cement sent) | E55: [t/yr, dry weight] | G55: SUM | H55: SUM | I55: SUM | J55: SUM | K55: SUM | L55: SUM | M55: SUM | N55: SUM | O55: SUM | P55: SUM | Q55: SUM | R55: SUM | S55: SUM | T55: SUM | U55: SUM | V55: SUM | W55: SUM | X55: SUM | Y55: SUM | Z55: SUM | AA55: SUM | AB55: SUM | AC55: SUM | AD55: SUM | AE55: SUM | AF55: SUM | AG55: SUM | AH55: SUM | AI55: SUM | AJ55: SUM | AK55: SUM | AL55: SUM | AM55: SUM | AN55: SUM | AO55: SUM | AP55: SUM | AQ55: SUM | AR55: SUM | AS55: SUM | AT55: SUM | AU55: SUM | AV55: SUM | AW55: SUM | AX55: SUM | AY55: SUM | AZ55: SUM | BA55: SUM | BB55: SUM | BC55: SUM | BD55: SUM | BE55: SUM | BF55: SUM | BG55: SUM | BH55: SUM | BI55: SUM | BJ55: SUM | BK55: SUM | BL55: SUM | BM55: SUM | BN55: SUM | BO55: SUM
B56: =B54+1 -> 18 | C56: Total MIC consumed for Portland and blended cements (dry weight) | E56: [t/yr, dry weight] | G56: =IF(OR(COUNTBLANK(G49:G55)=7,G49="SUM"),"",SUM(G49:G55)) ->  | H56: =IF(OR(COUNTBLANK(H49:H55)=7,H49="SUM"),"",SUM(H49:H55)) ->  | AG56: =IF(OR(COUNTBLANK(AG49:AG55)=7,AG49="SUM"),"",SUM(AG49:AG55)) ->  | AQ56: =IF(OR(COUNTBLANK(AQ49:AQ55)=7,AQ49="SUM"),"",SUM(AQ49:AQ55)) -> 
C58: Processed mineral components (MIC) sold externally or transferred internally (dry weight):
B59: 19a | C59: Processed slag sold externally | E59: [t/yr, dry weight] | G59: SUM | H59: SUM | I59: SUM | J59: SUM | K59: SUM | L59: SUM | M59: SUM | N59: SUM | O59: SUM | P59: SUM | Q59: SUM | R59: SUM | S59: SUM | T59: SUM | U59: SUM | V59: SUM | W59: SUM | X59: SUM | Y59: SUM | Z59: SUM | AA59: SUM | AB59: SUM | AC59: SUM | AD59: SUM | AE59: SUM | AF59: SUM | AG59: SUM | AH59: SUM | AI59: SUM | AJ59: SUM | AK59: SUM | AL59: SUM | AM59: SUM | AN59: SUM | AO59: SUM | AP59: SUM | AQ59: SUM | AR59: SUM | AS59: SUM | AT59: SUM | AU59: SUM | AV59: SUM | AW59: SUM | AX59: SUM | AY59: SUM | AZ59: SUM | BA59: SUM | BB59: SUM | BC59: SUM | BD59: SUM | BE59: SUM | BF59: SUM | BG59: SUM | BH59: SUM | BI59: SUM | BJ59: SUM | BK59: SUM | BL59: SUM | BM59: SUM | BN59: SUM | BO59: SUM
B60: 19b | C60: Processed fly ash and other puzzolana sold externally | E60: [t/yr, dry weight] | G60: SUM | H60: SUM | I60: SUM | J60: SUM | K60: SUM | L60: SUM | M60: SUM | N60: SUM | O60: SUM | P60: SUM | Q60: SUM | R60: SUM | S60: SUM | T60: SUM | U60: SUM | V60: SUM | W60: SUM | X60: SUM | Y60: SUM | Z60: SUM | AA60: SUM | AB60: SUM | AC60: SUM | AD60: SUM | AE60: SUM | AF60: SUM | AG60: SUM | AH60: SUM | AI60: SUM | AJ60: SUM | AK60: SUM | AL60: SUM | AM60: SUM | AN60: SUM | AO60: SUM | AP60: SUM | AQ60: SUM | AR60: SUM | AS60: SUM | AT60: SUM | AU60: SUM | AV60: SUM | AW60: SUM | AX60: SUM | AY60: SUM | AZ60: SUM | BA60: SUM | BB60: SUM | BC60: SUM | BD60: SUM | BE60: SUM | BF60: SUM | BG60: SUM | BH60: SUM | BI60: SUM | BJ60: SUM | BK60: SUM | BL60: SUM | BM60: SUM | BN60: SUM | BO60: SUM
B61: 19c | C61: Total internal processed MIC transfer (+ = received; - = sent) | E61: [t/yr, dry weight] | G61: SUM | H61: SUM | I61: SUM | J61: SUM | K61: SUM | L61: SUM | M61: SUM | N61: SUM | O61: SUM | P61: SUM | Q61: SUM | R61: SUM | S61: SUM | T61: SUM | U61: SUM | V61: SUM | W61: SUM | X61: SUM | Y61: SUM | Z61: SUM | AA61: SUM | AB61: SUM | AC61: SUM | AD61: SUM | AE61: SUM | AF61: SUM | AG61: SUM | AH61: SUM | AI61: SUM | AJ61: SUM | AK61: SUM | AL61: SUM | AM61: SUM | AN61: SUM | AO61: SUM | AP61: SUM | AQ61: SUM | AR61: SUM | AS61: SUM | AT61: SUM | AU61: SUM | AV61: SUM | AW61: SUM | AX61: SUM | AY61: SUM | AZ61: SUM | BA61: SUM | BB61: SUM | BC61: SUM | BD61: SUM | BE61: SUM | BF61: SUM | BG61: SUM | BH61: SUM | BI61: SUM | BJ61: SUM | BK61: SUM | BL61: SUM | BM61: SUM | BN61: SUM | BO61: SUM
B62: 19 | C62: Total processed MIC's used as clinker or cement substitute sold externally | E62: [t/yr, dry weight] | G62: =IF(OR(COUNTBLANK(G59:G61)=3,G59="SUM"),"",SUM(G59:G61)) ->  | H62: =IF(OR(COUNTBLANK(H59:H61)=3,H59="SUM"),"",SUM(H59:H61)) ->  | AG62: =IF(OR(COUNTBLANK(AG59:AG61)=3,AG59="SUM"),"",SUM(AG59:AG61)) ->  | AQ62: =IF(OR(COUNTBLANK(AQ59:AQ61)=3,AQ59="SUM"),"",SUM(AQ59:AQ61)) -> 
C64: Production totals:
B65: =B62+1 -> 20 | C65: Total Portland and Blended cements | E65: [t/yr] | G65: =IF(AND(G46="",G56=""),"",G46+G56) ->  | H65: =IF(AND(H46="",H56=""),"",H46+H56) ->  | AG65: =IF(AND(AG46="",AG56=""),"",AG46+AG56) ->  | AQ65: =IF(AND(AQ46="",AQ56=""),"",AQ46+AQ56) -> 
B66: =B65+1 -> 21 | C66: Total cements + substitutes: Portland, Blended, Slag, etc. | E66: [t/yr] | G66: =IF(AND(G46="",G56="",G62=""),"",G46+G56+G62) ->  | AL66: =IF(AND(AL46="",AL56="",AL62=""),"",AL46+AL56+AL62) ->  | AM66: =IF(AND(AM46="",AM56="",AM62=""),"",AM46+AM56+AM62) ->  | AN66: =IF(AND(AN46="",AN56="",AN62=""),"",AN46+AN56+AN62) ->  | AO66: =IF(AND(AO46="",AO56="",AO62=""),"",AO46+AO56+AO62) ->  | AP66: =IF(AND(AP46="",AP56="",AP62=""),"",AP46+AP56+AP62) ->  | AQ66: =IF(AND(AQ46="",AQ56="",AQ62=""),"",AQ46+AQ56+AQ62) -> 
B67: 21a | C67: Total cementitious products | E67: [t/yr] | G67: =IF(AND(G40="",G56="",G62=""),"",G40+G56+G62) ->  | AL67: =IF(AND(AL40="",AL56="",AL62=""),"",AL40+AL56+AL62) ->  | AM67: =IF(AND(AM40="",AM56="",AM62=""),"",AM40+AM56+AM62) ->  | AN67: =IF(AND(AN40="",AN56="",AN62=""),"",AN40+AN56+AN62) ->  | AO67: =IF(AND(AO40="",AO56="",AO62=""),"",AO40+AO56+AO62) ->  | AP67: =IF(AND(AP40="",AP56="",AP62=""),"",AP40+AP56+AP62) ->  | AQ67: =IF(AND(AQ40="",AQ56="",AQ62=""),"",AQ40+AQ56+AQ62) -> 
B68: 21b | C68: Total cement equivalent | E68: [t/yr] | G68: =IF(OR(G40="",G40=0,G209="n. appl."),"n. appl.",G40/G209) -> n. appl. | H68: =IF(OR(H40="",H40=0,H209="n. appl."),"n. appl.",H40/H209) -> n. appl. | I68: n. appl. | J68: n. appl. | K68: n. appl. | L68: n. appl. | M68: n. appl. | N68: n. appl. | O68: n. appl. | P68: n. appl. | Q68: n. appl. | R68: n. appl. | S68: n. appl. | T68: n. appl. | U68: n. appl. | V68: n. appl. | W68: n. appl. | X68: n. appl. | Y68: n. appl. | Z68: n. appl. | AA68: n. appl. | AB68: n. appl. | AC68: n. appl. | AD68: n. appl. | AE68: n. appl. | AF68: n. appl. | AG68: n. appl. | AH68: n. appl. | AI68: n. appl. | AJ68: n. appl. | AK68: n. appl. | AL68: n. appl. | AM68: n. appl. | AN68: n. appl. | AO68: n. appl. | AP68: n. appl. | AQ68: =IF(OR(AQ40="",AQ40=0,AQ209="n. appl."),"n. appl.",AQ40/AQ209) -> n. appl. | AR68: n. appl. | AS68: n. appl. | AT68: n. appl. | AU68: n. appl. | AV68: n. appl. | AW68: n. appl. | AX68: n. appl. | AY68: n. appl. | AZ68: n. appl. | BA68: n. appl. | BB68: n. appl. | BC68: n. appl. | BD68: n. appl. | BE68: n. appl. | BF68: n. appl. | BG68: n. appl. | BH68: n. appl. | BI68: n. appl. | BJ68: n. appl. | BK68: n. appl. | BL68: n. appl. | BM68: n. appl. | BN68: n. appl. | BO68: n. appl.
B70: Dust Production (dry weight) | G70: =G$7 -> 1990 | H70: 1991 | I70: 1992 | J70: 1993 | K70: 1994 | L70: 1995 | M70: 1996 | N70: 1997 | O70: 1998 | P70: 1999 | Q70: 2000 | R70: 2001 | S70: 2002 | T70: 2003 | U70: 2004 | V70: 2005 | W70: 2006 | X70: 2007 | Y70: 2008 | Z70: 2009 | AA70: 2010 | AB70: 2011 | AC70: 2012 | AD70: 2013 | AE70: 2014 | AF70: 2015 | AG70: 2016 | AH70: 2017 | AI70: 2018 | AJ70: 2019 | AK70: 2020 | AL70: 2021 | AM70: 2022 | AN70: 2023 | AO70: 2024 | AP70: 2025 | AQ70: 2026 | AR70: 2027 | AS70: 2028 | AT70: 2029 | AU70: 2030 | AV70: 2031 | AW70: 2032 | AX70: 2033 | AY70: 2034 | AZ70: 2035 | BA70: 2036 | BB70: 2037 | BC70: 2038 | BD70: 2039 | BE70: 2040 | BF70: 2041 | BG70: 2042 | BH70: 2043 | BI70: 2044 | BJ70: 2045 | BK70: 2046 | BL70: 2047 | BM70: 2048 | BN70: 2049 | BO70: 2050
B71: 22 | C71: Bypass dust leaving kiln system | E71: [t/yr, dry weight] | G71: SUM | H71: SUM | I71: SUM | J71: SUM | K71: SUM | L71: SUM | M71: SUM | N71: SUM | O71: SUM | P71: SUM | Q71: SUM | R71: SUM | S71: SUM | T71: SUM | U71: SUM | V71: SUM | W71: SUM | X71: SUM | Y71: SUM | Z71: SUM | AA71: SUM | AB71: SUM | AC71: SUM | AD71: SUM | AE71: SUM | AF71: SUM | AG71: SUM | AH71: SUM | AI71: SUM | AJ71: SUM | AK71: SUM | AL71: SUM | AM71: SUM | AN71: SUM | AO71: SUM | AP71: SUM | AQ71: SUM | AR71: SUM | AS71: SUM | AT71: SUM | AU71: SUM | AV71: SUM | AW71: SUM | AX71: SUM | AY71: SUM | AZ71: SUM | BA71: SUM | BB71: SUM | BC71: SUM | BD71: SUM | BE71: SUM | BF71: SUM | BG71: SUM | BH71: SUM | BI71: SUM | BJ71: SUM | BK71: SUM | BL71: SUM | BM71: SUM | BN71: SUM | BO71: SUM
B72: =B71+1 -> 23 | C72: CKD leaving the kiln system | E72: [t/yr, dry weight] | G72: SUM | H72: SUM | I72: SUM | J72: SUM | K72: SUM | L72: SUM | M72: SUM | N72: SUM | O72: SUM | P72: SUM | Q72: SUM | R72: SUM | S72: SUM | T72: SUM | U72: SUM | V72: SUM | W72: SUM | X72: SUM | Y72: SUM | Z72: SUM | AA72: SUM | AB72: SUM | AC72: SUM | AD72: SUM | AE72: SUM | AF72: SUM | AG72: SUM | AH72: SUM | AI72: SUM | AJ72: SUM | AK72: SUM | AL72: SUM | AM72: SUM | AN72: SUM | AO72: SUM | AP72: SUM | AQ72: SUM | AR72: SUM | AS72: SUM | AT72: SUM | AU72: SUM | AV72: SUM | AW72: SUM | AX72: SUM | AY72: SUM | AZ72: SUM | BA72: SUM | BB72: SUM | BC72: SUM | BD72: SUM | BE72: SUM | BF72: SUM | BG72: SUM | BH72: SUM | BI72: SUM | BJ72: SUM | BK72: SUM | BL72: SUM | BM72: SUM | BN72: SUM | BO72: SUM
B73: =B72+1 -> 24 | C73: CKD calcination rate d | E73: [%] | G73: =IF(OR(G72="",G142=""),"",IF(G72=0,"not appl.",G142/G72/(G136/1000/(1+G136/1000)*(1+G142/G72)))) ->  | AG73: =IF(OR(AG72="",AG142=""),"",IF(AG72=0,"not appl.",AG142/AG72/(AG136/1000/(1+AG136/1000)*(1+AG142/AG72)))) ->  | AQ73: =IF(OR(AQ72="",AQ142=""),"",IF(AQ72=0,"not appl.",AQ142/AQ72/(AQ136/1000/(1+AQ136/1000)*(1+AQ142/AQ72)))) -> 
B75: Kiln Fuel Consumption incl. raw material and fuel drying | G75: =G$7 -> 1990 | H75: 1991 | I75: 1992 | J75: 1993 | K75: 1994 | L75: 1995 | M75: 1996 | N75: 1997 | O75: 1998 | P75: 1999 | Q75: 2000 | R75: 2001 | S75: 2002 | T75: 2003 | U75: 2004 | V75: 2005 | W75: 2006 | X75: 2007 | Y75: 2008 | Z75: 2009 | AA75: 2010 | AB75: 2011 | AC75: 2012 | AD75: 2013 | AE75: 2014 | AF75: 2015 | AG75: 2016 | AH75: 2017 | AI75: 2018 | AJ75: 2019 | AK75: 2020 | AL75: 2021 | AM75: 2022 | AN75: 2023 | AO75: 2024 | AP75: 2025 | AQ75: 2026 | AR75: 2027 | AS75: 2028 | AT75: 2029 | AU75: 2030 | AV75: 2031 | AW75: 2032 | AX75: 2033 | AY75: 2034 | AZ75: 2035 | BA75: 2036 | BB75: 2037 | BC75: 2038 | BD75: 2039 | BE75: 2040 | BF75: 2041 | BG75: 2042 | BH75: 2043 | BI75: 2044 | BJ75: 2045 | BK75: 2046 | BL75: 2047 | BM75: 2048 | BN75: 2049 | BO75: 2050
B76: 25 | C76: Total heat consumption of kilns | E76: [TJ/yr] | G76: =IF(COUNTBLANK(G78:G80)=3,"",SUM(G78:G80)) ->  | H76: =IF(COUNTBLANK(H78:H80)=3,"",SUM(H78:H80)) ->  | AL76: =IF(COUNTBLANK(AL78:AL80)=3,"",SUM(AL78:AL80)) ->  | AM76: =IF(COUNTBLANK(AM78:AM80)=3,"",SUM(AM78:AM80)) ->  | AN76: =IF(COUNTBLANK(AN78:AN80)=3,"",SUM(AN78:AN80)) ->  | AO76: =IF(COUNTBLANK(AO78:AO80)=3,"",SUM(AO78:AO80)) ->  | AP76: =IF(COUNTBLANK(AP78:AP80)=3,"",SUM(AP78:AP80)) ->  | AQ76: =IF(COUNTBLANK(AQ78:AQ80)=3,"",SUM(AQ78:AQ80)) -> 
B77: 25a | C77: Total heat consumption of kilns excluding drying of fuels and raw materials | E77: [TJ/yr] | G77: =IF(OR(G76="",G335="",G342="",G344=""),"",G76-G335-G342-G344) ->  | AL77: =IF(OR(AL76="",AL335="",AL342="",AL344=""),"",AL76-AL335-AL342-AL344) ->  | AM77: =IF(OR(AM76="",AM335="",AM342="",AM344=""),"",AM76-AM335-AM342-AM344) ->  | AN77: =IF(OR(AN76="",AN335="",AN342="",AN344=""),"",AN76-AN335-AN342-AN344) ->  | AO77: =IF(OR(AO76="",AO335="",AO342="",AO344=""),"",AO76-AO335-AO342-AO344) ->  | AP77: =IF(OR(AP76="",AP335="",AP342="",AP344=""),"",AP76-AP335-AP342-AP344) ->  | AQ77: =IF(OR(AQ76="",AQ335="",AQ342="",AQ344=""),"",AQ76-AQ335-AQ342-AQ344) -> 
B78: =B76+1 -> 26 | C78: Conventional fossil fuels | E78: [TJ/yr] | G78: =IF(OR(G308="",G335=""),"",G308+G335) ->  | H78: =IF(OR(H308="",H335=""),"",H308+H335) ->  | AG78: =IF(OR(AG308="",AG335=""),"",AG308+AG335) ->  | AQ78: =IF(OR(AQ308="",AQ335=""),"",AQ308+AQ335) -> 
B79: =B78+1 -> 27 | C79: Alternative fuels, fossil content; excluding biomass fraction of mixed fuels | E79: [TJ/yr] | G79: =IF(OR(G316="",G342=""),"",G316+G342) ->  | H79: =IF(OR(H316="",H342=""),"",H316+H342) ->  | AG79: =IF(OR(AG316="",AG342=""),"",AG316+AG342) ->  | AQ79: =IF(OR(AQ316="",AQ342=""),"",AQ316+AQ342) -> 
B80: =B79+1 -> 28 | C80: Biomass fuels, incl. biomass content of alternative fuels | E80: [TJ/yr] | G80: =IF(OR(G324="",G344=""),"",G324+G344) ->  | H80: =IF(OR(H324="",H344=""),"",H324+H344) ->  | AG80: =IF(OR(AG324="",AG344=""),"",AG324+AG344) ->  | AQ80: =IF(OR(AQ324="",AQ344=""),"",AQ324+AQ344) -> 
B82: Non-Kiln Fuel Consumption | G82: =G$7 -> 1990 | H82: 1991 | I82: 1992 | J82: 1993 | K82: 1994 | L82: 1995 | M82: 1996 | N82: 1997 | O82: 1998 | P82: 1999 | Q82: 2000 | R82: 2001 | S82: 2002 | T82: 2003 | U82: 2004 | V82: 2005 | W82: 2006 | X82: 2007 | Y82: 2008 | Z82: 2009 | AA82: 2010 | AB82: 2011 | AC82: 2012 | AD82: 2013 | AE82: 2014 | AF82: 2015 | AG82: 2016 | AH82: 2017 | AI82: 2018 | AJ82: 2019 | AK82: 2020 | AL82: 2021 | AM82: 2022 | AN82: 2023 | AO82: 2024 | AP82: 2025 | AQ82: 2026 | AR82: 2027 | AS82: 2028 | AT82: 2029 | AU82: 2030 | AV82: 2031 | AW82: 2032 | AX82: 2033 | AY82: 2034 | AZ82: 2035 | BA82: 2036 | BB82: 2037 | BC82: 2038 | BD82: 2039 | BE82: 2040 | BF82: 2041 | BG82: 2042 | BH82: 2043 | BI82: 2044 | BJ82: 2045 | BK82: 2046 | BL82: 2047 | BM82: 2048 | BN82: 2049 | BO82: 2050
B83: 30 | C83: Equipment and on-site vehicles | E83: [TJ/yr] | G83: =G502+G506 ->  | H83: =H502+H506 ->  | AL83: =AL502+AL506 ->  | AM83: =AM502+AM506 ->  | AN83: =AN502+AN506 ->  | AO83: =AO502+AO506 ->  | AP83: =AP502+AP506 ->  | AQ83: =AQ502+AQ506 -> 
B84: 31a | C84: Room heating and cooling | E84: [TJ/yr] | G84: =G508 ->  | H84: =H508 ->  | AG84: =AG508 ->  | AQ84: =AQ508 -> 
B85: 31b | C85: Drying of mineral components | E85: [TJ/yr] | G85: =IF(OR(G513="",G520="",G522=""),"",G513+G520+G522) ->  | H85: =IF(OR(H513="",H520="",H522=""),"",H513+H520+H522) ->  | AG85: =IF(OR(AG513="",AG520="",AG522=""),"",AG513+AG520+AG522) ->  | AQ85: =IF(OR(AQ513="",AQ520="",AQ522=""),"",AQ513+AQ520+AQ522) -> 
B86: 31c | C86: On-site power generation | E86: [TJ/yr] | G86: =IF(OR(G525="",G532="",G534=""),"",G525+G532+G534) ->  | H86: =IF(OR(H525="",H532="",H534=""),"",H525+H532+H534) ->  | AG86: =IF(OR(AG525="",AG532="",AG534=""),"",AG525+AG532+AG534) ->  | AQ86: =IF(OR(AQ525="",AQ532="",AQ534=""),"",AQ525+AQ532+AQ534) -> 
B87: 32 | C87: Total non-kiln fuel consumption | E87: [TJ/yr] | G87: =IF(COUNTBLANK(G83:G86)=4,"",SUM(G83:G86)) ->  | AG87: =IF(COUNTBLANK(AG83:AG86)=4,"",SUM(AG83:AG86)) ->  | AQ87: =IF(COUNTBLANK(AQ83:AQ86)=4,"",SUM(AQ83:AQ86)) -> 
B89: Power Balance | G89: =G$7 -> 1990 | H89: 1991 | I89: 1992 | J89: 1993 | K89: 1994 | L89: 1995 | M89: 1996 | N89: 1997 | O89: 1998 | P89: 1999 | Q89: 2000 | R89: 2001 | S89: 2002 | T89: 2003 | U89: 2004 | V89: 2005 | W89: 2006 | X89: 2007 | Y89: 2008 | Z89: 2009 | AA89: 2010 | AB89: 2011 | AC89: 2012 | AD89: 2013 | AE89: 2014 | AF89: 2015 | AG89: 2016 | AH89: 2017 | AI89: 2018 | AJ89: 2019 | AK89: 2020 | AL89: 2021 | AM89: 2022 | AN89: 2023 | AO89: 2024 | AP89: 2025 | AQ89: 2026 | AR89: 2027 | AS89: 2028 | AT89: 2029 | AU89: 2030 | AV89: 2031 | AW89: 2032 | AX89: 2033 | AY89: 2034 | AZ89: 2035 | BA89: 2036 | BB89: 2037 | BC89: 2038 | BD89: 2039 | BE89: 2040 | BF89: 2041 | BG89: 2042 | BH89: 2043 | BI89: 2044 | BJ89: 2045 | BK89: 2046 | BL89: 2047 | BM89: 2048 | BN89: 2049 | BO89: 2050
B90: 33a | C90: Total power production from separate on-site power generation | E90: [MWh/yr] | G90: SUM | H90: SUM | I90: SUM | J90: SUM | K90: SUM | L90: SUM | M90: SUM | N90: SUM | O90: SUM | P90: SUM | Q90: SUM | R90: SUM | S90: SUM | T90: SUM | U90: SUM | V90: SUM | W90: SUM | X90: SUM | Y90: SUM | Z90: SUM | AA90: SUM | AB90: SUM | AC90: SUM | AD90: SUM | AE90: SUM | AF90: SUM | AG90: SUM | AH90: SUM | AI90: SUM | AJ90: SUM | AK90: SUM | AL90: SUM | AM90: SUM | AN90: SUM | AO90: SUM | AP90: SUM | AQ90: SUM | AR90: SUM | AS90: SUM | AT90: SUM | AU90: SUM | AV90: SUM | AW90: SUM | AX90: SUM | AY90: SUM | AZ90: SUM | BA90: SUM | BB90: SUM | BC90: SUM | BD90: SUM | BE90: SUM | BF90: SUM | BG90: SUM | BH90: SUM | BI90: SUM | BJ90: SUM | BK90: SUM | BL90: SUM | BM90: SUM | BN90: SUM | BO90: SUM
B91: 33aa | C91: Power delivered to cement plant | E91: [MWh/yr] | G91: SUM | H91: SUM | I91: SUM | J91: SUM | K91: SUM | L91: SUM | M91: SUM | N91: SUM | O91: SUM | P91: SUM | Q91: SUM | R91: SUM | S91: SUM | T91: SUM | U91: SUM | V91: SUM | W91: SUM | X91: SUM | Y91: SUM | Z91: SUM | AA91: SUM | AB91: SUM | AC91: SUM | AD91: SUM | AE91: SUM | AF91: SUM | AG91: SUM | AH91: SUM | AI91: SUM | AJ91: SUM | AK91: SUM | AL91: SUM | AM91: SUM | AN91: SUM | AO91: SUM | AP91: SUM | AQ91: SUM | AR91: SUM | AS91: SUM | AT91: SUM | AU91: SUM | AV91: SUM | AW91: SUM | AX91: SUM | AY91: SUM | AZ91: SUM | BA91: SUM | BB91: SUM | BC91: SUM | BD91: SUM | BE91: SUM | BF91: SUM | BG91: SUM | BH91: SUM | BI91: SUM | BJ91: SUM | BK91: SUM | BL91: SUM | BM91: SUM | BN91: SUM | BO91: SUM
B92: 33ab | C92: Power delivered externally | E92: [MWh/yr] | G92: SUM | H92: SUM | I92: SUM | J92: SUM | K92: SUM | L92: SUM | M92: SUM | N92: SUM | O92: SUM | P92: SUM | Q92: SUM | R92: SUM | S92: SUM | T92: SUM | U92: SUM | V92: SUM | W92: SUM | X92: SUM | Y92: SUM | Z92: SUM | AA92: SUM | AB92: SUM | AC92: SUM | AD92: SUM | AE92: SUM | AF92: SUM | AG92: SUM | AH92: SUM | AI92: SUM | AJ92: SUM | AK92: SUM | AL92: SUM | AM92: SUM | AN92: SUM | AO92: SUM | AP92: SUM | AQ92: SUM | AR92: SUM | AS92: SUM | AT92: SUM | AU92: SUM | AV92: SUM | AW92: SUM | AX92: SUM | AY92: SUM | AZ92: SUM | BA92: SUM | BB92: SUM | BC92: SUM | BD92: SUM | BE92: SUM | BF92: SUM | BG92: SUM | BH92: SUM | BI92: SUM | BJ92: SUM | BK92: SUM | BL92: SUM | BM92: SUM | BN92: SUM | BO92: SUM
B93: 33ac | C93: Power consumed by on-site power generation equipment | E93: [MWh/yr] | G93: =IF(OR(G90="",G91="",G92=""),"",G90-G91-G92) ->  | H93: =IF(OR(H90="",H91="",H92=""),"",H90-H91-H92) ->  | AG93: =IF(OR(AG90="",AG91="",AG92=""),"",AG90-AG91-AG92) ->  | AQ93: =IF(OR(AQ90="",AQ91="",AQ92=""),"",AQ90-AQ91-AQ92) -> 
B94: 33ad | C94: CO2 per power unit produced by separate on-site power generation | E94: [kg CO2/MWh] | G94: =IF(G90=0,"",G155/G90*1000) ->  | H94: =IF(H90=0,"",H155/H90*1000) ->  | AG94: =IF(AG90=0,"",AG155/AG90*1000) ->  | AQ94: =IF(AQ90=0,"",AQ155/AQ90*1000) -> 
B95: 33b | C95: Total power production from waste heat recovery | E95: [MWh/yr] | G95: SUM | H95: SUM | I95: SUM | J95: SUM | K95: SUM | L95: SUM | M95: SUM | N95: SUM | O95: SUM | P95: SUM | Q95: SUM | R95: SUM | S95: SUM | T95: SUM | U95: SUM | V95: SUM | W95: SUM | X95: SUM | Y95: SUM | Z95: SUM | AA95: SUM | AB95: SUM | AC95: SUM | AD95: SUM | AE95: SUM | AF95: SUM | AG95: SUM | AH95: SUM | AI95: SUM | AJ95: SUM | AK95: SUM | AL95: SUM | AM95: SUM | AN95: SUM | AO95: SUM | AP95: SUM | AQ95: SUM | AR95: SUM | AS95: SUM | AT95: SUM | AU95: SUM | AV95: SUM | AW95: SUM | AX95: SUM | AY95: SUM | AZ95: SUM | BA95: SUM | BB95: SUM | BC95: SUM | BD95: SUM | BE95: SUM | BF95: SUM | BG95: SUM | BH95: SUM | BI95: SUM | BJ95: SUM | BK95: SUM | BL95: SUM | BM95: SUM | BN95: SUM | BO95: SUM
B96: 33ba | C96: Power delivered to cement plant | E96: [MWh/yr] | G96: SUM | H96: SUM | I96: SUM | J96: SUM | K96: SUM | L96: SUM | M96: SUM | N96: SUM | O96: SUM | P96: SUM | Q96: SUM | R96: SUM | S96: SUM | T96: SUM | U96: SUM | V96: SUM | W96: SUM | X96: SUM | Y96: SUM | Z96: SUM | AA96: SUM | AB96: SUM | AC96: SUM | AD96: SUM | AE96: SUM | AF96: SUM | AG96: SUM | AH96: SUM | AI96: SUM | AJ96: SUM | AK96: SUM | AL96: SUM | AM96: SUM | AN96: SUM | AO96: SUM | AP96: SUM | AQ96: SUM | AR96: SUM | AS96: SUM | AT96: SUM | AU96: SUM | AV96: SUM | AW96: SUM | AX96: SUM | AY96: SUM | AZ96: SUM | BA96: SUM | BB96: SUM | BC96: SUM | BD96: SUM | BE96: SUM | BF96: SUM | BG96: SUM | BH96: SUM | BI96: SUM | BJ96: SUM | BK96: SUM | BL96: SUM | BM96: SUM | BN96: SUM | BO96: SUM
B97: 33bb | C97: Power delivered externally | E97: [MWh/yr] | G97: SUM | H97: SUM | I97: SUM | J97: SUM | K97: SUM | L97: SUM | M97: SUM | N97: SUM | O97: SUM | P97: SUM | Q97: SUM | R97: SUM | S97: SUM | T97: SUM | U97: SUM | V97: SUM | W97: SUM | X97: SUM | Y97: SUM | Z97: SUM | AA97: SUM | AB97: SUM | AC97: SUM | AD97: SUM | AE97: SUM | AF97: SUM | AG97: SUM | AH97: SUM | AI97: SUM | AJ97: SUM | AK97: SUM | AL97: SUM | AM97: SUM | AN97: SUM | AO97: SUM | AP97: SUM | AQ97: SUM | AR97: SUM | AS97: SUM | AT97: SUM | AU97: SUM | AV97: SUM | AW97: SUM | AX97: SUM | AY97: SUM | AZ97: SUM | BA97: SUM | BB97: SUM | BC97: SUM | BD97: SUM | BE97: SUM | BF97: SUM | BG97: SUM | BH97: SUM | BI97: SUM | BJ97: SUM | BK97: SUM | BL97: SUM | BM97: SUM | BN97: SUM | BO97: SUM
B98: 33bc | C98: Power consumed by waste heat recovery equipment | E98: [MWh/yr] | G98: =IF(OR(G95="",G96="",G97=""),"",G95-G96-G97) ->  | H98: =IF(OR(H95="",H96="",H97=""),"",H95-H96-H97) ->  | AG98: =IF(OR(AG95="",AG96="",AG97=""),"",AG95-AG96-AG97) ->  | AQ98: =IF(OR(AQ95="",AQ96="",AQ97=""),"",AQ95-AQ96-AQ97) -> 
B99: 33c | C99: Total external power consumption for cement manufacturing | E99: [MWh/yr] | G99: =IF(COUNTBLANK(G100:G102)=3,"",SUM(G100:G102)) -> 0 | H99: =IF(COUNTBLANK(H100:H102)=3,"",SUM(H100:H102)) -> 0 | I99: 0 | J99: 0 | K99: 0 | L99: 0 | M99: 0 | N99: 0 | O99: 0 | P99: 0 | Q99: 0 | R99: 0 | S99: 0 | T99: 0 | U99: 0 | V99: 0 | W99: 0 | X99: 0 | Y99: 0 | Z99: 0 | AA99: 0 | AB99: 0 | AC99: 0 | AD99: 0 | AE99: 0 | AF99: 0 | AG99: =IF(COUNTBLANK(AG100:AG102)=3,"",SUM(AG100:AG102)) -> 0 | AH99: 0 | AI99: 0 | AJ99: 0 | AK99: 0 | AL99: 0 | AM99: 0 | AN99: 0 | AO99: 0 | AP99: 0 | AQ99: =IF(COUNTBLANK(AQ100:AQ102)=3,"",SUM(AQ100:AQ102)) -> 0 | AR99: 0 | AS99: 0 | AT99: 0 | AU99: 0 | AV99: 0 | AW99: 0 | AX99: 0 | AY99: 0 | AZ99: 0 | BA99: 0 | BB99: 0 | BC99: 0 | BD99: 0 | BE99: 0 | BF99: 0 | BG99: 0 | BH99: 0 | BI99: 0 | BJ99: 0 | BK99: 0 | BL99: 0 | BM99: 0 | BN99: 0 | BO99: 0
B100: 33ca | C100: External power delivered to cement plant | E100: [MWh/yr] | G100: SUM | H100: SUM | I100: SUM | J100: SUM | K100: SUM | L100: SUM | M100: SUM | N100: SUM | O100: SUM | P100: SUM | Q100: SUM | R100: SUM | S100: SUM | T100: SUM | U100: SUM | V100: SUM | W100: SUM | X100: SUM | Y100: SUM | Z100: SUM | AA100: SUM | AB100: SUM | AC100: SUM | AD100: SUM | AE100: SUM | AF100: SUM | AG100: SUM | AH100: SUM | AI100: SUM | AJ100: SUM | AK100: SUM | AL100: SUM | AM100: SUM | AN100: SUM | AO100: SUM | AP100: SUM | AQ100: SUM | AR100: SUM | AS100: SUM | AT100: SUM | AU100: SUM | AV100: SUM | AW100: SUM | AX100: SUM | AY100: SUM | AZ100: SUM | BA100: SUM | BB100: SUM | BC100: SUM | BD100: SUM | BE100: SUM | BF100: SUM | BG100: SUM | BH100: SUM | BI100: SUM | BJ100: SUM | BK100: SUM | BL100: SUM | BM100: SUM | BN100: SUM | BO100: SUM
B101: 33cb | C101: Cement-related external power delivered to on-site power generation plant | E101: [MWh/yr] | G101: SUM | H101: SUM | I101: SUM | J101: SUM | K101: SUM | L101: SUM | M101: SUM | N101: SUM | O101: SUM | P101: SUM | Q101: SUM | R101: SUM | S101: SUM | T101: SUM | U101: SUM | V101: SUM | W101: SUM | X101: SUM | Y101: SUM | Z101: SUM | AA101: SUM | AB101: SUM | AC101: SUM | AD101: SUM | AE101: SUM | AF101: SUM | AG101: SUM | AH101: SUM | AI101: SUM | AJ101: SUM | AK101: SUM | AL101: SUM | AM101: SUM | AN101: SUM | AO101: SUM | AP101: SUM | AQ101: SUM | AR101: SUM | AS101: SUM | AT101: SUM | AU101: SUM | AV101: SUM | AW101: SUM | AX101: SUM | AY101: SUM | AZ101: SUM | BA101: SUM | BB101: SUM | BC101: SUM | BD101: SUM | BE101: SUM | BF101: SUM | BG101: SUM | BH101: SUM | BI101: SUM | BJ101: SUM | BK101: SUM | BL101: SUM | BM101: SUM | BN101: SUM | BO101: SUM
B102: 33cc | C102: Cement-related external power delivered to waste heat recovery plant | E102: [MWh/yr] | G102: SUM | H102: SUM | I102: SUM | J102: SUM | K102: SUM | L102: SUM | M102: SUM | N102: SUM | O102: SUM | P102: SUM | Q102: SUM | R102: SUM | S102: SUM | T102: SUM | U102: SUM | V102: SUM | W102: SUM | X102: SUM | Y102: SUM | Z102: SUM | AA102: SUM | AB102: SUM | AC102: SUM | AD102: SUM | AE102: SUM | AF102: SUM | AG102: SUM | AH102: SUM | AI102: SUM | AJ102: SUM | AK102: SUM | AL102: SUM | AM102: SUM | AN102: SUM | AO102: SUM | AP102: SUM | AQ102: SUM | AR102: SUM | AS102: SUM | AT102: SUM | AU102: SUM | AV102: SUM | AW102: SUM | AX102: SUM | AY102: SUM | AZ102: SUM | BA102: SUM | BB102: SUM | BC102: SUM | BD102: SUM | BE102: SUM | BF102: SUM | BG102: SUM | BH102: SUM | BI102: SUM | BJ102: SUM | BK102: SUM | BL102: SUM | BM102: SUM | BN102: SUM | BO102: SUM
B103: 33d | C103: CO2 per power unit produced externally | E103: [kg CO2/MWh] | G103: =IF(AND(G99="",G162=""),"",IF(G99=0,"not appl.",G162/G99*1000)) -> not appl. | H103: =IF(AND(H99="",H162=""),"",IF(H99=0,"not appl.",H162/H99*1000)) -> not appl. | I103: not appl. | J103: not appl. | K103: not appl. | L103: not appl. | M103: not appl. | N103: not appl. | O103: not appl. | P103: not appl. | Q103: not appl. | R103: not appl. | S103: not appl. | T103: not appl. | U103: not appl. | V103: not appl. | W103: not appl. | X103: not appl. | Y103: not appl. | Z103: not appl. | AA103: not appl. | AB103: not appl. | AC103: not appl. | AD103: not appl. | AE103: not appl. | AF103: not appl. | AG103: =IF(AND(AG99="",AG162=""),"",IF(AG99=0,"not appl.",AG162/AG99*1000)) -> not appl. | AH103: not appl. | AI103: not appl. | AJ103: not appl. | AK103: not appl. | AL103: not appl. | AM103: not appl. | AN103: not appl. | AO103: not appl. | AP103: not appl. | AQ103: =IF(AND(AQ99="",AQ162=""),"",IF(AQ99=0,"not appl.",AQ162/AQ99*1000)) -> not appl. | AR103: not appl. | AS103: not appl. | AT103: not appl. | AU103: not appl. | AV103: not appl. | AW103: not appl. | AX103: not appl. | AY103: not appl. | AZ103: not appl. | BA103: not appl. | BB103: not appl. | BC103: not appl. | BD103: not appl. | BE103: not appl. | BF103: not appl. | BG103: not appl. | BH103: not appl. | BI103: not appl. | BJ103: not appl. | BK103: not appl. | BL103: not appl. | BM103: not appl. | BN103: not appl. | BO103: not appl.
B104: 33e | C104: Power consumption up to and including clinker production | E104: [MWh/yr] | G104: SUM | H104: SUM | I104: SUM | J104: SUM | K104: SUM | L104: SUM | M104: SUM | N104: SUM | O104: SUM | P104: SUM | Q104: SUM | R104: SUM | S104: SUM | T104: SUM | U104: SUM | V104: SUM | W104: SUM | X104: SUM | Y104: SUM | Z104: SUM | AA104: SUM | AB104: SUM | AC104: SUM | AD104: SUM | AE104: SUM | AF104: SUM | AG104: SUM | AH104: SUM | AI104: SUM | AJ104: SUM | AK104: SUM | AL104: SUM | AM104: SUM | AN104: SUM | AO104: SUM | AP104: SUM | AQ104: SUM | AR104: SUM | AS104: SUM | AT104: SUM | AU104: SUM | AV104: SUM | AW104: SUM | AX104: SUM | AY104: SUM | AZ104: SUM | BA104: SUM | BB104: SUM | BC104: SUM | BD104: SUM | BE104: SUM | BF104: SUM | BG104: SUM | BH104: SUM | BI104: SUM | BJ104: SUM | BK104: SUM | BL104: SUM | BM104: SUM | BN104: SUM | BO104: SUM
B105: 33 | C105: Total cement plant power consumption | E105: [MWh/yr] | G105: =IF(OR(G91="",G96="",G100=""),"",G91+G96+G100) ->  | H105: =IF(OR(H91="",H96="",H100=""),"",H91+H96+H100) ->  | AG105: =IF(OR(AG91="",AG96="",AG100=""),"",AG91+AG96+AG100) ->  | AQ105: =IF(OR(AQ91="",AQ96="",AQ100=""),"",AQ91+AQ96+AQ100) -> 
B107: Waste Heat Use | G107: =G$7 -> 1990 | H107: 1991 | I107: 1992 | J107: 1993 | K107: 1994 | L107: 1995 | M107: 1996 | N107: 1997 | O107: 1998 | P107: 1999 | Q107: 2000 | R107: 2001 | S107: 2002 | T107: 2003 | U107: 2004 | V107: 2005 | W107: 2006 | X107: 2007 | Y107: 2008 | Z107: 2009 | AA107: 2010 | AB107: 2011 | AC107: 2012 | AD107: 2013 | AE107: 2014 | AF107: 2015 | AG107: 2016 | AH107: 2017 | AI107: 2018 | AJ107: 2019 | AK107: 2020 | AL107: 2021 | AM107: 2022 | AN107: 2023 | AO107: 2024 | AP107: 2025 | AQ107: 2026 | AR107: 2027 | AS107: 2028 | AT107: 2029 | AU107: 2030 | AV107: 2031 | AW107: 2032 | AX107: 2033 | AY107: 2034 | AZ107: 2035 | BA107: 2036 | BB107: 2037 | BC107: 2038 | BD107: 2039 | BE107: 2040 | BF107: 2041 | BG107: 2042 | BH107: 2043 | BI107: 2044 | BJ107: 2045 | BK107: 2046 | BL107: 2047 | BM107: 2048 | BN107: 2049 | BO107: 2050
B108: 34 | C108: Waste heat supplied to external consumers | E108: [GJ/yr] | G108: SUM | H108: SUM | I108: SUM | J108: SUM | K108: SUM | L108: SUM | M108: SUM | N108: SUM | O108: SUM | P108: SUM | Q108: SUM | R108: SUM | S108: SUM | T108: SUM | U108: SUM | V108: SUM | W108: SUM | X108: SUM | Y108: SUM | Z108: SUM | AA108: SUM | AB108: SUM | AC108: SUM | AD108: SUM | AE108: SUM | AF108: SUM | AG108: SUM | AH108: SUM | AI108: SUM | AJ108: SUM | AK108: SUM | AL108: SUM | AM108: SUM | AN108: SUM | AO108: SUM | AP108: SUM | AQ108: SUM | AR108: SUM | AS108: SUM | AT108: SUM | AU108: SUM | AV108: SUM | AW108: SUM | AX108: SUM | AY108: SUM | AZ108: SUM | BA108: SUM | BB108: SUM | BC108: SUM | BD108: SUM | BE108: SUM | BF108: SUM | BG108: SUM | BH108: SUM | BI108: SUM | BJ108: SUM | BK108: SUM | BL108: SUM | BM108: SUM | BN108: SUM | BO108: SUM
B109: 34a | C109: Waste heat used internally (incl. power generation) | E109: [GJ/yr] | G109: SUM | H109: SUM | I109: SUM | J109: SUM | K109: SUM | L109: SUM | M109: SUM | N109: SUM | O109: SUM | P109: SUM | Q109: SUM | R109: SUM | S109: SUM | T109: SUM | U109: SUM | V109: SUM | W109: SUM | X109: SUM | Y109: SUM | Z109: SUM | AA109: SUM | AB109: SUM | AC109: SUM | AD109: SUM | AE109: SUM | AF109: SUM | AG109: SUM | AH109: SUM | AI109: SUM | AJ109: SUM | AK109: SUM | AL109: SUM | AM109: SUM | AN109: SUM | AO109: SUM | AP109: SUM | AQ109: SUM | AR109: SUM | AS109: SUM | AT109: SUM | AU109: SUM | AV109: SUM | AW109: SUM | AX109: SUM | AY109: SUM | AZ109: SUM | BA109: SUM | BB109: SUM | BC109: SUM | BD109: SUM | BE109: SUM | BF109: SUM | BG109: SUM | BH109: SUM | BI109: SUM | BJ109: SUM | BK109: SUM | BL109: SUM | BM109: SUM | BN109: SUM | BO109: SUM
A111: CO2 EMISSIONS
A134: Direct CO2 Emissions
B135: CO2 from Raw Materials | G135: =G$7 -> 1990 | H135: 1991 | I135: 1992 | J135: 1993 | K135: 1994 | L135: 1995 | M135: 1996 | N135: 1997 | O135: 1998 | P135: 1999 | Q135: 2000 | R135: 2001 | S135: 2002 | T135: 2003 | U135: 2004 | V135: 2005 | W135: 2006 | X135: 2007 | Y135: 2008 | Z135: 2009 | AA135: 2010 | AB135: 2011 | AC135: 2012 | AD135: 2013 | AE135: 2014 | AF135: 2015 | AG135: 2016 | AH135: 2017 | AI135: 2018 | AJ135: 2019 | AK135: 2020 | AL135: 2021 | AM135: 2022 | AN135: 2023 | AO135: 2024 | AP135: 2025 | AQ135: 2026 | AR135: 2027 | AS135: 2028 | AT135: 2029 | AU135: 2030 | AV135: 2031 | AW135: 2032 | AX135: 2033 | AY135: 2034 | AZ135: 2035 | BA135: 2036 | BB135: 2037 | BC135: 2038 | BD135: 2039 | BE135: 2040 | BF135: 2041 | BG135: 2042 | BH135: 2043 | BI135: 2044 | BJ135: 2045 | BK135: 2046 | BL135: 2047 | BM135: 2048 | BN135: 2049 | BO135: 2050
B136: 35a | C136: Calcination emission factor, corrected for CaO- and MgO imports | E136: [kg CO2/t cli] | G136: =IF(OR(G140="",G40=""),"",IF(G40=0,"not appl.",G140/G40*1000)) ->  | AL136: =IF(OR(AL140="",AL40=""),"",IF(AL40=0,"not appl.",AL140/AL40*1000)) ->  | AM136: =IF(OR(AM140="",AM40=""),"",IF(AM40=0,"not appl.",AM140/AM40*1000)) ->  | AN136: =IF(OR(AN140="",AN40=""),"",IF(AN40=0,"not appl.",AN140/AN40*1000)) ->  | AO136: =IF(OR(AO140="",AO40=""),"",IF(AO40=0,"not appl.",AO140/AO40*1000)) ->  | AP136: =IF(OR(AP140="",AP40=""),"",IF(AP40=0,"not appl.",AP140/AP40*1000)) ->  | AQ136: =IF(OR(AQ140="",AQ40=""),"",IF(AQ40=0,"not appl.",AQ140/AQ40*1000)) -> 
B137: 35b | C137: Organic carbon content of raw meal (average) | E137: [%, dry weight] | G137: =IF(OR(G139="",G143=""),"",IF(G139=0,"not appl.",G143/3.664/G139)) ->  | H137: =IF(OR(H139="",H143=""),"",IF(H139=0,"not appl.",H143/3.664/H139)) ->  | AG137: =IF(OR(AG139="",AG143=""),"",IF(AG139=0,"not appl.",AG143/3.664/AG139)) ->  | AQ137: =IF(OR(AQ139="",AQ143=""),"",IF(AQ139=0,"not appl.",AQ143/3.664/AQ139)) -> 
B138: 35c | C138: Raw meal : clinker ratio | E138: [--, dry weight] | G138: =IF(G40="","",IF(G40=0,"not appl.",G139/G40)) ->  | AL138: =IF(AL40="","",IF(AL40=0,"not appl.",AL139/AL40)) ->  | AM138: =IF(AM40="","",IF(AM40=0,"not appl.",AM139/AM40)) ->  | AN138: =IF(AN40="","",IF(AN40=0,"not appl.",AN139/AN40)) ->  | AO138: =IF(AO40="","",IF(AO40=0,"not appl.",AO139/AO40)) ->  | AP138: =IF(AP40="","",IF(AP40=0,"not appl.",AP139/AP40)) ->  | AQ138: =IF(AQ40="","",IF(AQ40=0,"not appl.",AQ139/AQ40)) -> 
B139: 35d | C139: Raw meal consumption | E139: [t/yr, dry weight] | G139: SUM | H139: SUM | I139: SUM | J139: SUM | K139: SUM | L139: SUM | M139: SUM | N139: SUM | O139: SUM | P139: SUM | Q139: SUM | R139: SUM | S139: SUM | T139: SUM | U139: SUM | V139: SUM | W139: SUM | X139: SUM | Y139: SUM | Z139: SUM | AA139: SUM | AB139: SUM | AC139: SUM | AD139: SUM | AE139: SUM | AF139: SUM | AG139: SUM | AH139: SUM | AI139: SUM | AJ139: SUM | AK139: SUM | AL139: SUM | AM139: SUM | AN139: SUM | AO139: SUM | AP139: SUM | AQ139: SUM | AR139: SUM | AS139: SUM | AT139: SUM | AU139: SUM | AV139: SUM | AW139: SUM | AX139: SUM | AY139: SUM | AZ139: SUM | BA139: SUM | BB139: SUM | BC139: SUM | BD139: SUM | BE139: SUM | BF139: SUM | BG139: SUM | BH139: SUM | BI139: SUM | BJ139: SUM | BK139: SUM | BL139: SUM | BM139: SUM | BN139: SUM | BO139: SUM
B140: 36 | C140: CO2 from calcination of raw materials consumed for clinker production | E140: [t CO2/yr] | G140: SUM | H140: SUM | I140: SUM | J140: SUM | K140: SUM | L140: SUM | M140: SUM | N140: SUM | O140: SUM | P140: SUM | Q140: SUM | R140: SUM | S140: SUM | T140: SUM | U140: SUM | V140: SUM | W140: SUM | X140: SUM | Y140: SUM | Z140: SUM | AA140: SUM | AB140: SUM | AC140: SUM | AD140: SUM | AE140: SUM | AF140: SUM | AG140: SUM | AH140: SUM | AI140: SUM | AJ140: SUM | AK140: SUM | AL140: SUM | AM140: SUM | AN140: SUM | AO140: SUM | AP140: SUM | AQ140: SUM | AR140: SUM | AS140: SUM | AT140: SUM | AU140: SUM | AV140: SUM | AW140: SUM | AX140: SUM | AY140: SUM | AZ140: SUM | BA140: SUM | BB140: SUM | BC140: SUM | BD140: SUM | BE140: SUM | BF140: SUM | BG140: SUM | BH140: SUM | BI140: SUM | BJ140: SUM | BK140: SUM | BL140: SUM | BM140: SUM | BN140: SUM | BO140: SUM
B141: =B140+1 -> 37 | C141: CO2 from calcination of bypass dust leaving the kiln system | E141: [t CO2/yr] | G141: SUM | H141: SUM | I141: SUM | J141: SUM | K141: SUM | L141: SUM | M141: SUM | N141: SUM | O141: SUM | P141: SUM | Q141: SUM | R141: SUM | S141: SUM | T141: SUM | U141: SUM | V141: SUM | W141: SUM | X141: SUM | Y141: SUM | Z141: SUM | AA141: SUM | AB141: SUM | AC141: SUM | AD141: SUM | AE141: SUM | AF141: SUM | AG141: SUM | AH141: SUM | AI141: SUM | AJ141: SUM | AK141: SUM | AL141: SUM | AM141: SUM | AN141: SUM | AO141: SUM | AP141: SUM | AQ141: SUM | AR141: SUM | AS141: SUM | AT141: SUM | AU141: SUM | AV141: SUM | AW141: SUM | AX141: SUM | AY141: SUM | AZ141: SUM | BA141: SUM | BB141: SUM | BC141: SUM | BD141: SUM | BE141: SUM | BF141: SUM | BG141: SUM | BH141: SUM | BI141: SUM | BJ141: SUM | BK141: SUM | BL141: SUM | BM141: SUM | BN141: SUM | BO141: SUM
B142: 38a | C142: CO2 from calcination of CKD leaving the kiln system | E142: [t CO2/yr] | G142: SUM | H142: SUM | I142: SUM | J142: SUM | K142: SUM | L142: SUM | M142: SUM | N142: SUM | O142: SUM | P142: SUM | Q142: SUM | R142: SUM | S142: SUM | T142: SUM | U142: SUM | V142: SUM | W142: SUM | X142: SUM | Y142: SUM | Z142: SUM | AA142: SUM | AB142: SUM | AC142: SUM | AD142: SUM | AE142: SUM | AF142: SUM | AG142: SUM | AH142: SUM | AI142: SUM | AJ142: SUM | AK142: SUM | AL142: SUM | AM142: SUM | AN142: SUM | AO142: SUM | AP142: SUM | AQ142: SUM | AR142: SUM | AS142: SUM | AT142: SUM | AU142: SUM | AV142: SUM | AW142: SUM | AX142: SUM | AY142: SUM | AZ142: SUM | BA142: SUM | BB142: SUM | BC142: SUM | BD142: SUM | BE142: SUM | BF142: SUM | BG142: SUM | BH142: SUM | BI142: SUM | BJ142: SUM | BK142: SUM | BL142: SUM | BM142: SUM | BN142: SUM | BO142: SUM
B143: 38b | C143: CO2 from organic carbon content of raw meal | E143: [t CO2/yr] | G143: SUM | H143: SUM | I143: SUM | J143: SUM | K143: SUM | L143: SUM | M143: SUM | N143: SUM | O143: SUM | P143: SUM | Q143: SUM | R143: SUM | S143: SUM | T143: SUM | U143: SUM | V143: SUM | W143: SUM | X143: SUM | Y143: SUM | Z143: SUM | AA143: SUM | AB143: SUM | AC143: SUM | AD143: SUM | AE143: SUM | AF143: SUM | AG143: SUM | AH143: SUM | AI143: SUM | AJ143: SUM | AK143: SUM | AL143: SUM | AM143: SUM | AN143: SUM | AO143: SUM | AP143: SUM | AQ143: SUM | AR143: SUM | AS143: SUM | AT143: SUM | AU143: SUM | AV143: SUM | AW143: SUM | AX143: SUM | AY143: SUM | AZ143: SUM | BA143: SUM | BB143: SUM | BC143: SUM | BD143: SUM | BE143: SUM | BF143: SUM | BG143: SUM | BH143: SUM | BI143: SUM | BJ143: SUM | BK143: SUM | BL143: SUM | BM143: SUM | BN143: SUM | BO143: SUM
B144: 39 | C144: Total CO2 from raw materials | E144: [t CO2/yr] | G144: SUM | H144: SUM | I144: SUM | J144: SUM | K144: SUM | L144: SUM | M144: SUM | N144: SUM | O144: SUM | P144: SUM | Q144: SUM | R144: SUM | S144: SUM | T144: SUM | U144: SUM | V144: SUM | W144: SUM | X144: SUM | Y144: SUM | Z144: SUM | AA144: SUM | AB144: SUM | AC144: SUM | AD144: SUM | AE144: SUM | AF144: SUM | AG144: SUM | AH144: SUM | AI144: SUM | AJ144: SUM | AK144: SUM | AL144: SUM | AM144: SUM | AN144: SUM | AO144: SUM | AP144: SUM | AQ144: SUM | AR144: SUM | AS144: SUM | AT144: SUM | AU144: SUM | AV144: SUM | AW144: SUM | AX144: SUM | AY144: SUM | AZ144: SUM | BA144: SUM | BB144: SUM | BC144: SUM | BD144: SUM | BE144: SUM | BF144: SUM | BG144: SUM | BH144: SUM | BI144: SUM | BJ144: SUM | BK144: SUM | BL144: SUM | BM144: SUM | BN144: SUM | BO144: SUM
B146: CO2 from Kiln Fuels (incl. drying of fuels and raw materials) | G146: =G$7 -> 1990 | H146: 1991 | I146: 1992 | J146: 1993 | K146: 1994 | L146: 1995 | M146: 1996 | N146: 1997 | O146: 1998 | P146: 1999 | Q146: 2000 | R146: 2001 | S146: 2002 | T146: 2003 | U146: 2004 | V146: 2005 | W146: 2006 | X146: 2007 | Y146: 2008 | Z146: 2009 | AA146: 2010 | AB146: 2011 | AC146: 2012 | AD146: 2013 | AE146: 2014 | AF146: 2015 | AG146: 2016 | AH146: 2017 | AI146: 2018 | AJ146: 2019 | AK146: 2020 | AL146: 2021 | AM146: 2022 | AN146: 2023 | AO146: 2024 | AP146: 2025 | AQ146: 2026 | AR146: 2027 | AS146: 2028 | AT146: 2029 | AU146: 2030 | AV146: 2031 | AW146: 2032 | AX146: 2033 | AY146: 2034 | AZ146: 2035 | BA146: 2036 | BB146: 2037 | BC146: 2038 | BD146: 2039 | BE146: 2040 | BF146: 2041 | BG146: 2042 | BH146: 2043 | BI146: 2044 | BJ146: 2045 | BK146: 2046 | BL146: 2047 | BM146: 2048 | BN146: 2049 | BO146: 2050
B147: =B144+1 -> 40 | C147: CO2 from conventional fossil fuels | E147: [t CO2/yr] | G147: =IF(OR(G388="",G415=""),"",G388+G415) ->  | H147: =IF(OR(H388="",H415=""),"",H388+H415) ->  | AG147: =IF(OR(AG388="",AG415=""),"",AG388+AG415) ->  | AQ147: =IF(OR(AQ388="",AQ415=""),"",AQ388+AQ415) -> 
B148: =B147+1 -> 41 | C148: CO2 from alternative fossil fuels | E148: [t CO2/yr] | G148: =IF(OR(G396="",G422=""),"",G396+G422) ->  | H148: =IF(OR(H396="",H422=""),"",H396+H422) ->  | AG148: =IF(OR(AG396="",AG422=""),"",AG396+AG422) ->  | AQ148: =IF(OR(AQ396="",AQ422=""),"",AQ396+AQ422) -> 
B149: 43 | C149: Total CO2 from fossil-based kiln fuels | E149: [t CO2/yr] | G149: =IF(COUNTBLANK(G147:G148)=2,"",SUM(G147:G148)) ->  | AG149: =IF(COUNTBLANK(AG147:AG148)=2,"",SUM(AG147:AG148)) ->  | AQ149: =IF(COUNTBLANK(AQ147:AQ148)=2,"",SUM(AQ147:AQ148)) -> 
B151: CO2 from Non-Kiln Fuels | G151: =G$7 -> 1990 | H151: 1991 | I151: 1992 | J151: 1993 | K151: 1994 | L151: 1995 | M151: 1996 | N151: 1997 | O151: 1998 | P151: 1999 | Q151: 2000 | R151: 2001 | S151: 2002 | T151: 2003 | U151: 2004 | V151: 2005 | W151: 2006 | X151: 2007 | Y151: 2008 | Z151: 2009 | AA151: 2010 | AB151: 2011 | AC151: 2012 | AD151: 2013 | AE151: 2014 | AF151: 2015 | AG151: 2016 | AH151: 2017 | AI151: 2018 | AJ151: 2019 | AK151: 2020 | AL151: 2021 | AM151: 2022 | AN151: 2023 | AO151: 2024 | AP151: 2025 | AQ151: 2026 | AR151: 2027 | AS151: 2028 | AT151: 2029 | AU151: 2030 | AV151: 2031 | AW151: 2032 | AX151: 2033 | AY151: 2034 | AZ151: 2035 | BA151: 2036 | BB151: 2037 | BC151: 2038 | BD151: 2039 | BE151: 2040 | BF151: 2041 | BG151: 2042 | BH151: 2043 | BI151: 2044 | BJ151: 2045 | BK151: 2046 | BL151: 2047 | BM151: 2048 | BN151: 2049 | BO151: 2050
B152: 44 | C152: CO2 from equipment and on-site vehicles (fossil fuels) | E152: [t CO2/yr] | G152: =G538 ->  | H152: =H538 ->  | AG152: =AG538 ->  | AQ152: =AQ538 -> 
B153: 45a | C153: CO2 from room heating and cooling (fossil fuels) | E153: [t CO2/yr] | G153: =G544 ->  | H153: =H544 ->  | AG153: =AG544 ->  | AQ153: =AQ544 -> 
B154: 45b | C154: CO2 from drying of mineral components (fossil fuels) | E154: [t CO2/yr] | G154: =IF(OR(G549="",G556=""),"",G549+G556) ->  | H154: =IF(OR(H549="",H556=""),"",H549+H556) ->  | AG154: =IF(OR(AG549="",AG556=""),"",AG549+AG556) ->  | AQ154: =IF(OR(AQ549="",AQ556=""),"",AQ549+AQ556) -> 
B155: 45c | C155: CO2 from seperate on-site power generation (fossil fuels) | E155: [t CO2/yr] | G155: =IF(OR(G561="",G568=""),"",G561+G568) ->  | H155: =IF(OR(H561="",H568=""),"",H561+H568) ->  | AG155: =IF(OR(AG561="",AG568=""),"",AG561+AG568) ->  | AQ155: =IF(OR(AQ561="",AQ568=""),"",AQ561+AQ568) -> 
B156: 46 | C156: Total CO2 from non-kiln fossil fuels | E156: [t CO2/yr] | G156: =IF(COUNTBLANK(G152:G155)=4,"",SUM(G152:G155)) ->  | AG156: =IF(COUNTBLANK(AG152:AG155)=4,"",SUM(AG152:AG155)) ->  | AQ156: =IF(COUNTBLANK(AQ152:AQ155)=4,"",SUM(AQ152:AQ155)) -> 
B158: Total Direct CO2 Emissions | G158: =G$7 -> 1990 | H158: 1991 | I158: 1992 | J158: 1993 | K158: 1994 | L158: 1995 | M158: 1996 | N158: 1997 | O158: 1998 | P158: 1999 | Q158: 2000 | R158: 2001 | S158: 2002 | T158: 2003 | U158: 2004 | V158: 2005 | W158: 2006 | X158: 2007 | Y158: 2008 | Z158: 2009 | AA158: 2010 | AB158: 2011 | AC158: 2012 | AD158: 2013 | AE158: 2014 | AF158: 2015 | AG158: 2016 | AH158: 2017 | AI158: 2018 | AJ158: 2019 | AK158: 2020 | AL158: 2021 | AM158: 2022 | AN158: 2023 | AO158: 2024 | AP158: 2025 | AQ158: 2026 | AR158: 2027 | AS158: 2028 | AT158: 2029 | AU158: 2030 | AV158: 2031 | AW158: 2032 | AX158: 2033 | AY158: 2034 | AZ158: 2035 | BA158: 2036 | BB158: 2037 | BC158: 2038 | BD158: 2039 | BE158: 2040 | BF158: 2041 | BG158: 2042 | BH158: 2043 | BI158: 2044 | BJ158: 2045 | BK158: 2046 | BL158: 2047 | BM158: 2048 | BN158: 2049 | BO158: 2050
B159: 48 | C159: Total direct CO2: all fossil CO2 sources | E159: [t CO2/yr] | G159: =IF(OR(G144="",G149="",G156=""),"",G144+G149+G156) ->  | H159: =IF(OR(H144="",H149="",H156=""),"",H144+H149+H156) ->  | AG159: =IF(OR(AG144="",AG149="",AG156=""),"",AG144+AG149+AG156) ->  | AQ159: =IF(OR(AQ144="",AQ149="",AQ156=""),"",AQ144+AQ149+AQ156) -> 
A161: Indirect CO2 Emissions (Main Sources) | G161: =G$7 -> 1990 | H161: 1991 | I161: 1992 | J161: 1993 | K161: 1994 | L161: 1995 | M161: 1996 | N161: 1997 | O161: 1998 | P161: 1999 | Q161: 2000 | R161: 2001 | S161: 2002 | T161: 2003 | U161: 2004 | V161: 2005 | W161: 2006 | X161: 2007 | Y161: 2008 | Z161: 2009 | AA161: 2010 | AB161: 2011 | AC161: 2012 | AD161: 2013 | AE161: 2014 | AF161: 2015 | AG161: 2016 | AH161: 2017 | AI161: 2018 | AJ161: 2019 | AK161: 2020 | AL161: 2021 | AM161: 2022 | AN161: 2023 | AO161: 2024 | AP161: 2025 | AQ161: 2026 | AR161: 2027 | AS161: 2028 | AT161: 2029 | AU161: 2030 | AV161: 2031 | AW161: 2032 | AX161: 2033 | AY161: 2034 | AZ161: 2035 | BA161: 2036 | BB161: 2037 | BC161: 2038 | BD161: 2039 | BE161: 2040 | BF161: 2041 | BG161: 2042 | BH161: 2043 | BI161: 2044 | BJ161: 2045 | BK161: 2046 | BL161: 2047 | BM161: 2048 | BN161: 2049 | BO161: 2050
B162: 49a | C162: CO2 from external power generation | E162: [t CO2/yr] | G162: SUM | H162: SUM | I162: SUM | J162: SUM | K162: SUM | L162: SUM | M162: SUM | N162: SUM | O162: SUM | P162: SUM | Q162: SUM | R162: SUM | S162: SUM | T162: SUM | U162: SUM | V162: SUM | W162: SUM | X162: SUM | Y162: SUM | Z162: SUM | AA162: SUM | AB162: SUM | AC162: SUM | AD162: SUM | AE162: SUM | AF162: SUM | AG162: SUM | AH162: SUM | AI162: SUM | AJ162: SUM | AK162: SUM | AL162: SUM | AM162: SUM | AN162: SUM | AO162: SUM | AP162: SUM | AQ162: SUM | AR162: SUM | AS162: SUM | AT162: SUM | AU162: SUM | AV162: SUM | AW162: SUM | AX162: SUM | AY162: SUM | AZ162: SUM | BA162: SUM | BB162: SUM | BC162: SUM | BD162: SUM | BE162: SUM | BF162: SUM | BG162: SUM | BH162: SUM | BI162: SUM | BJ162: SUM | BK162: SUM | BL162: SUM | BM162: SUM | BN162: SUM | BO162: SUM
B163: 49b | C163: Emission factor for inbound clinker | E163: [kg CO2/t cli] | G163: =IF(AND(G164="",G41="",G42=""),"",IF(G41-G42=0,"not appl.",G164/(G41-G42)*1000)) ->  | H163: =IF(AND(H164="",H41="",H42=""),"",IF(H41-H42=0,"not appl.",H164/(H41-H42)*1000)) ->  | AL163: =IF(AND(AL164="",AL41="",AL42=""),"",IF(AL41-AL42=0,"not appl.",AL164/(AL41-AL42)*1000)) ->  | AM163: =IF(AND(AM164="",AM41="",AM42=""),"",IF(AM41-AM42=0,"not appl.",AM164/(AM41-AM42)*1000)) ->  | AN163: =IF(AND(AN164="",AN41="",AN42=""),"",IF(AN41-AN42=0,"not appl.",AN164/(AN41-AN42)*1000)) ->  | AO163: =IF(AND(AO164="",AO41="",AO42=""),"",IF(AO41-AO42=0,"not appl.",AO164/(AO41-AO42)*1000)) ->  | AP163: =IF(AND(AP164="",AP41="",AP42=""),"",IF(AP41-AP42=0,"not appl.",AP164/(AP41-AP42)*1000)) ->  | AQ163: =IF(AND(AQ164="",AQ41="",AQ42=""),"",IF(AQ41-AQ42=0,"not appl.",AQ164/(AQ41-AQ42)*1000)) -> 
B164: 49c | C164: CO2 from net inbound (+) / outbound (-) clinker | E164: [t CO2/yr] | G164: SUM | H164: SUM | I164: SUM | J164: SUM | K164: SUM | L164: SUM | M164: SUM | N164: SUM | O164: SUM | P164: SUM | Q164: SUM | R164: SUM | S164: SUM | T164: SUM | U164: SUM | V164: SUM | W164: SUM | X164: SUM | Y164: SUM | Z164: SUM | AA164: SUM | AB164: SUM | AC164: SUM | AD164: SUM | AE164: SUM | AF164: SUM | AG164: SUM | AH164: SUM | AI164: SUM | AJ164: SUM | AK164: SUM | AL164: SUM | AM164: SUM | AN164: SUM | AO164: SUM | AP164: SUM | AQ164: SUM | AR164: SUM | AS164: SUM | AT164: SUM | AU164: SUM | AV164: SUM | AW164: SUM | AX164: SUM | AY164: SUM | AZ164: SUM | BA164: SUM | BB164: SUM | BC164: SUM | BD164: SUM | BE164: SUM | BF164: SUM | BG164: SUM | BH164: SUM | BI164: SUM | BJ164: SUM | BK164: SUM | BL164: SUM | BM164: SUM | BN164: SUM | BO164: SUM
B165: 49d | C165: Total indirect CO2 (main sources) | E165: [t CO2/yr] | G165: =IF(AND(G162="",G164=""),"",G162+G164) ->  | AG165: =IF(AND(AG162="",AG164=""),"",AG162+AG164) ->  | AQ165: =IF(AND(AQ162="",AQ164=""),"",AQ162+AQ164) -> 
A167: Direct CO2 from Biomass (Memo Item) | G167: =G$7 -> 1990 | H167: 1991 | I167: 1992 | J167: 1993 | K167: 1994 | L167: 1995 | M167: 1996 | N167: 1997 | O167: 1998 | P167: 1999 | Q167: 2000 | R167: 2001 | S167: 2002 | T167: 2003 | U167: 2004 | V167: 2005 | W167: 2006 | X167: 2007 | Y167: 2008 | Z167: 2009 | AA167: 2010 | AB167: 2011 | AC167: 2012 | AD167: 2013 | AE167: 2014 | AF167: 2015 | AG167: 2016 | AH167: 2017 | AI167: 2018 | AJ167: 2019 | AK167: 2020 | AL167: 2021 | AM167: 2022 | AN167: 2023 | AO167: 2024 | AP167: 2025 | AQ167: 2026 | AR167: 2027 | AS167: 2028 | AT167: 2029 | AU167: 2030 | AV167: 2031 | AW167: 2032 | AX167: 2033 | AY167: 2034 | AZ167: 2035 | BA167: 2036 | BB167: 2037 | BC167: 2038 | BD167: 2039 | BE167: 2040 | BF167: 2041 | BG167: 2042 | BH167: 2043 | BI167: 2044 | BJ167: 2045 | BK167: 2046 | BL167: 2047 | BM167: 2048 | BN167: 2049 | BO167: 2050
B168: 50 | C168: CO2 from combustion of biomass (kiln and non-kiln fuels, incl. biomass content of mixed fuels) | E168: [t CO2/yr] | G168: =IF(OR(G404="",G559="",G571=""),"",G404+G424+G558+G570) ->  | AL168: =IF(OR(AL404="",AL559="",AL571=""),"",AL404+AL424+AL558+AL570) ->  | AM168: =IF(OR(AM404="",AM559="",AM571=""),"",AM404+AM424+AM558+AM570) ->  | AN168: =IF(OR(AN404="",AN559="",AN571=""),"",AN404+AN424+AN558+AN570) ->  | AO168: =IF(OR(AO404="",AO559="",AO571=""),"",AO404+AO424+AO558+AO570) ->  | AP168: =IF(OR(AP404="",AP559="",AP571=""),"",AP404+AP424+AP558+AP570) ->  | AQ168: =IF(OR(AQ404="",AQ559="",AQ571=""),"",AQ404+AQ424+AQ558+AQ570) -> 
A170: PERFORMANCE INDICATORS
B172: Absolute Direct CO2 Emissions | G172: =G$7 -> 1990 | H172: 1991 | I172: 1992 | J172: 1993 | K172: 1994 | L172: 1995 | M172: 1996 | N172: 1997 | O172: 1998 | P172: 1999 | Q172: 2000 | R172: 2001 | S172: 2002 | T172: 2003 | U172: 2004 | V172: 2005 | W172: 2006 | X172: 2007 | Y172: 2008 | Z172: 2009 | AA172: 2010 | AB172: 2011 | AC172: 2012 | AD172: 2013 | AE172: 2014 | AF172: 2015 | AG172: 2016 | AH172: 2017 | AI172: 2018 | AJ172: 2019 | AK172: 2020 | AL172: 2021 | AM172: =AM$7 -> 2022 | AN172: 2023 | AO172: 2024 | AP172: 2025 | AQ172: 2026 | AR172: 2027 | AS172: 2028 | AT172: 2029 | AU172: 2030 | AV172: 2031 | AW172: 2032 | AX172: 2033 | AY172: 2034 | AZ172: 2035 | BA172: 2036 | BB172: =BB$7 -> 2037 | BC172: 2038 | BD172: 2039 | BE172: 2040 | BF172: 2041 | BG172: 2042 | BH172: 2043 | BI172: 2044 | BJ172: 2045 | BK172: 2046 | BL172: 2047 | BM172: 2048 | BN172: 2049 | BO172: 2050
B173: 59 | C173: Absolute gross CO2 including CO2 from on-site power generation | E173: [t CO2/yr] | G173: =IF(OR(G144="",G149="",G156=""),"",G144+G149+G156) ->  | H173: =IF(OR(H144="",H149="",H156=""),"",H144+H149+H156) ->  | AL173: =IF(OR(AL144="",AL149="",AL156=""),"",AL144+AL149+AL156) ->  | AM173: =IF(OR(AM144="",AM149="",AM156=""),"",AM144+AM149+AM156) ->  | AN173: =IF(OR(AN144="",AN149="",AN156=""),"",AN144+AN149+AN156) ->  | AO173: =IF(OR(AO144="",AO149="",AO156=""),"",AO144+AO149+AO156) ->  | AP173: =IF(OR(AP144="",AP149="",AP156=""),"",AP144+AP149+AP156) ->  | AQ173: =IF(OR(AQ144="",AQ149="",AQ156=""),"",AQ144+AQ149+AQ156) -> 
B174: Gross CO2 Emissions (=direct fossil CO2 excluding CO2 from on-site power generation) | G174: 1990 | H174: 1991 | I174: 1992 | J174: 1993 | K174: 1994 | L174: 1995 | M174: 1996 | N174: 1997 | O174: 1998 | P174: 1999 | Q174: 2000 | R174: 2001 | S174: 2002 | T174: 2003 | U174: 2004 | V174: 2005 | W174: 2006 | X174: 2007 | Y174: 2008 | Z174: 2009 | AA174: 2010 | AB174: 2011 | AC174: 2012 | AD174: 2013 | AE174: 2014 | AF174: 2015 | AG174: 2016 | AH174: 2017 | AI174: 2018 | AJ174: 2019 | AK174: 2020 | AL174: 2021 | AM174: 2022 | AN174: 2023 | AO174: 2024 | AP174: 2025 | AQ174: 2026 | AR174: 2027 | AS174: 2028 | AT174: 2029 | AU174: 2030 | AV174: 2031 | AW174: 2032 | AX174: 2033 | AY174: 2034 | AZ174: 2035 | BA174: 2036 | BB174: 2037 | BC174: 2038 | BD174: 2039 | BE174: 2040 | BF174: 2041 | BG174: 2042 | BH174: 2043 | BI174: 2044 | BJ174: 2045 | BK174: 2046 | BL174: 2047 | BM174: 2048 | BN174: 2049 | BO174: 2050
B175: 59c | C175: Absolute gross CO2 | E175: [t CO2/yr] | G175: =IF(OR(G173="",G155=""),"",G173-G155) ->  | H175: =IF(OR(H173="",H155=""),"",H173-H155) ->  | AL175: =IF(OR(AL173="",AL155=""),"",AL173-AL155) ->  | AM175: =IF(OR(AM173="",AM155=""),"",AM173-AM155) ->  | AN175: =IF(OR(AN173="",AN155=""),"",AN173-AN155) ->  | AO175: =IF(OR(AO173="",AO155=""),"",AO173-AO155) ->  | AP175: =IF(OR(AP173="",AP155=""),"",AP173-AP155) ->  | AQ175: =IF(OR(AQ173="",AQ155=""),"",AQ173-AQ155) -> 
B176: 59a | D176: calcination component | E176: [t CO2/yr] | G176: =G144 -> SUM | H176: =H144 -> SUM | I176: SUM | J176: SUM | K176: SUM | L176: SUM | M176: SUM | N176: SUM | O176: SUM | P176: SUM | Q176: SUM | R176: SUM | S176: SUM | T176: SUM | U176: SUM | V176: SUM | W176: SUM | X176: SUM | Y176: SUM | Z176: SUM | AA176: SUM | AB176: SUM | AC176: SUM | AD176: SUM | AE176: SUM | AF176: SUM | AG176: SUM | AH176: SUM | AI176: SUM | AJ176: SUM | AK176: SUM | AL176: =AL144 -> SUM | AM176: =AM144 -> SUM | AN176: =AN144 -> SUM | AO176: =AO144 -> SUM | AP176: =AP144 -> SUM | AQ176: =AQ144 -> SUM | AR176: SUM | AS176: SUM | AT176: SUM | AU176: SUM | AV176: SUM | AW176: SUM | AX176: SUM | AY176: SUM | AZ176: SUM | BA176: SUM | BB176: SUM | BC176: SUM | BD176: SUM | BE176: SUM | BF176: SUM | BG176: SUM | BH176: SUM | BI176: SUM | BJ176: SUM | BK176: SUM | BL176: SUM | BM176: SUM | BN176: SUM | BO176: SUM
B177: 59b | D177: fuel component | E177: [t CO2/yr] | G177: =IF(OR(G149="",G152="",G153="",G154=""),"",G149+G152+G153+G154) ->  | H177: =IF(OR(H149="",H152="",H153="",H154=""),"",H149+H152+H153+H154) ->  | AL177: =IF(OR(AL149="",AL152="",AL153="",AL154=""),"",AL149+AL152+AL153+AL154) ->  | AM177: =IF(OR(AM149="",AM152="",AM153="",AM154=""),"",AM149+AM152+AM153+AM154) ->  | AN177: =IF(OR(AN149="",AN152="",AN153="",AN154=""),"",AN149+AN152+AN153+AN154) ->  | AO177: =IF(OR(AO149="",AO152="",AO153="",AO154=""),"",AO149+AO152+AO153+AO154) ->  | AP177: =IF(OR(AP149="",AP152="",AP153="",AP154=""),"",AP149+AP152+AP153+AP154) ->  | AQ177: =IF(OR(AQ149="",AQ152="",AQ153="",AQ154=""),"",AQ149+AQ152+AQ153+AQ154) -> 
B178: Net CO2 Emissions (= gross CO2 minus alternative fossil fuels CO2; excluding CO2 from on-site power generation) | G178: =G$7 -> 1990 | H178: 1991 | I178: 1992 | J178: 1993 | K178: 1994 | L178: 1995 | M178: 1996 | N178: 1997 | O178: 1998 | P178: 1999 | Q178: 2000 | R178: 2001 | S178: 2002 | T178: 2003 | U178: 2004 | V178: 2005 | W178: 2006 | X178: 2007 | Y178: 2008 | Z178: 2009 | AA178: 2010 | AB178: 2011 | AC178: 2012 | AD178: 2013 | AE178: 2014 | AF178: 2015 | AG178: 2016 | AH178: 2017 | AI178: 2018 | AJ178: 2019 | AK178: 2020 | AL178: 2021 | AM178: 2022 | AN178: 2023 | AO178: 2024 | AP178: 2025 | AQ178: 2026 | AR178: 2027 | AS178: 2028 | AT178: 2029 | AU178: 2030 | AV178: 2031 | AW178: 2032 | AX178: 2033 | AY178: 2034 | AZ178: 2035 | BA178: 2036 | BB178: 2037 | BC178: 2038 | BD178: 2039 | BE178: 2040 | BF178: 2041 | BG178: 2042 | BH178: 2043 | BI178: 2044 | BJ178: 2045 | BK178: 2046 | BL178: 2047 | BM178: 2048 | BN178: 2049 | BO178: 2050
B179: 71 | C179: Absolute net CO2 | E179: [t CO2/yr] | G179: =IF(OR(G173="",G148=""),"",G175-G148) ->  | H179: =IF(OR(H173="",H148=""),"",H175-H148) ->  | AL179: =IF(OR(AL173="",AL148=""),"",AL175-AL148) ->  | AM179: =IF(OR(AM173="",AM148=""),"",AM175-AM148) ->  | AN179: =IF(OR(AN173="",AN148=""),"",AN175-AN148) ->  | AO179: =IF(OR(AO173="",AO148=""),"",AO175-AO148) ->  | AP179: =IF(OR(AP173="",AP148=""),"",AP175-AP148) ->  | AQ179: =IF(OR(AQ173="",AQ148=""),"",AQ175-AQ148) -> 
B180: Biomass CO2 Emissions (Memo Item) | G180: =G$7 -> 1990 | H180: 1991 | I180: 1992 | J180: 1993 | K180: 1994 | L180: 1995 | M180: 1996 | N180: 1997 | O180: 1998 | P180: 1999 | Q180: 2000 | R180: 2001 | S180: 2002 | T180: 2003 | U180: 2004 | V180: 2005 | W180: 2006 | X180: 2007 | Y180: 2008 | Z180: 2009 | AA180: 2010 | AB180: 2011 | AC180: 2012 | AD180: 2013 | AE180: 2014 | AF180: 2015 | AG180: 2016 | AH180: 2017 | AI180: 2018 | AJ180: 2019 | AK180: 2020 | AL180: 2021 | AM180: 2022 | AN180: 2023 | AO180: 2024 | AP180: 2025 | AQ180: 2026 | AR180: 2027 | AS180: 2028 | AT180: 2029 | AU180: 2030 | AV180: 2031 | AW180: 2032 | AX180: 2033 | AY180: 2034 | AZ180: 2035 | BA180: 2036 | BB180: 2037 | BC180: 2038 | BD180: 2039 | BE180: 2040 | BF180: 2041 | BG180: 2042 | BH180: 2043 | BI180: 2044 | BJ180: 2045 | BK180: 2046 | BL180: 2047 | BM180: 2048 | BN180: 2049 | BO180: 2050
B181: 83a | C181: Absolute CO2 from biomass sources (including biomass content of mixed fuels) | E181: [t CO2/yr] | G181: =G168 ->  | H181: =H168 ->  | AL181: =AL168 ->  | AM181: =AM168 ->  | AN181: =AN168 ->  | AO181: =AO168 ->  | AP181: =AP168 ->  | AQ181: =AQ168 -> 
B183: Specific Gross and Net CO2 Emissions per Clinker Produced | G183: =G$7 -> 1990 | H183: 1991 | I183: 1992 | J183: 1993 | K183: 1994 | L183: 1995 | M183: 1996 | N183: 1997 | O183: 1998 | P183: 1999 | Q183: 2000 | R183: 2001 | S183: 2002 | T183: 2003 | U183: 2004 | V183: 2005 | W183: 2006 | X183: 2007 | Y183: 2008 | Z183: 2009 | AA183: 2010 | AB183: 2011 | AC183: 2012 | AD183: 2013 | AE183: 2014 | AF183: 2015 | AG183: 2016 | AH183: 2017 | AI183: 2018 | AJ183: 2019 | AK183: 2020 | AL183: 2021 | AM183: 2022 | AN183: 2023 | AO183: 2024 | AP183: 2025 | AQ183: 2026 | AR183: 2027 | AS183: 2028 | AT183: 2029 | AU183: 2030 | AV183: 2031 | AW183: 2032 | AX183: 2033 | AY183: 2034 | AZ183: 2035 | BA183: 2036 | BB183: 2037 | BC183: 2038 | BD183: 2039 | BE183: 2040 | BF183: 2041 | BG183: 2042 | BH183: 2043 | BI183: 2044 | BJ183: 2045 | BK183: 2046 | BL183: 2047 | BM183: 2048 | BN183: 2049 | BO183: 2050
B184: 60 | C184: Specific gross CO2 | D184: per tonne of clinker produced | E184: [kg CO2/t cli] | G184: =IF(G$40="","",IF(G$40=0,"n. appl.",G175/G$40*1000)) ->  | H184: =IF(H$40="","",IF(H$40=0,"n. appl.",H175/H$40*1000)) ->  | AL184: =IF(AL$40="","",IF(AL$40=0,"n. appl.",AL175/AL$40*1000)) ->  | AQ184: =IF(AQ$40="","",IF(AQ$40=0,"n. appl.",AQ175/AQ$40*1000)) -> 
B185: 60a | D185: calcination component | E185: [kg CO2/t cli] | G185: =IF(G$40="","",IF(G$40=0,"n. appl.",G176/G$40*1000)) ->  | H185: =IF(H$40="","",IF(H$40=0,"n. appl.",H176/H$40*1000)) ->  | AQ185: =IF(AQ$40="","",IF(AQ$40=0,"n. appl.",AQ176/AQ$40*1000)) -> 
B186: 60b | D186: fuel component | E186: [kg CO2/t cli] | G186: =IF(G$40="","",IF(G$40=0,"n. appl.",G177/G$40*1000)) ->  | H186: =IF(H$40="","",IF(H$40=0,"n. appl.",H177/H$40*1000)) ->  | AQ186: =IF(AQ$40="","",IF(AQ$40=0,"n. appl.",AQ177/AQ$40*1000)) -> 
B187: 73 | C187: Specific net CO2 | D187: per tonne of clinker produced | E187: [kg CO2/t cli] | G187: =IF(G$40="","",IF(G$40=0,"n. appl.",G179/G$40*1000)) ->  | H187: =IF(H$40="","",IF(H$40=0,"n. appl.",H179/H$40*1000)) ->  | AL187: =IF(AL$40="","",IF(AL$40=0,"n. appl.",AL179/AL$40*1000)) ->  | AM187: =IF(AM$40="","",IF(AM$40=0,"n. appl.",AM179/AM$40*1000)) ->  | AN187: =IF(AN$40="","",IF(AN$40=0,"n. appl.",AN179/AN$40*1000)) ->  | AO187: =IF(AO$40="","",IF(AO$40=0,"n. appl.",AO179/AO$40*1000)) ->  | AP187: =IF(AP$40="","",IF(AP$40=0,"n. appl.",AP179/AP$40*1000)) ->  | AQ187: =IF(AQ$40="","",IF(AQ$40=0,"n. appl.",AQ179/AQ$40*1000)) -> 
B189: Specific Gross and Net CO2 Emissions per Cement (equivalent) | G189: =G$7 -> 1990 | H189: 1991 | I189: 1992 | J189: 1993 | K189: 1994 | L189: 1995 | M189: 1996 | N189: 1997 | O189: 1998 | P189: 1999 | Q189: 2000 | R189: 2001 | S189: 2002 | T189: 2003 | U189: 2004 | V189: 2005 | W189: 2006 | X189: 2007 | Y189: 2008 | Z189: 2009 | AA189: 2010 | AB189: 2011 | AC189: 2012 | AD189: 2013 | AE189: 2014 | AF189: 2015 | AG189: 2016 | AH189: 2017 | AI189: 2018 | AJ189: 2019 | AK189: 2020 | AL189: 2021 | AM189: 2022 | AN189: 2023 | AO189: 2024 | AP189: 2025 | AQ189: 2026 | AR189: 2027 | AS189: 2028 | AT189: 2029 | AU189: 2030 | AV189: 2031 | AW189: 2032 | AX189: 2033 | AY189: 2034 | AZ189: 2035 | BA189: 2036 | BB189: 2037 | BC189: 2038 | BD189: 2039 | BE189: 2040 | BF189: 2041 | BG189: 2042 | BH189: 2043 | BI189: 2044 | BJ189: 2045 | BK189: 2046 | BL189: 2047 | BM189: 2048 | BN189: 2049 | BO189: 2050
B190: 63 | C190: Specific gross CO2 | D190: per tonne of cement (eq.) | E190: [kg CO2/t cem eq.] | G190: =IF(OR(G175="",G68="n.appl."),"n.appl.",G175/G68*1000) -> n.appl. | H190: =IF(OR(H175="",H68="n.appl."),"n.appl.",H175/H68*1000) -> n.appl. | I190: =IF(OR(I175="",I68="n.appl."),"n.appl.",I175/I68*1000) -> n.appl. | J190: n.appl. | K190: n.appl. | L190: n.appl. | M190: n.appl. | N190: n.appl. | O190: n.appl. | P190: n.appl. | Q190: n.appl. | R190: n.appl. | S190: n.appl. | T190: n.appl. | U190: n.appl. | V190: n.appl. | W190: n.appl. | X190: n.appl. | Y190: n.appl. | Z190: n.appl. | AA190: n.appl. | AB190: n.appl. | AC190: n.appl. | AD190: n.appl. | AE190: n.appl. | AF190: n.appl. | AG190: n.appl. | AH190: n.appl. | AI190: n.appl. | AJ190: n.appl. | AK190: n.appl. | AL190: n.appl. | AM190: n.appl. | AN190: n.appl. | AO190: n.appl. | AP190: n.appl. | AQ190: =IF(OR(AQ175="",AQ68="n.appl."),"n.appl.",AQ175/AQ68*1000) -> n.appl. | AR190: n.appl. | AS190: n.appl. | AT190: n.appl. | AU190: n.appl. | AV190: n.appl. | AW190: n.appl. | AX190: n.appl. | AY190: n.appl. | AZ190: n.appl. | BA190: n.appl. | BB190: n.appl. | BC190: n.appl. | BD190: n.appl. | BE190: n.appl. | BF190: n.appl. | BG190: n.appl. | BH190: n.appl. | BI190: n.appl. | BJ190: n.appl. | BK190: n.appl. | BL190: n.appl. | BM190: n.appl. | BN190: n.appl. | BO190: n.appl.
B191: 63a | D191: calcination component | E191: [kg CO2/t cem eq.] | G191: =IF(G$40="","",IF(OR(G$40=0,G46=0),"n. appl.",G176/G$68*1000)) ->  | H191: =IF(H$40="","",IF(OR(H$40=0,H46=0),"n. appl.",H176/H$68*1000)) ->  | AQ191: =IF(AQ$40="","",IF(OR(AQ$40=0,AQ46=0),"n. appl.",AQ176/AQ$68*1000)) -> 
B192: 63b | D192: fuel component | E192: [kg CO2/t cem eq.] | G192: =IF(G$40="","",IF(OR(G$40=0,G46=0),"n. appl.",G177/G$68*1000)) ->  | H192: =IF(H$40="","",IF(OR(H$40=0,H46=0),"n. appl.",H177/H$68*1000)) ->  | AQ192: =IF(AQ$40="","",IF(OR(AQ$40=0,AQ46=0),"n. appl.",AQ177/AQ$68*1000)) -> 
B193: =B199+1 -> 75 | C193: Specific net CO2 | D193: per tonne of cement (eq.) | E193: [kg CO2/t cem eq.] | G193: =IF(OR(G$68="n.appl.",G$68=0),"n. appl.",G179/G$68*1000) ->  | H193: =IF(OR(H$68="n.appl.",H$68=0),"n. appl.",H179/H$68*1000) ->  | I193: =IF(OR(I$68="n.appl.",I$68=0),"n. appl.",I179/I$68*1000) ->  | AQ193: =IF(OR(AQ$68="n.appl.",AQ$68=0),"n. appl.",AQ179/AQ$68*1000) -> 
B195: Specific Gross and Net CO2 Emissions per Cementitious Product | G195: =G$7 -> 1990 | H195: 1991 | I195: 1992 | J195: 1993 | K195: 1994 | L195: 1995 | M195: 1996 | N195: 1997 | O195: 1998 | P195: 1999 | Q195: 2000 | R195: 2001 | S195: 2002 | T195: 2003 | U195: 2004 | V195: 2005 | W195: 2006 | X195: 2007 | Y195: 2008 | Z195: 2009 | AA195: 2010 | AB195: 2011 | AC195: 2012 | AD195: 2013 | AE195: 2014 | AF195: 2015 | AG195: 2016 | AH195: 2017 | AI195: 2018 | AJ195: 2019 | AK195: 2020 | AL195: 2021 | AM195: 2022 | AN195: 2023 | AO195: 2024 | AP195: 2025 | AQ195: 2026 | AR195: 2027 | AS195: 2028 | AT195: 2029 | AU195: 2030 | AV195: 2031 | AW195: 2032 | AX195: 2033 | AY195: 2034 | AZ195: 2035 | BA195: 2036 | BB195: 2037 | BC195: 2038 | BD195: 2039 | BE195: 2040 | BF195: 2041 | BG195: 2042 | BH195: 2043 | BI195: 2044 | BJ195: 2045 | BK195: 2046 | BL195: 2047 | BM195: 2048 | BN195: 2049 | BO195: 2050
B196: 62 | C196: Specific gross CO2 | D196: per tonne of cementitious product | E196: [kg CO2/t cem prod] | G196: =IF(G$67="","",IF(G$67=0,"n. appl.",G175/G$67*1000)) ->  | H196: =IF(H$67="","",IF(H$67=0,"n. appl.",H175/H$67*1000)) ->  | AL196: =IF(AL$67="","",IF(AL$67=0,"n. appl.",AL175/AL$67*1000)) ->  | AQ196: =IF(AQ$67="","",IF(AQ$67=0,"n. appl.",AQ175/AQ$67*1000)) -> 
B197: 62a | D197: calcination component | E197: [kg CO2/t cem prod] | G197: =IF(G$67="","",IF(G$67=0,"n. appl.",G176/G$67*1000)) ->  | H197: =IF(H$67="","",IF(H$67=0,"n. appl.",H176/H$67*1000)) ->  | AQ197: =IF(AQ$67="","",IF(AQ$67=0,"n. appl.",AQ176/AQ$67*1000)) -> 
B198: 62b | D198: fuel component | E198: [kg CO2/t cem prod] | G198: =IF(G$67="","",IF(G$67=0,"n. appl.",G177/G$67*1000)) ->  | H198: =IF(H$67="","",IF(H$67=0,"n. appl.",H177/H$67*1000)) ->  | AQ198: =IF(AQ$67="","",IF(AQ$67=0,"n. appl.",AQ177/AQ$67*1000)) -> 
B199: =B187+1 -> 74 | C199: Specific net CO2 | D199: per tonne of cementitious product | E199: [kg CO2/t cem prod] | G199: =IF(G$67="","",IF(G$67=0,"n. appl.",G179/G$67*1000)) ->  | H199: =IF(H$67="","",IF(H$67=0,"n. appl.",H179/H$67*1000)) ->  | AL199: =IF(AL$67="","",IF(AL$67=0,"n. appl.",AL179/AL$67*1000)) ->  | AM199: =IF(AM$67="","",IF(AM$67=0,"n. appl.",AM179/AM$67*1000)) ->  | AN199: =IF(AN$67="","",IF(AN$67=0,"n. appl.",AN179/AN$67*1000)) ->  | AO199: =IF(AO$67="","",IF(AO$67=0,"n. appl.",AO179/AO$67*1000)) ->  | AP199: =IF(AP$67="","",IF(AP$67=0,"n. appl.",AP179/AP$67*1000)) ->  | AQ199: =IF(AQ$67="","",IF(AQ$67=0,"n. appl.",AQ179/AQ$67*1000)) -> 
B200: 77 | C200: Improvement rate - net CO2 per tonne of cementitious product | E200: [% relative to base yr] | G200: =IF(G199="","",IF(OR($G199="n. appl.",$G199=0),"n. appl.",(G199-$G199)/$G199)) ->  | AG200: =IF(AG199="","",IF(OR($G199="n. appl.",$G199=0),"n. appl.",(AG199-$G199)/$G199)) ->  | AQ200: =IF(AQ199="","",IF(OR($G199="n. appl.",$G199=0),"n. appl.",(AQ199-$G199)/$G199)) -> 
B202: Specific Indirect CO2 Emission | G202: =G$7 -> 1990 | H202: 1991 | I202: 1992 | J202: 1993 | K202: 1994 | L202: 1995 | M202: 1996 | N202: 1997 | O202: 1998 | P202: 1999 | Q202: 2000 | R202: 2001 | S202: 2002 | T202: 2003 | U202: 2004 | V202: 2005 | W202: 2006 | X202: 2007 | Y202: 2008 | Z202: 2009 | AA202: 2010 | AB202: 2011 | AC202: 2012 | AD202: 2013 | AE202: 2014 | AF202: 2015 | AG202: 2016 | AH202: 2017 | AI202: 2018 | AJ202: 2019 | AK202: 2020 | AL202: 2021 | AM202: 2022 | AN202: 2023 | AO202: 2024 | AP202: 2025 | AQ202: 2026 | AR202: 2027 | AS202: 2028 | AT202: 2029 | AU202: 2030 | AV202: 2031 | AW202: 2032 | AX202: 2033 | AY202: 2034 | AZ202: 2035 | BA202: 2036 | BB202: 2037 | BC202: 2038 | BD202: 2039 | BE202: 2040 | BF202: 2041 | BG202: 2042 | BH202: 2043 | BI202: 2044 | BJ202: 2045 | BK202: 2046 | BL202: 2047 | BM202: 2048 | BN202: 2049 | BO202: 2050
B203: 82c | C203: Specific indirect CO2 from external power generation per tonne of cement (eq.) | E203: [kg CO2/t cem eq.] | G203: =IF(OR(G$68="n.appl.",G$68=0),"n. appl.",G162/G$68*1000) ->  | H203: =IF(OR(H$68="n.appl.",H$68=0),"n. appl.",H162/H$68*1000) ->  | I203: =IF(OR(I$68="n.appl.",I$68=0),"n. appl.",I162/I$68*1000) ->  | AQ203: =IF(OR(AQ$68="n.appl.",AQ$68=0),"n. appl.",AQ162/AQ$68*1000) -> 
B204: 82a | C204: Specific indirect CO2 from external power generation per tonne of cementitious product | E204: [kg CO2/t cem prod] | G204: =IF(G$67="","",IF(G$67=0,"n. appl.",G162/G$67*1000)) ->  | H204: =IF(H$67="","",IF(H$67=0,"n. appl.",H162/H$67*1000)) ->  | AL204: =IF(AL$67="","",IF(AL$67=0,"n. appl.",AL162/AL$67*1000)) ->  | AM204: =IF(AM$67="","",IF(AM$67=0,"n. appl.",AM162/AM$67*1000)) ->  | AN204: =IF(AN$67="","",IF(AN$67=0,"n. appl.",AN162/AN$67*1000)) ->  | AO204: =IF(AO$67="","",IF(AO$67=0,"n. appl.",AO162/AO$67*1000)) ->  | AP204: =IF(AP$67="","",IF(AP$67=0,"n. appl.",AP162/AP$67*1000)) ->  | AQ204: =IF(AQ$67="","",IF(AQ$67=0,"n. appl.",AQ162/AQ$67*1000)) -> 
B205: 82b | C205: Specific indirect CO2 from net clinker imports (+) / exports (-) per tonne of cementitious product | E205: [kg CO2/t cem prod] | G205: =IF(G$67="","",IF(G$67=0,"n. appl.",G164/G$67*1000)) ->  | H205: =IF(H$67="","",IF(H$67=0,"n. appl.",H164/H$67*1000)) ->  | AL205: =IF(AL$67="","",IF(AL$67=0,"n. appl.",AL164/AL$67*1000)) ->  | AM205: =IF(AM$67="","",IF(AM$67=0,"n. appl.",AM164/AM$67*1000)) ->  | AN205: =IF(AN$67="","",IF(AN$67=0,"n. appl.",AN164/AN$67*1000)) ->  | AO205: =IF(AO$67="","",IF(AO$67=0,"n. appl.",AO164/AO$67*1000)) ->  | AP205: =IF(AP$67="","",IF(AP$67=0,"n. appl.",AP164/AP$67*1000)) ->  | AQ205: =IF(AQ$67="","",IF(AQ$67=0,"n. appl.",AQ164/AQ$67*1000)) -> 
B207: General Performance Indicators | G207: =G$7 -> 1990 | H207: 1991 | I207: 1992 | J207: 1993 | K207: 1994 | L207: 1995 | M207: 1996 | N207: 1997 | O207: 1998 | P207: 1999 | Q207: 2000 | R207: 2001 | S207: 2002 | T207: 2003 | U207: 2004 | V207: 2005 | W207: 2006 | X207: 2007 | Y207: 2008 | Z207: 2009 | AA207: 2010 | AB207: 2011 | AC207: 2012 | AD207: 2013 | AE207: 2014 | AF207: 2015 | AG207: 2016 | AH207: 2017 | AI207: 2018 | AJ207: 2019 | AK207: 2020 | AL207: 2021 | AM207: 2022 | AN207: 2023 | AO207: 2024 | AP207: 2025 | AQ207: 2026 | AR207: 2027 | AS207: 2028 | AT207: 2029 | AU207: 2030 | AV207: 2031 | AW207: 2032 | AX207: 2033 | AY207: 2034 | AZ207: 2035 | BA207: 2036 | BB207: 2037 | BC207: 2038 | BD207: 2039 | BE207: 2040 | BF207: 2041 | BG207: 2042 | BH207: 2043 | BI207: 2044 | BJ207: 2045 | BK207: 2046 | BL207: 2047 | BM207: 2048 | BN207: 2049 | BO207: 2050
B208: 91 | C208: Net outbound clinker per net clinker consumption | E208: [%] | G208: =IF(G46="","",IF(G46=0,"n. appl.",(G42-G41-G44-G45)/G46)) ->  | H208: =IF(H46="","",IF(H46=0,"n. appl.",(H42-H41-H44-H45)/H46)) ->  | AG208: =IF(AG46="","",IF(AG46=0,"n. appl.",(AG42-AG41-AG44-AG45)/AG46)) ->  | AQ208: =IF(AQ46="","",IF(AQ46=0,"n. appl.",(AQ42-AQ41-AQ44-AQ45)/AQ46)) -> 
B209: 92a | C209: Clinker/cement (eq.) factor* | E209: [%] | G209: =IF(OR(G46="",G65="",G46=0,G65=0),"n. appl.",G46/G65) -> n. appl. | H209: =IF(OR(H46="",H65="",H46=0,H65=0),"n. appl.",H46/H65) -> n. appl. | I209: n. appl. | J209: n. appl. | K209: n. appl. | L209: n. appl. | M209: n. appl. | N209: n. appl. | O209: n. appl. | P209: n. appl. | Q209: n. appl. | R209: n. appl. | S209: n. appl. | T209: n. appl. | U209: n. appl. | V209: n. appl. | W209: n. appl. | X209: n. appl. | Y209: n. appl. | Z209: n. appl. | AA209: n. appl. | AB209: n. appl. | AC209: n. appl. | AD209: n. appl. | AE209: n. appl. | AF209: n. appl. | AG209: n. appl. | AH209: n. appl. | AI209: n. appl. | AJ209: n. appl. | AK209: n. appl. | AL209: n. appl. | AM209: n. appl. | AN209: n. appl. | AO209: n. appl. | AP209: n. appl. | AQ209: =IF(OR(AQ46="",AQ65="",AQ46=0,AQ65=0),"n. appl.",AQ46/AQ65) -> n. appl. | AR209: n. appl. | AS209: n. appl. | AT209: n. appl. | AU209: n. appl. | AV209: n. appl. | AW209: n. appl. | AX209: n. appl. | AY209: n. appl. | AZ209: n. appl. | BA209: n. appl. | BB209: n. appl. | BC209: n. appl. | BD209: n. appl. | BE209: n. appl. | BF209: n. appl. | BG209: n. appl. | BH209: n. appl. | BI209: n. appl. | BJ209: n. appl. | BK209: n. appl. | BL209: n. appl. | BM209: n. appl. | BN209: n. appl. | BO209: n. appl.
B210: =B208+1 -> 92 | C210: Clinker/cementitious factor* | E210: [%] | G210: =IF(G66="","",IF(G66=0,"n. appl.",G46/G66)) ->  | AL210: =IF(AL66="","",IF(AL66=0,"n. appl.",AL46/AL66)) ->  | AM210: =IF(AM66="","",IF(AM66=0,"n. appl.",AM46/AM66)) ->  | AN210: =IF(AN66="","",IF(AN66=0,"n. appl.",AN46/AN66)) ->  | AO210: =IF(AO66="","",IF(AO66=0,"n. appl.",AO46/AO66)) ->  | AP210: =IF(AP66="","",IF(AP66=0,"n. appl.",AP46/AP66)) ->  | AQ210: =IF(AQ66="","",IF(AQ66=0,"n. appl.",AQ46/AQ66)) -> 
B212: =B210+1 -> 93 | C212: Specific heat consumption of clinker production | E212: [MJ/t cli] | G212: =IF(G40="","",IF(G40=0,"n. appl.",G76*10^6/G40)) ->  | AL212: =IF(AL40="","",IF(AL40=0,"n. appl.",AL76*10^6/AL40)) ->  | AM212: =IF(AM40="","",IF(AM40=0,"n. appl.",AM76*10^6/AM40)) ->  | AN212: =IF(AN40="","",IF(AN40=0,"n. appl.",AN76*10^6/AN40)) ->  | AO212: =IF(AO40="","",IF(AO40=0,"n. appl.",AO76*10^6/AO40)) ->  | AP212: =IF(AP40="","",IF(AP40=0,"n. appl.",AP76*10^6/AP40)) ->  | AQ212: =IF(AQ40="","",IF(AQ40=0,"n. appl.",AQ76*10^6/AQ40)) -> 
B213: =B212+1 -> 94 | C213: Conventional fossil fuel rate (kiln fuels) | E213: [%] | G213: =IF(G$76="","",IF(G$76=0,"n. appl.",G78/G$76)) ->  | H213: =IF(H$76="","",IF(H$76=0,"n. appl.",H78/H$76)) ->  | AG213: =IF(AG$76="","",IF(AG$76=0,"n. appl.",AG78/AG$76)) ->  | AL213: =IF(AL$76="","",IF(AL$76=0,"n. appl.",AL78/AL$76)) ->  | AQ213: =IF(AQ$76="","",IF(AQ$76=0,"n. appl.",AQ78/AQ$76)) -> 
B214: =B213+1 -> 95 | C214: Alternative fossil fuel rate (kiln fuels) | E214: [%] | G214: =IF(G$76="","",IF(G$76=0,"n. appl.",G79/G$76)) ->  | H214: =IF(H$76="","",IF(H$76=0,"n. appl.",H79/H$76)) ->  | AQ214: =IF(AQ$76="","",IF(AQ$76=0,"n. appl.",AQ79/AQ$76)) -> 
B215: =B214+1 -> 96 | C215: Biomass fuel rate (kiln fuels) | E215: [%] | G215: =IF(G$76="","",IF(G$76=0,"n. appl.",G80/G$76)) ->  | H215: =IF(H$76="","",IF(H$76=0,"n. appl.",H80/H$76)) ->  | AQ215: =IF(AQ$76="","",IF(AQ$76=0,"n. appl.",AQ80/AQ$76)) -> 
B216: 96a | C216: CO2 emission factor for kiln fuel mix | E216: [kg CO2/GJ] | G216: =IF(G149="","",IF(G149=0,"n.appl.",G149/G76)) ->  | H216: =IF(H149="","",IF(H149=0,"n.appl.",H149/H76)) ->  | AL216: =IF(AL149="","",IF(AL149=0,"n.appl.",AL149/AL76)) ->  | AM216: =IF(AM149="","",IF(AM149=0,"n.appl.",AM149/AM76)) ->  | AN216: =IF(AN149="","",IF(AN149=0,"n.appl.",AN149/AN76)) ->  | AO216: =IF(AO149="","",IF(AO149=0,"n.appl.",AO149/AO76)) ->  | AP216: =IF(AP149="","",IF(AP149=0,"n.appl.",AP149/AP76)) ->  | AQ216: =IF(AQ149="","",IF(AQ149=0,"n.appl.",AQ149/AQ76)) -> 
B217: 96b | C217: Total conventional fossil fuel rate at plant level | E217: [%] | G217: =IF(AND(G$76=0,G$502=0,G$506=0,G$508=0,G$513=0,G$520=0,G$522=0,G$525=0,G$532=0,G$534=0),"n. appl.",(G78+G502+(G506*(1-G375))+G508+G513+G525)/(G$76+G$502+G$506+G$508+G$513+G$520+G$522+G$525+G$532+G$534)) ->  | AL217: =IF(AND(AL$76=0,AL$502=0,AL$506=0,AL$508=0,AL$513=0,AL$520=0,AL$522=0,AL$525=0,AL$532=0,AL$534=0),"n. appl.",(AL78+AL502+(AL506*(1-AL375))+AL508+AL513+AL525)/(AL$76+AL$502+AL$506+AL$508+AL$513+AL$520+AL$522+AL$525+AL$532+AL$534)) ->  | AM217: =IF(AND(AM$76=0,AM$502=0,AM$506=0,AM$508=0,AM$513=0,AM$520=0,AM$522=0,AM$525=0,AM$532=0,AM$534=0),"n. appl.",(AM78+AM502+(AM506*(1-AM375))+AM508+AM513+AM525)/(AM$76+AM$502+AM$506+AM$508+AM$513+AM$520+AM$522+AM$525+AM$532+AM$534)) ->  | AN217: =IF(AND(AN$76=0,AN$502=0,AN$506=0,AN$508=0,AN$513=0,AN$520=0,AN$522=0,AN$525=0,AN$532=0,AN$534=0),"n. appl.",(AN78+AN502+(AN506*(1-AN375))+AN508+AN513+AN525)/(AN$76+AN$502+AN$506+AN$508+AN$513+AN$520+AN$522+AN$525+AN$532+AN$534)) ->  | AO217: =IF(AND(AO$76=0,AO$502=0,AO$506=0,AO$508=0,AO$513=0,AO$520=0,AO$522=0,AO$525=0,AO$532=0,AO$534=0),"n. appl.",(AO78+AO502+(AO506*(1-AO375))+AO508+AO513+AO525)/(AO$76+AO$502+AO$506+AO$508+AO$513+AO$520+AO$522+AO$525+AO$532+AO$534)) ->  | AP217: =IF(AND(AP$76=0,AP$502=0,AP$506=0,AP$508=0,AP$513=0,AP$520=0,AP$522=0,AP$525=0,AP$532=0,AP$534=0),"n. appl.",(AP78+AP502+(AP506*(1-AP375))+AP508+AP513+AP525)/(AP$76+AP$502+AP$506+AP$508+AP$513+AP$520+AP$522+AP$525+AP$532+AP$534)) ->  | AQ217: =IF(AND(AQ$76=0,AQ$502=0,AQ$506=0,AQ$508=0,AQ$513=0,AQ$520=0,AQ$522=0,AQ$525=0,AQ$532=0,AQ$534=0),"n. appl.",(AQ78+AQ502+(AQ506*(1-AQ375))+AQ508+AQ513+AQ525)/(AQ$76+AQ$502+AQ$506+AQ$508+AQ$513+AQ$520+AQ$522+AQ$525+AQ$532+AQ$534)) -> 
B218: 96c | C218: Total alternative fossil fuel rate at plant level | E218: [%] | G218: =IF(AND(G$76=0,G$502=0,G$506=0,G$508=0,G$513=0,G$520=0,G$522=0,G$525=0,G$532=0,G$534=0),"n. appl.",(G79+G520+G532)/(G$76+G$502+G$506+G$508+G$513+G$520+G$522+G$525+G$532+G$534)) ->  | AL218: =IF(AND(AL$76=0,AL$502=0,AL$506=0,AL$508=0,AL$513=0,AL$520=0,AL$522=0,AL$525=0,AL$532=0,AL$534=0),"n. appl.",(AL79+AL520+AL532)/(AL$76+AL$502+AL$506+AL$508+AL$513+AL$520+AL$522+AL$525+AL$532+AL$534)) ->  | AM218: =IF(AND(AM$76=0,AM$502=0,AM$506=0,AM$508=0,AM$513=0,AM$520=0,AM$522=0,AM$525=0,AM$532=0,AM$534=0),"n. appl.",(AM79+AM520+AM532)/(AM$76+AM$502+AM$506+AM$508+AM$513+AM$520+AM$522+AM$525+AM$532+AM$534)) ->  | AN218: =IF(AND(AN$76=0,AN$502=0,AN$506=0,AN$508=0,AN$513=0,AN$520=0,AN$522=0,AN$525=0,AN$532=0,AN$534=0),"n. appl.",(AN79+AN520+AN532)/(AN$76+AN$502+AN$506+AN$508+AN$513+AN$520+AN$522+AN$525+AN$532+AN$534)) ->  | AO218: =IF(AND(AO$76=0,AO$502=0,AO$506=0,AO$508=0,AO$513=0,AO$520=0,AO$522=0,AO$525=0,AO$532=0,AO$534=0),"n. appl.",(AO79+AO520+AO532)/(AO$76+AO$502+AO$506+AO$508+AO$513+AO$520+AO$522+AO$525+AO$532+AO$534)) ->  | AP218: =IF(AND(AP$76=0,AP$502=0,AP$506=0,AP$508=0,AP$513=0,AP$520=0,AP$522=0,AP$525=0,AP$532=0,AP$534=0),"n. appl.",(AP79+AP520+AP532)/(AP$76+AP$502+AP$506+AP$508+AP$513+AP$520+AP$522+AP$525+AP$532+AP$534)) ->  | AQ218: =IF(AND(AQ$76=0,AQ$502=0,AQ$506=0,AQ$508=0,AQ$513=0,AQ$520=0,AQ$522=0,AQ$525=0,AQ$532=0,AQ$534=0),"n. appl.",(AQ79+AQ520+AQ532)/(AQ$76+AQ$502+AQ$506+AQ$508+AQ$513+AQ$520+AQ$522+AQ$525+AQ$532+AQ$534)) -> 
B219: 96d | C219: Total biomass fuel rate at plant level | E219: [%] | G219: =IF(AND(G$76=0,G$502=0,G$506=0,G$508=0,G$513=0,G$520=0,G$522=0,G$525=0,G$532=0,G$534=0),"n. appl.",(G80+(G506*G375)+G522+G534)/(G$76+G$502+G$506+G$508+G$513+G$520+G$522+G$525+G$532+G$534)) ->  | AL219: =IF(AND(AL$76=0,AL$502=0,AL$506=0,AL$508=0,AL$513=0,AL$520=0,AL$522=0,AL$525=0,AL$532=0,AL$534=0),"n. appl.",(AL80+(AL506*AL375)+AL522+AL534)/(AL$76+AL$502+AL$506+AL$508+AL$513+AL$520+AL$522+AL$525+AL$532+AL$534)) ->  | AM219: =IF(AND(AM$76=0,AM$502=0,AM$506=0,AM$508=0,AM$513=0,AM$520=0,AM$522=0,AM$525=0,AM$532=0,AM$534=0),"n. appl.",(AM80+(AM506*AM375)+AM522+AM534)/(AM$76+AM$502+AM$506+AM$508+AM$513+AM$520+AM$522+AM$525+AM$532+AM$534)) ->  | AN219: =IF(AND(AN$76=0,AN$502=0,AN$506=0,AN$508=0,AN$513=0,AN$520=0,AN$522=0,AN$525=0,AN$532=0,AN$534=0),"n. appl.",(AN80+(AN506*AN375)+AN522+AN534)/(AN$76+AN$502+AN$506+AN$508+AN$513+AN$520+AN$522+AN$525+AN$532+AN$534)) ->  | AO219: =IF(AND(AO$76=0,AO$502=0,AO$506=0,AO$508=0,AO$513=0,AO$520=0,AO$522=0,AO$525=0,AO$532=0,AO$534=0),"n. appl.",(AO80+(AO506*AO375)+AO522+AO534)/(AO$76+AO$502+AO$506+AO$508+AO$513+AO$520+AO$522+AO$525+AO$532+AO$534)) ->  | AP219: =IF(AND(AP$76=0,AP$502=0,AP$506=0,AP$508=0,AP$513=0,AP$520=0,AP$522=0,AP$525=0,AP$532=0,AP$534=0),"n. appl.",(AP80+(AP506*AP375)+AP522+AP534)/(AP$76+AP$502+AP$506+AP$508+AP$513+AP$520+AP$522+AP$525+AP$532+AP$534)) ->  | AQ219: =IF(AND(AQ$76=0,AQ$502=0,AQ$506=0,AQ$508=0,AQ$513=0,AQ$520=0,AQ$522=0,AQ$525=0,AQ$532=0,AQ$534=0),"n. appl.",(AQ80+(AQ506*AQ375)+AQ522+AQ534)/(AQ$76+AQ$502+AQ$506+AQ$508+AQ$513+AQ$520+AQ$522+AQ$525+AQ$532+AQ$534)) -> 
B221: =B215+1 -> 97 | C221: Specific total power consumption* | E221: [kWh/t cem prod] | G221: =IF(G66="","",IF(G66=0,"n. appl.",G105/G66*1000)) ->  | H221: =IF(H66="","",IF(H66=0,"n. appl.",H105/H66*1000)) ->  | AG221: =IF(AG66="","",IF(AG66=0,"n. appl.",AG105/AG66*1000)) ->  | AQ221: =IF(AQ66="","",IF(AQ66=0,"n. appl.",AQ105/AQ66*1000)) -> 
B222: 98 | C222: Specific power consumption of clinker production | E222: [kWh/t cli] | G222: =IF(G40="","",IF(G40=0,"n. appl.",G104/G40*1000)) ->  | AL222: =IF(AL40="","",IF(AL40=0,"n. appl.",AL104/AL40*1000)) ->  | AM222: =IF(AM40="","",IF(AM40=0,"n. appl.",AM104/AM40*1000)) ->  | AN222: =IF(AN40="","",IF(AN40=0,"n. appl.",AN104/AN40*1000)) ->  | AO222: =IF(AO40="","",IF(AO40=0,"n. appl.",AO104/AO40*1000)) ->  | AP222: =IF(AP40="","",IF(AP40=0,"n. appl.",AP104/AP40*1000)) ->  | AQ222: =IF(AQ40="","",IF(AQ40=0,"n. appl.",AQ104/AQ40*1000)) -> 
B223: 98c | C223: Specific power consumption of cement production* | E223: [kWh/t cem prod] | G223: =IF(OR(G66="",G66=0),"n. appl.",IF(G222<>"n. appl.",(G222*G210)+(G105-G104)*1000/G66,(G105-G104)*1000/G66)) -> n. appl. | H223: =IF(OR(H66="",H66=0),"n. appl.",IF(H222<>"n. appl.",(H222*H210)+(H105-H104)*1000/H66,(H105-H104)*1000/H66)) -> n. appl. | I223: n. appl. | J223: n. appl. | K223: n. appl. | L223: n. appl. | M223: n. appl. | N223: n. appl. | O223: n. appl. | P223: n. appl. | Q223: n. appl. | R223: n. appl. | S223: n. appl. | T223: n. appl. | U223: n. appl. | V223: n. appl. | W223: n. appl. | X223: n. appl. | Y223: n. appl. | Z223: n. appl. | AA223: n. appl. | AB223: n. appl. | AC223: n. appl. | AD223: n. appl. | AE223: n. appl. | AF223: n. appl. | AG223: n. appl. | AH223: n. appl. | AI223: n. appl. | AJ223: n. appl. | AK223: n. appl. | AL223: n. appl. | AM223: n. appl. | AN223: n. appl. | AO223: n. appl. | AP223: n. appl. | AQ223: =IF(OR(AQ66="",AQ66=0),"n. appl.",IF(AQ222<>"n. appl.",(AQ222*AQ210)+(AQ105-AQ104)*1000/AQ66,(AQ105-AQ104)*1000/AQ66)) -> n. appl. | AR223: n. appl. | AS223: n. appl. | AT223: n. appl. | AU223: n. appl. | AV223: n. appl. | AW223: n. appl. | AX223: n. appl. | AY223: n. appl. | AZ223: n. appl. | BA223: n. appl. | BB223: n. appl. | BC223: n. appl. | BD223: n. appl. | BE223: n. appl. | BF223: n. appl. | BG223: n. appl. | BH223: n. appl. | BI223: n. appl. | BJ223: n. appl. | BK223: n. appl. | BL223: n. appl. | BM223: n. appl. | BN223: n. appl. | BO223: n. appl.
B224: 98a | C224: National energy conversion factor | E224: [MJ/kWh]
B225: 98b | C225: Total energy intensity of clinker production (fuel and power) | E225: [MJ/t cli] | G225: =IF(G224<>"",G222*G224+G212,"") ->  | AG225: =IF(AG224<>"",AG222*AG224+AG212,"") ->  | AQ225: =IF(AQ224<>"",AQ222*AQ224+AQ212,"") -> 
A227: KILN FUELS - DETAILED INFORMATION
B229: Kiln Fuel Consumption in tonnes per year | G229: =G$7 -> 1990 | H229: 1991 | I229: 1992 | J229: 1993 | K229: 1994 | L229: 1995 | M229: 1996 | N229: 1997 | O229: 1998 | P229: 1999 | Q229: 2000 | R229: 2001 | S229: 2002 | T229: 2003 | U229: 2004 | V229: 2005 | W229: 2006 | X229: 2007 | Y229: 2008 | Z229: 2009 | AA229: 2010 | AB229: 2011 | AC229: 2012 | AD229: 2013 | AE229: 2014 | AF229: 2015 | AG229: 2016 | AH229: 2017 | AI229: 2018 | AJ229: 2019 | AK229: 2020 | AL229: 2021 | AM229: 2022 | AN229: 2023 | AO229: 2024 | AP229: 2025 | AQ229: 2026 | AR229: 2027 | AS229: 2028 | AT229: 2029 | AU229: 2030 | AV229: 2031 | AW229: 2032 | AX229: 2033 | AY229: 2034 | AZ229: 2035 | BA229: 2036 | BB229: 2037 | BC229: 2038 | BD229: 2039 | BE229: 2040 | BF229: 2041 | BG229: 2042 | BH229: 2043 | BI229: 2044 | BJ229: 2045 | BK229: 2046 | BL229: 2047 | BM229: 2048 | BN229: 2049 | BO229: 2050
B230: 101 | C230: Conventional fossil fuels (excl. drying of raw materials and fuels)
B231: =B230+1 -> 102 | D231: coal + anthracite | E231: [t/yr] | G231: SUM | H231: SUM | I231: SUM | J231: SUM | K231: SUM | L231: SUM | M231: SUM | N231: SUM | O231: SUM | P231: SUM | Q231: SUM | R231: SUM | S231: SUM | T231: SUM | U231: SUM | V231: SUM | W231: SUM | X231: SUM | Y231: SUM | Z231: SUM | AA231: SUM | AB231: SUM | AC231: SUM | AD231: SUM | AE231: SUM | AF231: SUM | AG231: SUM | AH231: SUM | AI231: SUM | AJ231: SUM | AK231: SUM | AL231: SUM | AM231: SUM | AN231: SUM | AO231: SUM | AP231: SUM | AQ231: SUM | AR231: SUM | AS231: SUM | AT231: SUM | AU231: SUM | AV231: SUM | AW231: SUM | AX231: SUM | AY231: SUM | AZ231: SUM | BA231: SUM | BB231: SUM | BC231: SUM | BD231: SUM | BE231: SUM | BF231: SUM | BG231: SUM | BH231: SUM | BI231: SUM | BJ231: SUM | BK231: SUM | BL231: SUM | BM231: SUM | BN231: SUM | BO231: SUM
B232: 103 | D232: petrol coke | E232: [t/yr] | G232: SUM | H232: SUM | I232: SUM | J232: SUM | K232: SUM | L232: SUM | M232: SUM | N232: SUM | O232: SUM | P232: SUM | Q232: SUM | R232: SUM | S232: SUM | T232: SUM | U232: SUM | V232: SUM | W232: SUM | X232: SUM | Y232: SUM | Z232: SUM | AA232: SUM | AB232: SUM | AC232: SUM | AD232: SUM | AE232: SUM | AF232: SUM | AG232: SUM | AH232: SUM | AI232: SUM | AJ232: SUM | AK232: SUM | AL232: SUM | AM232: SUM | AN232: SUM | AO232: SUM | AP232: SUM | AQ232: SUM | AR232: SUM | AS232: SUM | AT232: SUM | AU232: SUM | AV232: SUM | AW232: SUM | AX232: SUM | AY232: SUM | AZ232: SUM | BA232: SUM | BB232: SUM | BC232: SUM | BD232: SUM | BE232: SUM | BF232: SUM | BG232: SUM | BH232: SUM | BI232: SUM | BJ232: SUM | BK232: SUM | BL232: SUM | BM232: SUM | BN232: SUM | BO232: SUM
B233: 104 | D233: (ultra) heavy fuel | E233: [t/yr] | G233: SUM | H233: SUM | I233: SUM | J233: SUM | K233: SUM | L233: SUM | M233: SUM | N233: SUM | O233: SUM | P233: SUM | Q233: SUM | R233: SUM | S233: SUM | T233: SUM | U233: SUM | V233: SUM | W233: SUM | X233: SUM | Y233: SUM | Z233: SUM | AA233: SUM | AB233: SUM | AC233: SUM | AD233: SUM | AE233: SUM | AF233: SUM | AG233: SUM | AH233: SUM | AI233: SUM | AJ233: SUM | AK233: SUM | AL233: SUM | AM233: SUM | AN233: SUM | AO233: SUM | AP233: SUM | AQ233: SUM | AR233: SUM | AS233: SUM | AT233: SUM | AU233: SUM | AV233: SUM | AW233: SUM | AX233: SUM | AY233: SUM | AZ233: SUM | BA233: SUM | BB233: SUM | BC233: SUM | BD233: SUM | BE233: SUM | BF233: SUM | BG233: SUM | BH233: SUM | BI233: SUM | BJ233: SUM | BK233: SUM | BL233: SUM | BM233: SUM | BN233: SUM | BO233: SUM
B234: 105 | D234: diesel oil | E234: [t/yr] | G234: SUM | H234: SUM | I234: SUM | J234: SUM | K234: SUM | L234: SUM | M234: SUM | N234: SUM | O234: SUM | P234: SUM | Q234: SUM | R234: SUM | S234: SUM | T234: SUM | U234: SUM | V234: SUM | W234: SUM | X234: SUM | Y234: SUM | Z234: SUM | AA234: SUM | AB234: SUM | AC234: SUM | AD234: SUM | AE234: SUM | AF234: SUM | AG234: SUM | AH234: SUM | AI234: SUM | AJ234: SUM | AK234: SUM | AL234: SUM | AM234: SUM | AN234: SUM | AO234: SUM | AP234: SUM | AQ234: SUM | AR234: SUM | AS234: SUM | AT234: SUM | AU234: SUM | AV234: SUM | AW234: SUM | AX234: SUM | AY234: SUM | AZ234: SUM | BA234: SUM | BB234: SUM | BC234: SUM | BD234: SUM | BE234: SUM | BF234: SUM | BG234: SUM | BH234: SUM | BI234: SUM | BJ234: SUM | BK234: SUM | BL234: SUM | BM234: SUM | BN234: SUM | BO234: SUM
B235: 106 | D235: natural gas | E235: [1'000 Nm3/yr] | G235: SUM | H235: SUM | I235: SUM | J235: SUM | K235: SUM | L235: SUM | M235: SUM | N235: SUM | O235: SUM | P235: SUM | Q235: SUM | R235: SUM | S235: SUM | T235: SUM | U235: SUM | V235: SUM | W235: SUM | X235: SUM | Y235: SUM | Z235: SUM | AA235: SUM | AB235: SUM | AC235: SUM | AD235: SUM | AE235: SUM | AF235: SUM | AG235: SUM | AH235: SUM | AI235: SUM | AJ235: SUM | AK235: SUM | AL235: SUM | AM235: SUM | AN235: SUM | AO235: SUM | AP235: SUM | AQ235: SUM | AR235: SUM | AS235: SUM | AT235: SUM | AU235: SUM | AV235: SUM | AW235: SUM | AX235: SUM | AY235: SUM | AZ235: SUM | BA235: SUM | BB235: SUM | BC235: SUM | BD235: SUM | BE235: SUM | BF235: SUM | BG235: SUM | BH235: SUM | BI235: SUM | BJ235: SUM | BK235: SUM | BL235: SUM | BM235: SUM | BN235: SUM | BO235: SUM
B236: 107 | D236: shale | E236: [t/yr] | G236: SUM | H236: SUM | I236: SUM | J236: SUM | K236: SUM | L236: SUM | M236: SUM | N236: SUM | O236: SUM | P236: SUM | Q236: SUM | R236: SUM | S236: SUM | T236: SUM | U236: SUM | V236: SUM | W236: SUM | X236: SUM | Y236: SUM | Z236: SUM | AA236: SUM | AB236: SUM | AC236: SUM | AD236: SUM | AE236: SUM | AF236: SUM | AG236: SUM | AH236: SUM | AI236: SUM | AJ236: SUM | AK236: SUM | AL236: SUM | AM236: SUM | AN236: SUM | AO236: SUM | AP236: SUM | AQ236: SUM | AR236: SUM | AS236: SUM | AT236: SUM | AU236: SUM | AV236: SUM | AW236: SUM | AX236: SUM | AY236: SUM | AZ236: SUM | BA236: SUM | BB236: SUM | BC236: SUM | BD236: SUM | BE236: SUM | BF236: SUM | BG236: SUM | BH236: SUM | BI236: SUM | BJ236: SUM | BK236: SUM | BL236: SUM | BM236: SUM | BN236: SUM | BO236: SUM
B237: 107a | D237: lignite | E237: [t/yr] | G237: SUM | H237: SUM | I237: SUM | J237: SUM | K237: SUM | L237: SUM | M237: SUM | N237: SUM | O237: SUM | P237: SUM | Q237: SUM | R237: SUM | S237: SUM | T237: SUM | U237: SUM | V237: SUM | W237: SUM | X237: SUM | Y237: SUM | Z237: SUM | AA237: SUM | AB237: SUM | AC237: SUM | AD237: SUM | AE237: SUM | AF237: SUM | AG237: SUM | AH237: SUM | AI237: SUM | AJ237: SUM | AK237: SUM | AL237: SUM | AM237: SUM | AN237: SUM | AO237: SUM | AP237: SUM | AQ237: SUM | AR237: SUM | AS237: SUM | AT237: SUM | AU237: SUM | AV237: SUM | AW237: SUM | AX237: SUM | AY237: SUM | AZ237: SUM | BA237: SUM | BB237: SUM | BC237: SUM | BD237: SUM | BE237: SUM | BF237: SUM | BG237: SUM | BH237: SUM | BI237: SUM | BJ237: SUM | BK237: SUM | BL237: SUM | BM237: SUM | BN237: SUM | BO237: SUM
B238: =B236+1 -> 108 | C238: Alternative fossil and mixed fuels (excl. drying of raw materials and fuels)
B239: =B238+1 -> 109 | D239: waste oil | E239: [t/yr] | G239: SUM | H239: SUM | I239: SUM | J239: SUM | K239: SUM | L239: SUM | M239: SUM | N239: SUM | O239: SUM | P239: SUM | Q239: SUM | R239: SUM | S239: SUM | T239: SUM | U239: SUM | V239: SUM | W239: SUM | X239: SUM | Y239: SUM | Z239: SUM | AA239: SUM | AB239: SUM | AC239: SUM | AD239: SUM | AE239: SUM | AF239: SUM | AG239: SUM | AH239: SUM | AI239: SUM | AJ239: SUM | AK239: SUM | AL239: SUM | AM239: SUM | AN239: SUM | AO239: SUM | AP239: SUM | AQ239: SUM | AR239: SUM | AS239: SUM | AT239: SUM | AU239: SUM | AV239: SUM | AW239: SUM | AX239: SUM | AY239: SUM | AZ239: SUM | BA239: SUM | BB239: SUM | BC239: SUM | BD239: SUM | BE239: SUM | BF239: SUM | BG239: SUM | BH239: SUM | BI239: SUM | BJ239: SUM | BK239: SUM | BL239: SUM | BM239: SUM | BN239: SUM | BO239: SUM
B240: =B239+1 -> 110 | D240: tyres | E240: [t/yr] | G240: SUM | H240: SUM | I240: SUM | J240: SUM | K240: SUM | L240: SUM | M240: SUM | N240: SUM | O240: SUM | P240: SUM | Q240: SUM | R240: SUM | S240: SUM | T240: SUM | U240: SUM | V240: SUM | W240: SUM | X240: SUM | Y240: SUM | Z240: SUM | AA240: SUM | AB240: SUM | AC240: SUM | AD240: SUM | AE240: SUM | AF240: SUM | AG240: SUM | AH240: SUM | AI240: SUM | AJ240: SUM | AK240: SUM | AL240: SUM | AM240: SUM | AN240: SUM | AO240: SUM | AP240: SUM | AQ240: SUM | AR240: SUM | AS240: SUM | AT240: SUM | AU240: SUM | AV240: SUM | AW240: SUM | AX240: SUM | AY240: SUM | AZ240: SUM | BA240: SUM | BB240: SUM | BC240: SUM | BD240: SUM | BE240: SUM | BF240: SUM | BG240: SUM | BH240: SUM | BI240: SUM | BJ240: SUM | BK240: SUM | BL240: SUM | BM240: SUM | BN240: SUM | BO240: SUM
B241: =B240+1 -> 111 | D241: RDF including plastics | E241: [t/yr] | G241: SUM | H241: SUM | I241: SUM | J241: SUM | K241: SUM | L241: SUM | M241: SUM | N241: SUM | O241: SUM | P241: SUM | Q241: SUM | R241: SUM | S241: SUM | T241: SUM | U241: SUM | V241: SUM | W241: SUM | X241: SUM | Y241: SUM | Z241: SUM | AA241: SUM | AB241: SUM | AC241: SUM | AD241: SUM | AE241: SUM | AF241: SUM | AG241: SUM | AH241: SUM | AI241: SUM | AJ241: SUM | AK241: SUM | AL241: SUM | AM241: SUM | AN241: SUM | AO241: SUM | AP241: SUM | AQ241: SUM | AR241: SUM | AS241: SUM | AT241: SUM | AU241: SUM | AV241: SUM | AW241: SUM | AX241: SUM | AY241: SUM | AZ241: SUM | BA241: SUM | BB241: SUM | BC241: SUM | BD241: SUM | BE241: SUM | BF241: SUM | BG241: SUM | BH241: SUM | BI241: SUM | BJ241: SUM | BK241: SUM | BL241: SUM | BM241: SUM | BN241: SUM | BO241: SUM
B242: =B241+1 -> 112 | D242: solvents | E242: [t/yr] | G242: SUM | H242: SUM | I242: SUM | J242: SUM | K242: SUM | L242: SUM | M242: SUM | N242: SUM | O242: SUM | P242: SUM | Q242: SUM | R242: SUM | S242: SUM | T242: SUM | U242: SUM | V242: SUM | W242: SUM | X242: SUM | Y242: SUM | Z242: SUM | AA242: SUM | AB242: SUM | AC242: SUM | AD242: SUM | AE242: SUM | AF242: SUM | AG242: SUM | AH242: SUM | AI242: SUM | AJ242: SUM | AK242: SUM | AL242: SUM | AM242: SUM | AN242: SUM | AO242: SUM | AP242: SUM | AQ242: SUM | AR242: SUM | AS242: SUM | AT242: SUM | AU242: SUM | AV242: SUM | AW242: SUM | AX242: SUM | AY242: SUM | AZ242: SUM | BA242: SUM | BB242: SUM | BC242: SUM | BD242: SUM | BE242: SUM | BF242: SUM | BG242: SUM | BH242: SUM | BI242: SUM | BJ242: SUM | BK242: SUM | BL242: SUM | BM242: SUM | BN242: SUM | BO242: SUM
B243: =B242+1 -> 113 | D243: impregnated saw dust | E243: [t/yr] | G243: SUM | H243: SUM | I243: SUM | J243: SUM | K243: SUM | L243: SUM | M243: SUM | N243: SUM | O243: SUM | P243: SUM | Q243: SUM | R243: SUM | S243: SUM | T243: SUM | U243: SUM | V243: SUM | W243: SUM | X243: SUM | Y243: SUM | Z243: SUM | AA243: SUM | AB243: SUM | AC243: SUM | AD243: SUM | AE243: SUM | AF243: SUM | AG243: SUM | AH243: SUM | AI243: SUM | AJ243: SUM | AK243: SUM | AL243: SUM | AM243: SUM | AN243: SUM | AO243: SUM | AP243: SUM | AQ243: SUM | AR243: SUM | AS243: SUM | AT243: SUM | AU243: SUM | AV243: SUM | AW243: SUM | AX243: SUM | AY243: SUM | AZ243: SUM | BA243: SUM | BB243: SUM | BC243: SUM | BD243: SUM | BE243: SUM | BF243: SUM | BG243: SUM | BH243: SUM | BI243: SUM | BJ243: SUM | BK243: SUM | BL243: SUM | BM243: SUM | BN243: SUM | BO243: SUM
B244: 113a | D244: mixed industrial waste | E244: [t/yr] | G244: SUM | H244: SUM | I244: SUM | J244: SUM | K244: SUM | L244: SUM | M244: SUM | N244: SUM | O244: SUM | P244: SUM | Q244: SUM | R244: SUM | S244: SUM | T244: SUM | U244: SUM | V244: SUM | W244: SUM | X244: SUM | Y244: SUM | Z244: SUM | AA244: SUM | AB244: SUM | AC244: SUM | AD244: SUM | AE244: SUM | AF244: SUM | AG244: SUM | AH244: SUM | AI244: SUM | AJ244: SUM | AK244: SUM | AL244: SUM | AM244: SUM | AN244: SUM | AO244: SUM | AP244: SUM | AQ244: SUM | AR244: SUM | AS244: SUM | AT244: SUM | AU244: SUM | AV244: SUM | AW244: SUM | AX244: SUM | AY244: SUM | AZ244: SUM | BA244: SUM | BB244: SUM | BC244: SUM | BD244: SUM | BE244: SUM | BF244: SUM | BG244: SUM | BH244: SUM | BI244: SUM | BJ244: SUM | BK244: SUM | BL244: SUM | BM244: SUM | BN244: SUM | BO244: SUM
B245: 114 | D245: other fossil based wastes and mixed fuels | E245: [t/yr] | G245: SUM | H245: SUM | I245: SUM | J245: SUM | K245: SUM | L245: SUM | M245: SUM | N245: SUM | O245: SUM | P245: SUM | Q245: SUM | R245: SUM | S245: SUM | T245: SUM | U245: SUM | V245: SUM | W245: SUM | X245: SUM | Y245: SUM | Z245: SUM | AA245: SUM | AB245: SUM | AC245: SUM | AD245: SUM | AE245: SUM | AF245: SUM | AG245: SUM | AH245: SUM | AI245: SUM | AJ245: SUM | AK245: SUM | AL245: SUM | AM245: SUM | AN245: SUM | AO245: SUM | AP245: SUM | AQ245: SUM | AR245: SUM | AS245: SUM | AT245: SUM | AU245: SUM | AV245: SUM | AW245: SUM | AX245: SUM | AY245: SUM | AZ245: SUM | BA245: SUM | BB245: SUM | BC245: SUM | BD245: SUM | BE245: SUM | BF245: SUM | BG245: SUM | BH245: SUM | BI245: SUM | BJ245: SUM | BK245: SUM | BL245: SUM | BM245: SUM | BN245: SUM | BO245: SUM
B246: =B245+1 -> 115 | C246: Biomass fuels (excl. drying of raw materials and fuels)
B247: 116 | D247: dried sewage sludge | E247: [t/yr] | G247: SUM | H247: SUM | I247: SUM | J247: SUM | K247: SUM | L247: SUM | M247: SUM | N247: SUM | O247: SUM | P247: SUM | Q247: SUM | R247: SUM | S247: SUM | T247: SUM | U247: SUM | V247: SUM | W247: SUM | X247: SUM | Y247: SUM | Z247: SUM | AA247: SUM | AB247: SUM | AC247: SUM | AD247: SUM | AE247: SUM | AF247: SUM | AG247: SUM | AH247: SUM | AI247: SUM | AJ247: SUM | AK247: SUM | AL247: SUM | AM247: SUM | AN247: SUM | AO247: SUM | AP247: SUM | AQ247: SUM | AR247: SUM | AS247: SUM | AT247: SUM | AU247: SUM | AV247: SUM | AW247: SUM | AX247: SUM | AY247: SUM | AZ247: SUM | BA247: SUM | BB247: SUM | BC247: SUM | BD247: SUM | BE247: SUM | BF247: SUM | BG247: SUM | BH247: SUM | BI247: SUM | BJ247: SUM | BK247: SUM | BL247: SUM | BM247: SUM | BN247: SUM | BO247: SUM
B248: 117 | D248: wood, non impregnated saw dust | E248: [t/yr] | G248: SUM | H248: SUM | I248: SUM | J248: SUM | K248: SUM | L248: SUM | M248: SUM | N248: SUM | O248: SUM | P248: SUM | Q248: SUM | R248: SUM | S248: SUM | T248: SUM | U248: SUM | V248: SUM | W248: SUM | X248: SUM | Y248: SUM | Z248: SUM | AA248: SUM | AB248: SUM | AC248: SUM | AD248: SUM | AE248: SUM | AF248: SUM | AG248: SUM | AH248: SUM | AI248: SUM | AJ248: SUM | AK248: SUM | AL248: SUM | AM248: SUM | AN248: SUM | AO248: SUM | AP248: SUM | AQ248: SUM | AR248: SUM | AS248: SUM | AT248: SUM | AU248: SUM | AV248: SUM | AW248: SUM | AX248: SUM | AY248: SUM | AZ248: SUM | BA248: SUM | BB248: SUM | BC248: SUM | BD248: SUM | BE248: SUM | BF248: SUM | BG248: SUM | BH248: SUM | BI248: SUM | BJ248: SUM | BK248: SUM | BL248: SUM | BM248: SUM | BN248: SUM | BO248: SUM
B249: 118 | D249: paper, carton | E249: [t/yr] | G249: SUM | H249: SUM | I249: SUM | J249: SUM | K249: SUM | L249: SUM | M249: SUM | N249: SUM | O249: SUM | P249: SUM | Q249: SUM | R249: SUM | S249: SUM | T249: SUM | U249: SUM | V249: SUM | W249: SUM | X249: SUM | Y249: SUM | Z249: SUM | AA249: SUM | AB249: SUM | AC249: SUM | AD249: SUM | AE249: SUM | AF249: SUM | AG249: SUM | AH249: SUM | AI249: SUM | AJ249: SUM | AK249: SUM | AL249: SUM | AM249: SUM | AN249: SUM | AO249: SUM | AP249: SUM | AQ249: SUM | AR249: SUM | AS249: SUM | AT249: SUM | AU249: SUM | AV249: SUM | AW249: SUM | AX249: SUM | AY249: SUM | AZ249: SUM | BA249: SUM | BB249: SUM | BC249: SUM | BD249: SUM | BE249: SUM | BF249: SUM | BG249: SUM | BH249: SUM | BI249: SUM | BJ249: SUM | BK249: SUM | BL249: SUM | BM249: SUM | BN249: SUM | BO249: SUM
B250: 119 | D250: animal meal | E250: [t/yr] | G250: SUM | H250: SUM | I250: SUM | J250: SUM | K250: SUM | L250: SUM | M250: SUM | N250: SUM | O250: SUM | P250: SUM | Q250: SUM | R250: SUM | S250: SUM | T250: SUM | U250: SUM | V250: SUM | W250: SUM | X250: SUM | Y250: SUM | Z250: SUM | AA250: SUM | AB250: SUM | AC250: SUM | AD250: SUM | AE250: SUM | AF250: SUM | AG250: SUM | AH250: SUM | AI250: SUM | AJ250: SUM | AK250: SUM | AL250: SUM | AM250: SUM | AN250: SUM | AO250: SUM | AP250: SUM | AQ250: SUM | AR250: SUM | AS250: SUM | AT250: SUM | AU250: SUM | AV250: SUM | AW250: SUM | AX250: SUM | AY250: SUM | AZ250: SUM | BA250: SUM | BB250: SUM | BC250: SUM | BD250: SUM | BE250: SUM | BF250: SUM | BG250: SUM | BH250: SUM | BI250: SUM | BJ250: SUM | BK250: SUM | BL250: SUM | BM250: SUM | BN250: SUM | BO250: SUM
B251: 120 | D251: animal bone meal | E251: [t/yr] | G251: SUM | H251: SUM | I251: SUM | J251: SUM | K251: SUM | L251: SUM | M251: SUM | N251: SUM | O251: SUM | P251: SUM | Q251: SUM | R251: SUM | S251: SUM | T251: SUM | U251: SUM | V251: SUM | W251: SUM | X251: SUM | Y251: SUM | Z251: SUM | AA251: SUM | AB251: SUM | AC251: SUM | AD251: SUM | AE251: SUM | AF251: SUM | AG251: SUM | AH251: SUM | AI251: SUM | AJ251: SUM | AK251: SUM | AL251: SUM | AM251: SUM | AN251: SUM | AO251: SUM | AP251: SUM | AQ251: SUM | AR251: SUM | AS251: SUM | AT251: SUM | AU251: SUM | AV251: SUM | AW251: SUM | AX251: SUM | AY251: SUM | AZ251: SUM | BA251: SUM | BB251: SUM | BC251: SUM | BD251: SUM | BE251: SUM | BF251: SUM | BG251: SUM | BH251: SUM | BI251: SUM | BJ251: SUM | BK251: SUM | BL251: SUM | BM251: SUM | BN251: SUM | BO251: SUM
B252: 121 | D252: animal fat | E252: [t/yr] | G252: SUM | H252: SUM | I252: SUM | J252: SUM | K252: SUM | L252: SUM | M252: SUM | N252: SUM | O252: SUM | P252: SUM | Q252: SUM | R252: SUM | S252: SUM | T252: SUM | U252: SUM | V252: SUM | W252: SUM | X252: SUM | Y252: SUM | Z252: SUM | AA252: SUM | AB252: SUM | AC252: SUM | AD252: SUM | AE252: SUM | AF252: SUM | AG252: SUM | AH252: SUM | AI252: SUM | AJ252: SUM | AK252: SUM | AL252: SUM | AM252: SUM | AN252: SUM | AO252: SUM | AP252: SUM | AQ252: SUM | AR252: SUM | AS252: SUM | AT252: SUM | AU252: SUM | AV252: SUM | AW252: SUM | AX252: SUM | AY252: SUM | AZ252: SUM | BA252: SUM | BB252: SUM | BC252: SUM | BD252: SUM | BE252: SUM | BF252: SUM | BG252: SUM | BH252: SUM | BI252: SUM | BJ252: SUM | BK252: SUM | BL252: SUM | BM252: SUM | BN252: SUM | BO252: SUM
B253: 122 | D253: agricultural, organic, diaper waste, charcoal | E253: [t/yr] | G253: SUM | H253: SUM | I253: SUM | J253: SUM | K253: SUM | L253: SUM | M253: SUM | N253: SUM | O253: SUM | P253: SUM | Q253: SUM | R253: SUM | S253: SUM | T253: SUM | U253: SUM | V253: SUM | W253: SUM | X253: SUM | Y253: SUM | Z253: SUM | AA253: SUM | AB253: SUM | AC253: SUM | AD253: SUM | AE253: SUM | AF253: SUM | AG253: SUM | AH253: SUM | AI253: SUM | AJ253: SUM | AK253: SUM | AL253: SUM | AM253: SUM | AN253: SUM | AO253: SUM | AP253: SUM | AQ253: SUM | AR253: SUM | AS253: SUM | AT253: SUM | AU253: SUM | AV253: SUM | AW253: SUM | AX253: SUM | AY253: SUM | AZ253: SUM | BA253: SUM | BB253: SUM | BC253: SUM | BD253: SUM | BE253: SUM | BF253: SUM | BG253: SUM | BH253: SUM | BI253: SUM | BJ253: SUM | BK253: SUM | BL253: SUM | BM253: SUM | BN253: SUM | BO253: SUM
B254: 123 | D254: other biomass | E254: [t/yr] | G254: SUM | H254: SUM | I254: SUM | J254: SUM | K254: SUM | L254: SUM | M254: SUM | N254: SUM | O254: SUM | P254: SUM | Q254: SUM | R254: SUM | S254: SUM | T254: SUM | U254: SUM | V254: SUM | W254: SUM | X254: SUM | Y254: SUM | Z254: SUM | AA254: SUM | AB254: SUM | AC254: SUM | AD254: SUM | AE254: SUM | AF254: SUM | AG254: SUM | AH254: SUM | AI254: SUM | AJ254: SUM | AK254: SUM | AL254: SUM | AM254: SUM | AN254: SUM | AO254: SUM | AP254: SUM | AQ254: SUM | AR254: SUM | AS254: SUM | AT254: SUM | AU254: SUM | AV254: SUM | AW254: SUM | AX254: SUM | AY254: SUM | AZ254: SUM | BA254: SUM | BB254: SUM | BC254: SUM | BD254: SUM | BE254: SUM | BF254: SUM | BG254: SUM | BH254: SUM | BI254: SUM | BJ254: SUM | BK254: SUM | BL254: SUM | BM254: SUM | BN254: SUM | BO254: SUM
B255: Drying of raw materials and fuels | G255: =G$7 -> 1990 | H255: 1991 | I255: 1992 | J255: 1993 | K255: 1994 | L255: 1995 | M255: 1996 | N255: 1997 | O255: 1998 | P255: 1999 | Q255: 2000 | R255: 2001 | S255: 2002 | T255: 2003 | U255: 2004 | V255: 2005 | W255: 2006 | X255: 2007 | Y255: 2008 | Z255: 2009 | AA255: 2010 | AB255: 2011 | AC255: 2012 | AD255: 2013 | AE255: 2014 | AF255: 2015 | AG255: 2016 | AH255: 2017 | AI255: 2018 | AJ255: 2019 | AK255: 2020 | AL255: 2021 | AM255: 2022 | AN255: 2023 | AO255: 2024 | AP255: 2025 | AQ255: 2026 | AR255: 2027 | AS255: 2028 | AT255: 2029 | AU255: 2030 | AV255: 2031 | AW255: 2032 | AX255: 2033 | AY255: 2034 | AZ255: 2035 | BA255: 2036 | BB255: 2037 | BC255: 2038 | BD255: 2039 | BE255: 2040 | BF255: 2041 | BG255: 2042 | BH255: 2043 | BI255: 2044 | BJ255: 2045 | BK255: 2046 | BL255: 2047 | BM255: 2048 | BN255: 2049 | BO255: 2050
B256: 124 | C256: Conventional fossil fuels
... 326 more rows

Sheet Validation
A2: 1.) | B2: Select year for validation:
A4: 2.) | C4: FAILED
A7: 3.) | B7: - If validation fails please read the sheet "ControlPlant". - Make correction in the plant sheets. - Start validation again.
B9: Plant name | C9: Validation | D9: Plant type | E9: 2009 | F9: 2010 | G9: 2011 | H9: 2012 | I9: 2013 | J9: 2014 | K9: 2015

Sheet ControlPlant
A1: Plant Level
A2: Year | B2: Tab Name | C2: Line | D2: Comment | E2: Min | F2: Value | G2: Max | H2: Note

Sheet Fuel CO2 Factors
A1: GCCA (Global Cement and Concret Association) Cement CO2 and Energy Protocol, Version 3.1, CO2 Emissions and Energy Inventory. Developed by the WBCSD Cement Sustainability Initiative (CSI) and European Cement Research Academy (ECRA). | F1: Default CO2 Emission Factors for Fuels
B3: Date of latest update | E3: =Plant!E3 -> 2013-12-09
A5: Type | B5: Category | D5: IPCC default kg CO2/GJ | E5: CSI default kg CO2/GJ | F5: CSI default % biomass | G5: Comments
B6: Fossil fuels
A7: 1 | C7: coal + anthracite + waste coal | D7: 96 | G7: IPCC defaults are: 94.6 for coking coal and other bituminous coal, 96.1 for sub-bituminous coal, and 98.3 for anthracite
A8: =A7+1 -> 2 | C8: petrol coke | E8: 92.8 | G8: Based on measurements compiled by CSI Task Force 1. See Guidance Document, Appendix 4 for details.
A9: =A8+1 -> 3 | C9: (ultra) heavy fuel | D9: 77.4 | G9: IPCC default for residual fuel oil
A10: =A9+1 -> 4 | C10: diesel oil | D10: 74.1
A11: =A10+1 -> 5 | C11: natural gas (dry) | D11: 56.1
A12: =A11+1 -> 6 | C12: oil shale | D12: 107
A13: 6a | C13: lignite | D13: 101
A14: =A12+1 -> 7 | C14: gasoline | D14: 69.3
B15: Alternative fossil fuels
A16: 8 | C16: waste oil | E16: 74 | G16: Based on measurements compiled by CSI Task Force 1. See Guidance Document, Appendix 4 for details.
A17: =A16+1 -> 9 | C17: tyres | E17: 85 | F17: 0.27 | G17: Best estimate of CSI Task Force 1
A18: =A17+1 -> 10 | C18: plastics | E18: 75 | G18: Best estimate of CSI Task Force 1
A19: =A18+1 -> 11 | C19: solvents | E19: 74 | G19: Based on measurements compiled by CSI Task Force 1. See Guidance Document, Appendix 4 for details.
A20: =A19+1 -> 12 | C20: impregnated saw dust | E20: 75 | G20: Best estimate of CSI Task Force 1
A21: 12a | C21: mixed industrial waste | E21: 83 | G21: Best estimate of CSI Task Force 1
A22: 13 | C22: other fossil based wastes | E22: 80 | G22: Best estimate of CSI Task Force 1
B23: Biomass fuels
A24: 14 | C24: dried sewage sludge | E24: 110 | G24: = IPCC default for solid biomass fuels
A25: =A24+1 -> 15 | C25: wood, non impregnated saw dust | E25: 110 | G25: = IPCC default for solid biomass fuels
A26: 16 | C26: paper, carton | E26: 110 | G26: = IPCC default for solid biomass fuels
A27: 17 | C27: animal meal | E27: 89 | G27: Based on measurements compiled by CSI Task Force 1. See Guidance Document, Appendix 4 for details.
A28: 18 | C28: animal bone meal | E28: 89 | G28: Best estimate of CSI Task Force 1
A29: 19 | C29: animal fat | E29: 89 | G29: Best estimate of CSI Task Force 1
A30: 20 | C30: agricultural, organic, diaper waste, charcoal | E30: 110 | G30: = IPCC default for solid biomass fuels
A31: 21 | C31: other biomass | E31: 110 | G31: = IPCC default for solid biomass fuels
A34: IPCC 2006, 2006 IPCC Guidelines for National Greenhouse Gas Inventories, Prepared by the National Greenhouse Gas Inventories Programme, Published: IGES, Japan.
A35: http://www.ipcc-nggip.iges.or.jp
A36: Vol. II, Section 1.4.2.1, Table 1.4, Section 2.3.2.1., Table 2.3
A38: Some fuels have been clustered for simplicity.

Sheet Plant_new (hidden)
A1: GCCA (Global Cement and Concret Association) Cement CO2 and Energy Protocol, Version 3.1, CO2 Emissions and Energy Inventory. Developed by the WBCSD Cement Sustainability Initiative (CSI) and European Cement Research Academy (ECRA). | E1: Plant Level
B3: Date of latest update | E3: ='Read Me'!B4 -> 2013-12-09
A5: INFORMATION
B7: General Plant Information | G7: 1990 | H7: 1991 | I7: 1992 | J7: 1993 | K7: 1994 | L7: 1995 | M7: 1996 | N7: 1997 | O7: 1998 | P7: 1999 | Q7: 2000 | R7: 2001 | S7: 2002 | T7: 2003 | U7: 2004 | V7: 2005 | W7: 2006 | X7: 2007 | Y7: 2008 | Z7: 2009 | AA7: 2010 | AB7: 2011 | AC7: 2012 | AD7: 2013 | AE7: 2014 | AF7: 2015 | AG7: 2016 | AH7: 2017 | AI7: 2018 | AJ7: 2019 | AK7: 2020 | AL7: 2021 | AM7: 2022 | AN7: 2023 | AO7: 2024 | AP7: 2025 | AQ7: 2026 | AR7: 2027 | AS7: 2028 | AT7: 2029 | AU7: 2030 | AV7: 2031 | AW7: 2032 | AX7: 2033 | AY7: 2034 | AZ7: 2035 | BA7: 2036 | BB7: 2037 | BC7: 2038 | BD7: 2039 | BE7: 2040 | BF7: 2041 | BG7: 2042 | BH7: 2043 | BI7: 2044 | BJ7: 2045 | BK7: 2046 | BL7: 2047 | BM7: 2048 | BN7: 2049 | BO7: 2050
B8: 1 | C8: Plant
B9: 2 | C9: Company
B10: 3 | C10: Country
B11: 4 | C11: Continent
B12: 5 | C12: "Kyoto" Region (Annex 1 or non-Annex 1)
B13: 6 | C13: Kiln types
B14: 6a | C14: Nominal clinker capacity | E14: [t/d]
B15: 6b | C15: Plant type
B16: 7 | C16: Shares owned by Company | E16: [%]
B17: 7aa | C17: Third party verification
B18: 7ab | C18: Used Cement CO2 and Energy Protocol version | G18: V3.1 | H18: V3.1 | I18: V3.1 | J18: V3.1 | K18: V3.1 | L18: V3.1 | M18: V3.1 | N18: V3.1 | O18: V3.1 | P18: V3.1 | Q18: V3.1 | R18: V3.1 | S18: V3.1 | T18: V3.1 | U18: V3.1 | V18: V3.1 | W18: V3.1 | X18: V3.1 | Y18: V3.1 | Z18: V3.1 | AA18: V3.1 | AB18: V3.1 | AC18: V3.1 | AD18: V3.1 | AE18: V3.1 | AF18: V3.1 | AG18: V3.1 | AH18: V3.1 | AI18: V3.1 | AJ18: V3.1 | AK18: V3.1 | AL18: V3.1 | AM18: V3.1 | AN18: V3.1 | AO18: V3.1 | AP18: V3.1 | AQ18: V3.1 | AR18: V3.1 | AS18: V3.1 | AT18: V3.1 | AU18: V3.1 | AV18: V3.1 | AW18: V3.1 | AX18: V3.1 | AY18: V3.1 | AZ18: V3.1 | BA18: V3.1 | BB18: V3.1 | BC18: V3.1 | BD18: V3.1 | BE18: V3.1 | BF18: V3.1 | BG18: V3.1 | BH18: V3.1 | BI18: V3.1 | BJ18: V3.1 | BK18: V3.1 | BL18: V3.1 | BM18: V3.1 | BN18: V3.1 | BO18: V3.1
B19: 7ac | C19: Short notes or user comment (max. 250 characters) | G19: Recalculation with protocol V3 (GNR data until 2010 according to V2) | H19: Recalculation with protocol V3 (GNR data until 2010 according to V2) | Q19: Recalculation with protocol V3 (GNR data until 2010 according to V2) | V19: Recalculation with protocol V3 (GNR data until 2010 according to V2) | W19: Recalculation with protocol V3 (GNR data until 2010 according to V2) | X19: Recalculation with protocol V3 (GNR data until 2010 according to V2) | Y19: Recalculation with protocol V3 (GNR data until 2010 according to V2) | Z19: Recalculation with protocol V3 (GNR data until 2010 according to V2) | AA19: Recalculation with protocol V3 (GNR data until 2010 according to V2)
G20: .
B21: Inventory Boundaries: Coverage of Main Process Steps | E21: [yes, no or n.a.] | G21: =G$7 -> 1990 | H21: 1991 | I21: 1992 | J21: 1993 | K21: 1994 | L21: 1995 | M21: 1996 | N21: 1997 | O21: 1998 | P21: 1999 | Q21: 2000 | R21: 2001 | S21: 2002 | T21: 2003 | U21: 2004 | V21: 2005 | W21: 2006 | X21: 2007 | Y21: 2008 | Z21: 2009 | AA21: 2010 | AB21: 2011 | AC21: 2012 | AD21: 2013 | AE21: 2014 | AF21: 2015 | AG21: 2016 | AH21: 2017 | AI21: 2018 | AJ21: 2019 | AK21: 2020 | AL21: 2021 | AM21: 2022 | AN21: 2023 | AO21: 2024 | AP21: 2025 | AQ21: 2026 | AR21: 2027 | AS21: 2028 | AT21: 2029 | AU21: 2030 | AV21: 2031 | AW21: 2032 | AX21: 2033 | AY21: 2034 | AZ21: 2035 | BA21: 2036 | BB21: 2037 | BC21: 2038 | BD21: 2039 | BE21: 2040 | BF21: 2041 | BG21: 2042 | BH21: 2043 | BI21: 2044 | BJ21: 2045 | BK21: 2046 | BL21: 2047 | BM21: 2048 | BN21: 2049 | BO21: 2050
B22: 7a | C22: Raw material supply (quarrying, mining, crushing) | E22: no
B23: 7b | C23: Preparation of raw materials, fuels and additives | E23: no
B24: 7c | C24: Kiln operation (pyro-processing) | E24: no
B25: 7d | C25: Cement grinding, blending | E25: no
B26: 7e | C26: On-site (internal) transport | E26: no
B27: 7f | C27: Off-site transport with company-owned fleets | E27: no
B28: 7g | C28: On-site power generation | E28: no
B29: 7h | C29: Room heating and cooling | E29: no
B30: 7i | C30: (add other processes as appropriate) | E30: no
B31: 7j | C31: use of internal cement transfer for blending | E31: no
B32: 7k | C32: Select year to copy and apply inventory boundaries (7a - 7j)
B34: 7n | C34: 1.) Select calcination CO2 method (A1; A2; B1; B2) B1=Standard (no seperate calcination sheet needed). | G34: B1 | H34: B1 | I34: B1 | J34: B1 | K34: B1 | L34: B1 | M34: B1 | N34: B1 | O34: B1 | P34: B1 | Q34: B1 | R34: B1 | S34: B1 | T34: B1 | U34: B1 | V34: B1 | W34: B1 | X34: B1 | Y34: B1 | Z34: B1 | AA34: B1 | AB34: B1 | AC34: B1 | AD34: B1 | AE34: B1 | AF34: B1 | AG34: B1 | AH34: B1 | AI34: B1 | AJ34: B1 | AK34: B1 | AL34: B1 | AM34: B1 | AN34: B1 | AO34: B1 | AP34: B1 | AQ34: B1 | AR34: B1 | AS34: B1 | AT34: B1 | AU34: B1 | AV34: B1 | AW34: B1 | AX34: B1 | AY34: B1 | AZ34: B1 | BA34: B1 | BB34: B1 | BC34: B1 | BD34: B1 | BE34: B1 | BF34: B1 | BG34: B1 | BH34: B1 | BI34: B1 | BJ34: B1 | BK34: B1 | BL34: B1 | BM34: B1 | BN34: B1 | BO34: B1
C35: 2.) For A1; A2; B2 check if appropriate calcination sheet (CalcA1; CalcA2 or CalcB2) is already availabe next to plant sheet.
C36: 3.) If not, press the 'create' button one time in order to create one new calcination sheet.
B38: Clinker and Cement Production | G38: =G$7 -> 1990 | H38: 1991 | I38: 1992 | J38: 1993 | K38: 1994 | L38: 1995 | M38: 1996 | N38: 1997 | O38: 1998 | P38: 1999 | Q38: 2000 | R38: 2001 | S38: 2002 | T38: 2003 | U38: 2004 | V38: 2005 | W38: 2006 | X38: 2007 | Y38: 2008 | Z38: 2009 | AA38: 2010 | AB38: 2011 | AC38: 2012 | AD38: 2013 | AE38: 2014 | AF38: 2015 | AG38: 2016 | AH38: 2017 | AI38: 2018 | AJ38: 2019 | AK38: 2020 | AL38: 2021 | AM38: 2022 | AN38: 2023 | AO38: 2024 | AP38: 2025 | AQ38: 2026 | AR38: 2027 | AS38: 2028 | AT38: 2029 | AU38: 2030 | AV38: 2031 | AW38: 2032 | AX38: 2033 | AY38: 2034 | AZ38: 2035 | BA38: 2036 | BB38: 2037 | BC38: 2038 | BD38: 2039 | BE38: 2040 | BF38: 2041 | BG38: 2042 | BH38: 2043 | BI38: 2044 | BJ38: 2045 | BK38: 2046 | BL38: 2047 | BM38: 2048 | BN38: 2049 | BO38: 2050
C39: Clinker:
B40: =B16+1 -> 8 | C40: Clinker production | E40: [t/yr]
B41: =B40+1 -> 9 | C41: Clinker bought from other companies and from cross-border transfer | E41: [t/yr]
B42: =B41+1 -> 10 | C42: Clinker sold to other companies and from cross-border transfer | E42: [t/yr]
B43: 10a | C43: Change in clinker stocks (+ = increase; - = reduction) | E43: [t/yr]
B44: 10b | C44: Internal clinker transfer (+ = clinker received; - = clinker sent) | E44: [t/yr]
B45: 10c | C45: Clinker from internal transfer of processed cement (+ = cement received; - = cement sent) | E45: [t/yr]
B46: =B42+1 -> 11 | C46: Total clinker consumed | E46: [t/yr] | G46: =IF(COUNTBLANK(G40:G45)=6,"",G40+G41-G42-G43+G44+G45) ->  | H46: =IF(COUNTBLANK(H40:H45)=6,"",H40+H41-H42-H43+H44+H45) ->  | AL46: =IF(COUNTBLANK(AL40:AL45)=6,"",AL40+AL41-AL42-AL43+AL44+AL45) ->  | AM46: =IF(COUNTBLANK(AM40:AM45)=6,"",AM40+AM41-AM42-AM43+AM44+AM45) ->  | AN46: =IF(COUNTBLANK(AN40:AN45)=6,"",AN40+AN41-AN42-AN43+AN44+AN45) ->  | AO46: =IF(COUNTBLANK(AO40:AO45)=6,"",AO40+AO41-AO42-AO43+AO44+AO45) ->  | AP46: =IF(COUNTBLANK(AP40:AP45)=6,"",AP40+AP41-AP42-AP43+AP44+AP45) ->  | AQ46: =IF(COUNTBLANK(AQ40:AQ45)=6,"",AQ40+AQ41-AQ42-AQ43+AQ44+AQ45) -> 
C48: Mineral components (MIC) used to produce Portland and blended cements:
B49: =B46+1 -> 12 | C49: Gypsum | E49: [t/yr, dry weight]
B50: =B49+1 -> 13 | C50: Limestone | E50: [t/yr, dry weight]
B51: =B50+1 -> 14 | C51: Slag | E51: [t/yr, dry weight]
B52: =B51+1 -> 15 | C52: Fly ash (for blending) | E52: [t/yr, dry weight]
B53: =B52+1 -> 16 | C53: Puzzolana | E53: [t/yr, dry weight]
B54: =B53+1 -> 17 | C54: Others (e.g., CKD added to cement mill) | E54: [t/yr, dry weight]
B55: 17a | C55: MIC from internal transfer of processed cement (+ = cement received; - = cement sent) | E55: [t/yr, dry weight]
B56: =B54+1 -> 18 | C56: Total MIC consumed for Portland and blended cements (dry weight) | E56: [t/yr, dry weight] | G56: =IF(COUNTBLANK(G49:G55)=7,"",SUM(G49:G55)) ->  | H56: =IF(COUNTBLANK(H49:H55)=7,"",SUM(H49:H55)) ->  | AL56: =IF(COUNTBLANK(AL49:AL55)=7,"",SUM(AL49:AL55)) ->  | AM56: =IF(COUNTBLANK(AM49:AM55)=7,"",SUM(AM49:AM55)) ->  | AN56: =IF(COUNTBLANK(AN49:AN55)=7,"",SUM(AN49:AN55)) ->  | AO56: =IF(COUNTBLANK(AO49:AO55)=7,"",SUM(AO49:AO55)) ->  | AP56: =IF(COUNTBLANK(AP49:AP55)=7,"",SUM(AP49:AP55)) ->  | AQ56: =IF(COUNTBLANK(AQ49:AQ55)=7,"",SUM(AQ49:AQ55)) -> 
C58: Processed mineral components (MIC) sold externally or transferred internally (dry weight):
B59: 19a | C59: Processed slag sold externally | E59: [t/yr, dry weight]
B60: 19b | C60: Processed fly ash and other puzzolana sold externally | E60: [t/yr, dry weight]
B61: 19c | C61: Total internal processed MIC transfer (+ = received; - = sent) | E61: [t/yr, dry weight]
B62: 19 | C62: Total processed MIC's used as clinker or cement substitute sold externally | E62: [t/yr, dry weight] | G62: =IF(COUNTBLANK(G59:G61)=3,"",SUM(G59:G61)) ->  | H62: =IF(COUNTBLANK(H59:H61)=3,"",SUM(H59:H61)) ->  | AL62: =IF(COUNTBLANK(AL59:AL61)=3,"",SUM(AL59:AL61)) ->  | AM62: =IF(COUNTBLANK(AM59:AM61)=3,"",SUM(AM59:AM61)) ->  | AN62: =IF(COUNTBLANK(AN59:AN61)=3,"",SUM(AN59:AN61)) ->  | AO62: =IF(COUNTBLANK(AO59:AO61)=3,"",SUM(AO59:AO61)) ->  | AP62: =IF(COUNTBLANK(AP59:AP61)=3,"",SUM(AP59:AP61)) ->  | AQ62: =IF(COUNTBLANK(AQ59:AQ61)=3,"",SUM(AQ59:AQ61)) -> 
C64: Production totals:
B65: =B62+1 -> 20 | C65: Total Portland and Blended cements | E65: [t/yr] | G65: =IF(OR(G46="",G56=""),"",G46+G56) ->  | H65: =IF(OR(H46="",H56=""),"",H46+H56) ->  | AL65: =IF(OR(AL46="",AL56=""),"",AL46+AL56) ->  | AM65: =IF(OR(AM46="",AM56=""),"",AM46+AM56) ->  | AN65: =IF(OR(AN46="",AN56=""),"",AN46+AN56) ->  | AO65: =IF(OR(AO46="",AO56=""),"",AO46+AO56) ->  | AP65: =IF(OR(AP46="",AP56=""),"",AP46+AP56) ->  | AQ65: =IF(OR(AQ46="",AQ56=""),"",AQ46+AQ56) -> 
B66: =B65+1 -> 21 | C66: Total cements + substitutes: Portland, Blended, Slag, etc. | E66: [t/yr] | G66: =IF(OR(G46="",G56="",G62=""),"",G46+G56+G62) ->  | AL66: =IF(OR(AL46="",AL56="",AL62=""),"",AL46+AL56+AL62) ->  | AM66: =IF(OR(AM46="",AM56="",AM62=""),"",AM46+AM56+AM62) ->  | AN66: =IF(OR(AN46="",AN56="",AN62=""),"",AN46+AN56+AN62) ->  | AO66: =IF(OR(AO46="",AO56="",AO62=""),"",AO46+AO56+AO62) ->  | AP66: =IF(OR(AP46="",AP56="",AP62=""),"",AP46+AP56+AP62) ->  | AQ66: =IF(OR(AQ46="",AQ56="",AQ62=""),"",AQ46+AQ56+AQ62) -> 
B67: 21a | C67: Total cementitious products | E67: [t/yr] | G67: =IF(OR(G40="",G56="",G62=""),"",G40+G56+G62) ->  | AL67: =IF(OR(AL40="",AL56="",AL62=""),"",AL40+AL56+AL62) ->  | AM67: =IF(OR(AM40="",AM56="",AM62=""),"",AM40+AM56+AM62) ->  | AN67: =IF(OR(AN40="",AN56="",AN62=""),"",AN40+AN56+AN62) ->  | AO67: =IF(OR(AO40="",AO56="",AO62=""),"",AO40+AO56+AO62) ->  | AP67: =IF(OR(AP40="",AP56="",AP62=""),"",AP40+AP56+AP62) ->  | AQ67: =IF(OR(AQ40="",AQ56="",AQ62=""),"",AQ40+AQ56+AQ62) -> 
